Workbook

Sheet 未来カルテ
L1: 自治体コード | N1: 50
L2: 全国カルテ50，人口集中自治体カルテ51、過疎自治体カルテ52
C3: =B26&"未来カルテ" -> 全国未来カルテ
L9: version 3.1
J10: =IF(N1=52,"人口集中市町村：可住地人口密度4000人/km2以上の150市町村、過疎市町村：過疎地域自立促進特別措置法に基づく過疎自治体672市町村（一部過疎を除く）",IF(N1=51,"人口集中市町村：可住地人口密度4000人/km2以上の150市町村、過疎市町村：過疎地域自立促進特別措置法に基づく過疎自治体672市町村（一部過疎を除く）","")) -> 
D13: このカルテは、社会保障・人口問題研究所の人口予測をベースとして、現在の傾向が継続した場合に、2040年に、産業、保育、教育、医療、介護がどのような状況になるかについて、シミュレーションした結果を示しています。この結果は、現在の傾向を政策によって変えることができれば変化します。
B23: Mr. OPoSSuM | I23: 地域ストックマネジメント研究（OPoSSuM）の成果物です。
B25: ←この部分にカーソルを置いてスクロールしてください。
A26: 人口・年齢構成 | B26: =VLOOKUP(B27,未来カルテデータ!A3:B1048576,2) -> 全国
B27: =N1 -> 50 | C27: =B26 -> 全国 | F27: =IF(B27=50,"全国",IF(B27=51,"過疎市町村",IF(B27=52,"人口集中市町村",VLOOKUP(Q27,都道府県コード!A1:B47,2)))) -> 全国 | I27: 全国(万人) | P27: =IF(B27>10000,LEFTB(B27,2),LEFTB(B27,1)) -> 5 | Q27: =VALUE(P27) -> 5 | R27: =IF(B27=50,50,IF(B27=51,52,IF(B27=52,51,Q27*1000))) -> 50
C28: 2015年 | D28: 2040年 | E28: 2040／2015 | F28: 2015年 | G28: 2040年 | H28: 2040／2015 | I28: 2015年 | J28: 2040年 | K28: 2040／2015
B29: 総人口 | C29: =未来カルテグラフ作成用シート!$B$233 -> 127094745 | D29: =未来カルテグラフ作成用シート!$G$233 -> 107275851 | E29: =D29/C29 -> 0.8440620499 | F29: =未来カルテグラフ作成用シート２!$B$233 -> 127094745 | G29: =未来カルテグラフ作成用シート２!$G$233 -> 107275851 | H29: =G29/F29 -> 0.8440620499 | I29: 12709.4745 | J29: =推計人口!C30/10 -> 11091.8554 | K29: =J29/I29 -> 0.8727233687
B30: 年少人口（0～14歳）比 | C30: =(SUM(未来カルテグラフ作成用シート!$B$4:$B$6)+SUM(未来カルテグラフ作成用シート!$D$4:$D$6))/未来カルテ!C29 -> 0.1249997394 | D30: =(SUM(未来カルテグラフ作成用シート!$F$4:$F$6)+SUM(未来カルテグラフ作成用シート!$H$4:$H$6))/未来カルテ!D29 -> 0.1000394767 | E30: =(D$29*D30)/(C$29*C30) -> 0.6755176149 | F30: =(SUM(未来カルテグラフ作成用シート２!$B$4:$B$6)+SUM(未来カルテグラフ作成用シート２!$D$4:$D$6))/未来カルテ!F29 -> 0.1249997394 | G30: =(SUM(未来カルテグラフ作成用シート２!$F$4:$F$6)+SUM(未来カルテグラフ作成用シート２!$H$4:$H$6))/未来カルテ!G29 -> 0.1000394767 | H30: =(G$29*G30)/(F$29*F30) -> 0.6755176149 | I30: =全国人口2015!AA16 -> 0.1249997394 | J30: =推計人口!G30/100 -> 0.108 | K30: =(J$29*J30)/(I$29*I30) -> 0.7540345628
B31: 生産年齢人口（15～64歳）比 | C31: =(SUM(未来カルテグラフ作成用シート!$B$7:$B$16)+SUM(未来カルテグラフ作成用シート!$D$7:$D$16))/未来カルテ!C29 -> 0.6002509073 | D31: =(SUM(未来カルテグラフ作成用シート!$F$7:$F$16)+SUM(未来カルテグラフ作成用シート!$H$7:$H$16))/未来カルテ!D29 -> 0.5394124443 | E31: =(D$29*D31)/(C$29*C31) -> 0.7585120954 | F31: =(SUM(未来カルテグラフ作成用シート２!$B$7:$B$16)+SUM(未来カルテグラフ作成用シート２!$D$7:$D$16))/未来カルテ!F29 -> 0.6002509073 | G31: =(SUM(未来カルテグラフ作成用シート２!$F$7:$F$16)+SUM(未来カルテグラフ作成用シート２!$H$7:$H$16))/未来カルテ!G29 -> 0.5394124443 | H31: =(G$29*G31)/(F$29*F31) -> 0.7585120954 | I31: =全国人口2015!AA19 -> 0.6002509073 | J31: =推計人口!H30/100 -> 0.539 | K31: =(J$29*J31)/(I$29*I31) -> 0.7836687792
B32: 65歳以上人口比 | C32: =(SUM(未来カルテグラフ作成用シート!$B$17:$B$22)+SUM(未来カルテグラフ作成用シート!$D$17:$D$22))/未来カルテ!C29 -> 0.2633109732 | D32: =(SUM(未来カルテグラフ作成用シート!$F$17:$F$22)+SUM(未来カルテグラフ作成用シート!$H$17:$H$22))/未来カルテ!D29 -> 0.360548079 | E32: =(D$29*D32)/(C$29*C32) -> 1.155762507 | F32: =(SUM(未来カルテグラフ作成用シート２!$B$17:$B$22)+SUM(未来カルテグラフ作成用シート２!$D$17:$D$22))/未来カルテ!F29 -> 0.2633109732 | G32: =(SUM(未来カルテグラフ作成用シート２!$F$17:$F$22)+SUM(未来カルテグラフ作成用シート２!$H$17:$H$22))/未来カルテ!G29 -> 0.360548079 | H32: =(G$29*G32)/(F$29*F32) -> 1.155762507 | I32: =全国人口2015!AA29 -> 0.2633109732 | J32: =推計人口!I30/100 -> 0.353 | K32: =(J$29*J32)/(I$29*I32) -> 1.169990545
B33: 75歳以上人口比 | C33: =(SUM(未来カルテグラフ作成用シート!$B$19:$B$22)+SUM(未来カルテグラフ作成用シート!$D$19:$D$22))/未来カルテ!C29 -> 0.1268798564 | D33: =(SUM(未来カルテグラフ作成用シート!$F$19:$F$22)+SUM(未来カルテグラフ作成用シート!$H$19:$H$22))/未来カルテ!D29 -> 0.2072221548 | E33: =(D$29*D33)/(C$29*C33) -> 1.378535267 | F33: =(SUM(未来カルテグラフ作成用シート２!$B$19:$B$22)+SUM(未来カルテグラフ作成用シート２!$D$19:$D$22))/未来カルテ!F29 -> 0.1268798564 | G33: =(SUM(未来カルテグラフ作成用シート２!$F$19:$F$22)+SUM(未来カルテグラフ作成用シート２!$H$19:$H$22))/未来カルテ!G29 -> 0.2072221548 | H33: =(G$29*G33)/(F$29*F33) -> 1.378535267 | I33: =全国人口2015!AA31 -> 0.1268798564 | J33: 0.202 | K33: =(J$29*J33)/(I$29*I33) -> 1.389425599
B36: =B26 -> 全国
B37: 年齢構成
A50: 産業構造(2015) | B50: =$B$26 -> 全国 | C50: 就業者人口（2015年国勢調査） | G50: =未来カルテグラフ作成用シート!$B$314 -> 58919036 | H50: 就業者人口比率 | J50: =$G$50/$C$29 -> 0.463583573 | K50: =F27 -> 全国 | L50: =未来カルテグラフ作成用シート２!B310/未来カルテグラフ作成用シート２!B233 -> 0.463583573 | M50: 全国 | N50: 0.463583573
H51: （当該自治体での就業者人口／当該自治体に居住する人口）
L52: A農業 | N52: =未来カルテグラフ作成用シート!B56 -> 2004289
L53: A2林業 | N53: =未来カルテグラフ作成用シート!C56 -> 63663
L54: Ｂ 漁業 | N54: =未来カルテグラフ作成用シート!D56 -> 153747
L55: Ｃ 鉱業，採石業，砂利採取業 | N55: =未来カルテグラフ作成用シート!E56 -> 22281
L56: Ｄ 建設業 | N56: =未来カルテグラフ作成用シート!F56 -> 4341338
L57: Ｅ 製造業 | N57: =未来カルテグラフ作成用シート!G56 -> 9557215
L58: Ｆ 電気・ガス・熱供給・水道業 | N58: =未来カルテグラフ作成用シート!H56 -> 283193
L59: Ｇ 情報通信業 | N59: =未来カルテグラフ作成用シート!I56 -> 1680205
L60: Ｈ 運輸業，郵便業 | N60: =未来カルテグラフ作成用シート!J56 -> 3044741
L61: Ｉ 卸売業，小売業 | N61: =未来カルテグラフ作成用シート!K56 -> 9001414
L62: Ｊ 金融業，保険業 | N62: =未来カルテグラフ作成用シート!L56 -> 1428710
L63: Ｋ 不動産業，物品賃貸業 | N63: =未来カルテグラフ作成用シート!M56 -> 1197560
L64: Ｌ 学術研究，専門・技術サービス業 | N64: =未来カルテグラフ作成用シート!N56 -> 1919125
L65: Ｍ 宿泊業，飲食サービス業 | N65: =未来カルテグラフ作成用シート!O56 -> 3249190
L66: Ｎ 生活関連サービス業，娯楽業 | N66: =未来カルテグラフ作成用シート!P56 -> 2072228
L67: Ｏ 教育，学習支援業 | N67: =未来カルテグラフ作成用シート!Q56 -> 2661560
L68: Ｐ 医療，福祉 | N68: =未来カルテグラフ作成用シート!R56 -> 7023950
L69: Ｑ 複合サービス事業 | N69: =未来カルテグラフ作成用シート!S56 -> 483014
L70: Ｒ サービス業（他に分類されないもの） | N70: =未来カルテグラフ作成用シート!T56 -> 3543689
L71: Ｓ 公務（他に分類されるものを除く） | N71: =未来カルテグラフ作成用シート!U56 -> 2025988
L72: Ｔ 分類不能の産業 | N72: =未来カルテグラフ作成用シート!V56 -> 3161936
A75: 産業構造予測(2040) | B75: =$B$26 -> 全国 | C75: 就業者人口（年齢別就業者比率固定） | G75: =未来カルテグラフ作成用シート!$G$314 -> 45695180.05 | H75: 就業者人口比率 | J75: =G75/D29 -> 0.4259596136 | K75: =K50 -> 全国 | L75: =未来カルテグラフ作成用シート２!G310/未来カルテグラフ作成用シート２!G233 -> 0.4259596136 | M75: 全国 | N75: 0.428
H76: （当該市での就業者人口／当該自治体に居住する人口）
L77: A農業 | N77: =未来カルテグラフ作成用シート!B$160 -> 992357.9884
L78: A2林業 | N78: =未来カルテグラフ作成用シート!C$160 -> 69099.07223
L79: Ｂ 漁業 | N79: =未来カルテグラフ作成用シート!D$160 -> 121599.4038
L80: Ｃ 鉱業，採石業，砂利採取業 | N80: =未来カルテグラフ作成用シート!E$160 -> 8185.84271
L81: Ｄ 建設業 | N81: =未来カルテグラフ作成用シート!F$160 -> 2026291.097
L82: Ｅ 製造業 | N82: =未来カルテグラフ作成用シート!G$160 -> 5880111.305
L83: Ｆ 電気・ガス・熱供給・水道業 | N83: =未来カルテグラフ作成用シート!H$160 -> 189891.8257
L84: Ｇ 情報通信業 | N84: =未来カルテグラフ作成用シート!I$160 -> 2922423.71
L85: Ｈ 運輸業，郵便業 | N85: =未来カルテグラフ作成用シート!J$160 -> 2440145.53
L86: Ｉ 卸売業，小売業 | N86: =未来カルテグラフ作成用シート!K$160 -> 5469351.227
L87: Ｊ 金融業，保険業 | N87: =未来カルテグラフ作成用シート!L$160 -> 1264690.901
L88: Ｋ 不動産業，物品賃貸業 | N88: =未来カルテグラフ作成用シート!M$160 -> 736988.5417
L89: Ｌ 学術研究，専門・技術サービス業 | N89: =未来カルテグラフ作成用シート!N$160 -> 1391436.254
L90: Ｍ 宿泊業，飲食サービス業 | N90: =未来カルテグラフ作成用シート!O$160 -> 2533042.399
L91: Ｎ 生活関連サービス業，娯楽業 | N91: =未来カルテグラフ作成用シート!P$160 -> 2199376.847
L92: Ｏ 教育，学習支援業 | N92: =未来カルテグラフ作成用シート!Q$160 -> 2532172.014
L93: Ｐ 医療，福祉 | N93: =未来カルテグラフ作成用シート!R$160 -> 6927558.052
L94: Ｑ 複合サービス事業 | N94: =未来カルテグラフ作成用シート!S$160 -> 436243.8825
L95: Ｒ サービス業（他に分類されないもの） | N95: =未来カルテグラフ作成用シート!T$160 -> 2318786.59
L96: Ｓ 公務（他に分類されるものを除く） | N96: =未来カルテグラフ作成用シート!U$160 -> 1790226.14
L97: Ｔ 分類不能の産業 | N97: =未来カルテグラフ作成用シート!V$160 -> 3445201.424
K98: 就業人口の少ない町村では、2000年から2015年までの 増加率が大きい業種に集まってしまう場合があります。
A100: 年齢別産業構造(2015) | B100: =B26 -> 全国 | C100: 就業者人口（2015年国勢調査） | G100: =未来カルテグラフ作成用シート!$B$314 -> 58919036 | H100: 就業者人口比率 | J100: =$G$50/$C$29 -> 0.463583573
A125: 年齢別産業構造(2020) | B125: =$B$26 -> 全国 | C125: 就業者人口予測（年齢別就業率固定） | G125: =未来カルテグラフ作成用シート!$C$314 -> 55700964.92 | H125: 就業者人口比率 | J125: =G125/未来カルテグラフ作成用シート!$C$233 -> 0.4488396304
A150: 年齢別産業構造(2030) | B150: =$B$26 -> 全国 | C150: 就業者人口予測（年齢別就業率固定） | G150: =未来カルテグラフ作成用シート!$E$314 -> 51452500.43 | H150: 就業者人口比率 | J150: =G150/未来カルテグラフ作成用シート!$E$233 -> 0.4412067681
A175: 年齢別産業構造(2040) | B175: =$B$26 -> 全国 | C175: 就業者人口予測（年齢別就業率固定） | G175: =未来カルテグラフ作成用シート!$G$314 -> 45695180.05 | H175: 就業者人口比率 | J175: =G175/未来カルテグラフ作成用シート!$G$233 -> 0.4259596136
N192: 就業人口の少ない町村では、2000年から2015年までの増加率が大きい業種に集まってしまう場合があります。
A200: 主要産業の就業者人口 | B200: =B26 -> 全国 | C200: 農業人口 | E200: 2040/2015 | F200: =未来カルテグラフ作成用シート!$E$346/未来カルテグラフ作成用シート!$B$346 -> 0.4951172153 | H200: =F27 -> 全国 | I200: =未来カルテグラフ作成用シート２!G289/未来カルテグラフ作成用シート２!B289 -> 0.4951172153
I211: 建設業人口 | K211: 2040/2015 | L211: =未来カルテグラフ作成用シート!$G$297/未来カルテグラフ作成用シート!$B$297 -> 0.4667434549 | M211: =H200 -> 全国 | N211: =未来カルテグラフ作成用シート２!G293/未来カルテグラフ作成用シート２!B293 -> 0.4667434549
A225: 主要産業の就業者人口 | B225: =B26 -> 全国 | C225: 卸売業、小売業人口 | F225: 2040/2015 | G225: =未来カルテグラフ作成用シート!$G$302/未来カルテグラフ作成用シート!$B$302 -> 0.6076102296 | H225: =M211 -> 全国 | I225: =未来カルテグラフ作成用シート２!G298/未来カルテグラフ作成用シート２!B298 -> 0.6076102296
I235: 医療福祉人口 | K235: 2040/2015 | L235: =未来カルテグラフ作成用シート!$G$309/未来カルテグラフ作成用シート!$B$309 -> 0.986276675 | M235: =H225 -> 全国 | N235: =未来カルテグラフ作成用シート２!G305/未来カルテグラフ作成用シート２!B305 -> 0.986276675
A250: 主要産業の就業者人口 | B250: =B26 -> 全国 | C250: 教育学習支援業人口 | F250: 2040/2015 | G250: =未来カルテグラフ作成用シート!$G$308/未来カルテグラフ作成用シート!$B$308 -> 0.9513864101 | H250: =M235 -> 全国 | I250: =未来カルテグラフ作成用シート２!G304/未来カルテグラフ作成用シート２!B304 -> 0.9513864101
I260: 製造業人口 | K260: 2040/2015 | L260: =未来カルテグラフ作成用シート!$G$298/未来カルテグラフ作成用シート!$B$298 -> 0.6152536387 | M260: =H250 -> 全国 | N260: =未来カルテグラフ作成用シート２!G294/未来カルテグラフ作成用シート２!B294 -> 0.6152536387
A275: 主要産業の就業者人口 | B275: =B26 -> 全国 | C275: 公務人口 | F275: 2040/2015 | G275: =未来カルテグラフ作成用シート!$G$312/未来カルテグラフ作成用シート!$B$312 -> 0.8836311666 | H275: =H250 -> 全国 | I275: =未来カルテグラフ作成用シート２!G308/未来カルテグラフ作成用シート２!B308 -> 0.8836311666
H285: 宿泊業、飲食サービス業人口 | K285: 2040/2015 | L285: =未来カルテグラフ作成用シート!$G$306/未来カルテグラフ作成用シート!$B$306 -> 0.7795919596 | M285: =H275 -> 全国 | N285: =未来カルテグラフ作成用シート２!G302/未来カルテグラフ作成用シート２!B302 -> 0.7795919596
A300: 保育・教育 | B300: =B26&"2040/2015" -> 全国2040/2015 | C300: =未来カルテグラフ作成用シート!$G$174/未来カルテグラフ作成用シート!$B$174 -> 0.6804460669 | D300: =M285 -> 全国 | E300: =未来カルテグラフ作成用シート２!G174/未来カルテグラフ作成用シート２!B174 -> 0.6804460669 | I300: =M285&"(2015)" -> 全国(2015) | K300: =未来カルテグラフ作成用シート２!B176 -> 3.377395343
B309: 2040/2015 | C309: =未来カルテグラフ作成用シート!$G$177/未来カルテグラフ作成用シート!$B$177 -> 0.6720764852 | D309: =D300 -> 全国 | E309: =未来カルテグラフ作成用シート２!G177/未来カルテグラフ作成用シート２!B177 -> 0.6720764852 | I309: =I300 -> 全国(2015) | K309: =未来カルテグラフ作成用シート２!B179 -> 15.6851795 | L309: 全国（2010年） | N309: 16.0人
B317: 2040/2015 | C317: =未来カルテグラフ作成用シート!$G$180/未来カルテグラフ作成用シート!$B$180 -> 0.662542519 | D317: =D309 -> 全国 | E317: =未来カルテグラフ作成用シート２!G180/未来カルテグラフ作成用シート２!B180 -> 0.662542519 | I317: =I309 -> 全国(2015) | K317: =未来カルテグラフ作成用シート２!B182 -> 13.65849573 | L317: 全国（2010年） | N317: 13.9人
A325: 医療・介護 | B325: =B26&"2040/2015" -> 全国2040/2015 | C325: =未来カルテグラフ作成用シート!$G$202/未来カルテグラフ作成用シート!$B$202 -> 0.9142224533 | D325: =D300 -> 全国 | E325: =未来カルテグラフ作成用シート２!G202/未来カルテグラフ作成用シート２!B202 -> 0.9142224533 | I325: =I317 -> 全国(2015) | K325: =未来カルテグラフ作成用シート２!B204 -> 29.07105122 | L325: 全国（2010年） | N325: 31.3人
B334: 2040/2015 | C334: =未来カルテグラフ作成用シート!$G$209/未来カルテグラフ作成用シート!$B$209 -> 1.737468881 | D334: =D325 -> 全国 | E334: =未来カルテグラフ作成用シート２!G209/未来カルテグラフ作成用シート２!B209 -> 1.737468881 | I334: =I325 -> 全国(2015) | K334: =未来カルテグラフ作成用シート２!B214 -> 2.540825828 | L334: 全国（2010年） | N334: 2.7人
F347: 2040/2015 | G347: =未来カルテグラフ作成用シート!$G$211/未来カルテグラフ作成用シート!$B$211 -> 1.955029715 | H347: =D334 -> 全国 | I347: =未来カルテグラフ作成用シート２!G211/未来カルテグラフ作成用シート２!B211 -> 1.955029715
A350: 公有財産・道路・住宅 | N350: （万円／人）
B351: 2015 | D351: =B26 -> 全国 | E351: =H347 -> 全国 | F351: 単位
B352: =未来カルテグラフ作成用シート!A218 -> 公有財産（行政財産）建物床面積 | D352: =未来カルテグラフ作成用シート!B218 -> 464586065 | E352: =未来カルテグラフ作成用シート２!B218 -> 464586065 | F352: m2
B353: =未来カルテグラフ作成用シート!A219 -> うち、本庁舎 | D353: =未来カルテグラフ作成用シート!B219 -> 17124426 | E353: =未来カルテグラフ作成用シート２!B219 -> 17124426 | F353: m2
B354: =未来カルテグラフ作成用シート!A220 -> うち、小学校 | D354: =未来カルテグラフ作成用シート!B220 -> 108525603 | E354: =未来カルテグラフ作成用シート２!B220 -> 108525603 | F354: m2
B355: =未来カルテグラフ作成用シート!A221 -> うち、中学校 | D355: =未来カルテグラフ作成用シート!B221 -> 66296400 | E355: =未来カルテグラフ作成用シート２!B221 -> 66296400 | F355: m2
B356: =未来カルテグラフ作成用シート!A222 -> うち、高等学校 | D356: =未来カルテグラフ作成用シート!B222 -> 3027879 | E356: =未来カルテグラフ作成用シート２!B222 -> 3027879 | F356: m2
B357: =未来カルテグラフ作成用シート!A223 -> 公有財産（普通財産）建物床面積 | D357: =未来カルテグラフ作成用シート!B223 -> 482846751 | E357: =未来カルテグラフ作成用シート２!B223 -> 482846751 | F357: m2
B358: =未来カルテグラフ作成用シート!A224 -> 道路実延長 | D358: =未来カルテグラフ作成用シート!B224 -> 1208769.4 | E358: =未来カルテグラフ作成用シート２!B224 -> 1208769.4 | F358: km
B359: =未来カルテグラフ作成用シート!A225 -> 人口一人当たり道路実延長 | D359: =未来カルテグラフ作成用シート!B225 -> ＃N/A | E359: =未来カルテグラフ作成用シート２!B225 -> ＃N/A | F359: km
B360: =未来カルテグラフ作成用シート!A226 -> 人口一人当たり公有財産建物床面積 | D360: =未来カルテグラフ作成用シート!B226 -> ＃N/A | E360: =未来カルテグラフ作成用シート２!B226 -> ＃N/A | F360: m2
B361: =未来カルテグラフ作成用シート!A227 -> 人口一人当たり本庁舎建物床面積 | D361: =未来カルテグラフ作成用シート!B227 -> ＃N/A | E361: =未来カルテグラフ作成用シート２!B227 -> ＃N/A | F361: m2
B362: =未来カルテグラフ作成用シート!A228 -> 公有財産建物維持管理費概算 | D362: =未来カルテグラフ作成用シート!B228 -> 52308.39803 | E362: =未来カルテグラフ作成用シート２!B228 -> 52308.39803 | F362: 億円/年
B363: =未来カルテグラフ作成用シート!A229 -> 道路維持費用概算 | D363: =未来カルテグラフ作成用シート!B229 -> 24852.2215 | E363: =未来カルテグラフ作成用シート２!B229 -> 24852.2215 | F363: 億円/年
B365: 空き家比率（人口の少ない町村では住宅土地統計調査が実施されていないため＃N/Aとなります）
C366: 2003 | D366: 2008 | E366: 2013
B367: =B26 -> 全国 | C367: =未来カルテグラフ作成用シート!B237 -> 0.122 | D367: =未来カルテグラフ作成用シート!C237 -> 0.131 | E367: =未来カルテグラフ作成用シート!D237 -> 0.135
C368: (市町村合併があった市町村も＃N/Aとなる場合があります。人口集中市町村、過疎市町村は#N/Aです。）
D369: 30年で大規模改修を行い、60年で建て替えを行うものと考え、現存する公共施設の半分が今後大規模改修にかかり、半分が建て替えにかかると仮定する。さらに、この費用は起債の償還年数が30年間であることに鑑み、30年間に平準化されるものとする。この仮定の下に、延床面積を半分に割った値をさらに30で割り、それぞれに大規模改修の原単位25万円／m2と建て替えの原単位40万円／m2を乗じて足し合わせたものを、年間の維持・更新費とする。
B370: 公有財産建物維持管理費概算
B372: 道路維持費用概算 | D372: 15年で更新していくものと考え、道路面積を15で割った値に原単位（4700円／m2）を乗じて年間の維持・更新費を算出した。
A374: 農地・農漁業 | B374: =B26 -> 全国 | D374: =I325 -> 全国(2015) | F374: =未来カルテグラフ作成用シート２!B254 -> 2.242989908 | G374: ha/人 | N374: （トン）
M375: 米 | N375: =未来カルテグラフ作成用シート!B246 -> 7909787
M376: 小麦 | N376: =未来カルテグラフ作成用シート!$C$246 -> 1000779
F377: 食料生産量(重量ベース） | M377: 大麦 | N377: =未来カルテグラフ作成用シート!$D$246 -> 163258
M378: はだか麦 | N378: =未来カルテグラフ作成用シート!$E$246 -> 10707
M379: 雑穀(そば） | N379: =未来カルテグラフ作成用シート!$F$246 -> 33360
M380: かんしょ | N380: =未来カルテグラフ作成用シート!$G$246 -> 676764.0619
M381: ばれいしょ | N381: =未来カルテグラフ作成用シート!$H$246 -> 2401906.361
M382: 大豆 | N382: =未来カルテグラフ作成用シート!$I$246 -> 242174.72
M383: その他豆 | N383: =未来カルテグラフ作成用シート!$J$246 -> 100142.2898
M384: 野菜 | N384: =未来カルテグラフ作成用シート!$K$246 -> 10922021.5
B385: 2015 | C385: =B26 -> 全国 | M385: みかん | N385: =未来カルテグラフ作成用シート!$L$246 -> 764584.74
B386: 耕地面積 | C386: =未来カルテグラフ作成用シート!$B$250 -> 4495600 | D386: ha | M386: りんご | N386: =未来カルテグラフ作成用シート!$M$246 -> 806743.3992
B387: 耕作放棄地面積 | C387: =未来カルテグラフ作成用シート!$B$251 -> 473013 | D387: ha | M387: その他果実 | N387: =未来カルテグラフ作成用シート!$N$246 -> 1069667.804
B388: 耕作放棄率 | C388: =未来カルテグラフ作成用シート!$B$252 -> 0.0952002098 | M388: 牛肉 | N388: =未来カルテグラフ作成用シート!$O$246 -> 410858.5341
B389: 食糧自給率 | C389: =未来カルテグラフ作成用シート!$B$239 -> 0.3762320459 | D389: （市町村以外はランクは0表示です。） | M389: 豚肉 | N389: =未来カルテグラフ作成用シート!$P$246 -> 1038814.74
B390: 食糧自給率ランク | C390: =未来カルテグラフ作成用シート!$B$240 ->  | M390: 鶏肉 | N390: =未来カルテグラフ作成用シート!$Q$246 -> 433006.8166
B391: 耕作放棄率＝(耕作放棄地面積）／（耕作放棄地面積＋耕地面積） | M391: その他肉 | N391: =未来カルテグラフ作成用シート!$R$246 -> 0
M392: 鶏卵 | N392: =未来カルテグラフ作成用シート!$S$246 -> 1990297.675
B393: ランク：全国の市町村1741箇所中順位 | M393: 生乳 | N393: =未来カルテグラフ作成用シート!$T$246 -> 7164984.766
B394: =E351&"(2015 耕作放棄地率)" -> 全国(2015 耕作放棄地率) | C394: =未来カルテグラフ作成用シート２!B252 -> 0.0952002098 | M394: 魚介類(海藻真珠除く） | N394: =未来カルテグラフ作成用シート!$U$246 -> 5054648.25
M395: 海藻乾燥重量 | N395: =未来カルテグラフ作成用シート!$V$246 -> 94584.2
B396: 食料生産量・食糧自給率データは、倉阪研究室＋環境エネルギー政策研究所「永続地帯2017年度版報告書」から2016年度速報値 | M396: てんさい | N396: =未来カルテグラフ作成用シート!$W$246 -> 3916696
M397: さとうきび | N397: =未来カルテグラフ作成用シート!$X$246 -> 1260157.752
M398: きのこ類 | N398: =未来カルテグラフ作成用シート!$Y$246 -> 0
A399: 農地・農漁業 | B399: =B374 -> 全国
L400: 2010（海面漁獲物・養殖は2013） | N400: （万円）
N401: =SUM(N402:N419) -> 852422850
L402: 稲作 | N402: =未来カルテグラフ作成用シート!B$248 -> 124782655
L403: 麦類作 | N403: =未来カルテグラフ作成用シート!C$248 -> 4328185
L404: 雑穀・いも類・豆類 | N404: =未来カルテグラフ作成用シート!D$248 -> 15579755
L405: 工芸農作物 | N405: =未来カルテグラフ作成用シート!E$248 -> 22677030
L406: 露地野菜 | N406: =未来カルテグラフ作成用シート!F$248 -> 68055635
L407: 施設野菜 | N407: =未来カルテグラフ作成用シート!G$248 -> 69733995
L408: 果樹類 | N408: =未来カルテグラフ作成用シート!H$248 -> 50186730
L409: 花き・花木 | N409: =未来カルテグラフ作成用シート!I$248 -> 40240050
L410: その他の作物 | N410: =未来カルテグラフ作成用シート!J$248 -> 18716410
L411: 酪農 | N411: =未来カルテグラフ作成用シート!K$248 -> 77922170
L412: 肉用牛 | N412: =未来カルテグラフ作成用シート!L$248 -> 57494040
L413: 養豚 | N413: =未来カルテグラフ作成用シート!M$248 -> 40820455
L414: 養鶏 | N414: =未来カルテグラフ作成用シート!N$248 -> 48683890
L415: 養蚕 | N415: =未来カルテグラフ作成用シート!O$248 -> 69210
L416: その他の畜産 | N416: =未来カルテグラフ作成用シート!P$248 -> 6005260
L417: 分類不能の農作物 | N417: =未来カルテグラフ作成用シート!Q$248 -> 43091880
L418: 海面漁獲物等 | N418: =未来カルテグラフ作成用シート!R$248 -> 122559750
L419: 海面養殖 | N419: =未来カルテグラフ作成用シート!S$248 -> 41475750
L421: (出所）RESAS「農作物販売金額」「海面漁獲物等販売金額」
A424: 森林・林業 ／ 再生可能エネルギー | B424: =B26 -> 全国 | G424: (2015は実績) | H424: 2015 | I424: 2020 | J424: 2025 | K424: 2030 | L424: 2035 | M424: 2040
B425: 当該市町村の林野面積 | D425: =未来カルテグラフ作成用シート!B268 ->  | E425: ヘクタール | F425: (2010年) 林業人口予測 | H425: =未来カルテグラフ作成用シート!B266 -> 63663 | I425: =未来カルテグラフ作成用シート!C266 -> 63674.51397 | J425: =未来カルテグラフ作成用シート!D266 -> 66460.25965 | K425: =未来カルテグラフ作成用シート!E266 -> 68108.94145 | L425: =未来カルテグラフ作成用シート!F266 -> 69072.14815 | M425: =未来カルテグラフ作成用シート!G266 -> 69099.07223
B426: 国内の林野面積に占める比率 | D426: =D425/25339561 ->  | F426: (2010年) 人工林維持管理必要労働量 | I426: =未来カルテグラフ作成用シート!C264 -> 410931.1368 | J426: =未来カルテグラフ作成用シート!D264 -> 424931.2562 | K426: =未来カルテグラフ作成用シート!E264 -> 482707.2052 | L426: =未来カルテグラフ作成用シート!F264 -> 528455.4592 | M426: =未来カルテグラフ作成用シート!G264 -> 555529.094
B427: 林野面積市町村ランク | D427: =未来カルテグラフ作成用シート!E269 ->  | E427: 位/1743団体 | H427: 充足可能率 | I427: =IF(I426=0,"―",I425/I426) -> 0.154951787 | J427: =IF(J426=0,"―",J425/J426) -> 0.1564023796 | K427: =IF(K426=0,"―",K425/K426) -> 0.1410978347 | L427: =IF(L426=0,"―",L425/L426) -> 0.1307057141 | M427: =IF(M426=0,"―",M425/M426) -> 0.1243842545
H428: 人工林維持管理必要労働量：当該市町村に存在すると推計された10齢級（46年）以上の人工林について年間2％ずつ伐採し、その後に植林することによって人工林面積を維持する場合に、伐採と維持管理に必要な労働量（人／年）を推計したもの。
F434: （再生可能エネルギーデータは、次ページ参照）
A449: エネルギー | B449: =B26 -> 全国
B450: 再生可能エネルギー供給量 (供給量はテラジュール（TJ)) | D450: 2014-03-01 | F450: 2015-03-01 | I450: 2016-03-01 | L450: 2017-03-01
D451: 供給量 | E451: 供給比 | F451: 供給量 | G451: 供給比 | H451: 対前年比 | I451: 供給量 | J451: 供給比 | K451: 対前年比 | L451: 供給量 | M451: 供給比 | N451: 対前年比
B452: 太陽光発電 | D452: =未来カルテグラフ作成用シート!B271 -> 178372.3002 | E452: =D452/$D$462 -> 0.3859769159 | F452: =未来カルテグラフ作成用シート!C271 -> 285950.6813 | G452: =F452/F$462 -> 0.4351817906 | H452: =IF(D452=0,"-",F452/D452) -> 1.603111475 | I452: =未来カルテグラフ作成用シート!D271 -> 394360.7384 | J452: =I452/I$462 -> 0.4994441928 | K452: =IF(F452=0,"-",I452/F452) -> 1.379121521 | L452: =未来カルテグラフ作成用シート!E271 -> 469571.595 | M452: =L452/$L$462 -> 0.5318356856 | N452: =IF(I452=0,"-",L452/I452) -> 1.190715883
B453: 風力発電 | D453: =未来カルテグラフ作成用シート!B272 -> 44064.0267 | E453: =D453/$D$462 -> 0.0953494299 | F453: =未来カルテグラフ作成用シート!C272 -> 46764.74061 | G453: 0.07117018735 | H453: =IF(D453=0,"-",F453/D453) -> 1.061290674 | I453: =未来カルテグラフ作成用シート!D272 -> 49803.77579 | J453: 0.06307475409 | K453: =IF(F453=0,"-",I453/F453) -> 1.06498561 | L453: =未来カルテグラフ作成用シート!E272 -> 55811.86777 | M453: 0.06321239036 | N453: 1.120635271
B454: 地熱発電 | D454: =未来カルテグラフ作成用シート!B273 -> 22021.01685 | E454: 0.0476509198 | F454: =未来カルテグラフ作成用シート!C273 -> 22077.80437 | G454: 0.03359970467 | H454: =IF(D454=0,"-",F454/D454) -> 1.002578787 | I454: =未来カルテグラフ作成用シート!D273 -> 22175.39863 | J454: 0.02808437299 | K454: =IF(F454=0,"-",I454/F454) -> 1.004420469 | L454: =未来カルテグラフ作成用シート!E273 -> 20946.57617 | M454: 0.02372404297 | N454: 0.944586229
B455: 小水力発電（1万kW以下） | D455: =未来カルテグラフ作成用シート!B274 -> 130044.0994 | E455: 0.2814003091 | F455: =未来カルテグラフ作成用シート!C274 -> 130402.2581 | G455: 0.1984562091 | H455: 1.002754133 | I455: =未来カルテグラフ作成用シート!D274 -> 132562.4003 | J455: 0.1678856807 | K455: 1.01656522 | L455: =未来カルテグラフ作成用シート!E274 -> 134637.6416 | M455: 0.1524902766 | N455: 1.015654826
B456: バイオマス発電 | D456: =未来カルテグラフ作成用シート!B275 -> 16537.01136 | E456: 0.03578416962 | F456: =未来カルテグラフ作成用シート!C275 -> 77864.65966 | G456: 0.1185004416 | H456: 4.708508566 | I456: =未来カルテグラフ作成用シート!D275 -> 97360.7627 | J456: 0.123304028 | K456: 1.250384489 | L456: =未来カルテグラフ作成用シート!E275 -> 108098.0477 | M456: 0.1224315949 | N456: 1.110283493
B457: 再生可能エネルギー発電（小計） | D457: =SUM(D452:D456) -> 391038.4544 | E457: 0.8461617443 | F457: =SUM(F452:F456) -> 563060.144 | G457: 0.8569083334 | H457: 1.439909906 | I457: =SUM(I452:I456) -> 696263.0757 | J457: 0.8817930286 | K457: 1.236569633 | L457: =SUM(L452:L456) -> 789065.7281 | M457: 0.8936939905 | N457: 1.133286764
B458: 太陽熱利用 | D458: =未来カルテグラフ作成用シート!B276 -> 33162.10193 | E458: 0.0717589324 | F458: =未来カルテグラフ作成用シート!C276 -> 30973.20804 | G458: 0.04713741572 | H458: 0.9339941149 | I458: =未来カルテグラフ作成用シート!D276 -> 30618.75661 | J458: 0.03877759292 | K458: 0.9885561922 | L458: =未来カルテグラフ作成用シート!E276 -> 30729.3662 | M458: 0.03480400798 | N458: 1.003612478
B459: 地熱利用 | D459: =未来カルテグラフ作成用シート!B277 -> 25330.31116 | E459: 0.05481184787 | F459: =未来カルテグラフ作成用シート!C277 -> 25667.67798 | G459: 0.03906305106 | H459: 1.0133187 | I459: =未来カルテグラフ作成用シート!D277 -> 25185.5125 | J459: 0.03189657776 | K459: 0.9812150721 | L459: =未来カルテグラフ作成用シート!E277 -> 25304.10823 | M459: 0.02865937356 | N459: 1.004708887
B460: バイオマス熱利用 | D460: =未来カルテグラフ作成用シート!B278 -> 12601.17407 | E460: 0.02726747539 | F460: =未来カルテグラフ作成用シート!C278 -> 37382.25657 | G460: 0.05689119984 | H460: 2.966569334 | I460: =未来カルテグラフ作成用シート!D278 -> 37531.86174 | J460: 0.04753280072 | K460: 1.004002037 | L460: =未来カルテグラフ作成用シート!E278 -> 37826.87341 | M460: 0.04284262799 | N460: 1.0078603
B461: 再生可能エネルギー熱（小計） | D461: =SUM(D458:D460) -> 71093.58716 | E461: 0.1538382557 | F461: =SUM(F458:F460) -> 94023.14259 | G461: 0.1430916666 | H461: 1.322526353 | I461: =SUM(I458:I460) -> 93336.13084 | J461: 0.1182069714 | K461: 0.9926931633 | L461: =SUM(L458:L460) -> 93860.34784 | M461: 0.1063060095 | N461: 1.005616442
B462: 再生可能エネルギー供給量（合計） | D462: =D461+D457 -> 462132.0416 | E462: =D462/D$462 -> 1 | F462: =F461+F457 -> 657083.2866 | G462: 1 | H462: 1.421851825 | I462: =I461+I457 -> 789599.2066 | J462: =I462/I$462 -> 1 | K462: 1.201672943 | L462: =L461+L457 -> 882926.076 | M462: =L462/$L$462 -> 1 | N462: 1.118195242
B463: （市町村以外は自給率・供給密度は0表示です。） | D463: 2014.3 | E463: rank | F463: 2015.3 | G463: rank | H463: 2016.3 | I463: rank | J463: 2017.3 | K463: rank | L463: rank：全国の市町村1741箇所中順位
B464: 地域エネルギー自給率 | C464: ％ | D464: =未来カルテグラフ作成用シート!B279 -> 0 | E464: =未来カルテグラフ作成用シート!B280 -> 0 | F464: =未来カルテグラフ作成用シート!C279 -> 0 | G464: =未来カルテグラフ作成用シート!C280 -> 0 | H464: =未来カルテグラフ作成用シート!D279 -> 0 | I464: =未来カルテグラフ作成用シート!D280 -> 0 | J464: =未来カルテグラフ作成用シート!E279 -> 0 | K464: =未来カルテグラフ作成用シート!E280 -> 0 | L464: (地域エネルギー自給率) = (再エネ供給量）／（民生＋農林水産業用エネルギー需要）
B465: 再エネ供給密度 | C465: TJ/km2 | D465: =未来カルテグラフ作成用シート!B281 -> 0 | E465: =未来カルテグラフ作成用シート!B282 -> 0 | F465: =未来カルテグラフ作成用シート!C281 -> 0 | G465: =未来カルテグラフ作成用シート!C282 -> 0 | H465: =未来カルテグラフ作成用シート!D281 -> 0 | I465: =未来カルテグラフ作成用シート!D282 -> 0 | J465: =未来カルテグラフ作成用シート!E281 -> 0 | K465: =未来カルテグラフ作成用シート!E282 -> 0
C466: 2017.3 | E466: 2015.3 | K466: （再エネ供給密度）=（再エネ供給量）／（面積）
C467: 地域エネルギー需要量 | E467: 地域エネルギー支出額
C468: =未来カルテグラフ作成用シート!B284 -> 8477251.419 | D468: TJ | E468: =未来カルテグラフ作成用シート!B285 -> 113495.3671 | F468: 億円
C469: （地域エネルギー需要量）＝（民生用エネルギー需要量）＋（農林水産業用エネルギー需要量）
C470: TJ=1012J
B471: 再生可能エネルギーは、倉阪研究室＋環境エネルギー政策研究所「永続地帯2017年度報告書」の収集データより。http://sustainable-zone.org/ 2014.3のデータは、一般廃棄物由来のバイオマス発電／熱利用を含んでいない。2015.3以降は、これらを含む。
A474: 財政 | B474: =B26 -> 全国 | G474: 総務省「市町村別決算状況調」の歳出（性質別）、歳出（目的別）、歳入の各項目を以下のように連動させて推計した。
G475: 歳出（性質別）の仮定 人件費：公務人口、物件費・維持補修費：固定、扶助費：年少人口＋高齢人口に連動、補助費等：総人口に連動、普通建設事業費・災害復旧事業費：固定、失業対策事業費：総人口に連動、公債費・積立金・投資及び出資金・貸付金：固定、繰出金：8割を（年少人口＋高齢人口）に連動、前年度繰上充用金：固定
G478: 歳出（目的別）の仮定 議会費：固定、総務費：5割を総人口に連動、民生費＜うち、社会福祉費：（年少人口＋高齢人口）に連動、老人福祉費：高齢人口に連動、児童福祉費：年少人口に連動、生活保護費：総人口に連動、災害救助費：固定＞、衛生費・労働費：総人口に連動、農林水産業費・商工費：生産年齢人口に連動、土木費・消防費：固定、教育費＜うち、教育総務費：固定、小学校費・中学校費・高等学校費・特別支援学校費・幼稚園費：5割を年少人口に連動、社会教育費・保健体育費(1)体育施設費等：5割を総人口に連動、保健体育費(2)学校給食費：年少人口に連動、大学費：5割を年少人口に連動＞、災害復旧費・公債費・諸支出金・前年度繰上充用金：固定
G483: 歳入の仮定 地方税・地方譲与税・利子割交付金・配当割交付金・株式等譲渡所得割交付金：生産年齢人口に連動、地方消費税交付金：総人口に連動、ゴルフ場利用税交付金・特別地方消費税交付金・自動車取得税交付金・軽油引取税交付金・地方特例交付金・地方交付税・交通安全対策特別交付金・分担金・使用料・手数料：生産年齢人口に連動、国庫支出金：総人口に連動、国有提供施設等所在市町村助成交付金：生産年齢人口に連動、都道府県支出金：総人口に連動、財産収入・寄付金・繰入金：生産年齢人口に連動、諸収入・地方債・特別区財政調整交付金：総人口に連動
B491: (億円） | C491: 歳出(性質別） | D491: 歳出(目的別） | E491: 歳出(平均） | F491: 歳入 | G491: 歳入－歳出 | I491: 全国・都道府県未来カルテについては、全国または当該都道府県内の各市町村の財政データ予測を集計したものになります。国または都道府県財政の予測ではありません。
B492: 2015 | C492: =未来カルテグラフ作成用シート!B287 -> 538949.4772 | D492: =未来カルテグラフ作成用シート!B288 -> 539418.6122 | E492: =未来カルテグラフ作成用シート!B289 -> 539184.0447 | F492: =未来カルテグラフ作成用シート!B290 -> 558085.028 | G492: =F492-E492 -> 18900.9833
B493: 2020 | C493: =未来カルテグラフ作成用シート!C287 -> 541153.4291 | D493: =未来カルテグラフ作成用シート!C288 -> 527474.4444 | E493: =未来カルテグラフ作成用シート!C289 -> 534313.9368 | F493: =未来カルテグラフ作成用シート!C290 -> 532783.6012 | G493: -1530.335526
B494: 2025 | C494: =未来カルテグラフ作成用シート!D287 -> 535881.2575 | D494: =未来カルテグラフ作成用シート!D288 -> 512464.3241 | E494: =未来カルテグラフ作成用シート!D289 -> 524172.7908 | F494: =未来カルテグラフ作成用シート!D290 -> 509159.7419 | G494: -15013.04889
B495: 2030 | C495: =未来カルテグラフ作成用シート!E287 -> 529301.8011 | D495: =未来カルテグラフ作成用シート!E288 -> 497329.2585 | E495: =未来カルテグラフ作成用シート!E289 -> 513315.5298 | F495: =未来カルテグラフ作成用シート!E290 -> 480978.2195 | G495: -32337.31025
B496: 2035 | C496: =未来カルテグラフ作成用シート!F287 -> 523740.6102 | D496: =未来カルテグラフ作成用シート!F288 -> 484165.6465 | E496: =未来カルテグラフ作成用シート!F289 -> 503953.1284 | F496: =未来カルテグラフ作成用シート!F290 -> 447345.143 | G496: -56607.98537
B497: 2040 | C497: =未来カルテグラフ作成用シート!G287 -> 439280.534 | D497: =未来カルテグラフ作成用シート!G288 -> 472125.9326 | E497: =未来カルテグラフ作成用シート!G289 -> 455703.2333 | F497: =未来カルテグラフ作成用シート!G290 -> 408926.1966 | G497: -46777.03675
C503: 未来カルテは、研究プロジェクト「オポッサム(OPoSSuM）」（研究代表者：千葉大学倉阪秀史）の成果物です。今後、改良を加え、バージョンアップを進めていきます。各種統計データを加工して作成しております。一部データ欠損がある場合があります。詳細は、recpa@chiba-u.jp tel.&fax.043-290-3585 にお問い合わせください。未来カルテの更新情報は、http://opossum.jpn.org/ にも掲載します。
C521: 国立研究開発法人科学技術振興機構(JST)が推進する戦略的創造研究推進事業（社会技術研究開発）「持続可能な多世代共創社会のデザイン」研究開発領域で採択された3カ年のプロジェクトです。
B547: 履歴
B548: version1.1 | C548: 2017-11-02 | D548: 北海道の2015年人口データに誤りがありましたので、修正しました。
B549: version1.2 | C549: 2017-11-06 | D549: 佐野市の市町村合併処理の際の誤りを修正しました。
B550: version2.1 | C550: 2018-03-30 | D550: 再生可能エネルギーデータを永続地帯2017年度版報告書のデータに差し替えました。
B551: version3.1 | C551: 2018-10-05 | D551: 全国データ、人口集中市町村データ、過疎市町村データ、各都道府県データを参照できるようにしました。

Sheet 自治体コード参照タブ
A1: 全国 | B1: 50
A2: 人口集中市町村 | B2: 51
A3: 過疎市町村 | B3: 52
A4: 北海道 | B4: 1000
A5: 札幌市 | B5: 1100
A6: 函館市 | B6: 1202
A7: 小樽市 | B7: 1203
A8: 旭川市 | B8: 1204
A9: 室蘭市 | B9: 1205
A10: 釧路市 | B10: 1206
A11: 帯広市 | B11: 1207
A12: 北見市 | B12: 1208
A13: 夕張市 | B13: 1209
A14: 岩見沢市 | B14: 1210
A15: 網走市 | B15: 1211
A16: 留萌市 | B16: 1212
A17: 苫小牧市 | B17: 1213
A18: 稚内市 | B18: 1214
A19: 美唄市 | B19: 1215
A20: 芦別市 | B20: 1216
A21: 江別市 | B21: 1217
A22: 赤平市 | B22: 1218
A23: 紋別市 | B23: 1219
A24: 士別市 | B24: 1220
A25: 名寄市 | B25: 1221
A26: 三笠市 | B26: 1222
A27: 根室市 | B27: 1223
A28: 千歳市 | B28: 1224
A29: 滝川市 | B29: 1225
A30: 砂川市 | B30: 1226
A31: 歌志内市 | B31: 1227
A32: 深川市 | B32: 1228
A33: 富良野市 | B33: 1229
A34: 登別市 | B34: 1230
A35: 恵庭市 | B35: 1231
A36: 伊達市 | B36: 1233
A37: 北広島市 | B37: 1234
A38: 石狩市 | B38: 1235
A39: 北斗市 | B39: 1236
A40: 当別町 | B40: 1303
A41: 新篠津村 | B41: 1304
A42: 松前町 | B42: 1331
A43: 福島町 | B43: 1332
A44: 知内町 | B44: 1333
A45: 木古内町 | B45: 1334
A46: 七飯町 | B46: 1337
A47: 鹿部町 | B47: 1343
A48: 森町 | B48: 1345
A49: 八雲町 | B49: 1346
A50: 長万部町 | B50: 1347
A51: 江差町 | B51: 1361
A52: 上ノ国町 | B52: 1362
A53: 厚沢部町 | B53: 1363
A54: 乙部町 | B54: 1364
A55: 奥尻町 | B55: 1367
A56: 今金町 | B56: 1370
A57: せたな町 | B57: 1371
A58: 島牧村 | B58: 1391
A59: 寿都町 | B59: 1392
A60: 黒松内町 | B60: 1393
A61: 蘭越町 | B61: 1394
A62: ニセコ町 | B62: 1395
A63: 真狩村 | B63: 1396
A64: 留寿都村 | B64: 1397
A65: 喜茂別町 | B65: 1398
A66: 京極町 | B66: 1399
A67: 倶知安町 | B67: 1400
A68: 共和町 | B68: 1401
A69: 岩内町 | B69: 1402
A70: 泊村 | B70: 1403
A71: 神恵内村 | B71: 1404
A72: 積丹町 | B72: 1405
A73: 古平町 | B73: 1406
A74: 仁木町 | B74: 1407
A75: 余市町 | B75: 1408
A76: 赤井川村 | B76: 1409
A77: 南幌町 | B77: 1423
A78: 奈井江町 | B78: 1424
A79: 上砂川町 | B79: 1425
A80: 由仁町 | B80: 1427
A81: 長沼町 | B81: 1428
A82: 栗山町 | B82: 1429
A83: 月形町 | B83: 1430
A84: 浦臼町 | B84: 1431
A85: 新十津川町 | B85: 1432
A86: 妹背牛町 | B86: 1433
A87: 秩父別町 | B87: 1434
A88: 雨竜町 | B88: 1436
A89: 北竜町 | B89: 1437
A90: 沼田町 | B90: 1438
A91: 鷹栖町 | B91: 1452
A92: 東神楽町 | B92: 1453
A93: 当麻町 | B93: 1454
A94: 比布町 | B94: 1455
A95: 愛別町 | B95: 1456
A96: 上川町 | B96: 1457
A97: 東川町 | B97: 1458
A98: 美瑛町 | B98: 1459
A99: 上富良野町 | B99: 1460
A100: 中富良野町 | B100: 1461
A101: 南富良野町 | B101: 1462
A102: 占冠村 | B102: 1463
A103: 和寒町 | B103: 1464
A104: 剣淵町 | B104: 1465
A105: 下川町 | B105: 1468
A106: 美深町 | B106: 1469
A107: 音威子府村 | B107: 1470
A108: 中川町 | B108: 1471
A109: 幌加内町 | B109: 1472
A110: 増毛町 | B110: 1481
A111: 小平町 | B111: 1482
A112: 苫前町 | B112: 1483
A113: 羽幌町 | B113: 1484
A114: 初山別村 | B114: 1485
A115: 遠別町 | B115: 1486
A116: 天塩町 | B116: 1487
A117: 猿払村 | B117: 1511
A118: 浜頓別町 | B118: 1512
A119: 中頓別町 | B119: 1513
A120: 枝幸町 | B120: 1514
A121: 豊富町 | B121: 1516
A122: 礼文町 | B122: 1517
A123: 利尻町 | B123: 1518
A124: 利尻富士町 | B124: 1519
A125: 幌延町 | B125: 1520
A126: 美幌町 | B126: 1543
A127: 津別町 | B127: 1544
A128: 斜里町 | B128: 1545
A129: 清里町 | B129: 1546
A130: 小清水町 | B130: 1547
A131: 訓子府町 | B131: 1549
A132: 置戸町 | B132: 1550
A133: 佐呂間町 | B133: 1552
A134: 遠軽町 | B134: 1555
A135: 湧別町 | B135: 1559
A136: 滝上町 | B136: 1560
A137: 興部町 | B137: 1561
A138: 西興部村 | B138: 1562
A139: 雄武町 | B139: 1563
A140: 大空町 | B140: 1564
A141: 豊浦町 | B141: 1571
A142: 壮瞥町 | B142: 1575
A143: 白老町 | B143: 1578
A144: 厚真町 | B144: 1581
A145: 洞爺湖町 | B145: 1584
A146: 安平町 | B146: 1585
A147: むかわ町 | B147: 1586
A148: 日高町 | B148: 1601
A149: 平取町 | B149: 1602
A150: 新冠町 | B150: 1604
A151: 浦河町 | B151: 1607
A152: 様似町 | B152: 1608
A153: えりも町 | B153: 1609
A154: 新ひだか町 | B154: 1610
A155: 音更町 | B155: 1631
A156: 士幌町 | B156: 1632
A157: 上士幌町 | B157: 1633
A158: 鹿追町 | B158: 1634
A159: 新得町 | B159: 1635
A160: 清水町 | B160: 1636
A161: 芽室町 | B161: 1637
A162: 中札内村 | B162: 1638
A163: 更別村 | B163: 1639
A164: 大樹町 | B164: 1641
A165: 広尾町 | B165: 1642
A166: 幕別町 | B166: 1643
A167: 池田町 | B167: 1644
A168: 豊頃町 | B168: 1645
A169: 本別町 | B169: 1646
A170: 足寄町 | B170: 1647
A171: 陸別町 | B171: 1648
A172: 浦幌町 | B172: 1649
A173: 釧路町 | B173: 1661
A174: 厚岸町 | B174: 1662
A175: 浜中町 | B175: 1663
A176: 標茶町 | B176: 1664
A177: 弟子屈町 | B177: 1665
A178: 鶴居村 | B178: 1667
A179: 白糠町 | B179: 1668
A180: 別海町 | B180: 1691
A181: 中標津町 | B181: 1692
A182: 標津町 | B182: 1693
A183: 羅臼町 | B183: 1694
A184: 青森県 | B184: 2000
A185: 青森市 | B185: 2201
A186: 弘前市 | B186: 2202
A187: 八戸市 | B187: 2203
A188: 黒石市 | B188: 2204
A189: 五所川原市 | B189: 2205
A190: 十和田市 | B190: 2206
A191: 三沢市 | B191: 2207
A192: むつ市 | B192: 2208
A193: つがる市 | B193: 2209
A194: 平川市 | B194: 2210
A195: 平内町 | B195: 2301
A196: 今別町 | B196: 2303
A197: 蓬田村 | B197: 2304
A198: 外ヶ浜町 | B198: 2307
A199: 鰺ヶ沢町 | B199: 2321
A200: 深浦町 | B200: 2323
... 1594 more rows

Sheet 未来カルテグラフ作成用シート (hidden)
A1: =未来カルテ!B27 -> 50 | C1: =未来カルテ!B26 -> 全国
A2: 人口
B3: 2015 | D3: 2015 | F3: 2040 | H3: 2040
A4: 0－4歳男 | B4: =VLOOKUP($A$1,未来カルテデータ!$A$3:$BHO$1048576,J4) -> 2550921 | C4: 0－4歳女 | D4: =VLOOKUP($A$1,未来カルテデータ!$A$3:$BHO$1048576,L4) -> 2436785 | E4: 0－4歳男 | F4: =VLOOKUP($A$1,未来カルテデータ!$A$3:$BHO$1048576,N4) -> 1748293 | G4: 0－4歳女 | H4: =VLOOKUP($A$1,未来カルテデータ!$A$3:$BHO$1048576,P4) -> 1658636 | I4: 0－4歳 | J4: 3 | L4: 22 | N4: 41 | P4: 60 | R4: 2015男 | V4: 2015女 | Y4: 2040男 | AC4: 2040女
A5: 5－9歳男 | B5: =VLOOKUP($A$1,未来カルテデータ!$A$3:$BHO$1048576,J5) -> 2714591 | C5: 5－9歳女 | D5: =VLOOKUP($A$1,未来カルテデータ!$A$3:$BHO$1048576,L5) -> 2585196 | E5: 5－9歳男 | F5: =VLOOKUP($A$1,未来カルテデータ!$A$3:$BHO$1048576,N5) -> 1840049 | G5: 5－9歳女 | H5: =VLOOKUP($A$1,未来カルテデータ!$A$3:$BHO$1048576,P5) -> 1746755 | I5: 5－9歳 | J5: 4 | L5: 23 | N5: 42 | P5: 61
A6: 10－14歳男 | B6: =VLOOKUP($A$1,未来カルテデータ!$A$3:$BHO$1048576,J6) -> 2868024 | C6: 10－14歳女 | D6: =VLOOKUP($A$1,未来カルテデータ!$A$3:$BHO$1048576,L6) -> 2731293 | E6: 10－14歳男 | F6: =VLOOKUP($A$1,未来カルテデータ!$A$3:$BHO$1048576,N6) -> 1917426 | G6: 10－14歳女 | H6: =VLOOKUP($A$1,未来カルテデータ!$A$3:$BHO$1048576,P6) -> 1820661 | I6: 10－14歳 | J6: 5 | L6: 24 | N6: 43 | P6: 62
A7: 15－19歳男 | B7: =VLOOKUP($A$1,未来カルテデータ!$A$3:$BHO$1048576,J7) -> 3085416 | C7: 15－19歳女 | D7: =VLOOKUP($A$1,未来カルテデータ!$A$3:$BHO$1048576,L7) -> 2922972 | E7: 15－19歳男 | F7: =VLOOKUP($A$1,未来カルテデータ!$A$3:$BHO$1048576,N7) -> 2015533 | G7: 15－19歳女 | H7: =VLOOKUP($A$1,未来カルテデータ!$A$3:$BHO$1048576,P7) -> 1917761 | I7: 15－19歳 | J7: 6 | L7: 25 | N7: 44 | P7: 63
A8: 20－24歳男 | B8: =VLOOKUP($A$1,未来カルテデータ!$A$3:$BHO$1048576,J8) -> 3046392 | C8: 20－24歳女 | D8: =VLOOKUP($A$1,未来カルテデータ!$A$3:$BHO$1048576,L8) -> 2921735 | E8: 20－24歳男 | F8: =VLOOKUP($A$1,未来カルテデータ!$A$3:$BHO$1048576,N8) -> 2255780 | G8: 20－24歳女 | H8: =VLOOKUP($A$1,未来カルテデータ!$A$3:$BHO$1048576,P8) -> 2155478 | I8: 20－24歳 | J8: 7 | L8: 26 | N8: 45 | P8: 64
A9: 25－29歳男 | B9: =VLOOKUP($A$1,未来カルテデータ!$A$3:$BHO$1048576,J9) -> 3255717 | C9: 25－29歳女 | D9: =VLOOKUP($A$1,未来カルテデータ!$A$3:$BHO$1048576,L9) -> 3153895 | E9: 25－29歳男 | F9: =VLOOKUP($A$1,未来カルテデータ!$A$3:$BHO$1048576,N9) -> 2618240 | G9: 25－29歳女 | H9: =VLOOKUP($A$1,未来カルテデータ!$A$3:$BHO$1048576,P9) -> 2493572 | I9: 25－29歳 | J9: 8 | L9: 27 | N9: 46 | P9: 65
A10: 30－34歳男 | B10: =VLOOKUP($A$1,未来カルテデータ!$A$3:$BHO$1048576,J10) -> 3684747 | C10: 30－34歳女 | D10: =VLOOKUP($A$1,未来カルテデータ!$A$3:$BHO$1048576,L10) -> 3606131 | E10: 30－34歳男 | F10: =VLOOKUP($A$1,未来カルテデータ!$A$3:$BHO$1048576,N10) -> 2779700 | G10: 30－34歳女 | H10: =VLOOKUP($A$1,未来カルテデータ!$A$3:$BHO$1048576,P10) -> 2657196 | I10: 30－34歳 | J10: 9 | L10: 28 | N10: 47 | P10: 66
A11: 35－39歳男 | B11: =VLOOKUP($A$1,未来カルテデータ!$A$3:$BHO$1048576,J11) -> 4204202 | C11: 35－39歳女 | D11: =VLOOKUP($A$1,未来カルテデータ!$A$3:$BHO$1048576,L11) -> 4111955 | E11: 35－39歳男 | F11: =VLOOKUP($A$1,未来カルテデータ!$A$3:$BHO$1048576,N11) -> 2933104 | G11: 35－39歳女 | H11: =VLOOKUP($A$1,未来カルテデータ!$A$3:$BHO$1048576,P11) -> 2799467 | I11: 35－39歳 | J11: 10 | L11: 29 | N11: 48 | P11: 67
A12: 40－44歳男 | B12: =VLOOKUP($A$1,未来カルテデータ!$A$3:$BHO$1048576,J12) -> 4914018 | C12: 40－44歳女 | D12: =VLOOKUP($A$1,未来カルテデータ!$A$3:$BHO$1048576,L12) -> 4818200 | E12: 40－44歳男 | F12: =VLOOKUP($A$1,未来カルテデータ!$A$3:$BHO$1048576,N12) -> 3085628 | G12: 40－44歳女 | H12: =VLOOKUP($A$1,未来カルテデータ!$A$3:$BHO$1048576,P12) -> 2950587 | I12: 40－44歳 | J12: 11 | L12: 30 | N12: 49 | P12: 68
A13: 45－49歳男 | B13: =VLOOKUP($A$1,未来カルテデータ!$A$3:$BHO$1048576,J13) -> 4354877 | C13: 45－49歳女 | D13: =VLOOKUP($A$1,未来カルテデータ!$A$3:$BHO$1048576,L13) -> 4307927 | E13: 45－49歳男 | F13: =VLOOKUP($A$1,未来カルテデータ!$A$3:$BHO$1048576,N13) -> 3120070 | G13: 45－49歳女 | H13: =VLOOKUP($A$1,未来カルテデータ!$A$3:$BHO$1048576,P13) -> 2967523 | I13: 45－49歳 | J13: 12 | L13: 31 | N13: 50 | P13: 69
A14: 50－54歳男 | B14: =VLOOKUP($A$1,未来カルテデータ!$A$3:$BHO$1048576,J14) -> 3968311 | C14: 50－54歳女 | D14: =VLOOKUP($A$1,未来カルテデータ!$A$3:$BHO$1048576,L14) -> 3961985 | E14: 50－54歳男 | F14: =VLOOKUP($A$1,未来カルテデータ!$A$3:$BHO$1048576,N14) -> 3214584 | G14: 50－54歳女 | H14: =VLOOKUP($A$1,未来カルテデータ!$A$3:$BHO$1048576,P14) -> 3118204 | I14: 50－54歳 | J14: 13 | L14: 32 | N14: 51 | P14: 70
A15: 55－59歳男 | B15: =VLOOKUP($A$1,未来カルテデータ!$A$3:$BHO$1048576,J15) -> 3729523 | C15: 55－59歳女 | D15: =VLOOKUP($A$1,未来カルテデータ!$A$3:$BHO$1048576,L15) -> 3785723 | E15: 55－59歳男 | F15: =VLOOKUP($A$1,未来カルテデータ!$A$3:$BHO$1048576,N15) -> 3512059 | G15: 55－59歳女 | H15: =VLOOKUP($A$1,未来カルテデータ!$A$3:$BHO$1048576,P15) -> 3484865 | I15: 55－59歳 | J15: 14 | L15: 33 | N15: 52 | P15: 71
A16: 60－64歳男 | B16: =VLOOKUP($A$1,未来カルテデータ!$A$3:$BHO$1048576,J16) -> 4151119 | C16: 60－64歳女 | D16: =VLOOKUP($A$1,未来カルテデータ!$A$3:$BHO$1048576,L16) -> 4303891 | E16: 60－64歳男 | F16: =VLOOKUP($A$1,未来カルテデータ!$A$3:$BHO$1048576,N16) -> 3860432 | G16: 60－64歳女 | H16: =VLOOKUP($A$1,未来カルテデータ!$A$3:$BHO$1048576,P16) -> 3926146 | I16: 60－64歳 | J16: 15 | L16: 34 | N16: 53 | P16: 72
A17: 65－69歳男 | B17: =VLOOKUP($A$1,未来カルテデータ!$A$3:$BHO$1048576,J17) -> 4659662 | C17: 65－69歳女 | D17: =VLOOKUP($A$1,未来カルテデータ!$A$3:$BHO$1048576,L17) -> 4984205 | E17: 65－69歳男 | F17: =VLOOKUP($A$1,未来カルテデータ!$A$3:$BHO$1048576,N17) -> 4324301 | G17: 65－69歳女 | H17: =VLOOKUP($A$1,未来カルテデータ!$A$3:$BHO$1048576,P17) -> 4540263 | I17: 65－69歳 | J17: 16 | L17: 35 | N17: 54 | P17: 73
A18: 70－74歳男 | B18: =VLOOKUP($A$1,未来カルテデータ!$A$3:$BHO$1048576,J18) -> 3582440 | C18: 70－74歳女 | D18: =VLOOKUP($A$1,未来カルテデータ!$A$3:$BHO$1048576,L18) -> 4113371 | E18: 70－74歳男 | F18: =VLOOKUP($A$1,未来カルテデータ!$A$3:$BHO$1048576,N18) -> 3602207 | G18: 70－74歳女 | H18: =VLOOKUP($A$1,未来カルテデータ!$A$3:$BHO$1048576,P18) -> 3981398 | I18: 70－74歳 | J18: 17 | L18: 36 | N18: 55 | P18: 74
A19: 75－79歳男 | B19: =VLOOKUP($A$1,未来カルテデータ!$A$3:$BHO$1048576,J19) -> 2787417 | C19: 75－79歳女 | D19: =VLOOKUP($A$1,未来カルテデータ!$A$3:$BHO$1048576,L19) -> 3489439 | E19: 75－79歳男 | F19: =VLOOKUP($A$1,未来カルテデータ!$A$3:$BHO$1048576,N19) -> 2956222 | G19: 75－79歳女 | H19: =VLOOKUP($A$1,未来カルテデータ!$A$3:$BHO$1048576,P19) -> 3511779 | I19: 75－79歳 | J19: 18 | L19: 37 | N19: 56 | P19: 75
A20: 80－84歳男 | B20: =VLOOKUP($A$1,未来カルテデータ!$A$3:$BHO$1048576,J20) -> 1994326 | C20: 80－84歳女 | D20: =VLOOKUP($A$1,未来カルテデータ!$A$3:$BHO$1048576,L20) -> 2967094 | E20: 80－84歳男 | F20: =VLOOKUP($A$1,未来カルテデータ!$A$3:$BHO$1048576,N20) -> 2308422 | G20: 80－84歳女 | H20: =VLOOKUP($A$1,未来カルテデータ!$A$3:$BHO$1048576,P20) -> 3087597 | I20: 80－84歳 | J20: 19 | L20: 38 | N20: 57 | P20: 76
A21: 85－89歳男 | B21: =VLOOKUP($A$1,未来カルテデータ!$A$3:$BHO$1048576,J21) -> 1056641 | C21: 85－89歳女 | D21: =VLOOKUP($A$1,未来カルテデータ!$A$3:$BHO$1048576,L21) -> 2060616 | E21: 85－89歳男 | F21: =VLOOKUP($A$1,未来カルテデータ!$A$3:$BHO$1048576,N21) -> 1844051 | G21: 85－89歳女 | H21: =VLOOKUP($A$1,未来カルテデータ!$A$3:$BHO$1048576,P21) -> 2964511 | I21: 85－89歳 | J21: 20 | L21: 39 | N21: 58 | P21: 77
A22: 90歳以上男 | B22: =VLOOKUP($A$1,未来カルテデータ!$A$3:$BHO$1048576,J22) -> 404983 | C22: 90歳以上女 | D22: =VLOOKUP($A$1,未来カルテデータ!$A$3:$BHO$1048576,L22) -> 1365247 | E22: 90歳以上男 | F22: =VLOOKUP($A$1,未来カルテデータ!$A$3:$BHO$1048576,N22) -> 1647083 | G22: 90歳以上女 | H22: =VLOOKUP($A$1,未来カルテデータ!$A$3:$BHO$1048576,P22) -> 3910268 | I22: 90歳以上 | J22: 21 | L22: 40 | N22: 59 | P22: 78
B24: 79 | C24: 80 | D24: 81 | E24: 82 | F24: 83 | G24: 84 | H24: 85 | I24: 86 | J24: 87 | K24: 88 | L24: 89 | M24: 90 | N24: 91 | O24: 92 | P24: 93 | Q24: 94 | R24: 95 | S24: 96 | T24: 97 | U24: 98 | V24: 99
B25: 100 | C25: 101 | D25: 102 | E25: 103 | F25: 104 | G25: 105 | H25: 106 | I25: 107 | J25: 108 | K25: 109 | L25: 110 | M25: 111 | N25: 112 | O25: 113 | P25: 114 | Q25: 115 | R25: 116 | S25: 117 | T25: 118 | U25: 119 | V25: 120
B26: 121 | C26: 122 | D26: 123 | E26: 124 | F26: 125 | G26: 126 | H26: 127 | I26: 128 | J26: 129 | K26: 130 | L26: 131 | M26: 132 | N26: 133 | O26: 134 | P26: 135 | Q26: 136 | R26: 137 | S26: 138 | T26: 139 | U26: 140 | V26: 141
B27: 142 | C27: 143 | D27: 144 | E27: 145 | F27: 146 | G27: 147 | H27: 148 | I27: 149 | J27: 150 | K27: 151 | L27: 152 | M27: 153 | N27: 154 | O27: 155 | P27: 156 | Q27: 157 | R27: 158 | S27: 159 | T27: 160 | U27: 161 | V27: 162
B28: 163 | C28: 164 | D28: 165 | E28: 166 | F28: 167 | G28: 168 | H28: 169 | I28: 170 | J28: 171 | K28: 172 | L28: 173 | M28: 174 | N28: 175 | O28: 176 | P28: 177 | Q28: 178 | R28: 179 | S28: 180 | T28: 181 | U28: 182 | V28: 183
B29: 184 | C29: 185 | D29: 186 | E29: 187 | F29: 188 | G29: 189 | H29: 190 | I29: 191 | J29: 192 | K29: 193 | L29: 194 | M29: 195 | N29: 196 | O29: 197 | P29: 198 | Q29: 199 | R29: 200 | S29: 201 | T29: 202 | U29: 203 | V29: 204
B30: 205 | C30: 206 | D30: 207 | E30: 208 | F30: 209 | G30: 210 | H30: 211 | I30: 212 | J30: 213 | K30: 214 | L30: 215 | M30: 216 | N30: 217 | O30: 218 | P30: 219 | Q30: 220 | R30: 221 | S30: 222 | T30: 223 | U30: 224 | V30: 225
B31: 226 | C31: 227 | D31: 228 | E31: 229 | F31: 230 | G31: 231 | H31: 232 | I31: 233 | J31: 234 | K31: 235 | L31: 236 | M31: 237 | N31: 238 | O31: 239 | P31: 240 | Q31: 241 | R31: 242 | S31: 243 | T31: 244 | U31: 245 | V31: 246
B32: 247 | C32: 248 | D32: 249 | E32: 250 | F32: 251 | G32: 252 | H32: 253 | I32: 254 | J32: 255 | K32: 256 | L32: 257 | M32: 258 | N32: 259 | O32: 260 | P32: 261 | Q32: 262 | R32: 263 | S32: 264 | T32: 265 | U32: 266 | V32: 267
B33: 268 | C33: 269 | D33: 270 | E33: 271 | F33: 272 | G33: 273 | H33: 274 | I33: 275 | J33: 276 | K33: 277 | L33: 278 | M33: 279 | N33: 280 | O33: 281 | P33: 282 | Q33: 283 | R33: 284 | S33: 285 | T33: 286 | U33: 287 | V33: 288
B34: 289 | C34: 290 | D34: 291 | E34: 292 | F34: 293 | G34: 294 | H34: 295 | I34: 296 | J34: 297 | K34: 298 | L34: 299 | M34: 300 | N34: 301 | O34: 302 | P34: 303 | Q34: 304 | R34: 305 | S34: 306 | T34: 307 | U34: 308 | V34: 309
B35: 310 | C35: 311 | D35: 312 | E35: 313 | F35: 314 | G35: 315 | H35: 316 | I35: 317 | J35: 318 | K35: 319 | L35: 320 | M35: 321 | N35: 322 | O35: 323 | P35: 324 | Q35: 325 | R35: 326 | S35: 327 | T35: 328 | U35: 329 | V35: 330
B36: 331 | C36: 332 | D36: 333 | E36: 334 | F36: 335 | G36: 336 | H36: 337 | I36: 338 | J36: 339 | K36: 340 | L36: 341 | M36: 342 | N36: 343 | O36: 344 | P36: 345 | Q36: 346 | R36: 347 | S36: 348 | T36: 349 | U36: 350 | V36: 351
B37: 352 | C37: 353 | D37: 354 | E37: 355 | F37: 356 | G37: 357 | H37: 358 | I37: 359 | J37: 360 | K37: 361 | L37: 362 | M37: 363 | N37: 364 | O37: 365 | P37: 366 | Q37: 367 | R37: 368 | S37: 369 | T37: 370 | U37: 371 | V37: 372
B38: 373 | C38: 374 | D38: 375 | E38: 376 | F38: 377 | G38: 378 | H38: 379 | I38: 380 | J38: 381 | K38: 382 | L38: 383 | M38: 384 | N38: 385 | O38: 386 | P38: 387 | Q38: 388 | R38: 389 | S38: 390 | T38: 391 | U38: 392 | V38: 393
A40: 2015 | B40: A1 農業 | C40: A2 林業 | D40: Ｂ 漁業 | E40: Ｃ 鉱業，採石業，砂利採取業 | F40: Ｄ 建設業 | G40: Ｅ 製造業 | H40: Ｆ 電気・ガス・熱供給・水道業 | I40: Ｇ 情報通信業 | J40: Ｈ 運輸業，郵便業 | K40: Ｉ 卸売業，小売業 | L40: Ｊ 金融業，保険業 | M40: Ｋ 不動産業，物品賃貸業 | N40: Ｌ 学術研究，専門・技術サービス業 | O40: Ｍ 宿泊業，飲食サービス業 | P40: Ｎ 生活関連サービス業，娯楽業 | Q40: Ｏ 教育，学習支援業 | R40: Ｐ 医療，福祉 | S40: Ｑ 複合サービス事業 | T40: Ｒ サービス業（他に分類されないもの） | U40: Ｓ 公務（他に分類されるものを除く） | V40: Ｔ 分類不能の産業
A41: 15～19歳 | B41: =VLOOKUP($A$1,未来カルテデータ!$A$3:$BHO$1048576,B24) -> 5765 | C41: =VLOOKUP($A$1,未来カルテデータ!$A$3:$BHO$1048576,C24) -> 417 | D41: =VLOOKUP($A$1,未来カルテデータ!$A$3:$BHO$1048576,D24) -> 1201 | E41: =VLOOKUP($A$1,未来カルテデータ!$A$3:$BHO$1048576,E24) -> 114 | F41: =VLOOKUP($A$1,未来カルテデータ!$A$3:$BHO$1048576,F24) -> 43410 | G41: =VLOOKUP($A$1,未来カルテデータ!$A$3:$BHO$1048576,G24) -> 108583 | H41: =VLOOKUP($A$1,未来カルテデータ!$A$3:$BHO$1048576,H24) -> 2314 | I41: =VLOOKUP($A$1,未来カルテデータ!$A$3:$BHO$1048576,I24) -> 2738 | J41: =VLOOKUP($A$1,未来カルテデータ!$A$3:$BHO$1048576,J24) -> 19875 | K41: =VLOOKUP($A$1,未来カルテデータ!$A$3:$BHO$1048576,K24) -> 187614 | L41: =VLOOKUP($A$1,未来カルテデータ!$A$3:$BHO$1048576,L24) -> 2341 | M41: =VLOOKUP($A$1,未来カルテデータ!$A$3:$BHO$1048576,M24) -> 4568 | N41: =VLOOKUP($A$1,未来カルテデータ!$A$3:$BHO$1048576,N24) -> 4825 | O41: =VLOOKUP($A$1,未来カルテデータ!$A$3:$BHO$1048576,O24) -> 206759 | P41: =VLOOKUP($A$1,未来カルテデータ!$A$3:$BHO$1048576,P24) -> 31442 | Q41: =VLOOKUP($A$1,未来カルテデータ!$A$3:$BHO$1048576,Q24) -> 27863 | R41: =VLOOKUP($A$1,未来カルテデータ!$A$3:$BHO$1048576,R24) -> 29203 | S41: =VLOOKUP($A$1,未来カルテデータ!$A$3:$BHO$1048576,S24) -> 3660 | T41: =VLOOKUP($A$1,未来カルテデータ!$A$3:$BHO$1048576,T24) -> 22715 | U41: =VLOOKUP($A$1,未来カルテデータ!$A$3:$BHO$1048576,U24) -> 19154 | V41: =VLOOKUP($A$1,未来カルテデータ!$A$3:$BHO$1048576,V24) -> 60362
A42: 20～24歳 | B42: =VLOOKUP($A$1,未来カルテデータ!$A$3:$BHO$1048576,B25) -> 30304 | C42: =VLOOKUP($A$1,未来カルテデータ!$A$3:$BHO$1048576,C25) -> 1928 | D42: =VLOOKUP($A$1,未来カルテデータ!$A$3:$BHO$1048576,D25) -> 4669 | E42: =VLOOKUP($A$1,未来カルテデータ!$A$3:$BHO$1048576,E25) -> 619 | F42: =VLOOKUP($A$1,未来カルテデータ!$A$3:$BHO$1048576,F25) -> 166823 | G42: =VLOOKUP($A$1,未来カルテデータ!$A$3:$BHO$1048576,G25) -> 508747 | H42: =VLOOKUP($A$1,未来カルテデータ!$A$3:$BHO$1048576,H25) -> 15075 | I42: =VLOOKUP($A$1,未来カルテデータ!$A$3:$BHO$1048576,I25) -> 92292 | J42: =VLOOKUP($A$1,未来カルテデータ!$A$3:$BHO$1048576,J25) -> 104565 | K42: =VLOOKUP($A$1,未来カルテデータ!$A$3:$BHO$1048576,K25) -> 617837 | L42: =VLOOKUP($A$1,未来カルテデータ!$A$3:$BHO$1048576,L25) -> 77911 | M42: =VLOOKUP($A$1,未来カルテデータ!$A$3:$BHO$1048576,M25) -> 43089 | N42: =VLOOKUP($A$1,未来カルテデータ!$A$3:$BHO$1048576,N25) -> 65684 | O42: =VLOOKUP($A$1,未来カルテデータ!$A$3:$BHO$1048576,O25) -> 370053 | P42: =VLOOKUP($A$1,未来カルテデータ!$A$3:$BHO$1048576,P25) -> 177312 | Q42: =VLOOKUP($A$1,未来カルテデータ!$A$3:$BHO$1048576,Q25) -> 176406 | R42: =VLOOKUP($A$1,未来カルテデータ!$A$3:$BHO$1048576,R25) -> 450936 | S42: =VLOOKUP($A$1,未来カルテデータ!$A$3:$BHO$1048576,S25) -> 25278 | T42: =VLOOKUP($A$1,未来カルテデータ!$A$3:$BHO$1048576,T25) -> 128906 | U42: =VLOOKUP($A$1,未来カルテデータ!$A$3:$BHO$1048576,U25) -> 123039 | V42: =VLOOKUP($A$1,未来カルテデータ!$A$3:$BHO$1048576,V25) -> 260539
A43: 25～29歳 | B43: =VLOOKUP($A$1,未来カルテデータ!$A$3:$BHO$1048576,B26) -> 47917 | C43: =VLOOKUP($A$1,未来カルテデータ!$A$3:$BHO$1048576,C26) -> 3387 | D43: =VLOOKUP($A$1,未来カルテデータ!$A$3:$BHO$1048576,D26) -> 6035 | E43: =VLOOKUP($A$1,未来カルテデータ!$A$3:$BHO$1048576,E26) -> 1198 | F43: =VLOOKUP($A$1,未来カルテデータ!$A$3:$BHO$1048576,F26) -> 233085 | G43: =VLOOKUP($A$1,未来カルテデータ!$A$3:$BHO$1048576,G26) -> 799656 | H43: =VLOOKUP($A$1,未来カルテデータ!$A$3:$BHO$1048576,H26) -> 21969 | I43: =VLOOKUP($A$1,未来カルテデータ!$A$3:$BHO$1048576,I26) -> 191356 | J43: =VLOOKUP($A$1,未来カルテデータ!$A$3:$BHO$1048576,J26) -> 174230 | K43: =VLOOKUP($A$1,未来カルテデータ!$A$3:$BHO$1048576,K26) -> 717464 | L43: =VLOOKUP($A$1,未来カルテデータ!$A$3:$BHO$1048576,L26) -> 136854 | M43: =VLOOKUP($A$1,未来カルテデータ!$A$3:$BHO$1048576,M26) -> 65725 | N43: =VLOOKUP($A$1,未来カルテデータ!$A$3:$BHO$1048576,N26) -> 144867 | O43: =VLOOKUP($A$1,未来カルテデータ!$A$3:$BHO$1048576,O26) -> 210634 | P43: =VLOOKUP($A$1,未来カルテデータ!$A$3:$BHO$1048576,P26) -> 185427 | Q43: =VLOOKUP($A$1,未来カルテデータ!$A$3:$BHO$1048576,Q26) -> 236998 | R43: =VLOOKUP($A$1,未来カルテデータ!$A$3:$BHO$1048576,R26) -> 688944 | S43: =VLOOKUP($A$1,未来カルテデータ!$A$3:$BHO$1048576,S26) -> 44040 | T43: =VLOOKUP($A$1,未来カルテデータ!$A$3:$BHO$1048576,T26) -> 201107 | U43: =VLOOKUP($A$1,未来カルテデータ!$A$3:$BHO$1048576,U26) -> 212656 | V43: =VLOOKUP($A$1,未来カルテデータ!$A$3:$BHO$1048576,V26) -> 334555
A44: 30～34歳 | B44: =VLOOKUP($A$1,未来カルテデータ!$A$3:$BHO$1048576,B27) -> 66984 | C44: =VLOOKUP($A$1,未来カルテデータ!$A$3:$BHO$1048576,C27) -> 4883 | D44: =VLOOKUP($A$1,未来カルテデータ!$A$3:$BHO$1048576,D27) -> 8147 | E44: =VLOOKUP($A$1,未来カルテデータ!$A$3:$BHO$1048576,E27) -> 1426 | F44: =VLOOKUP($A$1,未来カルテデータ!$A$3:$BHO$1048576,F27) -> 327286 | G44: =VLOOKUP($A$1,未来カルテデータ!$A$3:$BHO$1048576,G27) -> 916269 | H44: =VLOOKUP($A$1,未来カルテデータ!$A$3:$BHO$1048576,H27) -> 19834 | I44: =VLOOKUP($A$1,未来カルテデータ!$A$3:$BHO$1048576,I27) -> 229368 | J44: =VLOOKUP($A$1,未来カルテデータ!$A$3:$BHO$1048576,J27) -> 230712 | K44: =VLOOKUP($A$1,未来カルテデータ!$A$3:$BHO$1048576,K27) -> 793188 | L44: =VLOOKUP($A$1,未来カルテデータ!$A$3:$BHO$1048576,L27) -> 137409 | M44: =VLOOKUP($A$1,未来カルテデータ!$A$3:$BHO$1048576,M27) -> 82884 | N44: =VLOOKUP($A$1,未来カルテデータ!$A$3:$BHO$1048576,N27) -> 183492 | O44: =VLOOKUP($A$1,未来カルテデータ!$A$3:$BHO$1048576,O27) -> 234087 | P44: =VLOOKUP($A$1,未来カルテデータ!$A$3:$BHO$1048576,P27) -> 197312 | Q44: =VLOOKUP($A$1,未来カルテデータ!$A$3:$BHO$1048576,Q27) -> 231580 | R44: =VLOOKUP($A$1,未来カルテデータ!$A$3:$BHO$1048576,R27) -> 730938 | S44: =VLOOKUP($A$1,未来カルテデータ!$A$3:$BHO$1048576,S27) -> 44590 | T44: =VLOOKUP($A$1,未来カルテデータ!$A$3:$BHO$1048576,T27) -> 254393 | U44: =VLOOKUP($A$1,未来カルテデータ!$A$3:$BHO$1048576,U27) -> 210467 | V44: =VLOOKUP($A$1,未来カルテデータ!$A$3:$BHO$1048576,V27) -> 355917
A45: 35～39歳 | B45: =VLOOKUP($A$1,未来カルテデータ!$A$3:$BHO$1048576,B28) -> 80216 | C45: =VLOOKUP($A$1,未来カルテデータ!$A$3:$BHO$1048576,C28) -> 5933 | D45: =VLOOKUP($A$1,未来カルテデータ!$A$3:$BHO$1048576,D28) -> 9067 | E45: =VLOOKUP($A$1,未来カルテデータ!$A$3:$BHO$1048576,E28) -> 1872 | F45: =VLOOKUP($A$1,未来カルテデータ!$A$3:$BHO$1048576,F28) -> 456246 | G45: =VLOOKUP($A$1,未来カルテデータ!$A$3:$BHO$1048576,G28) -> 1089982 | H45: =VLOOKUP($A$1,未来カルテデータ!$A$3:$BHO$1048576,H28) -> 31660 | I45: =VLOOKUP($A$1,未来カルテデータ!$A$3:$BHO$1048576,I28) -> 268134 | J45: =VLOOKUP($A$1,未来カルテデータ!$A$3:$BHO$1048576,J28) -> 306687 | K45: =VLOOKUP($A$1,未来カルテデータ!$A$3:$BHO$1048576,K28) -> 908722 | L45: =VLOOKUP($A$1,未来カルテデータ!$A$3:$BHO$1048576,L28) -> 136872 | M45: =VLOOKUP($A$1,未来カルテデータ!$A$3:$BHO$1048576,M28) -> 95851 | N45: =VLOOKUP($A$1,未来カルテデータ!$A$3:$BHO$1048576,N28) -> 225526 | O45: =VLOOKUP($A$1,未来カルテデータ!$A$3:$BHO$1048576,O28) -> 287490 | P45: =VLOOKUP($A$1,未来カルテデータ!$A$3:$BHO$1048576,P28) -> 198766 | Q45: =VLOOKUP($A$1,未来カルテデータ!$A$3:$BHO$1048576,Q28) -> 255337 | R45: =VLOOKUP($A$1,未来カルテデータ!$A$3:$BHO$1048576,R28) -> 821213 | S45: =VLOOKUP($A$1,未来カルテデータ!$A$3:$BHO$1048576,S28) -> 54217 | T45: =VLOOKUP($A$1,未来カルテデータ!$A$3:$BHO$1048576,T28) -> 317264 | U45: =VLOOKUP($A$1,未来カルテデータ!$A$3:$BHO$1048576,U28) -> 234629 | V45: =VLOOKUP($A$1,未来カルテデータ!$A$3:$BHO$1048576,V28) -> 354418
A46: 40～44歳 | B46: =VLOOKUP($A$1,未来カルテデータ!$A$3:$BHO$1048576,B29) -> 90264 | C46: =VLOOKUP($A$1,未来カルテデータ!$A$3:$BHO$1048576,C29) -> 6223 | D46: =VLOOKUP($A$1,未来カルテデータ!$A$3:$BHO$1048576,D29) -> 10751 | E46: =VLOOKUP($A$1,未来カルテデータ!$A$3:$BHO$1048576,E29) -> 2702 | F46: =VLOOKUP($A$1,未来カルテデータ!$A$3:$BHO$1048576,F29) -> 600360 | G46: =VLOOKUP($A$1,未来カルテデータ!$A$3:$BHO$1048576,G29) -> 1350183 | H46: =VLOOKUP($A$1,未来カルテデータ!$A$3:$BHO$1048576,H29) -> 46146 | I46: =VLOOKUP($A$1,未来カルテデータ!$A$3:$BHO$1048576,I29) -> 262739 | J46: =VLOOKUP($A$1,未来カルテデータ!$A$3:$BHO$1048576,J29) -> 434221 | K46: =VLOOKUP($A$1,未来カルテデータ!$A$3:$BHO$1048576,K29) -> 1137233 | L46: =VLOOKUP($A$1,未来カルテデータ!$A$3:$BHO$1048576,L29) -> 193649 | M46: =VLOOKUP($A$1,未来カルテデータ!$A$3:$BHO$1048576,M29) -> 116533 | N46: =VLOOKUP($A$1,未来カルテデータ!$A$3:$BHO$1048576,N29) -> 263842 | O46: =VLOOKUP($A$1,未来カルテデータ!$A$3:$BHO$1048576,O29) -> 353327 | P46: =VLOOKUP($A$1,未来カルテデータ!$A$3:$BHO$1048576,P29) -> 209698 | Q46: =VLOOKUP($A$1,未来カルテデータ!$A$3:$BHO$1048576,Q29) -> 312961 | R46: =VLOOKUP($A$1,未来カルテデータ!$A$3:$BHO$1048576,R29) -> 895274 | S46: =VLOOKUP($A$1,未来カルテデータ!$A$3:$BHO$1048576,S29) -> 74622 | T46: =VLOOKUP($A$1,未来カルテデータ!$A$3:$BHO$1048576,T29) -> 397700 | U46: =VLOOKUP($A$1,未来カルテデータ!$A$3:$BHO$1048576,U29) -> 291097 | V46: =VLOOKUP($A$1,未来カルテデータ!$A$3:$BHO$1048576,V29) -> 376304
A47: 45～49歳 | B47: =VLOOKUP($A$1,未来カルテデータ!$A$3:$BHO$1048576,B30) -> 89026 | C47: =VLOOKUP($A$1,未来カルテデータ!$A$3:$BHO$1048576,C30) -> 5541 | D47: =VLOOKUP($A$1,未来カルテデータ!$A$3:$BHO$1048576,D30) -> 11863 | E47: =VLOOKUP($A$1,未来カルテデータ!$A$3:$BHO$1048576,E30) -> 2656 | F47: =VLOOKUP($A$1,未来カルテデータ!$A$3:$BHO$1048576,F30) -> 504380 | G47: =VLOOKUP($A$1,未来カルテデータ!$A$3:$BHO$1048576,G30) -> 1235565 | H47: =VLOOKUP($A$1,未来カルテデータ!$A$3:$BHO$1048576,H30) -> 43071 | I47: =VLOOKUP($A$1,未来カルテデータ!$A$3:$BHO$1048576,I30) -> 225740 | J47: =VLOOKUP($A$1,未来カルテデータ!$A$3:$BHO$1048576,J30) -> 415916 | K47: =VLOOKUP($A$1,未来カルテデータ!$A$3:$BHO$1048576,K30) -> 1016202 | L47: =VLOOKUP($A$1,未来カルテデータ!$A$3:$BHO$1048576,L30) -> 216428 | M47: =VLOOKUP($A$1,未来カルテデータ!$A$3:$BHO$1048576,M30) -> 107183 | N47: =VLOOKUP($A$1,未来カルテデータ!$A$3:$BHO$1048576,N30) -> 226250 | O47: =VLOOKUP($A$1,未来カルテデータ!$A$3:$BHO$1048576,O30) -> 297319 | P47: =VLOOKUP($A$1,未来カルテデータ!$A$3:$BHO$1048576,P30) -> 192979 | Q47: =VLOOKUP($A$1,未来カルテデータ!$A$3:$BHO$1048576,Q30) -> 316021 | R47: =VLOOKUP($A$1,未来カルテデータ!$A$3:$BHO$1048576,R30) -> 813675 | S47: =VLOOKUP($A$1,未来カルテデータ!$A$3:$BHO$1048576,S30) -> 61140 | T47: =VLOOKUP($A$1,未来カルテデータ!$A$3:$BHO$1048576,T30) -> 359953 | U47: =VLOOKUP($A$1,未来カルテデータ!$A$3:$BHO$1048576,U30) -> 260883 | V47: =VLOOKUP($A$1,未来カルテデータ!$A$3:$BHO$1048576,V30) -> 311458
A48: 50～54歳 | B48: =VLOOKUP($A$1,未来カルテデータ!$A$3:$BHO$1048576,B31) -> 111204 | C48: =VLOOKUP($A$1,未来カルテデータ!$A$3:$BHO$1048576,C31) -> 6549 | D48: =VLOOKUP($A$1,未来カルテデータ!$A$3:$BHO$1048576,D31) -> 14079 | E48: =VLOOKUP($A$1,未来カルテデータ!$A$3:$BHO$1048576,E31) -> 2868 | F48: =VLOOKUP($A$1,未来カルテデータ!$A$3:$BHO$1048576,F31) -> 433347 | G48: =VLOOKUP($A$1,未来カルテデータ!$A$3:$BHO$1048576,G31) -> 1083611 | H48: =VLOOKUP($A$1,未来カルテデータ!$A$3:$BHO$1048576,H31) -> 40235 | I48: =VLOOKUP($A$1,未来カルテデータ!$A$3:$BHO$1048576,I31) -> 185149 | J48: =VLOOKUP($A$1,未来カルテデータ!$A$3:$BHO$1048576,J31) -> 376461 | K48: =VLOOKUP($A$1,未来カルテデータ!$A$3:$BHO$1048576,K31) -> 936764 | L48: =VLOOKUP($A$1,未来カルテデータ!$A$3:$BHO$1048576,L31) -> 206148 | M48: =VLOOKUP($A$1,未来カルテデータ!$A$3:$BHO$1048576,M31) -> 104992 | N48: =VLOOKUP($A$1,未来カルテデータ!$A$3:$BHO$1048576,N31) -> 204196 | O48: =VLOOKUP($A$1,未来カルテデータ!$A$3:$BHO$1048576,O31) -> 260553 | P48: =VLOOKUP($A$1,未来カルテデータ!$A$3:$BHO$1048576,P31) -> 176686 | Q48: =VLOOKUP($A$1,未来カルテデータ!$A$3:$BHO$1048576,Q31) -> 359056 | R48: =VLOOKUP($A$1,未来カルテデータ!$A$3:$BHO$1048576,R31) -> 785126 | S48: =VLOOKUP($A$1,未来カルテデータ!$A$3:$BHO$1048576,S31) -> 65348 | T48: =VLOOKUP($A$1,未来カルテデータ!$A$3:$BHO$1048576,T31) -> 342809 | U48: =VLOOKUP($A$1,未来カルテデータ!$A$3:$BHO$1048576,U31) -> 253046 | V48: =VLOOKUP($A$1,未来カルテデータ!$A$3:$BHO$1048576,V31) -> 236272
A49: 55～59歳 | B49: =VLOOKUP($A$1,未来カルテデータ!$A$3:$BHO$1048576,B32) -> 162599 | C49: =VLOOKUP($A$1,未来カルテデータ!$A$3:$BHO$1048576,C32) -> 7397 | D49: =VLOOKUP($A$1,未来カルテデータ!$A$3:$BHO$1048576,D32) -> 16915 | E49: =VLOOKUP($A$1,未来カルテデータ!$A$3:$BHO$1048576,E32) -> 2979 | F49: =VLOOKUP($A$1,未来カルテデータ!$A$3:$BHO$1048576,F32) -> 451156 | G49: =VLOOKUP($A$1,未来カルテデータ!$A$3:$BHO$1048576,G32) -> 908927 | H49: =VLOOKUP($A$1,未来カルテデータ!$A$3:$BHO$1048576,H32) -> 34572 | I49: =VLOOKUP($A$1,未来カルテデータ!$A$3:$BHO$1048576,I32) -> 111326 | J49: =VLOOKUP($A$1,未来カルテデータ!$A$3:$BHO$1048576,J32) -> 344446 | K49: =VLOOKUP($A$1,未来カルテデータ!$A$3:$BHO$1048576,K32) -> 860464 | L49: =VLOOKUP($A$1,未来カルテデータ!$A$3:$BHO$1048576,L32) -> 156137 | M49: =VLOOKUP($A$1,未来カルテデータ!$A$3:$BHO$1048576,M32) -> 108489 | N49: =VLOOKUP($A$1,未来カルテデータ!$A$3:$BHO$1048576,N32) -> 183885 | O49: =VLOOKUP($A$1,未来カルテデータ!$A$3:$BHO$1048576,O32) -> 259038 | P49: =VLOOKUP($A$1,未来カルテデータ!$A$3:$BHO$1048576,P32) -> 161006 | Q49: =VLOOKUP($A$1,未来カルテデータ!$A$3:$BHO$1048576,Q32) -> 346624 | R49: =VLOOKUP($A$1,未来カルテデータ!$A$3:$BHO$1048576,R32) -> 704765 | S49: =VLOOKUP($A$1,未来カルテデータ!$A$3:$BHO$1048576,S32) -> 59472 | T49: =VLOOKUP($A$1,未来カルテデータ!$A$3:$BHO$1048576,T32) -> 352266 | U49: =VLOOKUP($A$1,未来カルテデータ!$A$3:$BHO$1048576,U32) -> 222850 | V49: =VLOOKUP($A$1,未来カルテデータ!$A$3:$BHO$1048576,V32) -> 184341
A50: 60～64歳 | B50: =VLOOKUP($A$1,未来カルテデータ!$A$3:$BHO$1048576,B33) -> 279823 | C50: =VLOOKUP($A$1,未来カルテデータ!$A$3:$BHO$1048576,C33) -> 8237 | D50: =VLOOKUP($A$1,未来カルテデータ!$A$3:$BHO$1048576,D33) -> 20609 | E50: =VLOOKUP($A$1,未来カルテデータ!$A$3:$BHO$1048576,E33) -> 2813 | F50: =VLOOKUP($A$1,未来カルテデータ!$A$3:$BHO$1048576,F33) -> 505948 | G50: =VLOOKUP($A$1,未来カルテデータ!$A$3:$BHO$1048576,G33) -> 741880 | H50: =VLOOKUP($A$1,未来カルテデータ!$A$3:$BHO$1048576,H33) -> 20013 | I50: =VLOOKUP($A$1,未来カルテデータ!$A$3:$BHO$1048576,I33) -> 68925 | J50: =VLOOKUP($A$1,未来カルテデータ!$A$3:$BHO$1048576,J33) -> 308829 | K50: =VLOOKUP($A$1,未来カルテデータ!$A$3:$BHO$1048576,K33) -> 761663 | L50: =VLOOKUP($A$1,未来カルテデータ!$A$3:$BHO$1048576,L33) -> 97215 | M50: =VLOOKUP($A$1,未来カルテデータ!$A$3:$BHO$1048576,M33) -> 139988 | N50: =VLOOKUP($A$1,未来カルテデータ!$A$3:$BHO$1048576,N33) -> 173626 | O50: =VLOOKUP($A$1,未来カルテデータ!$A$3:$BHO$1048576,O33) -> 296701 | P50: =VLOOKUP($A$1,未来カルテデータ!$A$3:$BHO$1048576,P33) -> 178330 | Q50: =VLOOKUP($A$1,未来カルテデータ!$A$3:$BHO$1048576,Q33) -> 211532 | R50: =VLOOKUP($A$1,未来カルテデータ!$A$3:$BHO$1048576,R33) -> 543571 | S50: =VLOOKUP($A$1,未来カルテデータ!$A$3:$BHO$1048576,S33) -> 36497 | T50: =VLOOKUP($A$1,未来カルテデータ!$A$3:$BHO$1048576,T33) -> 441040 | U50: =VLOOKUP($A$1,未来カルテデータ!$A$3:$BHO$1048576,U33) -> 127946 | V50: =VLOOKUP($A$1,未来カルテデータ!$A$3:$BHO$1048576,V33) -> 178733
A51: 65～69歳 | B51: =VLOOKUP($A$1,未来カルテデータ!$A$3:$BHO$1048576,B34) -> 356534 | C51: =VLOOKUP($A$1,未来カルテデータ!$A$3:$BHO$1048576,C34) -> 6766 | D51: =VLOOKUP($A$1,未来カルテデータ!$A$3:$BHO$1048576,D34) -> 20924 | E51: =VLOOKUP($A$1,未来カルテデータ!$A$3:$BHO$1048576,E34) -> 1902 | F51: =VLOOKUP($A$1,未来カルテデータ!$A$3:$BHO$1048576,F34) -> 389469 | G51: =VLOOKUP($A$1,未来カルテデータ!$A$3:$BHO$1048576,G34) -> 457795 | H51: =VLOOKUP($A$1,未来カルテデータ!$A$3:$BHO$1048576,H34) -> 6241 | I51: =VLOOKUP($A$1,未来カルテデータ!$A$3:$BHO$1048576,I34) -> 28009 | J51: =VLOOKUP($A$1,未来カルテデータ!$A$3:$BHO$1048576,J34) -> 225745 | K51: =VLOOKUP($A$1,未来カルテデータ!$A$3:$BHO$1048576,K34) -> 558547 | L51: =VLOOKUP($A$1,未来カルテデータ!$A$3:$BHO$1048576,L34) -> 43185 | M51: =VLOOKUP($A$1,未来カルテデータ!$A$3:$BHO$1048576,M34) -> 151246 | N51: =VLOOKUP($A$1,未来カルテデータ!$A$3:$BHO$1048576,N34) -> 139764 | O51: =VLOOKUP($A$1,未来カルテデータ!$A$3:$BHO$1048576,O34) -> 280359 | P51: =VLOOKUP($A$1,未来カルテデータ!$A$3:$BHO$1048576,P34) -> 181636 | Q51: =VLOOKUP($A$1,未来カルテデータ!$A$3:$BHO$1048576,Q34) -> 113891 | R51: =VLOOKUP($A$1,未来カルテデータ!$A$3:$BHO$1048576,R34) -> 361029 | S51: =VLOOKUP($A$1,未来カルテデータ!$A$3:$BHO$1048576,S34) -> 10274 | T51: =VLOOKUP($A$1,未来カルテデータ!$A$3:$BHO$1048576,T34) -> 419680 | U51: =VLOOKUP($A$1,未来カルテデータ!$A$3:$BHO$1048576,U34) -> 47617 | V51: =VLOOKUP($A$1,未来カルテデータ!$A$3:$BHO$1048576,V34) -> 195465
A52: 70～74歳 | B52: =VLOOKUP($A$1,未来カルテデータ!$A$3:$BHO$1048576,B35) -> 263852 | C52: =VLOOKUP($A$1,未来カルテデータ!$A$3:$BHO$1048576,C35) -> 3351 | D52: =VLOOKUP($A$1,未来カルテデータ!$A$3:$BHO$1048576,D35) -> 13419 | E52: =VLOOKUP($A$1,未来カルテデータ!$A$3:$BHO$1048576,E35) -> 713 | F52: =VLOOKUP($A$1,未来カルテデータ!$A$3:$BHO$1048576,F35) -> 155320 | G52: =VLOOKUP($A$1,未来カルテデータ!$A$3:$BHO$1048576,G35) -> 217417 | H52: =VLOOKUP($A$1,未来カルテデータ!$A$3:$BHO$1048576,H35) -> 1496 | I52: =VLOOKUP($A$1,未来カルテデータ!$A$3:$BHO$1048576,I35) -> 9135 | J52: =VLOOKUP($A$1,未来カルテデータ!$A$3:$BHO$1048576,J35) -> 78039 | K52: =VLOOKUP($A$1,未来カルテデータ!$A$3:$BHO$1048576,K35) -> 275215 | L52: =VLOOKUP($A$1,未来カルテデータ!$A$3:$BHO$1048576,L35) -> 16275 | M52: =VLOOKUP($A$1,未来カルテデータ!$A$3:$BHO$1048576,M35) -> 81956 | N52: =VLOOKUP($A$1,未来カルテデータ!$A$3:$BHO$1048576,N35) -> 59548 | O52: =VLOOKUP($A$1,未来カルテデータ!$A$3:$BHO$1048576,O35) -> 126263 | P52: =VLOOKUP($A$1,未来カルテデータ!$A$3:$BHO$1048576,P35) -> 106782 | Q52: =VLOOKUP($A$1,未来カルテデータ!$A$3:$BHO$1048576,Q35) -> 44529 | R52: =VLOOKUP($A$1,未来カルテデータ!$A$3:$BHO$1048576,R35) -> 132199 | S52: =VLOOKUP($A$1,未来カルテデータ!$A$3:$BHO$1048576,S35) -> 2730 | T52: =VLOOKUP($A$1,未来カルテデータ!$A$3:$BHO$1048576,T35) -> 205517 | U52: =VLOOKUP($A$1,未来カルテデータ!$A$3:$BHO$1048576,U35) -> 15786 | V52: =VLOOKUP($A$1,未来カルテデータ!$A$3:$BHO$1048576,V35) -> 134001
A53: 75～79歳 | B53: =VLOOKUP($A$1,未来カルテデータ!$A$3:$BHO$1048576,B36) -> 222947 | C53: =VLOOKUP($A$1,未来カルテデータ!$A$3:$BHO$1048576,C36) -> 1942 | D53: =VLOOKUP($A$1,未来カルテデータ!$A$3:$BHO$1048576,D36) -> 9818 | E53: =VLOOKUP($A$1,未来カルテデータ!$A$3:$BHO$1048576,E36) -> 277 | F53: =VLOOKUP($A$1,未来カルテデータ!$A$3:$BHO$1048576,F36) -> 53052 | G53: =VLOOKUP($A$1,未来カルテデータ!$A$3:$BHO$1048576,G36) -> 93514 | H53: =VLOOKUP($A$1,未来カルテデータ!$A$3:$BHO$1048576,H36) -> 405 | I53: =VLOOKUP($A$1,未来カルテデータ!$A$3:$BHO$1048576,I36) -> 3307 | J53: =VLOOKUP($A$1,未来カルテデータ!$A$3:$BHO$1048576,J36) -> 19286 | K53: =VLOOKUP($A$1,未来カルテデータ!$A$3:$BHO$1048576,K36) -> 139566 | L53: =VLOOKUP($A$1,未来カルテデータ!$A$3:$BHO$1048576,L36) -> 5854 | M53: =VLOOKUP($A$1,未来カルテデータ!$A$3:$BHO$1048576,M36) -> 45853 | N53: =VLOOKUP($A$1,未来カルテデータ!$A$3:$BHO$1048576,N36) -> 25325 | O53: =VLOOKUP($A$1,未来カルテデータ!$A$3:$BHO$1048576,O36) -> 46568 | P53: =VLOOKUP($A$1,未来カルテデータ!$A$3:$BHO$1048576,P36) -> 53357 | Q53: =VLOOKUP($A$1,未来カルテデータ!$A$3:$BHO$1048576,Q36) -> 17281 | R53: =VLOOKUP($A$1,未来カルテデータ!$A$3:$BHO$1048576,R36) -> 43162 | S53: =VLOOKUP($A$1,未来カルテデータ!$A$3:$BHO$1048576,S36) -> 813 | T53: =VLOOKUP($A$1,未来カルテデータ!$A$3:$BHO$1048576,T36) -> 73240 | U53: =VLOOKUP($A$1,未来カルテデータ!$A$3:$BHO$1048576,U36) -> 5245 | V53: =VLOOKUP($A$1,未来カルテデータ!$A$3:$BHO$1048576,V36) -> 98303
A54: 80～84歳 | B54: =VLOOKUP($A$1,未来カルテデータ!$A$3:$BHO$1048576,B37) -> 137444 | C54: =VLOOKUP($A$1,未来カルテデータ!$A$3:$BHO$1048576,C37) -> 809 | D54: =VLOOKUP($A$1,未来カルテデータ!$A$3:$BHO$1048576,D37) -> 5038 | E54: =VLOOKUP($A$1,未来カルテデータ!$A$3:$BHO$1048576,E37) -> 103 | F54: =VLOOKUP($A$1,未来カルテデータ!$A$3:$BHO$1048576,F37) -> 16627 | G54: =VLOOKUP($A$1,未来カルテデータ!$A$3:$BHO$1048576,G37) -> 33269 | H54: =VLOOKUP($A$1,未来カルテデータ!$A$3:$BHO$1048576,H37) -> 122 | I54: =VLOOKUP($A$1,未来カルテデータ!$A$3:$BHO$1048576,I37) -> 1404 | J54: =VLOOKUP($A$1,未来カルテデータ!$A$3:$BHO$1048576,J37) -> 4401 | K54: =VLOOKUP($A$1,未来カルテデータ!$A$3:$BHO$1048576,K37) -> 63567 | L54: =VLOOKUP($A$1,未来カルテデータ!$A$3:$BHO$1048576,L37) -> 1843 | M54: =VLOOKUP($A$1,未来カルテデータ!$A$3:$BHO$1048576,M37) -> 29213 | N54: =VLOOKUP($A$1,未来カルテデータ!$A$3:$BHO$1048576,N37) -> 12144 | O54: =VLOOKUP($A$1,未来カルテデータ!$A$3:$BHO$1048576,O37) -> 15042 | P54: =VLOOKUP($A$1,未来カルテデータ!$A$3:$BHO$1048576,P37) -> 17220 | Q54: =VLOOKUP($A$1,未来カルテデータ!$A$3:$BHO$1048576,Q37) -> 7752 | R54: =VLOOKUP($A$1,未来カルテデータ!$A$3:$BHO$1048576,R37) -> 15798 | S54: =VLOOKUP($A$1,未来カルテデータ!$A$3:$BHO$1048576,S37) -> 232 | T54: =VLOOKUP($A$1,未来カルテデータ!$A$3:$BHO$1048576,T37) -> 20326 | U54: =VLOOKUP($A$1,未来カルテデータ!$A$3:$BHO$1048576,U37) -> 1317 | V54: =VLOOKUP($A$1,未来カルテデータ!$A$3:$BHO$1048576,V37) -> 54616
A55: 85歳以上 | B55: =VLOOKUP($A$1,未来カルテデータ!$A$3:$BHO$1048576,B38) -> 59410 | C55: =VLOOKUP($A$1,未来カルテデータ!$A$3:$BHO$1048576,C38) -> 300 | D55: =VLOOKUP($A$1,未来カルテデータ!$A$3:$BHO$1048576,D38) -> 1212 | E55: =VLOOKUP($A$1,未来カルテデータ!$A$3:$BHO$1048576,E38) -> 39 | F55: =VLOOKUP($A$1,未来カルテデータ!$A$3:$BHO$1048576,F38) -> 4829 | G55: =VLOOKUP($A$1,未来カルテデータ!$A$3:$BHO$1048576,G38) -> 11817 | H55: =VLOOKUP($A$1,未来カルテデータ!$A$3:$BHO$1048576,H38) -> 40 | I55: =VLOOKUP($A$1,未来カルテデータ!$A$3:$BHO$1048576,I38) -> 583 | J55: =VLOOKUP($A$1,未来カルテデータ!$A$3:$BHO$1048576,J38) -> 1328 | K55: =VLOOKUP($A$1,未来カルテデータ!$A$3:$BHO$1048576,K38) -> 27368 | L55: =VLOOKUP($A$1,未来カルテデータ!$A$3:$BHO$1048576,L38) -> 589 | M55: =VLOOKUP($A$1,未来カルテデータ!$A$3:$BHO$1048576,M38) -> 19990 | N55: =VLOOKUP($A$1,未来カルテデータ!$A$3:$BHO$1048576,N38) -> 6151 | O55: =VLOOKUP($A$1,未来カルテデータ!$A$3:$BHO$1048576,O38) -> 4997 | P55: =VLOOKUP($A$1,未来カルテデータ!$A$3:$BHO$1048576,P38) -> 4275 | Q55: =VLOOKUP($A$1,未来カルテデータ!$A$3:$BHO$1048576,Q38) -> 3729 | R55: =VLOOKUP($A$1,未来カルテデータ!$A$3:$BHO$1048576,R38) -> 8117 | S55: =VLOOKUP($A$1,未来カルテデータ!$A$3:$BHO$1048576,S38) -> 101 | T55: =VLOOKUP($A$1,未来カルテデータ!$A$3:$BHO$1048576,T38) -> 6773 | U55: =VLOOKUP($A$1,未来カルテデータ!$A$3:$BHO$1048576,U38) -> 256 | V55: =VLOOKUP($A$1,未来カルテデータ!$A$3:$BHO$1048576,V38) -> 26652
B56: =SUM(B41:B55) -> 2004289 | C56: =SUM(C41:C55) -> 63663 | D56: 153747 | E56: 22281 | F56: 4341338 | G56: 9557215 | H56: 283193 | I56: 1680205 | J56: 3044741 | K56: 9001414 | L56: 1428710 | M56: 1197560 | N56: 1919125 | O56: 3249190 | P56: 2072228 | Q56: 2661560 | R56: 7023950 | S56: 483014 | T56: 3543689 | U56: 2025988 | V56: 3161936
B58: 315
B59: =$B$58+B24 -> 394 | C59: 395 | D59: 396 | E59: 397 | F59: 398 | G59: 399 | H59: 400 | I59: 401 | J59: 402 | K59: 403 | L59: 404 | M59: 405 | N59: 406 | O59: 407 | P59: 408 | Q59: 409 | R59: 410 | S59: 411 | T59: 412 | U59: 413 | V59: 414
B60: =$B$58+B25 -> 415 | C60: 416 | D60: 417 | E60: 418 | F60: 419 | G60: 420 | H60: 421 | I60: 422 | J60: 423 | K60: 424 | L60: 425 | M60: 426 | N60: 427 | O60: 428 | P60: 429 | Q60: 430 | R60: 431 | S60: 432 | T60: 433 | U60: 434 | V60: 435
B61: =$B$58+B26 -> 436 | C61: 437 | D61: 438 | E61: 439 | F61: 440 | G61: 441 | H61: 442 | I61: 443 | J61: 444 | K61: 445 | L61: 446 | M61: 447 | N61: 448 | O61: 449 | P61: 450 | Q61: 451 | R61: 452 | S61: 453 | T61: 454 | U61: 455 | V61: 456
B62: =$B$58+B27 -> 457 | C62: 458 | D62: 459 | E62: 460 | F62: 461 | G62: 462 | H62: 463 | I62: 464 | J62: 465 | K62: 466 | L62: 467 | M62: 468 | N62: 469 | O62: 470 | P62: 471 | Q62: 472 | R62: 473 | S62: 474 | T62: 475 | U62: 476 | V62: 477
B63: =$B$58+B28 -> 478 | C63: 479 | D63: 480 | E63: 481 | F63: 482 | G63: 483 | H63: 484 | I63: 485 | J63: 486 | K63: 487 | L63: 488 | M63: 489 | N63: 490 | O63: 491 | P63: 492 | Q63: 493 | R63: 494 | S63: 495 | T63: 496 | U63: 497 | V63: 498
B64: =$B$58+B29 -> 499 | C64: 500 | D64: 501 | E64: 502 | F64: 503 | G64: 504 | H64: 505 | I64: 506 | J64: 507 | K64: 508 | L64: 509 | M64: 510 | N64: 511 | O64: 512 | P64: 513 | Q64: 514 | R64: 515 | S64: 516 | T64: 517 | U64: 518 | V64: 519
B65: =$B$58+B30 -> 520 | C65: 521 | D65: 522 | E65: 523 | F65: 524 | G65: 525 | H65: 526 | I65: 527 | J65: 528 | K65: 529 | L65: 530 | M65: 531 | N65: 532 | O65: 533 | P65: 534 | Q65: 535 | R65: 536 | S65: 537 | T65: 538 | U65: 539 | V65: 540
B66: =$B$58+B31 -> 541 | C66: 542 | D66: 543 | E66: 544 | F66: 545 | G66: 546 | H66: 547 | I66: 548 | J66: 549 | K66: 550 | L66: 551 | M66: 552 | N66: 553 | O66: 554 | P66: 555 | Q66: 556 | R66: 557 | S66: 558 | T66: 559 | U66: 560 | V66: 561
B67: =$B$58+B32 -> 562 | C67: 563 | D67: 564 | E67: 565 | F67: 566 | G67: 567 | H67: 568 | I67: 569 | J67: 570 | K67: 571 | L67: 572 | M67: 573 | N67: 574 | O67: 575 | P67: 576 | Q67: 577 | R67: 578 | S67: 579 | T67: 580 | U67: 581 | V67: 582
B68: =$B$58+B33 -> 583 | C68: 584 | D68: 585 | E68: 586 | F68: 587 | G68: 588 | H68: 589 | I68: 590 | J68: 591 | K68: 592 | L68: 593 | M68: 594 | N68: 595 | O68: 596 | P68: 597 | Q68: 598 | R68: 599 | S68: 600 | T68: 601 | U68: 602 | V68: 603
B69: =$B$58+B34 -> 604 | C69: 605 | D69: 606 | E69: 607 | F69: 608 | G69: 609 | H69: 610 | I69: 611 | J69: 612 | K69: 613 | L69: 614 | M69: 615 | N69: 616 | O69: 617 | P69: 618 | Q69: 619 | R69: 620 | S69: 621 | T69: 622 | U69: 623 | V69: 624
B70: =$B$58+B35 -> 625 | C70: 626 | D70: 627 | E70: 628 | F70: 629 | G70: 630 | H70: 631 | I70: 632 | J70: 633 | K70: 634 | L70: 635 | M70: 636 | N70: 637 | O70: 638 | P70: 639 | Q70: 640 | R70: 641 | S70: 642 | T70: 643 | U70: 644 | V70: 645
B71: =$B$58+B36 -> 646 | C71: 647 | D71: 648 | E71: 649 | F71: 650 | G71: 651 | H71: 652 | I71: 653 | J71: 654 | K71: 655 | L71: 656 | M71: 657 | N71: 658 | O71: 659 | P71: 660 | Q71: 661 | R71: 662 | S71: 663 | T71: 664 | U71: 665 | V71: 666
B72: =$B$58+B37 -> 667 | C72: 668 | D72: 669 | E72: 670 | F72: 671 | G72: 672 | H72: 673 | I72: 674 | J72: 675 | K72: 676 | L72: 677 | M72: 678 | N72: 679 | O72: 680 | P72: 681 | Q72: 682 | R72: 683 | S72: 684 | T72: 685 | U72: 686 | V72: 687
B73: =$B$58+B38 -> 688 | C73: 689 | D73: 690 | E73: 691 | F73: 692 | G73: 693 | H73: 694 | I73: 695 | J73: 696 | K73: 697 | L73: 698 | M73: 699 | N73: 700 | O73: 701 | P73: 702 | Q73: 703 | R73: 704 | S73: 705 | T73: 706 | U73: 707 | V73: 708
A75: 2020 | B75: A1 農業 | C75: A2 林業 | D75: Ｂ 漁業 | E75: Ｃ 鉱業，採石業，砂利採取業 | F75: Ｄ 建設業 | G75: Ｅ 製造業 | H75: Ｆ 電気・ガス・熱供給・水道業 | I75: Ｇ 情報通信業 | J75: Ｈ 運輸業，郵便業 | K75: Ｉ 卸売業，小売業 | L75: Ｊ 金融業，保険業 | M75: Ｋ 不動産業，物品賃貸業 | N75: Ｌ 学術研究，専門・技術サービス業 | O75: Ｍ 宿泊業，飲食サービス業 | P75: Ｎ 生活関連サービス業，娯楽業 | Q75: Ｏ 教育，学習支援業 | R75: Ｐ 医療，福祉 | S75: Ｑ 複合サービス事業 | T75: Ｒ サービス業（他に分類されないもの） | U75: Ｓ 公務（他に分類されるものを除く） | V75: Ｔ 分類不能の産業
A76: 15～19歳 | B76: =VLOOKUP($A$1,未来カルテデータ!$A$3:$BHO$1048576,B59) -> 5290.796167 | C76: =VLOOKUP($A$1,未来カルテデータ!$A$3:$BHO$1048576,C59) -> 380.9083754 | D76: =VLOOKUP($A$1,未来カルテデータ!$A$3:$BHO$1048576,D59) -> 1099.559009 | E76: =VLOOKUP($A$1,未来カルテデータ!$A$3:$BHO$1048576,E59) -> 103.8030617 | F76: =VLOOKUP($A$1,未来カルテデータ!$A$3:$BHO$1048576,F59) -> 40006.08349 | G76: =VLOOKUP($A$1,未来カルテデータ!$A$3:$BHO$1048576,G59) -> 100508.3818 | H76: =VLOOKUP($A$1,未来カルテデータ!$A$3:$BHO$1048576,H59) -> 2132.233879 | I76: =VLOOKUP($A$1,未来カルテデータ!$A$3:$BHO$1048576,I59) -> 2522.150168 | J76: =VLOOKUP($A$1,未来カルテデータ!$A$3:$BHO$1048576,J59) -> 18324.00582 | K76: =VLOOKUP($A$1,未来カルテデータ!$A$3:$BHO$1048576,K59) -> 172793.048 | L76: =VLOOKUP($A$1,未来カルテデータ!$A$3:$BHO$1048576,L59) -> 2151.08454 | M76: =VLOOKUP($A$1,未来カルテデータ!$A$3:$BHO$1048576,M59) -> 4208.007458 | N76: =VLOOKUP($A$1,未来カルテデータ!$A$3:$BHO$1048576,N59) -> 4449.126956 | O76: =VLOOKUP($A$1,未来カルテデータ!$A$3:$BHO$1048576,O59) -> 190437.9092 | P76: =VLOOKUP($A$1,未来カルテデータ!$A$3:$BHO$1048576,P59) -> 28973.55844 | Q76: =VLOOKUP($A$1,未来カルテデータ!$A$3:$BHO$1048576,Q59) -> 25656.61973 | R76: =VLOOKUP($A$1,未来カルテデータ!$A$3:$BHO$1048576,R59) -> 26879.01312 | S76: =VLOOKUP($A$1,未来カルテデータ!$A$3:$BHO$1048576,S59) -> 3365.215812 | T76: =VLOOKUP($A$1,未来カルテデータ!$A$3:$BHO$1048576,T59) -> 20909.3444 | U76: =VLOOKUP($A$1,未来カルテデータ!$A$3:$BHO$1048576,U59) -> 17563.83023 | V76: =VLOOKUP($A$1,未来カルテデータ!$A$3:$BHO$1048576,V59) -> 55569.9462
A77: 20～24歳 | B77: =VLOOKUP($A$1,未来カルテデータ!$A$3:$BHO$1048576,B60) -> 31302.24004 | C77: =VLOOKUP($A$1,未来カルテデータ!$A$3:$BHO$1048576,C60) -> 2021.835034 | D77: =VLOOKUP($A$1,未来カルテデータ!$A$3:$BHO$1048576,D60) -> 4820.769046 | E77: =VLOOKUP($A$1,未来カルテデータ!$A$3:$BHO$1048576,E60) -> 621.8807893 | F77: =VLOOKUP($A$1,未来カルテデータ!$A$3:$BHO$1048576,F60) -> 168151.2103 | G77: =VLOOKUP($A$1,未来カルテデータ!$A$3:$BHO$1048576,G60) -> 520921.7339 | H77: =VLOOKUP($A$1,未来カルテデータ!$A$3:$BHO$1048576,H60) -> 15334.13445 | I77: =VLOOKUP($A$1,未来カルテデータ!$A$3:$BHO$1048576,I60) -> 87055.456 | J77: =VLOOKUP($A$1,未来カルテデータ!$A$3:$BHO$1048576,J60) -> 104179.8723 | K77: =VLOOKUP($A$1,未来カルテデータ!$A$3:$BHO$1048576,K60) -> 615617.4511 | L77: =VLOOKUP($A$1,未来カルテデータ!$A$3:$BHO$1048576,L60) -> 77134.04189 | M77: =VLOOKUP($A$1,未来カルテデータ!$A$3:$BHO$1048576,M60) -> 42295.18219 | N77: =VLOOKUP($A$1,未来カルテデータ!$A$3:$BHO$1048576,N60) -> 64634.25236 | O77: =VLOOKUP($A$1,未来カルテデータ!$A$3:$BHO$1048576,O60) -> 366146.243 | P77: =VLOOKUP($A$1,未来カルテデータ!$A$3:$BHO$1048576,P60) -> 176490.8201 | Q77: =VLOOKUP($A$1,未来カルテデータ!$A$3:$BHO$1048576,Q60) -> 175698.8797 | R77: =VLOOKUP($A$1,未来カルテデータ!$A$3:$BHO$1048576,R60) -> 456479.5815 | S77: =VLOOKUP($A$1,未来カルテデータ!$A$3:$BHO$1048576,S60) -> 25948.78874 | T77: =VLOOKUP($A$1,未来カルテデータ!$A$3:$BHO$1048576,T60) -> 127676.4206 | U77: =VLOOKUP($A$1,未来カルテデータ!$A$3:$BHO$1048576,U60) -> 123963.5812 | V77: =VLOOKUP($A$1,未来カルテデータ!$A$3:$BHO$1048576,V60) -> 254158.8614
A78: 25～29歳 | B78: =VLOOKUP($A$1,未来カルテデータ!$A$3:$BHO$1048576,B61) -> 49353.77932 | C78: =VLOOKUP($A$1,未来カルテデータ!$A$3:$BHO$1048576,C61) -> 3184.627348 | D78: =VLOOKUP($A$1,未来カルテデータ!$A$3:$BHO$1048576,D61) -> 7318.377592 | E78: =VLOOKUP($A$1,未来カルテデータ!$A$3:$BHO$1048576,E61) -> 817.7235415 | F78: =VLOOKUP($A$1,未来カルテデータ!$A$3:$BHO$1048576,F61) -> 223723.3553 | G78: =VLOOKUP($A$1,未来カルテデータ!$A$3:$BHO$1048576,G61) -> 704473.2768 | H78: =VLOOKUP($A$1,未来カルテデータ!$A$3:$BHO$1048576,H61) -> 27542.05292 | I78: =VLOOKUP($A$1,未来カルテデータ!$A$3:$BHO$1048576,I61) -> 189801.5785 | J78: =VLOOKUP($A$1,未来カルテデータ!$A$3:$BHO$1048576,J61) -> 189736.4844 | K78: =VLOOKUP($A$1,未来カルテデータ!$A$3:$BHO$1048576,K61) -> 555879.6846 | L78: =VLOOKUP($A$1,未来カルテデータ!$A$3:$BHO$1048576,L61) -> 106097.9738 | M78: =VLOOKUP($A$1,未来カルテデータ!$A$3:$BHO$1048576,M61) -> 58587.93098 | N78: =VLOOKUP($A$1,未来カルテデータ!$A$3:$BHO$1048576,N61) -> 89163.08355 | O78: =VLOOKUP($A$1,未来カルテデータ!$A$3:$BHO$1048576,O61) -> 328515.0796 | P78: =VLOOKUP($A$1,未来カルテデータ!$A$3:$BHO$1048576,P61) -> 242525.4617 | Q78: =VLOOKUP($A$1,未来カルテデータ!$A$3:$BHO$1048576,Q61) -> 241746.7596 | R78: =VLOOKUP($A$1,未来カルテデータ!$A$3:$BHO$1048576,R61) -> 622600.4021 | S78: =VLOOKUP($A$1,未来カルテデータ!$A$3:$BHO$1048576,S61) -> 35101.59353 | T78: =VLOOKUP($A$1,未来カルテデータ!$A$3:$BHO$1048576,T61) -> 176117.1093 | U78: =VLOOKUP($A$1,未来カルテデータ!$A$3:$BHO$1048576,U61) -> 233633.8336 | V78: =VLOOKUP($A$1,未来カルテデータ!$A$3:$BHO$1048576,V61) -> 353896.8912
A79: 30～34歳 | B79: =VLOOKUP($A$1,未来カルテデータ!$A$3:$BHO$1048576,B62) -> 60332.24791 | C79: =VLOOKUP($A$1,未来カルテデータ!$A$3:$BHO$1048576,C62) -> 4327.072466 | D79: =VLOOKUP($A$1,未来カルテデータ!$A$3:$BHO$1048576,D62) -> 7517.323615 | E79: =VLOOKUP($A$1,未来カルテデータ!$A$3:$BHO$1048576,E62) -> 1178.817145 | F79: =VLOOKUP($A$1,未来カルテデータ!$A$3:$BHO$1048576,F62) -> 232821.9193 | G79: =VLOOKUP($A$1,未来カルテデータ!$A$3:$BHO$1048576,G62) -> 807092.8101 | H79: =VLOOKUP($A$1,未来カルテデータ!$A$3:$BHO$1048576,H62) -> 22633.68056 | I79: =VLOOKUP($A$1,未来カルテデータ!$A$3:$BHO$1048576,I62) -> 244961.7408 | J79: =VLOOKUP($A$1,未来カルテデータ!$A$3:$BHO$1048576,J62) -> 200940.5575 | K79: =VLOOKUP($A$1,未来カルテデータ!$A$3:$BHO$1048576,K62) -> 651471.2294 | L79: =VLOOKUP($A$1,未来カルテデータ!$A$3:$BHO$1048576,L62) -> 133755.9226 | M79: =VLOOKUP($A$1,未来カルテデータ!$A$3:$BHO$1048576,M62) -> 64361.00528 | N79: =VLOOKUP($A$1,未来カルテデータ!$A$3:$BHO$1048576,N62) -> 141278.8534 | O79: =VLOOKUP($A$1,未来カルテデータ!$A$3:$BHO$1048576,O62) -> 190886.4301 | P79: =VLOOKUP($A$1,未来カルテデータ!$A$3:$BHO$1048576,P62) -> 182123.8164 | Q79: =VLOOKUP($A$1,未来カルテデータ!$A$3:$BHO$1048576,Q62) -> 233533.3383 | R79: =VLOOKUP($A$1,未来カルテデータ!$A$3:$BHO$1048576,R62) -> 679190.2779 | S79: =VLOOKUP($A$1,未来カルテデータ!$A$3:$BHO$1048576,S62) -> 43421.45036 | T79: =VLOOKUP($A$1,未来カルテデータ!$A$3:$BHO$1048576,T62) -> 197413.9165 | U79: =VLOOKUP($A$1,未来カルテデータ!$A$3:$BHO$1048576,U62) -> 226039.5665 | V79: =VLOOKUP($A$1,未来カルテデータ!$A$3:$BHO$1048576,V62) -> 327987.2696
A80: 35～39歳 | B80: =VLOOKUP($A$1,未来カルテデータ!$A$3:$BHO$1048576,B63) -> 76740.9932 | C80: =VLOOKUP($A$1,未来カルテデータ!$A$3:$BHO$1048576,C63) -> 5689.838892 | D80: =VLOOKUP($A$1,未来カルテデータ!$A$3:$BHO$1048576,D63) -> 9176.372987 | E80: =VLOOKUP($A$1,未来カルテデータ!$A$3:$BHO$1048576,E63) -> 1340.619013 | F80: =VLOOKUP($A$1,未来カルテデータ!$A$3:$BHO$1048576,F63) -> 308552.6263 | G80: =VLOOKUP($A$1,未来カルテデータ!$A$3:$BHO$1048576,G63) -> 895392.4546 | H80: =VLOOKUP($A$1,未来カルテデータ!$A$3:$BHO$1048576,H63) -> 19475.76687 | I80: =VLOOKUP($A$1,未来カルテデータ!$A$3:$BHO$1048576,I63) -> 292811.2047 | J80: =VLOOKUP($A$1,未来カルテデータ!$A$3:$BHO$1048576,J63) -> 261324.7731 | K80: =VLOOKUP($A$1,未来カルテデータ!$A$3:$BHO$1048576,K63) -> 771751.0334 | L80: =VLOOKUP($A$1,未来カルテデータ!$A$3:$BHO$1048576,L63) -> 138822.4919 | M80: =VLOOKUP($A$1,未来カルテデータ!$A$3:$BHO$1048576,M63) -> 83908.89794 | N80: =VLOOKUP($A$1,未来カルテデータ!$A$3:$BHO$1048576,N63) -> 185537.9582 | O80: =VLOOKUP($A$1,未来カルテデータ!$A$3:$BHO$1048576,O63) -> 227577.1759 | P80: =VLOOKUP($A$1,未来カルテデータ!$A$3:$BHO$1048576,P63) -> 201051.9329 | Q80: =VLOOKUP($A$1,未来カルテデータ!$A$3:$BHO$1048576,Q63) -> 236340.8969 | R80: =VLOOKUP($A$1,未来カルテデータ!$A$3:$BHO$1048576,R63) -> 746221.2951 | S80: =VLOOKUP($A$1,未来カルテデータ!$A$3:$BHO$1048576,S63) -> 45514.61639 | T80: =VLOOKUP($A$1,未来カルテデータ!$A$3:$BHO$1048576,T63) -> 258419.8485 | U80: =VLOOKUP($A$1,未来カルテデータ!$A$3:$BHO$1048576,U63) -> 211204.7129 | V80: =VLOOKUP($A$1,未来カルテデータ!$A$3:$BHO$1048576,V63) -> 360803.4353
A81: 40～44歳 | B81: =VLOOKUP($A$1,未来カルテデータ!$A$3:$BHO$1048576,B64) -> 85488.81058 | C81: =VLOOKUP($A$1,未来カルテデータ!$A$3:$BHO$1048576,C64) -> 6379.036616 | D81: =VLOOKUP($A$1,未来カルテデータ!$A$3:$BHO$1048576,D64) -> 9469.15766 | E81: =VLOOKUP($A$1,未来カルテデータ!$A$3:$BHO$1048576,E64) -> 1710.238836 | F81: =VLOOKUP($A$1,未来カルテデータ!$A$3:$BHO$1048576,F64) -> 418462.3877 | G81: =VLOOKUP($A$1,未来カルテデータ!$A$3:$BHO$1048576,G64) -> 1047309.116 | H81: =VLOOKUP($A$1,未来カルテデータ!$A$3:$BHO$1048576,H64) -> 30714.29692 | I81: =VLOOKUP($A$1,未来カルテデータ!$A$3:$BHO$1048576,I64) -> 335426.4363 | J81: =VLOOKUP($A$1,未来カルテデータ!$A$3:$BHO$1048576,J64) -> 340547.2703 | K81: =VLOOKUP($A$1,未来カルテデータ!$A$3:$BHO$1048576,K64) -> 893571.6171 | L81: =VLOOKUP($A$1,未来カルテデータ!$A$3:$BHO$1048576,L64) -> 142507.348 | M81: =VLOOKUP($A$1,未来カルテデータ!$A$3:$BHO$1048576,M64) -> 100440.716 | N81: =VLOOKUP($A$1,未来カルテデータ!$A$3:$BHO$1048576,N64) -> 235813.6344 | O81: =VLOOKUP($A$1,未来カルテデータ!$A$3:$BHO$1048576,O64) -> 282970.3346 | P81: =VLOOKUP($A$1,未来カルテデータ!$A$3:$BHO$1048576,P64) -> 209241.7522 | Q81: =VLOOKUP($A$1,未来カルテデータ!$A$3:$BHO$1048576,Q64) -> 268654.714 | R81: =VLOOKUP($A$1,未来カルテデータ!$A$3:$BHO$1048576,R64) -> 864783.3026 | S81: =VLOOKUP($A$1,未来カルテデータ!$A$3:$BHO$1048576,S64) -> 56869.38693 | T81: =VLOOKUP($A$1,未来カルテデータ!$A$3:$BHO$1048576,T64) -> 333071.8571 | U81: =VLOOKUP($A$1,未来カルテデータ!$A$3:$BHO$1048576,U64) -> 234836.9044 | V81: =VLOOKUP($A$1,未来カルテデータ!$A$3:$BHO$1048576,V64) -> 372110.2421
A82: 45～49歳 | B82: =VLOOKUP($A$1,未来カルテデータ!$A$3:$BHO$1048576,B65) -> 92382.53154 | C82: =VLOOKUP($A$1,未来カルテデータ!$A$3:$BHO$1048576,C65) -> 6430.666756 | D82: =VLOOKUP($A$1,未来カルテデータ!$A$3:$BHO$1048576,D65) -> 10843.00845 | E82: =VLOOKUP($A$1,未来カルテデータ!$A$3:$BHO$1048576,E65) -> 2476.528926 | F82: =VLOOKUP($A$1,未来カルテデータ!$A$3:$BHO$1048576,F65) -> 552186.8085 | G82: =VLOOKUP($A$1,未来カルテデータ!$A$3:$BHO$1048576,G65) -> 1272776.714 | H82: =VLOOKUP($A$1,未来カルテデータ!$A$3:$BHO$1048576,H65) -> 44703.56293 | I82: =VLOOKUP($A$1,未来カルテデータ!$A$3:$BHO$1048576,I65) -> 304287.2883 | J82: =VLOOKUP($A$1,未来カルテデータ!$A$3:$BHO$1048576,J65) -> 462670.0261 | K82: =VLOOKUP($A$1,未来カルテデータ!$A$3:$BHO$1048576,K65) -> 1092127.777 | L82: =VLOOKUP($A$1,未来カルテデータ!$A$3:$BHO$1048576,L65) -> 200786.1641 | M82: =VLOOKUP($A$1,未来カルテデータ!$A$3:$BHO$1048576,M65) -> 121420.0839 | N82: =VLOOKUP($A$1,未来カルテデータ!$A$3:$BHO$1048576,N65) -> 274412.4503 | O82: =VLOOKUP($A$1,未来カルテデータ!$A$3:$BHO$1048576,O65) -> 339549.4264 | P82: =VLOOKUP($A$1,未来カルテデータ!$A$3:$BHO$1048576,P65) -> 217945.5322 | Q82: =VLOOKUP($A$1,未来カルテデータ!$A$3:$BHO$1048576,Q65) -> 324549.3478 | R82: =VLOOKUP($A$1,未来カルテデータ!$A$3:$BHO$1048576,R65) -> 929489.2566 | S82: =VLOOKUP($A$1,未来カルテデータ!$A$3:$BHO$1048576,S65) -> 77094.95672 | T82: =VLOOKUP($A$1,未来カルテデータ!$A$3:$BHO$1048576,T65) -> 413487.8985 | U82: =VLOOKUP($A$1,未来カルテデータ!$A$3:$BHO$1048576,U65) -> 291196.9043 | V82: =VLOOKUP($A$1,未来カルテデータ!$A$3:$BHO$1048576,V65) -> 393110.6949
A83: 50～54歳 | B83: =VLOOKUP($A$1,未来カルテデータ!$A$3:$BHO$1048576,B66) -> 92582.97852 | C83: =VLOOKUP($A$1,未来カルテデータ!$A$3:$BHO$1048576,C66) -> 5825.939438 | D83: =VLOOKUP($A$1,未来カルテデータ!$A$3:$BHO$1048576,D66) -> 12151.87882 | E83: =VLOOKUP($A$1,未来カルテデータ!$A$3:$BHO$1048576,E66) -> 2446.908157 | F83: =VLOOKUP($A$1,未来カルテデータ!$A$3:$BHO$1048576,F66) -> 466593.3612 | G83: =VLOOKUP($A$1,未来カルテデータ!$A$3:$BHO$1048576,G66) -> 1138156.837 | H83: =VLOOKUP($A$1,未来カルテデータ!$A$3:$BHO$1048576,H66) -> 41106.51187 | I83: =VLOOKUP($A$1,未来カルテデータ!$A$3:$BHO$1048576,I66) -> 246791.5151 | J83: =VLOOKUP($A$1,未来カルテデータ!$A$3:$BHO$1048576,J66) -> 430077.3434 | K83: =VLOOKUP($A$1,未来カルテデータ!$A$3:$BHO$1048576,K66) -> 959479.2789 | L83: =VLOOKUP($A$1,未来カルテデータ!$A$3:$BHO$1048576,L66) -> 222799.4163 | M83: =VLOOKUP($A$1,未来カルテデータ!$A$3:$BHO$1048576,M66) -> 110710.9892 | N83: =VLOOKUP($A$1,未来カルテデータ!$A$3:$BHO$1048576,N66) -> 233223.3144 | O83: =VLOOKUP($A$1,未来カルテデータ!$A$3:$BHO$1048576,O66) -> 280868.519 | P83: =VLOOKUP($A$1,未来カルテデータ!$A$3:$BHO$1048576,P66) -> 197858.4294 | Q83: =VLOOKUP($A$1,未来カルテデータ!$A$3:$BHO$1048576,Q66) -> 323429.9323 | R83: =VLOOKUP($A$1,未来カルテデータ!$A$3:$BHO$1048576,R66) -> 833300.3536 | S83: =VLOOKUP($A$1,未来カルテデータ!$A$3:$BHO$1048576,S66) -> 62150.346 | T83: =VLOOKUP($A$1,未来カルテデータ!$A$3:$BHO$1048576,T66) -> 369974.7352 | U83: =VLOOKUP($A$1,未来カルテデータ!$A$3:$BHO$1048576,U66) -> 253531.6671 | V83: =VLOOKUP($A$1,未来カルテデータ!$A$3:$BHO$1048576,V66) -> 322478.4379
A84: 55～59歳 | B84: =VLOOKUP($A$1,未来カルテデータ!$A$3:$BHO$1048576,B67) -> 116686.978 | C84: =VLOOKUP($A$1,未来カルテデータ!$A$3:$BHO$1048576,C67) -> 6970.19188 | D84: =VLOOKUP($A$1,未来カルテデータ!$A$3:$BHO$1048576,D67) -> 14489.83304 | E84: =VLOOKUP($A$1,未来カルテデータ!$A$3:$BHO$1048576,E67) -> 2513.75385 | F84: =VLOOKUP($A$1,未来カルテデータ!$A$3:$BHO$1048576,F67) -> 382839.936 | G84: =VLOOKUP($A$1,未来カルテデータ!$A$3:$BHO$1048576,G67) -> 929940.8333 | H84: =VLOOKUP($A$1,未来カルテデータ!$A$3:$BHO$1048576,H67) -> 32744.79709 | I84: =VLOOKUP($A$1,未来カルテデータ!$A$3:$BHO$1048576,I67) -> 186736.9514 | J84: =VLOOKUP($A$1,未来カルテデータ!$A$3:$BHO$1048576,J67) -> 362579.9295 | K84: =VLOOKUP($A$1,未来カルテデータ!$A$3:$BHO$1048576,K67) -> 830387.2503 | L84: =VLOOKUP($A$1,未来カルテデータ!$A$3:$BHO$1048576,L67) -> 204283.9009 | M84: =VLOOKUP($A$1,未来カルテデータ!$A$3:$BHO$1048576,M67) -> 104589.629 | N84: =VLOOKUP($A$1,未来カルテデータ!$A$3:$BHO$1048576,N67) -> 202628.7476 | O84: =VLOOKUP($A$1,未来カルテデータ!$A$3:$BHO$1048576,O67) -> 231051.405 | P84: =VLOOKUP($A$1,未来カルテデータ!$A$3:$BHO$1048576,P67) -> 173973.7121 | Q84: =VLOOKUP($A$1,未来カルテデータ!$A$3:$BHO$1048576,Q67) -> 353185.9566 | R84: =VLOOKUP($A$1,未来カルテデータ!$A$3:$BHO$1048576,R67) -> 770934.0457 | S84: =VLOOKUP($A$1,未来カルテデータ!$A$3:$BHO$1048576,S67) -> 63581.0392 | T84: =VLOOKUP($A$1,未来カルテデータ!$A$3:$BHO$1048576,T67) -> 338652.5016 | U84: =VLOOKUP($A$1,未来カルテデータ!$A$3:$BHO$1048576,U67) -> 211389.3254 | V84: =VLOOKUP($A$1,未来カルテデータ!$A$3:$BHO$1048576,V67) -> 235998.691
A85: 60～64歳 | B85: =VLOOKUP($A$1,未来カルテデータ!$A$3:$BHO$1048576,B68) -> 182965.7241 | C85: =VLOOKUP($A$1,未来カルテデータ!$A$3:$BHO$1048576,C68) -> 8478.961798 | D85: =VLOOKUP($A$1,未来カルテデータ!$A$3:$BHO$1048576,D68) -> 18370.77829 | E85: =VLOOKUP($A$1,未来カルテデータ!$A$3:$BHO$1048576,E68) -> 2155.605989 | F85: =VLOOKUP($A$1,未来カルテデータ!$A$3:$BHO$1048576,F68) -> 327830.8843 | G85: =VLOOKUP($A$1,未来カルテデータ!$A$3:$BHO$1048576,G68) -> 531182.2182 | H85: =VLOOKUP($A$1,未来カルテデータ!$A$3:$BHO$1048576,H68) -> 16318.17647 | I85: =VLOOKUP($A$1,未来カルテデータ!$A$3:$BHO$1048576,I68) -> 83273.17186 | J85: =VLOOKUP($A$1,未来カルテデータ!$A$3:$BHO$1048576,J68) -> 247481.2876 | K85: =VLOOKUP($A$1,未来カルテデータ!$A$3:$BHO$1048576,K68) -> 637479.5336 | L85: =VLOOKUP($A$1,未来カルテデータ!$A$3:$BHO$1048576,L68) -> 135365.1543 | M85: =VLOOKUP($A$1,未来カルテデータ!$A$3:$BHO$1048576,M68) -> 95204.33538 | N85: =VLOOKUP($A$1,未来カルテデータ!$A$3:$BHO$1048576,N68) -> 159931.3732 | O85: =VLOOKUP($A$1,未来カルテデータ!$A$3:$BHO$1048576,O68) -> 192072.4408 | P85: =VLOOKUP($A$1,未来カルテデータ!$A$3:$BHO$1048576,P68) -> 137579.6179 | Q85: =VLOOKUP($A$1,未来カルテデータ!$A$3:$BHO$1048576,Q68) -> 297539.7953 | R85: =VLOOKUP($A$1,未来カルテデータ!$A$3:$BHO$1048576,R68) -> 598891.9835 | S85: =VLOOKUP($A$1,未来カルテデータ!$A$3:$BHO$1048576,S68) -> 49653.99777 | T85: =VLOOKUP($A$1,未来カルテデータ!$A$3:$BHO$1048576,T68) -> 303084.0372 | U85: =VLOOKUP($A$1,未来カルテデータ!$A$3:$BHO$1048576,U68) -> 107358.2882 | V85: =VLOOKUP($A$1,未来カルテデータ!$A$3:$BHO$1048576,V68) -> 161786.6889
A86: 65～69歳 | B86: =VLOOKUP($A$1,未来カルテデータ!$A$3:$BHO$1048576,B69) -> 240642.7681 | C86: =VLOOKUP($A$1,未来カルテデータ!$A$3:$BHO$1048576,C69) -> 7024.621587 | D86: =VLOOKUP($A$1,未来カルテデータ!$A$3:$BHO$1048576,D69) -> 17196.29266 | E86: =VLOOKUP($A$1,未来カルテデータ!$A$3:$BHO$1048576,E69) -> 1413.989114 | F86: =VLOOKUP($A$1,未来カルテデータ!$A$3:$BHO$1048576,F69) -> 260794.0844 | G86: =VLOOKUP($A$1,未来カルテデータ!$A$3:$BHO$1048576,G69) -> 348438.235 | H86: =VLOOKUP($A$1,未来カルテデータ!$A$3:$BHO$1048576,H69) -> 5755.324037 | I86: =VLOOKUP($A$1,未来カルテデータ!$A$3:$BHO$1048576,I69) -> 37353.18756 | J86: =VLOOKUP($A$1,未来カルテデータ!$A$3:$BHO$1048576,J69) -> 159481.4739 | K86: =VLOOKUP($A$1,未来カルテデータ!$A$3:$BHO$1048576,K69) -> 459323.655 | L86: =VLOOKUP($A$1,未来カルテデータ!$A$3:$BHO$1048576,L69) -> 66805.53243 | M86: =VLOOKUP($A$1,未来カルテデータ!$A$3:$BHO$1048576,M69) -> 97691.88542 | N86: =VLOOKUP($A$1,未来カルテデータ!$A$3:$BHO$1048576,N69) -> 119535.4423 | O86: =VLOOKUP($A$1,未来カルテデータ!$A$3:$BHO$1048576,O69) -> 178966.2291 | P86: =VLOOKUP($A$1,未来カルテデータ!$A$3:$BHO$1048576,P69) -> 120608.3451 | Q86: =VLOOKUP($A$1,未来カルテデータ!$A$3:$BHO$1048576,Q69) -> 145561.9317 | R86: =VLOOKUP($A$1,未来カルテデータ!$A$3:$BHO$1048576,R69) -> 367733.5318 | S86: =VLOOKUP($A$1,未来カルテデータ!$A$3:$BHO$1048576,S69) -> 24215.26643 | T86: =VLOOKUP($A$1,未来カルテデータ!$A$3:$BHO$1048576,T69) -> 301386.6249 | U86: =VLOOKUP($A$1,未来カルテデータ!$A$3:$BHO$1048576,U69) -> 57734.17309 | V86: =VLOOKUP($A$1,未来カルテデータ!$A$3:$BHO$1048576,V69) -> 124537.2719
A87: 70～74歳 | B87: =VLOOKUP($A$1,未来カルテデータ!$A$3:$BHO$1048576,B70) -> 230489.0456 | C87: =VLOOKUP($A$1,未来カルテデータ!$A$3:$BHO$1048576,C70) -> 4278.281415 | D87: =VLOOKUP($A$1,未来カルテデータ!$A$3:$BHO$1048576,D70) -> 13192.98928 | E87: =VLOOKUP($A$1,未来カルテデータ!$A$3:$BHO$1048576,E70) -> 727.5117412 | F87: =VLOOKUP($A$1,未来カルテデータ!$A$3:$BHO$1048576,F70) -> 157339.3845 | G87: =VLOOKUP($A$1,未来カルテデータ!$A$3:$BHO$1048576,G70) -> 204133.0529 | H87: =VLOOKUP($A$1,未来カルテデータ!$A$3:$BHO$1048576,H70) -> 1915.348682 | I87: =VLOOKUP($A$1,未来カルテデータ!$A$3:$BHO$1048576,I70) -> 12732.05696 | J87: =VLOOKUP($A$1,未来カルテデータ!$A$3:$BHO$1048576,J70) -> 92468.70966 | K87: =VLOOKUP($A$1,未来カルテデータ!$A$3:$BHO$1048576,K70) -> 296046.391 | L87: =VLOOKUP($A$1,未来カルテデータ!$A$3:$BHO$1048576,L70) -> 24195.67302 | M87: =VLOOKUP($A$1,未来カルテデータ!$A$3:$BHO$1048576,M70) -> 87451.02127 | N87: =VLOOKUP($A$1,未来カルテデータ!$A$3:$BHO$1048576,N70) -> 79706.68568 | O87: =VLOOKUP($A$1,未来カルテデータ!$A$3:$BHO$1048576,O70) -> 148598.7583 | P87: =VLOOKUP($A$1,未来カルテデータ!$A$3:$BHO$1048576,P70) -> 100128.9157 | Q87: =VLOOKUP($A$1,未来カルテデータ!$A$3:$BHO$1048576,Q70) -> 64107.25753 | R87: =VLOOKUP($A$1,未来カルテデータ!$A$3:$BHO$1048576,R70) -> 200044.3047 | S87: =VLOOKUP($A$1,未来カルテデータ!$A$3:$BHO$1048576,S70) -> 5365.50596 | T87: =VLOOKUP($A$1,未来カルテデータ!$A$3:$BHO$1048576,T70) -> 235559.8746 | U87: =VLOOKUP($A$1,未来カルテデータ!$A$3:$BHO$1048576,U70) -> 17819.79612 | V87: =VLOOKUP($A$1,未来カルテデータ!$A$3:$BHO$1048576,V70) -> 112077.7755
A88: 75～79歳 | B88: =VLOOKUP($A$1,未来カルテデータ!$A$3:$BHO$1048576,B71) -> 137821.8642 | C88: =VLOOKUP($A$1,未来カルテデータ!$A$3:$BHO$1048576,C71) -> 1718.052308 | D88: =VLOOKUP($A$1,未来カルテデータ!$A$3:$BHO$1048576,D71) -> 6885.664838 | E88: =VLOOKUP($A$1,未来カルテデータ!$A$3:$BHO$1048576,E71) -> 237.8657429 | F88: =VLOOKUP($A$1,未来カルテデータ!$A$3:$BHO$1048576,F71) -> 54549.52224 | G88: =VLOOKUP($A$1,未来カルテデータ!$A$3:$BHO$1048576,G71) -> 89051.77711 | H88: =VLOOKUP($A$1,未来カルテデータ!$A$3:$BHO$1048576,H71) -> 491.5723859 | I88: =VLOOKUP($A$1,未来カルテデータ!$A$3:$BHO$1048576,I71) -> 3491.869364 | J88: =VLOOKUP($A$1,未来カルテデータ!$A$3:$BHO$1048576,J71) -> 27218.16646 | K88: =VLOOKUP($A$1,未来カルテデータ!$A$3:$BHO$1048576,K71) -> 130457.6235 | L88: =VLOOKUP($A$1,未来カルテデータ!$A$3:$BHO$1048576,L71) -> 8680.389021 | M88: =VLOOKUP($A$1,未来カルテデータ!$A$3:$BHO$1048576,M71) -> 45006.9787 | N88: =VLOOKUP($A$1,未来カルテデータ!$A$3:$BHO$1048576,N71) -> 32389.35212 | O88: =VLOOKUP($A$1,未来カルテデータ!$A$3:$BHO$1048576,O71) -> 59908.78537 | P88: =VLOOKUP($A$1,未来カルテデータ!$A$3:$BHO$1048576,P71) -> 56118.11844 | Q88: =VLOOKUP($A$1,未来カルテデータ!$A$3:$BHO$1048576,Q71) -> 23734.45494 | R88: =VLOOKUP($A$1,未来カルテデータ!$A$3:$BHO$1048576,R71) -> 70078.79751 | S88: =VLOOKUP($A$1,未来カルテデータ!$A$3:$BHO$1048576,S71) -> 1346.59893 | T88: =VLOOKUP($A$1,未来カルテデータ!$A$3:$BHO$1048576,T71) -> 110293.5028 | U88: =VLOOKUP($A$1,未来カルテデータ!$A$3:$BHO$1048576,U71) -> 4202.668101 | V88: =VLOOKUP($A$1,未来カルテデータ!$A$3:$BHO$1048576,V71) -> 73283.10639
A89: 80～84歳 | B89: =VLOOKUP($A$1,未来カルテデータ!$A$3:$BHO$1048576,B72) -> 80284.32914 | C89: =VLOOKUP($A$1,未来カルテデータ!$A$3:$BHO$1048576,C72) -> 690.8234404 | D89: =VLOOKUP($A$1,未来カルテデータ!$A$3:$BHO$1048576,D72) -> 3550.04751 | E89: =VLOOKUP($A$1,未来カルテデータ!$A$3:$BHO$1048576,E72) -> 79.86313793 | F89: =VLOOKUP($A$1,未来カルテデータ!$A$3:$BHO$1048576,F72) -> 16250.91558 | G89: =VLOOKUP($A$1,未来カルテデータ!$A$3:$BHO$1048576,G72) -> 32317.40327 | H89: =VLOOKUP($A$1,未来カルテデータ!$A$3:$BHO$1048576,H72) -> 146.7511463 | I89: =VLOOKUP($A$1,未来カルテデータ!$A$3:$BHO$1048576,I72) -> 1237.021802 | J89: =VLOOKUP($A$1,未来カルテデータ!$A$3:$BHO$1048576,J72) -> 6642.996801 | K89: =VLOOKUP($A$1,未来カルテデータ!$A$3:$BHO$1048576,K72) -> 53786.27036 | L89: =VLOOKUP($A$1,未来カルテデータ!$A$3:$BHO$1048576,L72) -> 2811.660914 | M89: =VLOOKUP($A$1,未来カルテデータ!$A$3:$BHO$1048576,M72) -> 22777.54733 | N89: =VLOOKUP($A$1,未来カルテデータ!$A$3:$BHO$1048576,N72) -> 12437.47663 | O89: =VLOOKUP($A$1,未来カルテデータ!$A$3:$BHO$1048576,O72) -> 17983.09444 | P89: =VLOOKUP($A$1,未来カルテデータ!$A$3:$BHO$1048576,P72) -> 24896.94654 | Q89: =VLOOKUP($A$1,未来カルテデータ!$A$3:$BHO$1048576,Q72) -> 8263.107871 | R89: =VLOOKUP($A$1,未来カルテデータ!$A$3:$BHO$1048576,R72) -> 20489.71866 | S89: =VLOOKUP($A$1,未来カルテデータ!$A$3:$BHO$1048576,S72) -> 349.3507639 | T89: =VLOOKUP($A$1,未来カルテデータ!$A$3:$BHO$1048576,T72) -> 35184.56705 | U89: =VLOOKUP($A$1,未来カルテデータ!$A$3:$BHO$1048576,U72) -> 847.3099157 | V89: =VLOOKUP($A$1,未来カルテデータ!$A$3:$BHO$1048576,V72) -> 48458.7993
A90: 85歳以上 | B90: =VLOOKUP($A$1,未来カルテデータ!$A$3:$BHO$1048576,B73) -> 46301.37573 | C90: =VLOOKUP($A$1,未来カルテデータ!$A$3:$BHO$1048576,C73) -> 273.6566131 | D90: =VLOOKUP($A$1,未来カルテデータ!$A$3:$BHO$1048576,D73) -> 1736.490791 | E90: =VLOOKUP($A$1,未来カルテデータ!$A$3:$BHO$1048576,E73) -> 35.00897774 | F90: =VLOOKUP($A$1,未来カルテデータ!$A$3:$BHO$1048576,F73) -> 5798.978554 | G90: =VLOOKUP($A$1,未来カルテデータ!$A$3:$BHO$1048576,G73) -> 13062.26811 | H90: =VLOOKUP($A$1,未来カルテデータ!$A$3:$BHO$1048576,H73) -> 36.68746629 | I90: =VLOOKUP($A$1,未来カルテデータ!$A$3:$BHO$1048576,I73) -> 711.4175763 | J90: =VLOOKUP($A$1,未来カルテデータ!$A$3:$BHO$1048576,J73) -> 1946.081388 | K90: =VLOOKUP($A$1,未来カルテデータ!$A$3:$BHO$1048576,K73) -> 26820.99849 | L90: =VLOOKUP($A$1,未来カルテデータ!$A$3:$BHO$1048576,L73) -> 1105.171826 | M90: =VLOOKUP($A$1,未来カルテデータ!$A$3:$BHO$1048576,M73) -> 18138.11681 | N90: =VLOOKUP($A$1,未来カルテデータ!$A$3:$BHO$1048576,N73) -> 7423.241259 | O90: =VLOOKUP($A$1,未来カルテデータ!$A$3:$BHO$1048576,O73) -> 6386.18088 | P90: =VLOOKUP($A$1,未来カルテデータ!$A$3:$BHO$1048576,P73) -> 9932.647697 | Q90: =VLOOKUP($A$1,未来カルテデータ!$A$3:$BHO$1048576,Q73) -> 4617.961233 | R90: =VLOOKUP($A$1,未来カルテデータ!$A$3:$BHO$1048576,R73) -> 9247.354446 | S90: =VLOOKUP($A$1,未来カルテデータ!$A$3:$BHO$1048576,S73) -> 125.677062 | T90: =VLOOKUP($A$1,未来カルテデータ!$A$3:$BHO$1048576,T73) -> 11960.11112 | U90: =VLOOKUP($A$1,未来カルテデータ!$A$3:$BHO$1048576,U73) -> 198.1990311 | V90: =VLOOKUP($A$1,未来カルテデータ!$A$3:$BHO$1048576,V73) -> 33344.89851
B91: =SUM(B76:B90) -> 1528666.462 | C91: =SUM(C76:C90) -> 63674.51397 | D91: 137818.5436 | E91: 17860.11802 | F91: 3615901.458 | G91: 8634757.111 | H91: 261050.8977 | I91: 2029193.046 | J91: 2905618.978 | K91: 8146992.841 | L91: 1467301.926 | M91: 1056792.327 | N91: 1842564.992 | O91: 3041918.012 | P91: 2079449.607 | Q91: 2726620.954 | R91: 7196363.219 | S91: 494103.7906 | T91: 3233192.349 | U91: 1991520.76 | V91: 3229603.01
B93: =B59+$B$58 -> 709 | C93: 710 | D93: 711 | E93: 712 | F93: 713 | G93: 714 | H93: 715 | I93: 716 | J93: 717 | K93: 718 | L93: 719 | M93: 720 | N93: 721 | O93: 722 | P93: 723 | Q93: 724 | R93: 725 | S93: 726 | T93: 727 | U93: 728 | V93: 729
B94: =B60+$B$58 -> 730 | C94: 731 | D94: 732 | E94: 733 | F94: 734 | G94: 735 | H94: 736 | I94: 737 | J94: 738 | K94: 739 | L94: 740 | M94: 741 | N94: 742 | O94: 743 | P94: 744 | Q94: 745 | R94: 746 | S94: 747 | T94: 748 | U94: 749 | V94: 750
B95: =B61+$B$58 -> 751 | C95: 752 | D95: 753 | E95: 754 | F95: 755 | G95: 756 | H95: 757 | I95: 758 | J95: 759 | K95: 760 | L95: 761 | M95: 762 | N95: 763 | O95: 764 | P95: 765 | Q95: 766 | R95: 767 | S95: 768 | T95: 769 | U95: 770 | V95: 771
B96: =B62+$B$58 -> 772 | C96: 773 | D96: 774 | E96: 775 | F96: 776 | G96: 777 | H96: 778 | I96: 779 | J96: 780 | K96: 781 | L96: 782 | M96: 783 | N96: 784 | O96: 785 | P96: 786 | Q96: 787 | R96: 788 | S96: 789 | T96: 790 | U96: 791 | V96: 792
B97: =B63+$B$58 -> 793 | C97: 794 | D97: 795 | E97: 796 | F97: 797 | G97: 798 | H97: 799 | I97: 800 | J97: 801 | K97: 802 | L97: 803 | M97: 804 | N97: 805 | O97: 806 | P97: 807 | Q97: 808 | R97: 809 | S97: 810 | T97: 811 | U97: 812 | V97: 813
B98: =B64+$B$58 -> 814 | C98: 815 | D98: 816 | E98: 817 | F98: 818 | G98: 819 | H98: 820 | I98: 821 | J98: 822 | K98: 823 | L98: 824 | M98: 825 | N98: 826 | O98: 827 | P98: 828 | Q98: 829 | R98: 830 | S98: 831 | T98: 832 | U98: 833 | V98: 834
B99: =B65+$B$58 -> 835 | C99: 836 | D99: 837 | E99: 838 | F99: 839 | G99: 840 | H99: 841 | I99: 842 | J99: 843 | K99: 844 | L99: 845 | M99: 846 | N99: 847 | O99: 848 | P99: 849 | Q99: 850 | R99: 851 | S99: 852 | T99: 853 | U99: 854 | V99: 855
B100: =B66+$B$58 -> 856 | C100: 857 | D100: 858 | E100: 859 | F100: 860 | G100: 861 | H100: 862 | I100: 863 | J100: 864 | K100: 865 | L100: 866 | M100: 867 | N100: 868 | O100: 869 | P100: 870 | Q100: 871 | R100: 872 | S100: 873 | T100: 874 | U100: 875 | V100: 876
B101: =B67+$B$58 -> 877 | C101: 878 | D101: 879 | E101: 880 | F101: 881 | G101: 882 | H101: 883 | I101: 884 | J101: 885 | K101: 886 | L101: 887 | M101: 888 | N101: 889 | O101: 890 | P101: 891 | Q101: 892 | R101: 893 | S101: 894 | T101: 895 | U101: 896 | V101: 897
B102: =B68+$B$58 -> 898 | C102: 899 | D102: 900 | E102: 901 | F102: 902 | G102: 903 | H102: 904 | I102: 905 | J102: 906 | K102: 907 | L102: 908 | M102: 909 | N102: 910 | O102: 911 | P102: 912 | Q102: 913 | R102: 914 | S102: 915 | T102: 916 | U102: 917 | V102: 918
B103: =B69+$B$58 -> 919 | C103: 920 | D103: 921 | E103: 922 | F103: 923 | G103: 924 | H103: 925 | I103: 926 | J103: 927 | K103: 928 | L103: 929 | M103: 930 | N103: 931 | O103: 932 | P103: 933 | Q103: 934 | R103: 935 | S103: 936 | T103: 937 | U103: 938 | V103: 939
B104: =B70+$B$58 -> 940 | C104: 941 | D104: 942 | E104: 943 | F104: 944 | G104: 945 | H104: 946 | I104: 947 | J104: 948 | K104: 949 | L104: 950 | M104: 951 | N104: 952 | O104: 953 | P104: 954 | Q104: 955 | R104: 956 | S104: 957 | T104: 958 | U104: 959 | V104: 960
B105: =B71+$B$58 -> 961 | C105: 962 | D105: 963 | E105: 964 | F105: 965 | G105: 966 | H105: 967 | I105: 968 | J105: 969 | K105: 970 | L105: 971 | M105: 972 | N105: 973 | O105: 974 | P105: 975 | Q105: 976 | R105: 977 | S105: 978 | T105: 979 | U105: 980 | V105: 981
B106: =B72+$B$58 -> 982 | C106: 983 | D106: 984 | E106: 985 | F106: 986 | G106: 987 | H106: 988 | I106: 989 | J106: 990 | K106: 991 | L106: 992 | M106: 993 | N106: 994 | O106: 995 | P106: 996 | Q106: 997 | R106: 998 | S106: 999 | T106: 1000 | U106: 1001 | V106: 1002
B107: =B73+$B$58 -> 1003 | C107: 1004 | D107: 1005 | E107: 1006 | F107: 1007 | G107: 1008 | H107: 1009 | I107: 1010 | J107: 1011 | K107: 1012 | L107: 1013 | M107: 1014 | N107: 1015 | O107: 1016 | P107: 1017 | Q107: 1018 | R107: 1019 | S107: 1020 | T107: 1021 | U107: 1022 | V107: 1023
A109: 2030 | B109: A1 農業 | C109: A2 林業 | D109: Ｂ 漁業 | E109: Ｃ 鉱業，採石業，砂利採取業 | F109: Ｄ 建設業 | G109: Ｅ 製造業 | H109: Ｆ 電気・ガス・熱供給・水道業 | I109: Ｇ 情報通信業 | J109: Ｈ 運輸業，郵便業 | K109: Ｉ 卸売業，小売業 | L109: Ｊ 金融業，保険業 | M109: Ｋ 不動産業，物品賃貸業 | N109: Ｌ 学術研究，専門・技術サービス業 | O109: Ｍ 宿泊業，飲食サービス業 | P109: Ｎ 生活関連サービス業，娯楽業 | Q109: Ｏ 教育，学習支援業 | R109: Ｐ 医療，福祉 | S109: Ｑ 複合サービス事業 | T109: Ｒ サービス業（他に分類されないもの） | U109: Ｓ 公務（他に分類されるものを除く） | V109: Ｔ 分類不能の産業
A110: 15～19歳 | B110: =VLOOKUP($A$1,未来カルテデータ!$A$3:$BHO$1048576,B93) -> 4544.825826 | C110: =VLOOKUP($A$1,未来カルテデータ!$A$3:$BHO$1048576,C93) -> 321.2217394 | D110: =VLOOKUP($A$1,未来カルテデータ!$A$3:$BHO$1048576,D93) -> 940.8123254 | E110: =VLOOKUP($A$1,未来カルテデータ!$A$3:$BHO$1048576,E93) -> 89.35350983 | F110: =VLOOKUP($A$1,未来カルテデータ!$A$3:$BHO$1048576,F93) -> 35115.78372 | G110: =VLOOKUP($A$1,未来カルテデータ!$A$3:$BHO$1048576,G93) -> 88100.81175 | H110: =VLOOKUP($A$1,未来カルテデータ!$A$3:$BHO$1048576,H93) -> 1868.026233 | I110: =VLOOKUP($A$1,未来カルテデータ!$A$3:$BHO$1048576,I93) -> 2287.090819 | J110: =VLOOKUP($A$1,未来カルテデータ!$A$3:$BHO$1048576,J93) -> 16353.62777 | K110: =VLOOKUP($A$1,未来カルテデータ!$A$3:$BHO$1048576,K93) -> 154519.6229 | L110: =VLOOKUP($A$1,未来カルテデータ!$A$3:$BHO$1048576,L93) -> 1872.218582 | M110: =VLOOKUP($A$1,未来カルテデータ!$A$3:$BHO$1048576,M93) -> 3745.114893 | N110: =VLOOKUP($A$1,未来カルテデータ!$A$3:$BHO$1048576,N93) -> 3923.955638 | O110: =VLOOKUP($A$1,未来カルテデータ!$A$3:$BHO$1048576,O93) -> 171133.2413 | P110: =VLOOKUP($A$1,未来カルテデータ!$A$3:$BHO$1048576,P93) -> 25887.4851 | Q110: =VLOOKUP($A$1,未来カルテデータ!$A$3:$BHO$1048576,Q93) -> 23294.96135 | R110: =VLOOKUP($A$1,未来カルテデータ!$A$3:$BHO$1048576,R93) -> 23588.73332 | S110: =VLOOKUP($A$1,未来カルテデータ!$A$3:$BHO$1048576,S93) -> 2903.747633 | T110: =VLOOKUP($A$1,未来カルテデータ!$A$3:$BHO$1048576,T93) -> 18627.0916 | U110: =VLOOKUP($A$1,未来カルテデータ!$A$3:$BHO$1048576,U93) -> 15326.49459 | V110: =VLOOKUP($A$1,未来カルテデータ!$A$3:$BHO$1048576,V93) -> 50266.98023
A111: 20～24歳 | B111: =VLOOKUP($A$1,未来カルテデータ!$A$3:$BHO$1048576,B94) -> 27166.2954 | C111: =VLOOKUP($A$1,未来カルテデータ!$A$3:$BHO$1048576,C94) -> 1740.222914 | D111: =VLOOKUP($A$1,未来カルテデータ!$A$3:$BHO$1048576,D94) -> 4169.836295 | E111: =VLOOKUP($A$1,未来カルテデータ!$A$3:$BHO$1048576,E94) -> 544.0266492 | F111: =VLOOKUP($A$1,未来カルテデータ!$A$3:$BHO$1048576,F94) -> 148658.8389 | G111: =VLOOKUP($A$1,未来カルテデータ!$A$3:$BHO$1048576,G94) -> 459980.5256 | H111: =VLOOKUP($A$1,未来カルテデータ!$A$3:$BHO$1048576,H94) -> 13478.74579 | I111: =VLOOKUP($A$1,未来カルテデータ!$A$3:$BHO$1048576,I94) -> 79829.36228 | J111: =VLOOKUP($A$1,未来カルテデータ!$A$3:$BHO$1048576,J94) -> 92812.6681 | K111: =VLOOKUP($A$1,未来カルテデータ!$A$3:$BHO$1048576,K94) -> 547425.5042 | L111: =VLOOKUP($A$1,未来カルテデータ!$A$3:$BHO$1048576,L94) -> 68800.67605 | M111: =VLOOKUP($A$1,未来カルテデータ!$A$3:$BHO$1048576,M94) -> 37979.70934 | N111: =VLOOKUP($A$1,未来カルテデータ!$A$3:$BHO$1048576,N94) -> 57994.23212 | O111: =VLOOKUP($A$1,未来カルテデータ!$A$3:$BHO$1048576,O94) -> 327034.202 | P111: =VLOOKUP($A$1,未来カルテデータ!$A$3:$BHO$1048576,P94) -> 157200.812 | Q111: =VLOOKUP($A$1,未来カルテデータ!$A$3:$BHO$1048576,Q94) -> 156381.6815 | R111: =VLOOKUP($A$1,未来カルテデータ!$A$3:$BHO$1048576,R94) -> 402671.2171 | S111: =VLOOKUP($A$1,未来カルテデータ!$A$3:$BHO$1048576,S94) -> 22707.34421 | T111: =VLOOKUP($A$1,未来カルテデータ!$A$3:$BHO$1048576,T94) -> 113906.7409 | U111: =VLOOKUP($A$1,未来カルテデータ!$A$3:$BHO$1048576,U94) -> 109091.6092 | V111: =VLOOKUP($A$1,未来カルテデータ!$A$3:$BHO$1048576,V94) -> 228264.5336
A112: 25～29歳 | B112: =VLOOKUP($A$1,未来カルテデータ!$A$3:$BHO$1048576,B95) -> 45826.65053 | C112: =VLOOKUP($A$1,未来カルテデータ!$A$3:$BHO$1048576,C95) -> 2952.489483 | D112: =VLOOKUP($A$1,未来カルテデータ!$A$3:$BHO$1048576,D95) -> 6740.346922 | E112: =VLOOKUP($A$1,未来カルテデータ!$A$3:$BHO$1048576,E95) -> 746.9308828 | F112: =VLOOKUP($A$1,未来カルテデータ!$A$3:$BHO$1048576,F95) -> 207613.9269 | G112: =VLOOKUP($A$1,未来カルテデータ!$A$3:$BHO$1048576,G95) -> 661840.8581 | H112: =VLOOKUP($A$1,未来カルテデータ!$A$3:$BHO$1048576,H95) -> 25611.8726 | I112: =VLOOKUP($A$1,未来カルテデータ!$A$3:$BHO$1048576,I95) -> 171757.7007 | J112: =VLOOKUP($A$1,未来カルテデータ!$A$3:$BHO$1048576,J95) -> 175443.8726 | K112: =VLOOKUP($A$1,未来カルテデータ!$A$3:$BHO$1048576,K95) -> 514882.8179 | L112: =VLOOKUP($A$1,未来カルテデータ!$A$3:$BHO$1048576,L95) -> 97993.5415 | M112: =VLOOKUP($A$1,未来カルテデータ!$A$3:$BHO$1048576,M95) -> 54005.36141 | N112: =VLOOKUP($A$1,未来カルテデータ!$A$3:$BHO$1048576,N95) -> 82362.52825 | O112: =VLOOKUP($A$1,未来カルテデータ!$A$3:$BHO$1048576,O95) -> 303755.8296 | P112: =VLOOKUP($A$1,未来カルテデータ!$A$3:$BHO$1048576,P95) -> 224692.4371 | Q112: =VLOOKUP($A$1,未来カルテデータ!$A$3:$BHO$1048576,Q95) -> 223955.5617 | R112: =VLOOKUP($A$1,未来カルテデータ!$A$3:$BHO$1048576,R95) -> 578197.5019 | S112: =VLOOKUP($A$1,未来カルテデータ!$A$3:$BHO$1048576,S95) -> 32673.9115 | T112: =VLOOKUP($A$1,未来カルテデータ!$A$3:$BHO$1048576,T95) -> 162599.0931 | U112: =VLOOKUP($A$1,未来カルテデータ!$A$3:$BHO$1048576,U95) -> 216119.6133 | V112: =VLOOKUP($A$1,未来カルテデータ!$A$3:$BHO$1048576,V95) -> 325363.0801
A113: 30～34歳 | B113: =VLOOKUP($A$1,未来カルテデータ!$A$3:$BHO$1048576,B96) -> 61657.48352 | C113: =VLOOKUP($A$1,未来カルテデータ!$A$3:$BHO$1048576,C96) -> 4054.05638 | D113: =VLOOKUP($A$1,未来カルテデータ!$A$3:$BHO$1048576,D96) -> 9039.078635 | E113: =VLOOKUP($A$1,未来カルテデータ!$A$3:$BHO$1048576,E96) -> 782.5734912 | F113: =VLOOKUP($A$1,未来カルテデータ!$A$3:$BHO$1048576,F96) -> 217290.6589 | G113: =VLOOKUP($A$1,未来カルテデータ!$A$3:$BHO$1048576,G96) -> 699565.9498 | H113: =VLOOKUP($A$1,未来カルテデータ!$A$3:$BHO$1048576,H96) -> 27614.35351 | I113: =VLOOKUP($A$1,未来カルテデータ!$A$3:$BHO$1048576,I96) -> 230334.9713 | J113: =VLOOKUP($A$1,未来カルテデータ!$A$3:$BHO$1048576,J96) -> 213597.6008 | K113: =VLOOKUP($A$1,未来カルテデータ!$A$3:$BHO$1048576,K96) -> 492264.6981 | L113: =VLOOKUP($A$1,未来カルテデータ!$A$3:$BHO$1048576,L96) -> 100656.4921 | M113: =VLOOKUP($A$1,未来カルテデータ!$A$3:$BHO$1048576,M96) -> 55380.35958 | N113: =VLOOKUP($A$1,未来カルテデータ!$A$3:$BHO$1048576,N96) -> 84214.28091 | O113: =VLOOKUP($A$1,未来カルテデータ!$A$3:$BHO$1048576,O96) -> 288749.5312 | P113: =VLOOKUP($A$1,未来カルテデータ!$A$3:$BHO$1048576,P96) -> 231130.2404 | Q113: =VLOOKUP($A$1,未来カルテデータ!$A$3:$BHO$1048576,Q96) -> 230674.0008 | R113: =VLOOKUP($A$1,未来カルテデータ!$A$3:$BHO$1048576,R96) -> 599680.3811 | S113: =VLOOKUP($A$1,未来カルテデータ!$A$3:$BHO$1048576,S96) -> 34011.38351 | T113: =VLOOKUP($A$1,未来カルテデータ!$A$3:$BHO$1048576,T96) -> 167526.4617 | U113: =VLOOKUP($A$1,未来カルテデータ!$A$3:$BHO$1048576,U96) -> 241480.1279 | V113: =VLOOKUP($A$1,未来カルテデータ!$A$3:$BHO$1048576,V96) -> 334116.4331
A114: 35～39歳 | B114: =VLOOKUP($A$1,未来カルテデータ!$A$3:$BHO$1048576,B97) -> 72817.29488 | C114: =VLOOKUP($A$1,未来カルテデータ!$A$3:$BHO$1048576,C97) -> 4868.570033 | D114: =VLOOKUP($A$1,未来カルテデータ!$A$3:$BHO$1048576,D97) -> 10645.48414 | E114: =VLOOKUP($A$1,未来カルテデータ!$A$3:$BHO$1048576,E97) -> 755.2281423 | F114: =VLOOKUP($A$1,未来カルテデータ!$A$3:$BHO$1048576,F97) -> 208458.6942 | G114: =VLOOKUP($A$1,未来カルテデータ!$A$3:$BHO$1048576,G97) -> 686384.5007 | H114: =VLOOKUP($A$1,未来カルテデータ!$A$3:$BHO$1048576,H97) -> 27418.68277 | I114: =VLOOKUP($A$1,未来カルテデータ!$A$3:$BHO$1048576,I97) -> 302777.4318 | J114: =VLOOKUP($A$1,未来カルテデータ!$A$3:$BHO$1048576,J97) -> 251646.1988 | K114: =VLOOKUP($A$1,未来カルテデータ!$A$3:$BHO$1048576,K97) -> 485910.0472 | L114: =VLOOKUP($A$1,未来カルテデータ!$A$3:$BHO$1048576,L97) -> 103394.8576 | M114: =VLOOKUP($A$1,未来カルテデータ!$A$3:$BHO$1048576,M97) -> 56915.61263 | N114: =VLOOKUP($A$1,未来カルテデータ!$A$3:$BHO$1048576,N97) -> 86342.95404 | O114: =VLOOKUP($A$1,未来カルテデータ!$A$3:$BHO$1048576,O97) -> 284335.0585 | P114: =VLOOKUP($A$1,未来カルテデータ!$A$3:$BHO$1048576,P97) -> 238182.0644 | Q114: =VLOOKUP($A$1,未来カルテデータ!$A$3:$BHO$1048576,Q97) -> 238059.6294 | R114: =VLOOKUP($A$1,未来カルテデータ!$A$3:$BHO$1048576,R97) -> 622042.7305 | S114: =VLOOKUP($A$1,未来カルテデータ!$A$3:$BHO$1048576,S97) -> 35424.19102 | T114: =VLOOKUP($A$1,未来カルテデータ!$A$3:$BHO$1048576,T97) -> 172853.7511 | U114: =VLOOKUP($A$1,未来カルテデータ!$A$3:$BHO$1048576,U97) -> 245709.7531 | V114: =VLOOKUP($A$1,未来カルテデータ!$A$3:$BHO$1048576,V97) -> 343819.5584
A115: 40～44歳 | B115: =VLOOKUP($A$1,未来カルテデータ!$A$3:$BHO$1048576,B98) -> 76322.69583 | C115: =VLOOKUP($A$1,未来カルテデータ!$A$3:$BHO$1048576,C98) -> 5621.089328 | D115: =VLOOKUP($A$1,未来カルテデータ!$A$3:$BHO$1048576,D98) -> 9292.380069 | E115: =VLOOKUP($A$1,未来カルテデータ!$A$3:$BHO$1048576,E98) -> 1014.817552 | F115: =VLOOKUP($A$1,未来カルテデータ!$A$3:$BHO$1048576,F98) -> 202219.8132 | G115: =VLOOKUP($A$1,未来カルテデータ!$A$3:$BHO$1048576,G98) -> 757778.6519 | H115: =VLOOKUP($A$1,未来カルテデータ!$A$3:$BHO$1048576,H98) -> 21511.57503 | I115: =VLOOKUP($A$1,未来カルテデータ!$A$3:$BHO$1048576,I98) -> 380585.7124 | J115: =VLOOKUP($A$1,未来カルテデータ!$A$3:$BHO$1048576,J98) -> 259919.717 | K115: =VLOOKUP($A$1,未来カルテデータ!$A$3:$BHO$1048576,K98) -> 622056.6666 | L115: =VLOOKUP($A$1,未来カルテデータ!$A$3:$BHO$1048576,L98) -> 139508.6658 | M115: =VLOOKUP($A$1,未来カルテデータ!$A$3:$BHO$1048576,M98) -> 67060.76369 | N115: =VLOOKUP($A$1,未来カルテデータ!$A$3:$BHO$1048576,N98) -> 146328.2797 | O115: =VLOOKUP($A$1,未来カルテデータ!$A$3:$BHO$1048576,O98) -> 181630.2567 | P115: =VLOOKUP($A$1,未来カルテデータ!$A$3:$BHO$1048576,P98) -> 194579.3977 | Q115: =VLOOKUP($A$1,未来カルテデータ!$A$3:$BHO$1048576,Q98) -> 250969.7635 | R115: =VLOOKUP($A$1,未来カルテデータ!$A$3:$BHO$1048576,R98) -> 733802.7569 | S115: =VLOOKUP($A$1,未来カルテデータ!$A$3:$BHO$1048576,S98) -> 47265.96805 | T115: =VLOOKUP($A$1,未来カルテデータ!$A$3:$BHO$1048576,T98) -> 208223.5062 | U115: =VLOOKUP($A$1,未来カルテデータ!$A$3:$BHO$1048576,U98) -> 227129.1251 | V115: =VLOOKUP($A$1,未来カルテデータ!$A$3:$BHO$1048576,V98) -> 341858.8744
A116: 45～49歳 | B116: =VLOOKUP($A$1,未来カルテデータ!$A$3:$BHO$1048576,B99) -> 86481.02134 | C116: =VLOOKUP($A$1,未来カルテデータ!$A$3:$BHO$1048576,C99) -> 6560.969965 | D116: =VLOOKUP($A$1,未来カルテデータ!$A$3:$BHO$1048576,D99) -> 10117.11514 | E116: =VLOOKUP($A$1,未来カルテデータ!$A$3:$BHO$1048576,E99) -> 1136.316758 | F116: =VLOOKUP($A$1,未来カルテデータ!$A$3:$BHO$1048576,F99) -> 261902.8689 | G116: =VLOOKUP($A$1,未来カルテデータ!$A$3:$BHO$1048576,G99) -> 811004.717 | H116: =VLOOKUP($A$1,未来カルテデータ!$A$3:$BHO$1048576,H99) -> 18296.1292 | I116: =VLOOKUP($A$1,未来カルテデータ!$A$3:$BHO$1048576,I99) -> 415380.0994 | J116: =VLOOKUP($A$1,未来カルテデータ!$A$3:$BHO$1048576,J99) -> 314887.2279 | K116: =VLOOKUP($A$1,未来カルテデータ!$A$3:$BHO$1048576,K99) -> 726835.2059 | L116: =VLOOKUP($A$1,未来カルテデータ!$A$3:$BHO$1048576,L99) -> 147341.9762 | M116: =VLOOKUP($A$1,未来カルテデータ!$A$3:$BHO$1048576,M99) -> 89956.56337 | N116: =VLOOKUP($A$1,未来カルテデータ!$A$3:$BHO$1048576,N99) -> 197664.9688 | O116: =VLOOKUP($A$1,未来カルテデータ!$A$3:$BHO$1048576,O99) -> 214399.2386 | P116: =VLOOKUP($A$1,未来カルテデータ!$A$3:$BHO$1048576,P99) -> 219633.718 | Q116: =VLOOKUP($A$1,未来カルテデータ!$A$3:$BHO$1048576,Q99) -> 258437.2131 | R116: =VLOOKUP($A$1,未来カルテデータ!$A$3:$BHO$1048576,R99) -> 819415.7854 | S116: =VLOOKUP($A$1,未来カルテデータ!$A$3:$BHO$1048576,S99) -> 50077.87327 | T116: =VLOOKUP($A$1,未来カルテデータ!$A$3:$BHO$1048576,T99) -> 279508.5773 | U116: =VLOOKUP($A$1,未来カルテデータ!$A$3:$BHO$1048576,U99) -> 211895.6062 | V116: =VLOOKUP($A$1,未来カルテデータ!$A$3:$BHO$1048576,V99) -> 386875.5914
A117: 50～54歳 | B117: =VLOOKUP($A$1,未来カルテデータ!$A$3:$BHO$1048576,B100) -> 94247.58346 | C117: =VLOOKUP($A$1,未来カルテデータ!$A$3:$BHO$1048576,C100) -> 7184.497 | D117: =VLOOKUP($A$1,未来カルテデータ!$A$3:$BHO$1048576,D100) -> 10243.8084 | E117: =VLOOKUP($A$1,未来カルテデータ!$A$3:$BHO$1048576,E100) -> 1467.31287 | F117: =VLOOKUP($A$1,未来カルテデータ!$A$3:$BHO$1048576,F100) -> 357875.9519 | G117: =VLOOKUP($A$1,未来カルテデータ!$A$3:$BHO$1048576,G100) -> 909417.8995 | H117: =VLOOKUP($A$1,未来カルテデータ!$A$3:$BHO$1048576,H100) -> 28524.9539 | I117: =VLOOKUP($A$1,未来カルテデータ!$A$3:$BHO$1048576,I100) -> 418777.0711 | J117: =VLOOKUP($A$1,未来カルテデータ!$A$3:$BHO$1048576,J100) -> 378059.4372 | K117: =VLOOKUP($A$1,未来カルテデータ!$A$3:$BHO$1048576,K100) -> 809752.6894 | L117: =VLOOKUP($A$1,未来カルテデータ!$A$3:$BHO$1048576,L100) -> 149566.0464 | M117: =VLOOKUP($A$1,未来カルテデータ!$A$3:$BHO$1048576,M100) -> 106378.7223 | N117: =VLOOKUP($A$1,未来カルテデータ!$A$3:$BHO$1048576,N100) -> 248868.3518 | O117: =VLOOKUP($A$1,未来カルテデータ!$A$3:$BHO$1048576,O100) -> 256817.5975 | P117: =VLOOKUP($A$1,未来カルテデータ!$A$3:$BHO$1048576,P100) -> 223055.669 | Q117: =VLOOKUP($A$1,未来カルテデータ!$A$3:$BHO$1048576,Q100) -> 286310.4239 | R117: =VLOOKUP($A$1,未来カルテデータ!$A$3:$BHO$1048576,R100) -> 923750.3079 | S117: =VLOOKUP($A$1,未来カルテデータ!$A$3:$BHO$1048576,S100) -> 60523.92626 | T117: =VLOOKUP($A$1,未来カルテデータ!$A$3:$BHO$1048576,T100) -> 353871.5738 | U117: =VLOOKUP($A$1,未来カルテデータ!$A$3:$BHO$1048576,U100) -> 229547.5921 | V117: =VLOOKUP($A$1,未来カルテデータ!$A$3:$BHO$1048576,V100) -> 394713.4929
A118: 55～59歳 | B118: =VLOOKUP($A$1,未来カルテデータ!$A$3:$BHO$1048576,B101) -> 106868.5848 | C118: =VLOOKUP($A$1,未来カルテデータ!$A$3:$BHO$1048576,C101) -> 7688.381189 | D118: =VLOOKUP($A$1,未来カルテデータ!$A$3:$BHO$1048576,D101) -> 12194.44404 | E118: =VLOOKUP($A$1,未来カルテデータ!$A$3:$BHO$1048576,E101) -> 2067.463142 | F118: =VLOOKUP($A$1,未来カルテデータ!$A$3:$BHO$1048576,F101) -> 459317.1155 | G118: =VLOOKUP($A$1,未来カルテデータ!$A$3:$BHO$1048576,G101) -> 1021030.675 | H118: =VLOOKUP($A$1,未来カルテデータ!$A$3:$BHO$1048576,H101) -> 35340.82393 | I118: =VLOOKUP($A$1,未来カルテデータ!$A$3:$BHO$1048576,I101) -> 335878.9671 | J118: =VLOOKUP($A$1,未来カルテデータ!$A$3:$BHO$1048576,J101) -> 470378.6302 | K118: =VLOOKUP($A$1,未来カルテデータ!$A$3:$BHO$1048576,K101) -> 927029.998 | L118: =VLOOKUP($A$1,未来カルテデータ!$A$3:$BHO$1048576,L101) -> 205105.7703 | M118: =VLOOKUP($A$1,未来カルテデータ!$A$3:$BHO$1048576,M101) -> 125021.8684 | N118: =VLOOKUP($A$1,未来カルテデータ!$A$3:$BHO$1048576,N101) -> 281489.3169 | O118: =VLOOKUP($A$1,未来カルテデータ!$A$3:$BHO$1048576,O101) -> 288861.8102 | P118: =VLOOKUP($A$1,未来カルテデータ!$A$3:$BHO$1048576,P101) -> 223836.9388 | Q118: =VLOOKUP($A$1,未来カルテデータ!$A$3:$BHO$1048576,Q101) -> 332199.3175 | R118: =VLOOKUP($A$1,未来カルテデータ!$A$3:$BHO$1048576,R101) -> 953431.7274 | S118: =VLOOKUP($A$1,未来カルテデータ!$A$3:$BHO$1048576,S101) -> 78565.68343 | T118: =VLOOKUP($A$1,未来カルテデータ!$A$3:$BHO$1048576,T101) -> 424758.5414 | U118: =VLOOKUP($A$1,未来カルテデータ!$A$3:$BHO$1048576,U101) -> 240914.8412 | V118: =VLOOKUP($A$1,未来カルテデータ!$A$3:$BHO$1048576,V101) -> 406238.4006
A119: 60～64歳 | B119: =VLOOKUP($A$1,未来カルテデータ!$A$3:$BHO$1048576,B102) -> 121184.9875 | C119: =VLOOKUP($A$1,未来カルテデータ!$A$3:$BHO$1048576,C102) -> 8020.055581 | D119: =VLOOKUP($A$1,未来カルテデータ!$A$3:$BHO$1048576,D102) -> 15144.99164 | E119: =VLOOKUP($A$1,未来カルテデータ!$A$3:$BHO$1048576,E102) -> 1667.728247 | F119: =VLOOKUP($A$1,未来カルテデータ!$A$3:$BHO$1048576,F102) -> 315605.2671 | G119: =VLOOKUP($A$1,未来カルテデータ!$A$3:$BHO$1048576,G102) -> 596392.3282 | H119: =VLOOKUP($A$1,未来カルテデータ!$A$3:$BHO$1048576,H102) -> 16549.04266 | I119: =VLOOKUP($A$1,未来カルテデータ!$A$3:$BHO$1048576,I102) -> 189601.6408 | J119: =VLOOKUP($A$1,未来カルテデータ!$A$3:$BHO$1048576,J102) -> 312782.3965 | K119: =VLOOKUP($A$1,未来カルテデータ!$A$3:$BHO$1048576,K102) -> 656422.4634 | L119: =VLOOKUP($A$1,未来カルテデータ!$A$3:$BHO$1048576,L102) -> 198234.9046 | M119: =VLOOKUP($A$1,未来カルテデータ!$A$3:$BHO$1048576,M102) -> 99407.8554 | N119: =VLOOKUP($A$1,未来カルテデータ!$A$3:$BHO$1048576,N102) -> 208769.4604 | O119: =VLOOKUP($A$1,未来カルテデータ!$A$3:$BHO$1048576,O102) -> 193126.9994 | P119: =VLOOKUP($A$1,未来カルテデータ!$A$3:$BHO$1048576,P102) -> 175356.5718 | Q119: =VLOOKUP($A$1,未来カルテデータ!$A$3:$BHO$1048576,Q102) -> 284792.6986 | R119: =VLOOKUP($A$1,未来カルテデータ!$A$3:$BHO$1048576,R102) -> 734847.7114 | S119: =VLOOKUP($A$1,未来カルテデータ!$A$3:$BHO$1048576,S102) -> 53939.1298 | T119: =VLOOKUP($A$1,未来カルテデータ!$A$3:$BHO$1048576,T102) -> 329004.8023 | U119: =VLOOKUP($A$1,未来カルテデータ!$A$3:$BHO$1048576,U102) -> 107177.8714 | V119: =VLOOKUP($A$1,未来カルテデータ!$A$3:$BHO$1048576,V102) -> 290987.7583
A120: 65～69歳 | B120: =VLOOKUP($A$1,未来カルテデータ!$A$3:$BHO$1048576,B103) -> 130590.7051 | C120: =VLOOKUP($A$1,未来カルテデータ!$A$3:$BHO$1048576,C103) -> 8209.098805 | D120: =VLOOKUP($A$1,未来カルテデータ!$A$3:$BHO$1048576,D103) -> 15549.8024 | E120: =VLOOKUP($A$1,未来カルテデータ!$A$3:$BHO$1048576,E103) -> 1029.449584 | F120: =VLOOKUP($A$1,未来カルテデータ!$A$3:$BHO$1048576,F103) -> 158166.4899 | G120: =VLOOKUP($A$1,未来カルテデータ!$A$3:$BHO$1048576,G103) -> 275828.6 | H120: =VLOOKUP($A$1,未来カルテデータ!$A$3:$BHO$1048576,H103) -> 4866.644487 | I120: =VLOOKUP($A$1,未来カルテデータ!$A$3:$BHO$1048576,I103) -> 79160.57825 | J120: =VLOOKUP($A$1,未来カルテデータ!$A$3:$BHO$1048576,J103) -> 145129.908 | K120: =VLOOKUP($A$1,未来カルテデータ!$A$3:$BHO$1048576,K103) -> 400275.1028 | L120: =VLOOKUP($A$1,未来カルテデータ!$A$3:$BHO$1048576,L103) -> 129951.8653 | M120: =VLOOKUP($A$1,未来カルテデータ!$A$3:$BHO$1048576,M103) -> 67203.86885 | N120: =VLOOKUP($A$1,未来カルテデータ!$A$3:$BHO$1048576,N103) -> 129650.0273 | O120: =VLOOKUP($A$1,未来カルテデータ!$A$3:$BHO$1048576,O103) -> 112090.6807 | P120: =VLOOKUP($A$1,未来カルテデータ!$A$3:$BHO$1048576,P103) -> 109818.3713 | Q120: =VLOOKUP($A$1,未来カルテデータ!$A$3:$BHO$1048576,Q103) -> 222557.026 | R120: =VLOOKUP($A$1,未来カルテデータ!$A$3:$BHO$1048576,R103) -> 483570.7912 | S120: =VLOOKUP($A$1,未来カルテデータ!$A$3:$BHO$1048576,S103) -> 39224.01706 | T120: =VLOOKUP($A$1,未来カルテデータ!$A$3:$BHO$1048576,T103) -> 214691.0339 | U120: =VLOOKUP($A$1,未来カルテデータ!$A$3:$BHO$1048576,U103) -> 49925.77467 | V120: =VLOOKUP($A$1,未来カルテデータ!$A$3:$BHO$1048576,V103) -> 152477.6874
A121: 70～74歳 | B121: =VLOOKUP($A$1,未来カルテデータ!$A$3:$BHO$1048576,B104) -> 125460.5705 | C121: =VLOOKUP($A$1,未来カルテデータ!$A$3:$BHO$1048576,C104) -> 5959.726652 | D121: =VLOOKUP($A$1,未来カルテデータ!$A$3:$BHO$1048576,D104) -> 12059.48826 | E121: =VLOOKUP($A$1,未来カルテデータ!$A$3:$BHO$1048576,E104) -> 504.6736098 | F121: =VLOOKUP($A$1,未来カルテデータ!$A$3:$BHO$1048576,F104) -> 78354.76603 | G121: =VLOOKUP($A$1,未来カルテデータ!$A$3:$BHO$1048576,G104) -> 124636.9852 | H121: =VLOOKUP($A$1,未来カルテデータ!$A$3:$BHO$1048576,H104) -> 1669.501064 | I121: =VLOOKUP($A$1,未来カルテデータ!$A$3:$BHO$1048576,I104) -> 21874.65928 | J121: =VLOOKUP($A$1,未来カルテデータ!$A$3:$BHO$1048576,J104) -> 58019.11777 | K121: =VLOOKUP($A$1,未来カルテデータ!$A$3:$BHO$1048576,K104) -> 230880.9344 | L121: =VLOOKUP($A$1,未来カルテデータ!$A$3:$BHO$1048576,L104) -> 58108.3851 | M121: =VLOOKUP($A$1,未来カルテデータ!$A$3:$BHO$1048576,M104) -> 41211.73251 | N121: =VLOOKUP($A$1,未来カルテデータ!$A$3:$BHO$1048576,N104) -> 68840.27594 | O121: =VLOOKUP($A$1,未来カルテデータ!$A$3:$BHO$1048576,O104) -> 69966.37666 | P121: =VLOOKUP($A$1,未来カルテデータ!$A$3:$BHO$1048576,P104) -> 58341.90629 | Q121: =VLOOKUP($A$1,未来カルテデータ!$A$3:$BHO$1048576,Q104) -> 126890.416 | R121: =VLOOKUP($A$1,未来カルテデータ!$A$3:$BHO$1048576,R104) -> 252424.7285 | S121: =VLOOKUP($A$1,未来カルテデータ!$A$3:$BHO$1048576,S104) -> 20634.63581 | T121: =VLOOKUP($A$1,未来カルテデータ!$A$3:$BHO$1048576,T104) -> 129008.341 | U121: =VLOOKUP($A$1,未来カルテデータ!$A$3:$BHO$1048576,U104) -> 20726.57296 | V121: =VLOOKUP($A$1,未来カルテデータ!$A$3:$BHO$1048576,V104) -> 70467.29036
A122: 75～79歳 | B122: =VLOOKUP($A$1,未来カルテデータ!$A$3:$BHO$1048576,B105) -> 111121.0679 | C122: =VLOOKUP($A$1,未来カルテデータ!$A$3:$BHO$1048576,C105) -> 3244.800572 | D122: =VLOOKUP($A$1,未来カルテデータ!$A$3:$BHO$1048576,D105) -> 7566.334804 | E122: =VLOOKUP($A$1,未来カルテデータ!$A$3:$BHO$1048576,E105) -> 237.7708235 | F122: =VLOOKUP($A$1,未来カルテデータ!$A$3:$BHO$1048576,F105) -> 45193.04297 | G122: =VLOOKUP($A$1,未来カルテデータ!$A$3:$BHO$1048576,G105) -> 76037.85822 | H122: =VLOOKUP($A$1,未来カルテデータ!$A$3:$BHO$1048576,H105) -> 714.8021534 | I122: =VLOOKUP($A$1,未来カルテデータ!$A$3:$BHO$1048576,I105) -> 7005.993634 | J122: =VLOOKUP($A$1,未来カルテデータ!$A$3:$BHO$1048576,J105) -> 26834.16474 | K122: =VLOOKUP($A$1,未来カルテデータ!$A$3:$BHO$1048576,K105) -> 141596.1785 | L122: =VLOOKUP($A$1,未来カルテデータ!$A$3:$BHO$1048576,L105) -> 23869.06575 | M122: =VLOOKUP($A$1,未来カルテデータ!$A$3:$BHO$1048576,M105) -> 34953.85605 | N122: =VLOOKUP($A$1,未来カルテデータ!$A$3:$BHO$1048576,N105) -> 42687.91965 | O122: =VLOOKUP($A$1,未来カルテデータ!$A$3:$BHO$1048576,O105) -> 55646.10429 | P122: =VLOOKUP($A$1,未来カルテデータ!$A$3:$BHO$1048576,P105) -> 42584.10024 | Q122: =VLOOKUP($A$1,未来カルテデータ!$A$3:$BHO$1048576,Q105) -> 51840.30975 | R122: =VLOOKUP($A$1,未来カルテデータ!$A$3:$BHO$1048576,R105) -> 129576.1284 | S122: =VLOOKUP($A$1,未来カルテデータ!$A$3:$BHO$1048576,S105) -> 8477.283807 | T122: =VLOOKUP($A$1,未来カルテデータ!$A$3:$BHO$1048576,T105) -> 106695.0696 | U122: =VLOOKUP($A$1,未来カルテデータ!$A$3:$BHO$1048576,U105) -> 7112.420848 | V122: =VLOOKUP($A$1,未来カルテデータ!$A$3:$BHO$1048576,V105) -> 44831.9653
A123: 80～84歳 | B123: =VLOOKUP($A$1,未来カルテデータ!$A$3:$BHO$1048576,B106) -> 69106.61184 | C123: =VLOOKUP($A$1,未来カルテデータ!$A$3:$BHO$1048576,C106) -> 1278.773325 | D123: =VLOOKUP($A$1,未来カルテデータ!$A$3:$BHO$1048576,D106) -> 3809.670368 | E123: =VLOOKUP($A$1,未来カルテデータ!$A$3:$BHO$1048576,E106) -> 104.3070444 | F123: =VLOOKUP($A$1,未来カルテデータ!$A$3:$BHO$1048576,F106) -> 22784.24526 | G123: =VLOOKUP($A$1,未来カルテデータ!$A$3:$BHO$1048576,G106) -> 37681.18906 | H123: =VLOOKUP($A$1,未来カルテデータ!$A$3:$BHO$1048576,H106) -> 302.8753676 | I123: =VLOOKUP($A$1,未来カルテデータ!$A$3:$BHO$1048576,I106) -> 2105.441982 | J123: =VLOOKUP($A$1,未来カルテデータ!$A$3:$BHO$1048576,J106) -> 14239.00457 | K123: =VLOOKUP($A$1,未来カルテデータ!$A$3:$BHO$1048576,K106) -> 73493.22446 | L123: =VLOOKUP($A$1,未来カルテデータ!$A$3:$BHO$1048576,L106) -> 8003.471536 | M123: =VLOOKUP($A$1,未来カルテデータ!$A$3:$BHO$1048576,M106) -> 28985.08138 | N123: =VLOOKUP($A$1,未来カルテデータ!$A$3:$BHO$1048576,N106) -> 26411.35669 | O123: =VLOOKUP($A$1,未来カルテデータ!$A$3:$BHO$1048576,O106) -> 37145.26179 | P123: =VLOOKUP($A$1,未来カルテデータ!$A$3:$BHO$1048576,P106) -> 33162.7736 | Q123: =VLOOKUP($A$1,未来カルテデータ!$A$3:$BHO$1048576,Q106) -> 21268.62266 | R123: =VLOOKUP($A$1,未来カルテデータ!$A$3:$BHO$1048576,R106) -> 66232.2187 | S123: =VLOOKUP($A$1,未来カルテデータ!$A$3:$BHO$1048576,S106) -> 1762.50769 | T123: =VLOOKUP($A$1,未来カルテデータ!$A$3:$BHO$1048576,T106) -> 77910.13108 | U123: =VLOOKUP($A$1,未来カルテデータ!$A$3:$BHO$1048576,U106) -> 1069.258292 | V123: =VLOOKUP($A$1,未来カルテデータ!$A$3:$BHO$1048576,V106) -> 37609.56923
A124: 85歳以上 | B124: =VLOOKUP($A$1,未来カルテデータ!$A$3:$BHO$1048576,B107) -> 31946.27343 | C124: =VLOOKUP($A$1,未来カルテデータ!$A$3:$BHO$1048576,C107) -> 404.9884827 | D124: =VLOOKUP($A$1,未来カルテデータ!$A$3:$BHO$1048576,D107) -> 1591.830537 | E124: =VLOOKUP($A$1,未来カルテデータ!$A$3:$BHO$1048576,E107) -> 39.71073104 | F124: =VLOOKUP($A$1,未来カルテデータ!$A$3:$BHO$1048576,F107) -> 9033.768377 | G124: =VLOOKUP($A$1,未来カルテデータ!$A$3:$BHO$1048576,G107) -> 17916.79133 | H124: =VLOOKUP($A$1,未来カルテデータ!$A$3:$BHO$1048576,H107) -> 87.78247368 | I124: =VLOOKUP($A$1,未来カルテデータ!$A$3:$BHO$1048576,I107) -> 865.033428 | J124: =VLOOKUP($A$1,未来カルテデータ!$A$3:$BHO$1048576,J107) -> 6056.310674 | K124: =VLOOKUP($A$1,未来カルテデータ!$A$3:$BHO$1048576,K107) -> 33433.82587 | L124: =VLOOKUP($A$1,未来カルテデータ!$A$3:$BHO$1048576,L107) -> 3664.619487 | M124: =VLOOKUP($A$1,未来カルテデータ!$A$3:$BHO$1048576,M107) -> 19138.38224 | N124: =VLOOKUP($A$1,未来カルテデータ!$A$3:$BHO$1048576,N107) -> 13722.62018 | O124: =VLOOKUP($A$1,未来カルテデータ!$A$3:$BHO$1048576,O107) -> 15469.11687 | P124: =VLOOKUP($A$1,未来カルテデータ!$A$3:$BHO$1048576,P107) -> 23624.37674 | Q124: =VLOOKUP($A$1,未来カルテデータ!$A$3:$BHO$1048576,Q107) -> 10035.52155 | R124: =VLOOKUP($A$1,未来カルテデータ!$A$3:$BHO$1048576,R107) -> 29617.37357 | S124: =VLOOKUP($A$1,未来カルテデータ!$A$3:$BHO$1048576,S107) -> 562.942187 | T124: =VLOOKUP($A$1,未来カルテデータ!$A$3:$BHO$1048576,T107) -> 46546.59186 | U124: =VLOOKUP($A$1,未来カルテデータ!$A$3:$BHO$1048576,U107) -> 165.4235781 | V124: =VLOOKUP($A$1,未来カルテデータ!$A$3:$BHO$1048576,V107) -> 31327.2541
B125: =SUM(B110:B124) -> 1165342.652 | C125: =SUM(C110:C124) -> 68108.94145 | D125: 129105.424 | E125: 12187.66304 | F125: 2727591.232 | G125: 7223598.342 | H125: 223855.8112 | I125: 2638221.754 | J125: 2736159.883 | K125: 6816778.98 | L125: 1436072.556 | M125: 887344.852 | N125: 1679270.528 | O125: 2800161.305 | P125: 2181086.863 | Q125: 2717667.147 | R125: 7352850.093 | S125: 488754.5452 | T125: 2805731.307 | U125: 1923392.084 | V125: 3439218.469
B127: 315
B128: =$B$127+B93 -> 1024 | C128: =$B$127+C93 -> 1025 | D128: 1026 | E128: 1027 | F128: 1028 | G128: 1029 | H128: 1030 | I128: 1031 | J128: 1032 | K128: 1033 | L128: 1034 | M128: 1035 | N128: 1036 | O128: 1037 | P128: 1038 | Q128: 1039 | R128: 1040 | S128: 1041 | T128: 1042 | U128: 1043 | V128: 1044
B129: =$B$127+B94 -> 1045 | C129: 1046 | D129: 1047 | E129: 1048 | F129: 1049 | G129: 1050 | H129: 1051 | I129: 1052 | J129: 1053 | K129: 1054 | L129: 1055 | M129: 1056 | N129: 1057 | O129: 1058 | P129: 1059 | Q129: 1060 | R129: 1061 | S129: 1062 | T129: 1063 | U129: 1064 | V129: 1065
B130: =$B$127+B95 -> 1066 | C130: 1067 | D130: 1068 | E130: 1069 | F130: 1070 | G130: 1071 | H130: 1072 | I130: 1073 | J130: 1074 | K130: 1075 | L130: 1076 | M130: 1077 | N130: 1078 | O130: 1079 | P130: 1080 | Q130: 1081 | R130: 1082 | S130: 1083 | T130: 1084 | U130: 1085 | V130: 1086
B131: =$B$127+B96 -> 1087 | C131: 1088 | D131: 1089 | E131: 1090 | F131: 1091 | G131: 1092 | H131: 1093 | I131: 1094 | J131: 1095 | K131: 1096 | L131: 1097 | M131: 1098 | N131: 1099 | O131: 1100 | P131: 1101 | Q131: 1102 | R131: 1103 | S131: 1104 | T131: 1105 | U131: 1106 | V131: 1107
B132: =$B$127+B97 -> 1108 | C132: 1109 | D132: 1110 | E132: 1111 | F132: 1112 | G132: 1113 | H132: 1114 | I132: 1115 | J132: 1116 | K132: 1117 | L132: 1118 | M132: 1119 | N132: 1120 | O132: 1121 | P132: 1122 | Q132: 1123 | R132: 1124 | S132: 1125 | T132: 1126 | U132: 1127 | V132: 1128
B133: =$B$127+B98 -> 1129 | C133: 1130 | D133: 1131 | E133: 1132 | F133: 1133 | G133: 1134 | H133: 1135 | I133: 1136 | J133: 1137 | K133: 1138 | L133: 1139 | M133: 1140 | N133: 1141 | O133: 1142 | P133: 1143 | Q133: 1144 | R133: 1145 | S133: 1146 | T133: 1147 | U133: 1148 | V133: 1149
B134: =$B$127+B99 -> 1150 | C134: 1151 | D134: 1152 | E134: 1153 | F134: 1154 | G134: 1155 | H134: 1156 | I134: 1157 | J134: 1158 | K134: 1159 | L134: 1160 | M134: 1161 | N134: 1162 | O134: 1163 | P134: 1164 | Q134: 1165 | R134: 1166 | S134: 1167 | T134: 1168 | U134: 1169 | V134: 1170
B135: =$B$127+B100 -> 1171 | C135: 1172 | D135: 1173 | E135: 1174 | F135: 1175 | G135: 1176 | H135: 1177 | I135: 1178 | J135: 1179 | K135: 1180 | L135: 1181 | M135: 1182 | N135: 1183 | O135: 1184 | P135: 1185 | Q135: 1186 | R135: 1187 | S135: 1188 | T135: 1189 | U135: 1190 | V135: 1191
B136: =$B$127+B101 -> 1192 | C136: 1193 | D136: 1194 | E136: 1195 | F136: 1196 | G136: 1197 | H136: 1198 | I136: 1199 | J136: 1200 | K136: 1201 | L136: 1202 | M136: 1203 | N136: 1204 | O136: 1205 | P136: 1206 | Q136: 1207 | R136: 1208 | S136: 1209 | T136: 1210 | U136: 1211 | V136: 1212
B137: =$B$127+B102 -> 1213 | C137: 1214 | D137: 1215 | E137: 1216 | F137: 1217 | G137: 1218 | H137: 1219 | I137: 1220 | J137: 1221 | K137: 1222 | L137: 1223 | M137: 1224 | N137: 1225 | O137: 1226 | P137: 1227 | Q137: 1228 | R137: 1229 | S137: 1230 | T137: 1231 | U137: 1232 | V137: 1233
B138: =$B$127+B103 -> 1234 | C138: 1235 | D138: 1236 | E138: 1237 | F138: 1238 | G138: 1239 | H138: 1240 | I138: 1241 | J138: 1242 | K138: 1243 | L138: 1244 | M138: 1245 | N138: 1246 | O138: 1247 | P138: 1248 | Q138: 1249 | R138: 1250 | S138: 1251 | T138: 1252 | U138: 1253 | V138: 1254
B139: =$B$127+B104 -> 1255 | C139: 1256 | D139: 1257 | E139: 1258 | F139: 1259 | G139: 1260 | H139: 1261 | I139: 1262 | J139: 1263 | K139: 1264 | L139: 1265 | M139: 1266 | N139: 1267 | O139: 1268 | P139: 1269 | Q139: 1270 | R139: 1271 | S139: 1272 | T139: 1273 | U139: 1274 | V139: 1275
B140: =$B$127+B105 -> 1276 | C140: 1277 | D140: 1278 | E140: 1279 | F140: 1280 | G140: 1281 | H140: 1282 | I140: 1283 | J140: 1284 | K140: 1285 | L140: 1286 | M140: 1287 | N140: 1288 | O140: 1289 | P140: 1290 | Q140: 1291 | R140: 1292 | S140: 1293 | T140: 1294 | U140: 1295 | V140: 1296
B141: =$B$127+B106 -> 1297 | C141: 1298 | D141: 1299 | E141: 1300 | F141: 1301 | G141: 1302 | H141: 1303 | I141: 1304 | J141: 1305 | K141: 1306 | L141: 1307 | M141: 1308 | N141: 1309 | O141: 1310 | P141: 1311 | Q141: 1312 | R141: 1313 | S141: 1314 | T141: 1315 | U141: 1316 | V141: 1317
B142: =$B$127+B107 -> 1318 | C142: 1319 | D142: 1320 | E142: 1321 | F142: 1322 | G142: 1323 | H142: 1324 | I142: 1325 | J142: 1326 | K142: 1327 | L142: 1328 | M142: 1329 | N142: 1330 | O142: 1331 | P142: 1332 | Q142: 1333 | R142: 1334 | S142: 1335 | T142: 1336 | U142: 1337 | V142: 1338
A144: 2040 | B144: A1 農業 | C144: A2 林業 | D144: Ｂ 漁業 | E144: Ｃ 鉱業，採石業，砂利採取業 | F144: Ｄ 建設業 | G144: Ｅ 製造業 | H144: Ｆ 電気・ガス・熱供給・水道業 | I144: Ｇ 情報通信業 | J144: Ｈ 運輸業，郵便業 | K144: Ｉ 卸売業，小売業 | L144: Ｊ 金融業，保険業 | M144: Ｋ 不動産業，物品賃貸業 | N144: Ｌ 学術研究，専門・技術サービス業 | O144: Ｍ 宿泊業，飲食サービス業 | P144: Ｎ 生活関連サービス業，娯楽業 | Q144: Ｏ 教育，学習支援業 | R144: Ｐ 医療，福祉 | S144: Ｑ 複合サービス事業 | T144: Ｒ サービス業（他に分類されないもの） | U144: Ｓ 公務（他に分類されるものを除く） | V144: Ｔ 分類不能の産業
A145: 15～19歳 | B145: =VLOOKUP($A$1,未来カルテデータ!$A$3:$BHO$1048576,B128) -> 3600.335462 | C145: =VLOOKUP($A$1,未来カルテデータ!$A$3:$BHO$1048576,C128) -> 253.2319168 | D145: =VLOOKUP($A$1,未来カルテデータ!$A$3:$BHO$1048576,D128) -> 744.4981803 | E145: =VLOOKUP($A$1,未来カルテデータ!$A$3:$BHO$1048576,E128) -> 70.66934085 | F145: =VLOOKUP($A$1,未来カルテデータ!$A$3:$BHO$1048576,F128) -> 27924.3684 | G145: =VLOOKUP($A$1,未来カルテデータ!$A$3:$BHO$1048576,G128) -> 70187.29444 | H145: =VLOOKUP($A$1,未来カルテデータ!$A$3:$BHO$1048576,H128) -> 1484.034103 | I145: =VLOOKUP($A$1,未来カルテデータ!$A$3:$BHO$1048576,I128) -> 1825.484095 | J145: =VLOOKUP($A$1,未来カルテデータ!$A$3:$BHO$1048576,J128) -> 13013.61392 | K145: =VLOOKUP($A$1,未来カルテデータ!$A$3:$BHO$1048576,K128) -> 122940.6691 | L145: =VLOOKUP($A$1,未来カルテデータ!$A$3:$BHO$1048576,L128) -> 1486.835849 | M145: =VLOOKUP($A$1,未来カルテデータ!$A$3:$BHO$1048576,M128) -> 2982.883812 | N145: =VLOOKUP($A$1,未来カルテデータ!$A$3:$BHO$1048576,N128) -> 3121.045539 | O145: =VLOOKUP($A$1,未来カルテデータ!$A$3:$BHO$1048576,O128) -> 136270.922 | P145: =VLOOKUP($A$1,未来カルテデータ!$A$3:$BHO$1048576,P128) -> 20604.85699 | Q145: =VLOOKUP($A$1,未来カルテデータ!$A$3:$BHO$1048576,Q128) -> 18571.23377 | R145: =VLOOKUP($A$1,未来カルテデータ!$A$3:$BHO$1048576,R128) -> 18756.79184 | S145: =VLOOKUP($A$1,未来カルテデータ!$A$3:$BHO$1048576,S128) -> 2300.414912 | T145: =VLOOKUP($A$1,未来カルテデータ!$A$3:$BHO$1048576,T128) -> 14825.05131 | U145: =VLOOKUP($A$1,未来カルテデータ!$A$3:$BHO$1048576,U128) -> 12137.88198 | V145: =VLOOKUP($A$1,未来カルテデータ!$A$3:$BHO$1048576,V128) -> 40033.53609
A146: 20～24歳 | B146: =VLOOKUP($A$1,未来カルテデータ!$A$3:$BHO$1048576,B129) -> 22039.31762 | C146: =VLOOKUP($A$1,未来カルテデータ!$A$3:$BHO$1048576,C129) -> 1398.21238 | D146: =VLOOKUP($A$1,未来カルテデータ!$A$3:$BHO$1048576,D129) -> 3366.467124 | E146: =VLOOKUP($A$1,未来カルテデータ!$A$3:$BHO$1048576,E129) -> 443.7755444 | F146: =VLOOKUP($A$1,未来カルテデータ!$A$3:$BHO$1048576,F129) -> 122172.2726 | G146: =VLOOKUP($A$1,未来カルテデータ!$A$3:$BHO$1048576,G129) -> 378779.1292 | H146: =VLOOKUP($A$1,未来カルテデータ!$A$3:$BHO$1048576,H129) -> 11044.57854 | I146: =VLOOKUP($A$1,未来カルテデータ!$A$3:$BHO$1048576,I129) -> 66795.52436 | J146: =VLOOKUP($A$1,未来カルテデータ!$A$3:$BHO$1048576,J129) -> 76762.70702 | K146: =VLOOKUP($A$1,未来カルテデータ!$A$3:$BHO$1048576,K129) -> 452112.6076 | L146: =VLOOKUP($A$1,未来カルテデータ!$A$3:$BHO$1048576,L129) -> 56866.49917 | M146: =VLOOKUP($A$1,未来カルテデータ!$A$3:$BHO$1048576,M129) -> 31510.25119 | N146: =VLOOKUP($A$1,未来カルテデータ!$A$3:$BHO$1048576,N129) -> 48077.07561 | O146: =VLOOKUP($A$1,未来カルテデータ!$A$3:$BHO$1048576,O129) -> 270713.1265 | P146: =VLOOKUP($A$1,未来カルテデータ!$A$3:$BHO$1048576,P129) -> 129975.8358 | Q146: =VLOOKUP($A$1,未来カルテデータ!$A$3:$BHO$1048576,Q129) -> 129304.6022 | R146: =VLOOKUP($A$1,未来カルテデータ!$A$3:$BHO$1048576,R129) -> 330839.8147 | S146: =VLOOKUP($A$1,未来カルテデータ!$A$3:$BHO$1048576,S129) -> 18521.51527 | T146: =VLOOKUP($A$1,未来カルテデータ!$A$3:$BHO$1048576,T129) -> 94112.52172 | U146: =VLOOKUP($A$1,未来カルテデータ!$A$3:$BHO$1048576,U129) -> 89328.50064 | V146: =VLOOKUP($A$1,未来カルテデータ!$A$3:$BHO$1048576,V129) -> 189602.4518
A147: 25～29歳 | B147: =VLOOKUP($A$1,未来カルテデータ!$A$3:$BHO$1048576,B130) -> 39400.31314 | C147: =VLOOKUP($A$1,未来カルテデータ!$A$3:$BHO$1048576,C130) -> 2499.466785 | D147: =VLOOKUP($A$1,未来カルテデータ!$A$3:$BHO$1048576,D130) -> 5784.901818 | E147: =VLOOKUP($A$1,未来カルテデータ!$A$3:$BHO$1048576,E130) -> 653.4084452 | F147: =VLOOKUP($A$1,未来カルテデータ!$A$3:$BHO$1048576,F130) -> 183126.4513 | G147: =VLOOKUP($A$1,未来カルテデータ!$A$3:$BHO$1048576,G130) -> 583214.5093 | H147: =VLOOKUP($A$1,未来カルテデータ!$A$3:$BHO$1048576,H130) -> 22516.50743 | I147: =VLOOKUP($A$1,未来カルテデータ!$A$3:$BHO$1048576,I130) -> 160011.1493 | J147: =VLOOKUP($A$1,未来カルテデータ!$A$3:$BHO$1048576,J130) -> 157523.8804 | K147: =VLOOKUP($A$1,未来カルテデータ!$A$3:$BHO$1048576,K130) -> 456724.1209 | L147: =VLOOKUP($A$1,未来カルテデータ!$A$3:$BHO$1048576,L130) -> 87569.58118 | M147: =VLOOKUP($A$1,未来カルテデータ!$A$3:$BHO$1048576,M130) -> 48635.42069 | N147: =VLOOKUP($A$1,未来カルテデータ!$A$3:$BHO$1048576,N130) -> 74004.67672 | O147: =VLOOKUP($A$1,未来カルテデータ!$A$3:$BHO$1048576,O130) -> 270968.6885 | P147: =VLOOKUP($A$1,未来カルテデータ!$A$3:$BHO$1048576,P130) -> 200517.5877 | Q147: =VLOOKUP($A$1,未来カルテデータ!$A$3:$BHO$1048576,Q130) -> 199748.7766 | R147: =VLOOKUP($A$1,未来カルテデータ!$A$3:$BHO$1048576,R130) -> 509210.6909 | S147: =VLOOKUP($A$1,未来カルテデータ!$A$3:$BHO$1048576,S130) -> 28387.10651 | T147: =VLOOKUP($A$1,未来カルテデータ!$A$3:$BHO$1048576,T130) -> 145203.5778 | U147: =VLOOKUP($A$1,未来カルテデータ!$A$3:$BHO$1048576,U130) -> 190242.593 | V147: =VLOOKUP($A$1,未来カルテデータ!$A$3:$BHO$1048576,V130) -> 293909.1092
A148: 30～34歳 | B148: =VLOOKUP($A$1,未来カルテデータ!$A$3:$BHO$1048576,B131) -> 53633.75759 | C148: =VLOOKUP($A$1,未来カルテデータ!$A$3:$BHO$1048576,C131) -> 3492.108547 | D148: =VLOOKUP($A$1,未来カルテデータ!$A$3:$BHO$1048576,D131) -> 7847.764946 | E148: =VLOOKUP($A$1,未来カルテデータ!$A$3:$BHO$1048576,E131) -> 687.6777213 | F148: =VLOOKUP($A$1,未来カルテデータ!$A$3:$BHO$1048576,F131) -> 192893.291 | G148: =VLOOKUP($A$1,未来カルテデータ!$A$3:$BHO$1048576,G131) -> 619736.5137 | H148: =VLOOKUP($A$1,未来カルテデータ!$A$3:$BHO$1048576,H131) -> 24450.29459 | I148: =VLOOKUP($A$1,未来カルテデータ!$A$3:$BHO$1048576,I131) -> 213765.0494 | J148: =VLOOKUP($A$1,未来カルテデータ!$A$3:$BHO$1048576,J131) -> 192136.2546 | K148: =VLOOKUP($A$1,未来カルテデータ!$A$3:$BHO$1048576,K131) -> 436767.8979 | L148: =VLOOKUP($A$1,未来カルテデータ!$A$3:$BHO$1048576,L131) -> 89836.64062 | M148: =VLOOKUP($A$1,未来カルテデータ!$A$3:$BHO$1048576,M131) -> 49755.02416 | N148: =VLOOKUP($A$1,未来カルテデータ!$A$3:$BHO$1048576,N131) -> 75588.19068 | O148: =VLOOKUP($A$1,未来カルテデータ!$A$3:$BHO$1048576,O131) -> 257220.0427 | P148: =VLOOKUP($A$1,未来カルテデータ!$A$3:$BHO$1048576,P131) -> 206087.2616 | Q148: =VLOOKUP($A$1,未来カルテデータ!$A$3:$BHO$1048576,Q131) -> 205554.0198 | R148: =VLOOKUP($A$1,未来カルテデータ!$A$3:$BHO$1048576,R131) -> 529963.3206 | S148: =VLOOKUP($A$1,未来カルテデータ!$A$3:$BHO$1048576,S131) -> 29834.0473 | T148: =VLOOKUP($A$1,未来カルテデータ!$A$3:$BHO$1048576,T131) -> 149614.0199 | U148: =VLOOKUP($A$1,未来カルテデータ!$A$3:$BHO$1048576,U131) -> 213571.3986 | V148: =VLOOKUP($A$1,未来カルテデータ!$A$3:$BHO$1048576,V131) -> 300227.5351
A149: 35～39歳 | B149: =VLOOKUP($A$1,未来カルテデータ!$A$3:$BHO$1048576,B132) -> 67694.38649 | C149: =VLOOKUP($A$1,未来カルテデータ!$A$3:$BHO$1048576,C132) -> 4516.02845 | D149: =VLOOKUP($A$1,未来カルテデータ!$A$3:$BHO$1048576,D132) -> 9825.404865 | E149: =VLOOKUP($A$1,未来カルテデータ!$A$3:$BHO$1048576,E132) -> 690.397583 | F149: =VLOOKUP($A$1,未来カルテデータ!$A$3:$BHO$1048576,F132) -> 193524.7816 | G149: =VLOOKUP($A$1,未来カルテデータ!$A$3:$BHO$1048576,G132) -> 645125.8855 | H149: =VLOOKUP($A$1,未来カルテデータ!$A$3:$BHO$1048576,H132) -> 25482.99976 | I149: =VLOOKUP($A$1,未来カルテデータ!$A$3:$BHO$1048576,I132) -> 272881.5676 | J149: =VLOOKUP($A$1,未来カルテデータ!$A$3:$BHO$1048576,J132) -> 231832.2864 | K149: =VLOOKUP($A$1,未来カルテデータ!$A$3:$BHO$1048576,K132) -> 451112.7941 | L149: =VLOOKUP($A$1,未来カルテデータ!$A$3:$BHO$1048576,L132) -> 95699.03253 | M149: =VLOOKUP($A$1,未来カルテデータ!$A$3:$BHO$1048576,M132) -> 52586.33502 | N149: =VLOOKUP($A$1,未来カルテデータ!$A$3:$BHO$1048576,N132) -> 79943.52054 | O149: =VLOOKUP($A$1,未来カルテデータ!$A$3:$BHO$1048576,O132) -> 263606.6092 | P149: =VLOOKUP($A$1,未来カルテデータ!$A$3:$BHO$1048576,P132) -> 221026.0692 | Q149: =VLOOKUP($A$1,未来カルテデータ!$A$3:$BHO$1048576,Q132) -> 220878.2589 | R149: =VLOOKUP($A$1,未来カルテデータ!$A$3:$BHO$1048576,R132) -> 578173.6025 | S149: =VLOOKUP($A$1,未来カルテデータ!$A$3:$BHO$1048576,S132) -> 32983.26656 | T149: =VLOOKUP($A$1,未来カルテデータ!$A$3:$BHO$1048576,T132) -> 159897.9727 | U149: =VLOOKUP($A$1,未来カルテデータ!$A$3:$BHO$1048576,U132) -> 227562.6072 | V149: =VLOOKUP($A$1,未来カルテデータ!$A$3:$BHO$1048576,V132) -> 316855.8258
A150: 40～44歳 | B150: =VLOOKUP($A$1,未来カルテデータ!$A$3:$BHO$1048576,B133) -> 78304.69757 | C150: =VLOOKUP($A$1,未来カルテデータ!$A$3:$BHO$1048576,C133) -> 5300.133729 | D150: =VLOOKUP($A$1,未来カルテデータ!$A$3:$BHO$1048576,D133) -> 11319.42384 | E150: =VLOOKUP($A$1,未来カルテデータ!$A$3:$BHO$1048576,E133) -> 672.3689258 | F150: =VLOOKUP($A$1,未来カルテデータ!$A$3:$BHO$1048576,F133) -> 187776.9168 | G150: =VLOOKUP($A$1,未来カルテデータ!$A$3:$BHO$1048576,G133) -> 656274.4649 | H150: =VLOOKUP($A$1,未来カルテデータ!$A$3:$BHO$1048576,H133) -> 26150.9879 | I150: =VLOOKUP($A$1,未来カルテデータ!$A$3:$BHO$1048576,I133) -> 347729.4887 | J150: =VLOOKUP($A$1,未来カルテデータ!$A$3:$BHO$1048576,J133) -> 277205.7367 | K150: =VLOOKUP($A$1,未来カルテデータ!$A$3:$BHO$1048576,K133) -> 469538.7589 | L150: =VLOOKUP($A$1,未来カルテデータ!$A$3:$BHO$1048576,L133) -> 105575.4095 | M150: =VLOOKUP($A$1,未来カルテデータ!$A$3:$BHO$1048576,M133) -> 57835.07565 | N150: =VLOOKUP($A$1,未来カルテデータ!$A$3:$BHO$1048576,N133) -> 87690.06567 | O150: =VLOOKUP($A$1,未来カルテデータ!$A$3:$BHO$1048576,O133) -> 273279.6359 | P150: =VLOOKUP($A$1,未来カルテデータ!$A$3:$BHO$1048576,P133) -> 245777.68 | Q150: =VLOOKUP($A$1,未来カルテデータ!$A$3:$BHO$1048576,Q133) -> 246044.9767 | R150: =VLOOKUP($A$1,未来カルテデータ!$A$3:$BHO$1048576,R133) -> 648177.4921 | S150: =VLOOKUP($A$1,未来カルテデータ!$A$3:$BHO$1048576,S133) -> 37086.92118 | T150: =VLOOKUP($A$1,未来カルテデータ!$A$3:$BHO$1048576,T133) -> 176894.5376 | U150: =VLOOKUP($A$1,未来カルテデータ!$A$3:$BHO$1048576,U133) -> 241417.1126 | V150: =VLOOKUP($A$1,未来カルテデータ!$A$3:$BHO$1048576,V133) -> 349476.0685
A151: 45～49歳 | B151: =VLOOKUP($A$1,未来カルテデータ!$A$3:$BHO$1048576,B134) -> 82069.85424 | C151: =VLOOKUP($A$1,未来カルテデータ!$A$3:$BHO$1048576,C134) -> 5612.770798 | D151: =VLOOKUP($A$1,未来カルテデータ!$A$3:$BHO$1048576,D134) -> 11869.80982 | E151: =VLOOKUP($A$1,未来カルテデータ!$A$3:$BHO$1048576,E134) -> 632.7263451 | F151: =VLOOKUP($A$1,未来カルテデータ!$A$3:$BHO$1048576,F134) -> 175624.1696 | G151: =VLOOKUP($A$1,未来カルテデータ!$A$3:$BHO$1048576,G134) -> 619114.4038 | H151: =VLOOKUP($A$1,未来カルテデータ!$A$3:$BHO$1048576,H134) -> 25573.93947 | I151: =VLOOKUP($A$1,未来カルテデータ!$A$3:$BHO$1048576,I134) -> 409027.6672 | J151: =VLOOKUP($A$1,未来カルテデータ!$A$3:$BHO$1048576,J134) -> 305514.2305 | K151: =VLOOKUP($A$1,未来カルテデータ!$A$3:$BHO$1048576,K134) -> 454237.4687 | L151: =VLOOKUP($A$1,未来カルテデータ!$A$3:$BHO$1048576,L134) -> 109994.1671 | M151: =VLOOKUP($A$1,未来カルテデータ!$A$3:$BHO$1048576,M134) -> 60412.13772 | N151: =VLOOKUP($A$1,未来カルテデータ!$A$3:$BHO$1048576,N134) -> 91321.08833 | O151: =VLOOKUP($A$1,未来カルテデータ!$A$3:$BHO$1048576,O134) -> 263963.4186 | P151: =VLOOKUP($A$1,未来カルテデータ!$A$3:$BHO$1048576,P134) -> 257112.9274 | Q151: =VLOOKUP($A$1,未来カルテデータ!$A$3:$BHO$1048576,Q134) -> 257676.5514 | R151: =VLOOKUP($A$1,未来カルテデータ!$A$3:$BHO$1048576,R134) -> 678641.2927 | S151: =VLOOKUP($A$1,未来カルテデータ!$A$3:$BHO$1048576,S134) -> 38791.58287 | T151: =VLOOKUP($A$1,未来カルテデータ!$A$3:$BHO$1048576,T134) -> 185005.9964 | U151: =VLOOKUP($A$1,未来カルテデータ!$A$3:$BHO$1048576,U134) -> 244040.0912 | V151: =VLOOKUP($A$1,未来カルテデータ!$A$3:$BHO$1048576,V134) -> 366175.0711
A152: 50～54歳 | B152: =VLOOKUP($A$1,未来カルテデータ!$A$3:$BHO$1048576,B135) -> 83584.44257 | C152: =VLOOKUP($A$1,未来カルテデータ!$A$3:$BHO$1048576,C135) -> 6291.561203 | D152: =VLOOKUP($A$1,未来カルテデータ!$A$3:$BHO$1048576,D135) -> 10064.72234 | E152: =VLOOKUP($A$1,未来カルテデータ!$A$3:$BHO$1048576,E135) -> 855.4447498 | F152: =VLOOKUP($A$1,未来カルテデータ!$A$3:$BHO$1048576,F135) -> 171513.6715 | G152: =VLOOKUP($A$1,未来カルテデータ!$A$3:$BHO$1048576,G135) -> 651907.1085 | H152: =VLOOKUP($A$1,未来カルテデータ!$A$3:$BHO$1048576,H135) -> 19706.96893 | I152: =VLOOKUP($A$1,未来カルテデータ!$A$3:$BHO$1048576,I135) -> 461884.9655 | J152: =VLOOKUP($A$1,未来カルテデータ!$A$3:$BHO$1048576,J135) -> 289686.3499 | K152: =VLOOKUP($A$1,未来カルテデータ!$A$3:$BHO$1048576,K135) -> 556667.5142 | L152: =VLOOKUP($A$1,未来カルテデータ!$A$3:$BHO$1048576,L135) -> 144793.1417 | M152: =VLOOKUP($A$1,未来カルテデータ!$A$3:$BHO$1048576,M135) -> 69748.70928 | N152: =VLOOKUP($A$1,未来カルテデータ!$A$3:$BHO$1048576,N135) -> 151723.0548 | O152: =VLOOKUP($A$1,未来カルテデータ!$A$3:$BHO$1048576,O135) -> 162333.0026 | P152: =VLOOKUP($A$1,未来カルテデータ!$A$3:$BHO$1048576,P135) -> 204710.018 | Q152: =VLOOKUP($A$1,未来カルテデータ!$A$3:$BHO$1048576,Q135) -> 264964.4908 | R152: =VLOOKUP($A$1,未来カルテデータ!$A$3:$BHO$1048576,R135) -> 774191.2999 | S152: =VLOOKUP($A$1,未来カルテデータ!$A$3:$BHO$1048576,S135) -> 49836.8145 | T152: =VLOOKUP($A$1,未来カルテデータ!$A$3:$BHO$1048576,T135) -> 217520.3644 | U152: =VLOOKUP($A$1,未来カルテデータ!$A$3:$BHO$1048576,U135) -> 218737.7684 | V152: =VLOOKUP($A$1,未来カルテデータ!$A$3:$BHO$1048576,V135) -> 356382.6533
A153: 55～59歳 | B153: =VLOOKUP($A$1,未来カルテデータ!$A$3:$BHO$1048576,B136) -> 98870.7818 | C153: =VLOOKUP($A$1,未来カルテデータ!$A$3:$BHO$1048576,C136) -> 7762.323603 | D153: =VLOOKUP($A$1,未来カルテデータ!$A$3:$BHO$1048576,D136) -> 11351.52194 | E153: =VLOOKUP($A$1,未来カルテデータ!$A$3:$BHO$1048576,E136) -> 936.9439445 | F153: =VLOOKUP($A$1,未来カルテデータ!$A$3:$BHO$1048576,F136) -> 215217.9687 | G153: =VLOOKUP($A$1,未来カルテデータ!$A$3:$BHO$1048576,G136) -> 639614.7093 | H153: =VLOOKUP($A$1,未来カルテデータ!$A$3:$BHO$1048576,H136) -> 14292.97672 | I153: =VLOOKUP($A$1,未来カルテデータ!$A$3:$BHO$1048576,I136) -> 449903.5832 | J153: =VLOOKUP($A$1,未来カルテデータ!$A$3:$BHO$1048576,J136) -> 317585.0752 | K153: =VLOOKUP($A$1,未来カルテデータ!$A$3:$BHO$1048576,K136) -> 606073.449 | L153: =VLOOKUP($A$1,未来カルテデータ!$A$3:$BHO$1048576,L136) -> 147115.1601 | M153: =VLOOKUP($A$1,未来カルテデータ!$A$3:$BHO$1048576,M136) -> 90399.22208 | N153: =VLOOKUP($A$1,未来カルテデータ!$A$3:$BHO$1048576,N136) -> 198145.9052 | O153: =VLOOKUP($A$1,未来カルテデータ!$A$3:$BHO$1048576,O136) -> 179030.1554 | P153: =VLOOKUP($A$1,未来カルテデータ!$A$3:$BHO$1048576,P136) -> 221240.2282 | Q153: =VLOOKUP($A$1,未来カルテデータ!$A$3:$BHO$1048576,Q136) -> 260673.134 | R153: =VLOOKUP($A$1,未来カルテデータ!$A$3:$BHO$1048576,R136) -> 824242.1459 | S153: =VLOOKUP($A$1,未来カルテデータ!$A$3:$BHO$1048576,S136) -> 50114.9953 | T153: =VLOOKUP($A$1,未来カルテデータ!$A$3:$BHO$1048576,T136) -> 280781.1369 | U153: =VLOOKUP($A$1,未来カルテデータ!$A$3:$BHO$1048576,U136) -> 172095.5229 | V153: =VLOOKUP($A$1,未来カルテデータ!$A$3:$BHO$1048576,V136) -> 390091.8233
A154: 60～64歳 | B154: =VLOOKUP($A$1,未来カルテデータ!$A$3:$BHO$1048576,B137) -> 123103.0117 | C154: =VLOOKUP($A$1,未来カルテデータ!$A$3:$BHO$1048576,C137) -> 9848.662278 | D154: =VLOOKUP($A$1,未来カルテデータ!$A$3:$BHO$1048576,D137) -> 12882.41496 | E154: =VLOOKUP($A$1,未来カルテデータ!$A$3:$BHO$1048576,E137) -> 979.3110387 | F154: =VLOOKUP($A$1,未来カルテデータ!$A$3:$BHO$1048576,F137) -> 238162.9649 | G154: =VLOOKUP($A$1,未来カルテデータ!$A$3:$BHO$1048576,G137) -> 466510.8398 | H154: =VLOOKUP($A$1,未来カルテデータ!$A$3:$BHO$1048576,H137) -> 11169.2278 | I154: =VLOOKUP($A$1,未来カルテデータ!$A$3:$BHO$1048576,I137) -> 320666.5716 | J154: =VLOOKUP($A$1,未来カルテデータ!$A$3:$BHO$1048576,J137) -> 271265.2201 | K154: =VLOOKUP($A$1,未来カルテデータ!$A$3:$BHO$1048576,K137) -> 544844.6287 | L154: =VLOOKUP($A$1,未来カルテデータ!$A$3:$BHO$1048576,L137) -> 129890.9663 | M154: =VLOOKUP($A$1,未来カルテデータ!$A$3:$BHO$1048576,M137) -> 93125.02775 | N154: =VLOOKUP($A$1,未来カルテデータ!$A$3:$BHO$1048576,N137) -> 217809.7052 | O154: =VLOOKUP($A$1,未来カルテデータ!$A$3:$BHO$1048576,O137) -> 173341.1285 | P154: =VLOOKUP($A$1,未来カルテデータ!$A$3:$BHO$1048576,P137) -> 193421.1552 | Q154: =VLOOKUP($A$1,未来カルテデータ!$A$3:$BHO$1048576,Q137) -> 247608.9897 | R154: =VLOOKUP($A$1,未来カルテデータ!$A$3:$BHO$1048576,R137) -> 794983.0716 | S154: =VLOOKUP($A$1,未来カルテデータ!$A$3:$BHO$1048576,S137) -> 51428.3274 | T154: =VLOOKUP($A$1,未来カルテデータ!$A$3:$BHO$1048576,T137) -> 307255.1618 | U154: =VLOOKUP($A$1,未来カルテデータ!$A$3:$BHO$1048576,U137) -> 94749.10105 | V154: =VLOOKUP($A$1,未来カルテデータ!$A$3:$BHO$1048576,V137) -> 347972.5955
A155: 65～69歳 | B155: =VLOOKUP($A$1,未来カルテデータ!$A$3:$BHO$1048576,B138) -> 124347.2017 | C155: =VLOOKUP($A$1,未来カルテデータ!$A$3:$BHO$1048576,C138) -> 9521.000939 | D155: =VLOOKUP($A$1,未来カルテデータ!$A$3:$BHO$1048576,D138) -> 13584.39827 | E155: =VLOOKUP($A$1,未来カルテデータ!$A$3:$BHO$1048576,E138) -> 862.1150222 | F155: =VLOOKUP($A$1,未来カルテデータ!$A$3:$BHO$1048576,F138) -> 191445.7644 | G155: =VLOOKUP($A$1,未来カルテデータ!$A$3:$BHO$1048576,G138) -> 303570.0738 | H155: =VLOOKUP($A$1,未来カルテデータ!$A$3:$BHO$1048576,H138) -> 5256.970433 | I155: =VLOOKUP($A$1,未来カルテデータ!$A$3:$BHO$1048576,I138) -> 144998.4932 | J155: =VLOOKUP($A$1,未来カルテデータ!$A$3:$BHO$1048576,J138) -> 190614.2828 | K155: =VLOOKUP($A$1,未来カルテデータ!$A$3:$BHO$1048576,K138) -> 449523.6854 | L155: =VLOOKUP($A$1,未来カルテデータ!$A$3:$BHO$1048576,L138) -> 130595.0091 | M155: =VLOOKUP($A$1,未来カルテデータ!$A$3:$BHO$1048576,M138) -> 80431.93197 | N155: =VLOOKUP($A$1,未来カルテデータ!$A$3:$BHO$1048576,N138) -> 180765.2045 | O155: =VLOOKUP($A$1,未来カルテデータ!$A$3:$BHO$1048576,O138) -> 140619.9701 | P155: =VLOOKUP($A$1,未来カルテデータ!$A$3:$BHO$1048576,P138) -> 142677.1891 | Q155: =VLOOKUP($A$1,未来カルテデータ!$A$3:$BHO$1048576,Q138) -> 209775.3635 | R155: =VLOOKUP($A$1,未来カルテデータ!$A$3:$BHO$1048576,R138) -> 602274.0525 | S155: =VLOOKUP($A$1,未来カルテデータ!$A$3:$BHO$1048576,S138) -> 49013.2185 | T155: =VLOOKUP($A$1,未来カルテデータ!$A$3:$BHO$1048576,T138) -> 270995.6439 | U155: =VLOOKUP($A$1,未来カルテデータ!$A$3:$BHO$1048576,U138) -> 57341.319 | V155: =VLOOKUP($A$1,未来カルテデータ!$A$3:$BHO$1048576,V138) -> 263155.6816
A156: 70～74歳 | B156: =VLOOKUP($A$1,未来カルテデータ!$A$3:$BHO$1048576,B139) -> 87576.19278 | C156: =VLOOKUP($A$1,未来カルテデータ!$A$3:$BHO$1048576,C139) -> 5992.338573 | D156: =VLOOKUP($A$1,未来カルテデータ!$A$3:$BHO$1048576,D139) -> 10469.24832 | E156: =VLOOKUP($A$1,未来カルテデータ!$A$3:$BHO$1048576,E139) -> 406.5751502 | F156: =VLOOKUP($A$1,未来カルテデータ!$A$3:$BHO$1048576,F139) -> 78969.12371 | G156: =VLOOKUP($A$1,未来カルテデータ!$A$3:$BHO$1048576,G139) -> 144028.9018 | H156: =VLOOKUP($A$1,未来カルテデータ!$A$3:$BHO$1048576,H139) -> 1728.109001 | I156: =VLOOKUP($A$1,未来カルテデータ!$A$3:$BHO$1048576,I139) -> 51820.7688 | J156: =VLOOKUP($A$1,未来カルテデータ!$A$3:$BHO$1048576,J139) -> 76302.53191 | K156: =VLOOKUP($A$1,未来カルテデータ!$A$3:$BHO$1048576,K139) -> 243442.676 | L156: =VLOOKUP($A$1,未来カルテデータ!$A$3:$BHO$1048576,L139) -> 87411.47587 | M156: =VLOOKUP($A$1,未来カルテデータ!$A$3:$BHO$1048576,M139) -> 44012.49088 | N156: =VLOOKUP($A$1,未来カルテデータ!$A$3:$BHO$1048576,N139) -> 92422.95263 | O156: =VLOOKUP($A$1,未来カルテデータ!$A$3:$BHO$1048576,O139) -> 72046.4039 | P156: =VLOOKUP($A$1,未来カルテデータ!$A$3:$BHO$1048576,P139) -> 76836.29238 | Q156: =VLOOKUP($A$1,未来カルテデータ!$A$3:$BHO$1048576,Q139) -> 123967.5974 | R156: =VLOOKUP($A$1,未来カルテデータ!$A$3:$BHO$1048576,R139) -> 319512.6553 | S156: =VLOOKUP($A$1,未来カルテデータ!$A$3:$BHO$1048576,S139) -> 23149.76937 | T156: =VLOOKUP($A$1,未来カルテデータ!$A$3:$BHO$1048576,T139) -> 144437.1646 | U156: =VLOOKUP($A$1,未来カルテデータ!$A$3:$BHO$1048576,U139) -> 21224.37887 | V156: =VLOOKUP($A$1,未来カルテデータ!$A$3:$BHO$1048576,V139) -> 129895.1127
A157: 75～79歳 | B157: =VLOOKUP($A$1,未来カルテデータ!$A$3:$BHO$1048576,B140) -> 62139.75342 | C157: =VLOOKUP($A$1,未来カルテデータ!$A$3:$BHO$1048576,C140) -> 3979.293696 | D157: =VLOOKUP($A$1,未来カルテデータ!$A$3:$BHO$1048576,D140) -> 7091.527299 | E157: =VLOOKUP($A$1,未来カルテデータ!$A$3:$BHO$1048576,E140) -> 176.6452428 | F157: =VLOOKUP($A$1,未来カルテデータ!$A$3:$BHO$1048576,F140) -> 27970.47032 | G157: =VLOOKUP($A$1,未来カルテデータ!$A$3:$BHO$1048576,G140) -> 60987.2557 | H157: =VLOOKUP($A$1,未来カルテデータ!$A$3:$BHO$1048576,H140) -> 629.0934572 | I157: =VLOOKUP($A$1,未来カルテデータ!$A$3:$BHO$1048576,I140) -> 15451.20716 | J157: =VLOOKUP($A$1,未来カルテデータ!$A$3:$BHO$1048576,J140) -> 24789.70232 | K157: =VLOOKUP($A$1,未来カルテデータ!$A$3:$BHO$1048576,K140) -> 125278.8839 | L157: =VLOOKUP($A$1,未来カルテデータ!$A$3:$BHO$1048576,L140) -> 46951.05019 | M157: =VLOOKUP($A$1,未来カルテデータ!$A$3:$BHO$1048576,M140) -> 24226.26843 | N157: =VLOOKUP($A$1,未来カルテデータ!$A$3:$BHO$1048576,N140) -> 46898.16915 | O157: =VLOOKUP($A$1,未来カルテデータ!$A$3:$BHO$1048576,O140) -> 35286.53388 | P157: =VLOOKUP($A$1,未来カルテデータ!$A$3:$BHO$1048576,P140) -> 39306.83216 | Q157: =VLOOKUP($A$1,未来カルテデータ!$A$3:$BHO$1048576,Q140) -> 79711.83219 | R157: =VLOOKUP($A$1,未来カルテデータ!$A$3:$BHO$1048576,R140) -> 172087.4219 | S157: =VLOOKUP($A$1,未来カルテデータ!$A$3:$BHO$1048576,S140) -> 13934.16675 | T157: =VLOOKUP($A$1,未来カルテデータ!$A$3:$BHO$1048576,T140) -> 76888.48741 | U157: =VLOOKUP($A$1,未来カルテデータ!$A$3:$BHO$1048576,U140) -> 6231.546437 | V157: =VLOOKUP($A$1,未来カルテデータ!$A$3:$BHO$1048576,V140) -> 55355.81578
A158: 80～84歳 | B158: =VLOOKUP($A$1,未来カルテデータ!$A$3:$BHO$1048576,B141) -> 37360.62871 | C158: =VLOOKUP($A$1,未来カルテデータ!$A$3:$BHO$1048576,C141) -> 1792.98634 | D158: =VLOOKUP($A$1,未来カルテデータ!$A$3:$BHO$1048576,D141) -> 3472.39219 | E158: =VLOOKUP($A$1,未来カルテデータ!$A$3:$BHO$1048576,E141) -> 72.29666174 | F158: =VLOOKUP($A$1,未来カルテデータ!$A$3:$BHO$1048576,F141) -> 11238.27766 | G158: =VLOOKUP($A$1,未来カルテデータ!$A$3:$BHO$1048576,G141) -> 22875.77086 | H158: =VLOOKUP($A$1,未来カルテデータ!$A$3:$BHO$1048576,H141) -> 266.9472677 | I158: =VLOOKUP($A$1,未来カルテデータ!$A$3:$BHO$1048576,I141) -> 3582.321783 | J158: =VLOOKUP($A$1,未来カルテデータ!$A$3:$BHO$1048576,J141) -> 8826.102838 | K158: =VLOOKUP($A$1,未来カルテデータ!$A$3:$BHO$1048576,K141) -> 57531.59704 | L158: =VLOOKUP($A$1,未来カルテデータ!$A$3:$BHO$1048576,L141) -> 18954.94499 | M158: =VLOOKUP($A$1,未来カルテデータ!$A$3:$BHO$1048576,M141) -> 13427.91247 | N158: =VLOOKUP($A$1,未来カルテデータ!$A$3:$BHO$1048576,N141) -> 22496.15931 | O158: =VLOOKUP($A$1,未来カルテデータ!$A$3:$BHO$1048576,O141) -> 17586.13124 | P158: =VLOOKUP($A$1,未来カルテデータ!$A$3:$BHO$1048576,P141) -> 19097.92073 | Q158: =VLOOKUP($A$1,未来カルテデータ!$A$3:$BHO$1048576,Q141) -> 41581.34516 | R158: =VLOOKUP($A$1,未来カルテデータ!$A$3:$BHO$1048576,R141) -> 82453.84388 | S158: =VLOOKUP($A$1,未来カルテデータ!$A$3:$BHO$1048576,S141) -> 6764.296495 | T158: =VLOOKUP($A$1,未来カルテデータ!$A$3:$BHO$1048576,T141) -> 42109.13622 | U158: =VLOOKUP($A$1,未来カルテデータ!$A$3:$BHO$1048576,U141) -> 1222.72971 | V158: =VLOOKUP($A$1,未来カルテデータ!$A$3:$BHO$1048576,V141) -> 23146.74603
A159: 85歳以上 | B159: =VLOOKUP($A$1,未来カルテデータ!$A$3:$BHO$1048576,B142) -> 28633.3136 | C159: =VLOOKUP($A$1,未来カルテデータ!$A$3:$BHO$1048576,C142) -> 838.9529951 | D159: =VLOOKUP($A$1,未来カルテデータ!$A$3:$BHO$1048576,D142) -> 1924.907842 | E159: =VLOOKUP($A$1,未来カルテデータ!$A$3:$BHO$1048576,E142) -> 45.48699477 | F159: =VLOOKUP($A$1,未来カルテデータ!$A$3:$BHO$1048576,F142) -> 8730.604533 | G159: =VLOOKUP($A$1,未来カルテデータ!$A$3:$BHO$1048576,G142) -> 18184.4442 | H159: =VLOOKUP($A$1,未来カルテデータ!$A$3:$BHO$1048576,H142) -> 138.1903297 | I159: =VLOOKUP($A$1,未来カルテデータ!$A$3:$BHO$1048576,I142) -> 2079.868399 | J159: =VLOOKUP($A$1,未来カルテデータ!$A$3:$BHO$1048576,J142) -> 7087.555072 | K159: =VLOOKUP($A$1,未来カルテデータ!$A$3:$BHO$1048576,K142) -> 42554.47565 | L159: =VLOOKUP($A$1,未来カルテデータ!$A$3:$BHO$1048576,L142) -> 11950.98659 | M159: =VLOOKUP($A$1,未来カルテデータ!$A$3:$BHO$1048576,M142) -> 17899.85058 | N159: =VLOOKUP($A$1,未来カルテデータ!$A$3:$BHO$1048576,N142) -> 21429.43968 | O159: =VLOOKUP($A$1,未来カルテデータ!$A$3:$BHO$1048576,O142) -> 16776.63016 | P159: =VLOOKUP($A$1,未来カルテデータ!$A$3:$BHO$1048576,P142) -> 20984.99266 | Q159: =VLOOKUP($A$1,未来カルテデータ!$A$3:$BHO$1048576,Q142) -> 26110.84149 | R159: =VLOOKUP($A$1,未来カルテデータ!$A$3:$BHO$1048576,R142) -> 64050.55522 | S159: =VLOOKUP($A$1,未来カルテデータ!$A$3:$BHO$1048576,S142) -> 4097.4396 | T159: =VLOOKUP($A$1,未来カルテデータ!$A$3:$BHO$1048576,T142) -> 53245.81698 | U159: =VLOOKUP($A$1,未来カルテデータ!$A$3:$BHO$1048576,U142) -> 323.5883835 | V159: =VLOOKUP($A$1,未来カルテデータ!$A$3:$BHO$1048576,V142) -> 22921.39788
B160: =SUM(B145:B159) -> 992357.9884 | C160: =SUM(C145:C159) -> 69099.07223 | D160: 121599.4038 | E160: 8185.84271 | F160: 2026291.097 | G160: 5880111.305 | H160: 189891.8257 | I160: 2922423.71 | J160: 2440145.53 | K160: 5469351.227 | L160: 1264690.901 | M160: 736988.5417 | N160: 1391436.254 | O160: 2533042.399 | P160: 2199376.847 | Q160: 2532172.014 | R160: 6927558.052 | S160: 436243.8825 | T160: 2318786.59 | U160: 1790226.14 | V160: 3445201.424
B163: 1339 | C163: 1340 | D163: 1341 | E163: 1342 | F163: 1343 | G163: 1344
B164: 1345 | C164: 1346 | D164: 1347 | E164: 1348 | F164: 1349 | G164: 1350
B166: 1351 | C166: 1352 | D166: 1353 | E166: 1354 | F166: 1355 | G166: 1356
B167: 1357 | C167: 1358 | D167: 1359 | E167: 1360 | F167: 1361 | G167: 1362
B169: 1363 | C169: 1364 | D169: 1365 | E169: 1366 | F169: 1367 | G169: 1368
B170: 1369 | C170: 1370 | D170: 1371 | E170: 1372 | F170: 1373 | G170: 1374
B173: 2015 | C173: 2020 | D173: 2025 | E173: 2030 | F173: 2035 | G173: 2040
A174: 幼稚園・保育園在籍者数 | B174: =VLOOKUP($A$1,未来カルテデータ!$A$3:$BHO$1048576,B163) -> 3633000 | C174: =VLOOKUP($A$1,未来カルテデータ!$A$3:$BHO$1048576,C163) -> 3245861.144 | D174: =VLOOKUP($A$1,未来カルテデータ!$A$3:$BHO$1048576,D163) -> 2912919.922 | E174: =VLOOKUP($A$1,未来カルテデータ!$A$3:$BHO$1048576,E163) -> 2733567.68 | F174: =VLOOKUP($A$1,未来カルテデータ!$A$3:$BHO$1048576,F163) -> 2610182.896 | G174: =VLOOKUP($A$1,未来カルテデータ!$A$3:$BHO$1048576,G163) -> 2472060.561
A175: 幼稚園教員・児童福祉事業従事者数 | B175: =VLOOKUP($A$1,未来カルテデータ!$A$3:$BHO$1048576,B164) -> 1075681 | C175: =VLOOKUP($A$1,未来カルテデータ!$A$3:$BHO$1048576,C164) -> 1102453.292 | D175: =VLOOKUP($A$1,未来カルテデータ!$A$3:$BHO$1048576,D164) -> 1122183.588 | E175: =VLOOKUP($A$1,未来カルテデータ!$A$3:$BHO$1048576,E164) -> 1119519.12 | F175: =VLOOKUP($A$1,未来カルテデータ!$A$3:$BHO$1048576,F164) -> 1095552.525 | G175: =VLOOKUP($A$1,未来カルテデータ!$A$3:$BHO$1048576,G164) -> 1050793.693
A176: 幼稚園・児童福祉従事者一人当たり幼稚園・保育園在籍者数 | B176: =B174/B175 -> 3.377395343 | C176: 2.944216473 | D176: 2.59576058 | E176: 2.441733804 | F176: 2.382526475 | G176: 2.352565093
A177: 小学校児童数 | B177: =VLOOKUP($A$1,未来カルテデータ!$A$3:$BHO$1048576,B166) -> 6543104 | C177: =VLOOKUP($A$1,未来カルテデータ!$A$3:$BHO$1048576,C166) -> 6122077.436 | D177: =VLOOKUP($A$1,未来カルテデータ!$A$3:$BHO$1048576,D166) -> 5568025.525 | E177: =VLOOKUP($A$1,未来カルテデータ!$A$3:$BHO$1048576,E166) -> 4960071.967 | F177: =VLOOKUP($A$1,未来カルテデータ!$A$3:$BHO$1048576,F166) -> 4607963.483 | G177: =VLOOKUP($A$1,未来カルテデータ!$A$3:$BHO$1048576,G166) -> 4397466.339
A178: 小学校教員数 | B178: =VLOOKUP($A$1,未来カルテデータ!$A$3:$BHO$1048576,B167) -> 417152 | C178: =VLOOKUP($A$1,未来カルテデータ!$A$3:$BHO$1048576,C167) -> 426433.6097 | D178: =VLOOKUP($A$1,未来カルテデータ!$A$3:$BHO$1048576,D167) -> 430732.7882 | E178: =VLOOKUP($A$1,未来カルテデータ!$A$3:$BHO$1048576,E167) -> 425142.6882 | F178: =VLOOKUP($A$1,未来カルテデータ!$A$3:$BHO$1048576,F167) -> 412912.6079 | G178: =VLOOKUP($A$1,未来カルテデータ!$A$3:$BHO$1048576,G167) -> 396090.4946
A179: 教員一人当たり小学校児童数 | B179: =B177/B178 -> 15.6851795 | C179: 14.35646088 | D179: 12.92686714 | E179: 11.66684058 | F179: 11.15965799 | G179: 11.10217589
A180: 中学校生徒数 | B180: =VLOOKUP($A$1,未来カルテデータ!$A$3:$BHO$1048576,B169) -> 3465215 | C180: =VLOOKUP($A$1,未来カルテデータ!$A$3:$BHO$1048576,C169) -> 3234417.572 | D180: =VLOOKUP($A$1,未来カルテデータ!$A$3:$BHO$1048576,D169) -> 3043814.94 | E180: =VLOOKUP($A$1,未来カルテデータ!$A$3:$BHO$1048576,E169) -> 2735560.924 | F180: =VLOOKUP($A$1,未来カルテデータ!$A$3:$BHO$1048576,F169) -> 2451681.918 | G180: =VLOOKUP($A$1,未来カルテデータ!$A$3:$BHO$1048576,G169) -> 2295852.275
A181: 中学校教員数 | B181: =VLOOKUP($A$1,未来カルテデータ!$A$3:$BHO$1048576,B170) -> 253704 | C181: =VLOOKUP($A$1,未来カルテデータ!$A$3:$BHO$1048576,C170) -> 259161.4653 | D181: =VLOOKUP($A$1,未来カルテデータ!$A$3:$BHO$1048576,D170) -> 261704.3187 | E181: =VLOOKUP($A$1,未来カルテデータ!$A$3:$BHO$1048576,E170) -> 258231.34 | F181: =VLOOKUP($A$1,未来カルテデータ!$A$3:$BHO$1048576,F170) -> 250715.0084 | G181: =VLOOKUP($A$1,未来カルテデータ!$A$3:$BHO$1048576,G170) -> 240408.8062
A182: 教員一人当たり中学校生徒数 | B182: =B180/B181 -> 13.65849573 | C182: 12.48031828 | D182: 11.6307402 | E182: 10.59345052 | F182: 9.77876009 | G182: 9.549784434
B184: 1375 | C184: 1376 | D184: 1377 | E184: 1378 | F184: 1379 | G184: 1380
B185: 1381 | C185: 1382 | D185: 1383 | E185: 1384 | F185: 1385 | G185: 1386
B187: 1387 | C187: 1388 | D187: 1389 | E187: 1390 | F187: 1391 | G187: 1392
B190: 1393
B193: 1394 | C193: 1395 | D193: 1396 | E193: 1397 | F193: 1398 | G193: 1399
B194: 1400 | C194: 1401 | D194: 1402 | E194: 1403 | F194: 1404 | G194: 1405
B195: 1406 | C195: 1407 | D195: 1408 | E195: 1409 | F195: 1410 | G195: 1411
B196: 1412 | C196: 1413 | D196: 1414 | E196: 1415 | F196: 1416 | G196: 1417
B197: 1418
B199: 2015 | C199: 2020 | D199: 2025 | E199: 2030 | F199: 2035 | G199: 2040
A200: 入院患者数 | B200: =VLOOKUP($A$1,未来カルテデータ!$A$3:$BHO$1048576,B184) -> 1417274.295 | C200: =VLOOKUP($A$1,未来カルテデータ!$A$3:$BHO$1048576,C184) -> 1516124.008 | D200: =VLOOKUP($A$1,未来カルテデータ!$A$3:$BHO$1048576,D184) -> 1535221.205 | E200: =VLOOKUP($A$1,未来カルテデータ!$A$3:$BHO$1048576,E184) -> 1537217.908 | F200: =VLOOKUP($A$1,未来カルテデータ!$A$3:$BHO$1048576,F184) -> 1524109.191 | G200: =VLOOKUP($A$1,未来カルテデータ!$A$3:$BHO$1048576,G184) -> 1494012.851
A201: 外来患者数 | B201: =VLOOKUP($A$1,未来カルテデータ!$A$3:$BHO$1048576,B185) -> 7629782.2 | C201: =VLOOKUP($A$1,未来カルテデータ!$A$3:$BHO$1048576,C185) -> 7549128.032 | D201: =VLOOKUP($A$1,未来カルテデータ!$A$3:$BHO$1048576,D185) -> 7440542.735 | E201: =VLOOKUP($A$1,未来カルテデータ!$A$3:$BHO$1048576,E185) -> 7259481.937 | F201: =VLOOKUP($A$1,未来カルテデータ!$A$3:$BHO$1048576,F185) -> 7025376.669 | G201: =VLOOKUP($A$1,未来カルテデータ!$A$3:$BHO$1048576,G185) -> 6777009.333
A202: 患者数 | B202: =B200+B201 -> 9047056.496 | C202: 9065252.04 | D202: 8975763.94 | E202: 8796699.845 | F202: 8549485.861 | G202: 8271022.184
A203: 医師数 | B203: =VLOOKUP($A$1,未来カルテデータ!$A$3:$BHO$1048576,B187) -> 311205 | C203: =VLOOKUP($A$1,未来カルテデータ!$A$3:$BHO$1048576,C187) -> 318930.7946 | D203: =VLOOKUP($A$1,未来カルテデータ!$A$3:$BHO$1048576,D187) -> 324678.8814 | E203: =VLOOKUP($A$1,未来カルテデータ!$A$3:$BHO$1048576,E187) -> 324102.1438 | F203: =VLOOKUP($A$1,未来カルテデータ!$A$3:$BHO$1048576,F187) -> 317094.7672 | G203: =VLOOKUP($A$1,未来カルテデータ!$A$3:$BHO$1048576,G187) -> 303581.6594
A204: 医師一人当たり患者数 | B204: =B202/B203 -> 29.07105122 | C204: 28.42388441 | D204: 27.64505009 | E204: 27.14175149 | F204: 26.96192667 | G204: 27.24480195
B205: 2015 | C205: 2020 | D205: 2025 | E205: 2030 | F205: 2035 | G205: 2040
A206: 病床数 | B206: =VLOOKUP($A$1,未来カルテデータ!$A$3:$BHO$1048576,B190) -> 1797616 | C206: =$B$206 -> 1797616 | D206: =$B$206 -> 1797616 | E206: =$B$206 -> 1797616 | F206: =$B$206 -> 1797616 | G206: =$B$206 -> 1797616
A207: 病床当たり入院患者数 | B207: =B200/$B$206 -> 0.7884188254 | C207: 0.8434081631 | D207: 0.854031787 | E207: 0.8551425374 | F207: 0.8478502591 | G207: 0.8311078957
B208: 2015 | C208: 2020 | D208: 2025 | E208: 2030 | F208: 2035 | G208: 2040
A209: 介護受給者数 | B209: =VLOOKUP($A$1,未来カルテデータ!$A$3:$BHO$1048576,B193) -> 5731211.238 | C209: =VLOOKUP($A$1,未来カルテデータ!$A$3:$BHO$1048576,C193) -> 7323599.333 | D209: =VLOOKUP($A$1,未来カルテデータ!$A$3:$BHO$1048576,D193) -> 8261342.197 | E209: =VLOOKUP($A$1,未来カルテデータ!$A$3:$BHO$1048576,E193) -> 9078642.592 | F209: =VLOOKUP($A$1,未来カルテデータ!$A$3:$BHO$1048576,F193) -> 9680005.48 | G209: =VLOOKUP($A$1,未来カルテデータ!$A$3:$BHO$1048576,G193) -> 9957801.175
A210: 要介護3以上介護受給者数 | B210: =VLOOKUP($A$1,未来カルテデータ!$A$3:$BHO$1048576,B194) -> 1940274.053 | C210: =VLOOKUP($A$1,未来カルテデータ!$A$3:$BHO$1048576,C194) -> 2596546.558 | D210: =VLOOKUP($A$1,未来カルテデータ!$A$3:$BHO$1048576,D194) -> 2965432.088 | E210: =VLOOKUP($A$1,未来カルテデータ!$A$3:$BHO$1048576,E194) -> 3288112.588 | F210: =VLOOKUP($A$1,未来カルテデータ!$A$3:$BHO$1048576,F194) -> 3574659.583 | G210: =VLOOKUP($A$1,未来カルテデータ!$A$3:$BHO$1048576,G194) -> 3783742.095
A211: 認知症患者数 | B211: =VLOOKUP($A$1,未来カルテデータ!$A$3:$BHO$1048576,B195) -> 5023960.281 | C211: =VLOOKUP($A$1,未来カルテデータ!$A$3:$BHO$1048576,C195) -> 6511273.707 | D211: =VLOOKUP($A$1,未来カルテデータ!$A$3:$BHO$1048576,D195) -> 7530643.376 | E211: =VLOOKUP($A$1,未来カルテデータ!$A$3:$BHO$1048576,E195) -> 8559033.753 | F211: =VLOOKUP($A$1,未来カルテデータ!$A$3:$BHO$1048576,F195) -> 9491317.233 | G211: =VLOOKUP($A$1,未来カルテデータ!$A$3:$BHO$1048576,G195) -> 9821991.636
A212: 老人福祉・介護事業従事者数 | B212: =VLOOKUP($A$1,未来カルテデータ!$A$3:$BHO$1048576,B196) -> 2255649 | C212: =VLOOKUP($A$1,未来カルテデータ!$A$3:$BHO$1048576,C196) -> 2311003.019 | D212: =VLOOKUP($A$1,未来カルテデータ!$A$3:$BHO$1048576,D196) -> 2357990.986 | E212: =VLOOKUP($A$1,未来カルテデータ!$A$3:$BHO$1048576,E196) -> 2359108.093 | F212: =VLOOKUP($A$1,未来カルテデータ!$A$3:$BHO$1048576,F196) -> 2313413.921 | G212: =VLOOKUP($A$1,未来カルテデータ!$A$3:$BHO$1048576,G196) -> 2219842.869
A213: =未来カルテデータ!BBN3 -> 介護老人福祉施設入所定員 | B213: =VLOOKUP($A$1,未来カルテデータ!$A$3:$BHO$1048576,B197) -> 451495 | C213: =$B213 -> 451495 | D213: =$B213 -> 451495 | E213: =$B213 -> 451495 | F213: =$B213 -> 451495 | G213: =$B213 -> 451495
A214: 福祉介護事業者当たり介護受給者数 | B214: =B209/B212 -> 2.540825828 | C214: 3.169013313 | D214: 3.503551221 | E214: 3.848336843 | F214: 4.184294644 | G214: 4.485813529
A215: 介護老人福祉施設定員当たり要介護3以上介護受給者数 | B215: =B210/$B$213 -> 4.297443057 | C215: 5.75099737 | D215: 6.568028633 | E215: 7.282722041 | F215: 7.917384651 | G215: 8.38047397
B217: 2015
A218: 公有財産（行政財産）建物床面積 | B218: =VLOOKUP($A$1,未来カルテデータ!$A$3:$BHO$1048576,D218) -> 464586065 | C218: m2 | D218: 1419
A219: うち、本庁舎 | B219: =VLOOKUP($A$1,未来カルテデータ!$A$3:$BHO$1048576,D219) -> 17124426 | C219: m2 | D219: 1420
A220: うち、小学校 | B220: =VLOOKUP($A$1,未来カルテデータ!$A$3:$BHO$1048576,D220) -> 108525603 | C220: m2 | D220: 1421
A221: うち、中学校 | B221: =VLOOKUP($A$1,未来カルテデータ!$A$3:$BHO$1048576,D221) -> 66296400 | C221: m2 | D221: 1422
A222: うち、高等学校 | B222: =VLOOKUP($A$1,未来カルテデータ!$A$3:$BHO$1048576,D222) -> 3027879 | C222: m2 | D222: 1423
... 216 more rows

Sheet 未来カルテグラフ作成用シート２ (hidden)
A1: =未来カルテ!R27 -> 50 | C1: =未来カルテ!F27 -> 全国
A2: 人口
B3: 2015 | D3: 2015 | F3: 2040 | H3: 2040
A4: 0－4歳男 | B4: =VLOOKUP($A$1,未来カルテデータ!$A$3:$BHO$1048576,J4) -> 2550921 | C4: 0－4歳女 | D4: =VLOOKUP($A$1,未来カルテデータ!$A$3:$BHO$1048576,L4) -> 2436785 | E4: 0－4歳男 | F4: =VLOOKUP($A$1,未来カルテデータ!$A$3:$BHO$1048576,N4) -> 1748293 | G4: 0－4歳女 | H4: =VLOOKUP($A$1,未来カルテデータ!$A$3:$BHO$1048576,P4) -> 1658636 | I4: 0－4歳 | J4: 3 | L4: 22 | N4: 41 | P4: 60 | R4: 2015男 | V4: 2015女 | Y4: 2040男 | AC4: 2040女
A5: 5－9歳男 | B5: =VLOOKUP($A$1,未来カルテデータ!$A$3:$BHO$1048576,J5) -> 2714591 | C5: 5－9歳女 | D5: =VLOOKUP($A$1,未来カルテデータ!$A$3:$BHO$1048576,L5) -> 2585196 | E5: 5－9歳男 | F5: =VLOOKUP($A$1,未来カルテデータ!$A$3:$BHO$1048576,N5) -> 1840049 | G5: 5－9歳女 | H5: =VLOOKUP($A$1,未来カルテデータ!$A$3:$BHO$1048576,P5) -> 1746755 | I5: 5－9歳 | J5: 4 | L5: 23 | N5: 42 | P5: 61
A6: 10－14歳男 | B6: =VLOOKUP($A$1,未来カルテデータ!$A$3:$BHO$1048576,J6) -> 2868024 | C6: 10－14歳女 | D6: =VLOOKUP($A$1,未来カルテデータ!$A$3:$BHO$1048576,L6) -> 2731293 | E6: 10－14歳男 | F6: =VLOOKUP($A$1,未来カルテデータ!$A$3:$BHO$1048576,N6) -> 1917426 | G6: 10－14歳女 | H6: =VLOOKUP($A$1,未来カルテデータ!$A$3:$BHO$1048576,P6) -> 1820661 | I6: 10－14歳 | J6: 5 | L6: 24 | N6: 43 | P6: 62
A7: 15－19歳男 | B7: =VLOOKUP($A$1,未来カルテデータ!$A$3:$BHO$1048576,J7) -> 3085416 | C7: 15－19歳女 | D7: =VLOOKUP($A$1,未来カルテデータ!$A$3:$BHO$1048576,L7) -> 2922972 | E7: 15－19歳男 | F7: =VLOOKUP($A$1,未来カルテデータ!$A$3:$BHO$1048576,N7) -> 2015533 | G7: 15－19歳女 | H7: =VLOOKUP($A$1,未来カルテデータ!$A$3:$BHO$1048576,P7) -> 1917761 | I7: 15－19歳 | J7: 6 | L7: 25 | N7: 44 | P7: 63
A8: 20－24歳男 | B8: =VLOOKUP($A$1,未来カルテデータ!$A$3:$BHO$1048576,J8) -> 3046392 | C8: 20－24歳女 | D8: =VLOOKUP($A$1,未来カルテデータ!$A$3:$BHO$1048576,L8) -> 2921735 | E8: 20－24歳男 | F8: =VLOOKUP($A$1,未来カルテデータ!$A$3:$BHO$1048576,N8) -> 2255780 | G8: 20－24歳女 | H8: =VLOOKUP($A$1,未来カルテデータ!$A$3:$BHO$1048576,P8) -> 2155478 | I8: 20－24歳 | J8: 7 | L8: 26 | N8: 45 | P8: 64
A9: 25－29歳男 | B9: =VLOOKUP($A$1,未来カルテデータ!$A$3:$BHO$1048576,J9) -> 3255717 | C9: 25－29歳女 | D9: =VLOOKUP($A$1,未来カルテデータ!$A$3:$BHO$1048576,L9) -> 3153895 | E9: 25－29歳男 | F9: =VLOOKUP($A$1,未来カルテデータ!$A$3:$BHO$1048576,N9) -> 2618240 | G9: 25－29歳女 | H9: =VLOOKUP($A$1,未来カルテデータ!$A$3:$BHO$1048576,P9) -> 2493572 | I9: 25－29歳 | J9: 8 | L9: 27 | N9: 46 | P9: 65
A10: 30－34歳男 | B10: =VLOOKUP($A$1,未来カルテデータ!$A$3:$BHO$1048576,J10) -> 3684747 | C10: 30－34歳女 | D10: =VLOOKUP($A$1,未来カルテデータ!$A$3:$BHO$1048576,L10) -> 3606131 | E10: 30－34歳男 | F10: =VLOOKUP($A$1,未来カルテデータ!$A$3:$BHO$1048576,N10) -> 2779700 | G10: 30－34歳女 | H10: =VLOOKUP($A$1,未来カルテデータ!$A$3:$BHO$1048576,P10) -> 2657196 | I10: 30－34歳 | J10: 9 | L10: 28 | N10: 47 | P10: 66
A11: 35－39歳男 | B11: =VLOOKUP($A$1,未来カルテデータ!$A$3:$BHO$1048576,J11) -> 4204202 | C11: 35－39歳女 | D11: =VLOOKUP($A$1,未来カルテデータ!$A$3:$BHO$1048576,L11) -> 4111955 | E11: 35－39歳男 | F11: =VLOOKUP($A$1,未来カルテデータ!$A$3:$BHO$1048576,N11) -> 2933104 | G11: 35－39歳女 | H11: =VLOOKUP($A$1,未来カルテデータ!$A$3:$BHO$1048576,P11) -> 2799467 | I11: 35－39歳 | J11: 10 | L11: 29 | N11: 48 | P11: 67
A12: 40－44歳男 | B12: =VLOOKUP($A$1,未来カルテデータ!$A$3:$BHO$1048576,J12) -> 4914018 | C12: 40－44歳女 | D12: =VLOOKUP($A$1,未来カルテデータ!$A$3:$BHO$1048576,L12) -> 4818200 | E12: 40－44歳男 | F12: =VLOOKUP($A$1,未来カルテデータ!$A$3:$BHO$1048576,N12) -> 3085628 | G12: 40－44歳女 | H12: =VLOOKUP($A$1,未来カルテデータ!$A$3:$BHO$1048576,P12) -> 2950587 | I12: 40－44歳 | J12: 11 | L12: 30 | N12: 49 | P12: 68
A13: 45－49歳男 | B13: =VLOOKUP($A$1,未来カルテデータ!$A$3:$BHO$1048576,J13) -> 4354877 | C13: 45－49歳女 | D13: =VLOOKUP($A$1,未来カルテデータ!$A$3:$BHO$1048576,L13) -> 4307927 | E13: 45－49歳男 | F13: =VLOOKUP($A$1,未来カルテデータ!$A$3:$BHO$1048576,N13) -> 3120070 | G13: 45－49歳女 | H13: =VLOOKUP($A$1,未来カルテデータ!$A$3:$BHO$1048576,P13) -> 2967523 | I13: 45－49歳 | J13: 12 | L13: 31 | N13: 50 | P13: 69
A14: 50－54歳男 | B14: =VLOOKUP($A$1,未来カルテデータ!$A$3:$BHO$1048576,J14) -> 3968311 | C14: 50－54歳女 | D14: =VLOOKUP($A$1,未来カルテデータ!$A$3:$BHO$1048576,L14) -> 3961985 | E14: 50－54歳男 | F14: =VLOOKUP($A$1,未来カルテデータ!$A$3:$BHO$1048576,N14) -> 3214584 | G14: 50－54歳女 | H14: =VLOOKUP($A$1,未来カルテデータ!$A$3:$BHO$1048576,P14) -> 3118204 | I14: 50－54歳 | J14: 13 | L14: 32 | N14: 51 | P14: 70
A15: 55－59歳男 | B15: =VLOOKUP($A$1,未来カルテデータ!$A$3:$BHO$1048576,J15) -> 3729523 | C15: 55－59歳女 | D15: =VLOOKUP($A$1,未来カルテデータ!$A$3:$BHO$1048576,L15) -> 3785723 | E15: 55－59歳男 | F15: =VLOOKUP($A$1,未来カルテデータ!$A$3:$BHO$1048576,N15) -> 3512059 | G15: 55－59歳女 | H15: =VLOOKUP($A$1,未来カルテデータ!$A$3:$BHO$1048576,P15) -> 3484865 | I15: 55－59歳 | J15: 14 | L15: 33 | N15: 52 | P15: 71
A16: 60－64歳男 | B16: =VLOOKUP($A$1,未来カルテデータ!$A$3:$BHO$1048576,J16) -> 4151119 | C16: 60－64歳女 | D16: =VLOOKUP($A$1,未来カルテデータ!$A$3:$BHO$1048576,L16) -> 4303891 | E16: 60－64歳男 | F16: =VLOOKUP($A$1,未来カルテデータ!$A$3:$BHO$1048576,N16) -> 3860432 | G16: 60－64歳女 | H16: =VLOOKUP($A$1,未来カルテデータ!$A$3:$BHO$1048576,P16) -> 3926146 | I16: 60－64歳 | J16: 15 | L16: 34 | N16: 53 | P16: 72
A17: 65－69歳男 | B17: =VLOOKUP($A$1,未来カルテデータ!$A$3:$BHO$1048576,J17) -> 4659662 | C17: 65－69歳女 | D17: =VLOOKUP($A$1,未来カルテデータ!$A$3:$BHO$1048576,L17) -> 4984205 | E17: 65－69歳男 | F17: =VLOOKUP($A$1,未来カルテデータ!$A$3:$BHO$1048576,N17) -> 4324301 | G17: 65－69歳女 | H17: =VLOOKUP($A$1,未来カルテデータ!$A$3:$BHO$1048576,P17) -> 4540263 | I17: 65－69歳 | J17: 16 | L17: 35 | N17: 54 | P17: 73
A18: 70－74歳男 | B18: =VLOOKUP($A$1,未来カルテデータ!$A$3:$BHO$1048576,J18) -> 3582440 | C18: 70－74歳女 | D18: =VLOOKUP($A$1,未来カルテデータ!$A$3:$BHO$1048576,L18) -> 4113371 | E18: 70－74歳男 | F18: =VLOOKUP($A$1,未来カルテデータ!$A$3:$BHO$1048576,N18) -> 3602207 | G18: 70－74歳女 | H18: =VLOOKUP($A$1,未来カルテデータ!$A$3:$BHO$1048576,P18) -> 3981398 | I18: 70－74歳 | J18: 17 | L18: 36 | N18: 55 | P18: 74
A19: 75－79歳男 | B19: =VLOOKUP($A$1,未来カルテデータ!$A$3:$BHO$1048576,J19) -> 2787417 | C19: 75－79歳女 | D19: =VLOOKUP($A$1,未来カルテデータ!$A$3:$BHO$1048576,L19) -> 3489439 | E19: 75－79歳男 | F19: =VLOOKUP($A$1,未来カルテデータ!$A$3:$BHO$1048576,N19) -> 2956222 | G19: 75－79歳女 | H19: =VLOOKUP($A$1,未来カルテデータ!$A$3:$BHO$1048576,P19) -> 3511779 | I19: 75－79歳 | J19: 18 | L19: 37 | N19: 56 | P19: 75
A20: 80－84歳男 | B20: =VLOOKUP($A$1,未来カルテデータ!$A$3:$BHO$1048576,J20) -> 1994326 | C20: 80－84歳女 | D20: =VLOOKUP($A$1,未来カルテデータ!$A$3:$BHO$1048576,L20) -> 2967094 | E20: 80－84歳男 | F20: =VLOOKUP($A$1,未来カルテデータ!$A$3:$BHO$1048576,N20) -> 2308422 | G20: 80－84歳女 | H20: =VLOOKUP($A$1,未来カルテデータ!$A$3:$BHO$1048576,P20) -> 3087597 | I20: 80－84歳 | J20: 19 | L20: 38 | N20: 57 | P20: 76
A21: 85－89歳男 | B21: =VLOOKUP($A$1,未来カルテデータ!$A$3:$BHO$1048576,J21) -> 1056641 | C21: 85－89歳女 | D21: =VLOOKUP($A$1,未来カルテデータ!$A$3:$BHO$1048576,L21) -> 2060616 | E21: 85－89歳男 | F21: =VLOOKUP($A$1,未来カルテデータ!$A$3:$BHO$1048576,N21) -> 1844051 | G21: 85－89歳女 | H21: =VLOOKUP($A$1,未来カルテデータ!$A$3:$BHO$1048576,P21) -> 2964511 | I21: 85－89歳 | J21: 20 | L21: 39 | N21: 58 | P21: 77
A22: 90歳以上男 | B22: =VLOOKUP($A$1,未来カルテデータ!$A$3:$BHO$1048576,J22) -> 404983 | C22: 90歳以上女 | D22: =VLOOKUP($A$1,未来カルテデータ!$A$3:$BHO$1048576,L22) -> 1365247 | E22: 90歳以上男 | F22: =VLOOKUP($A$1,未来カルテデータ!$A$3:$BHO$1048576,N22) -> 1647083 | G22: 90歳以上女 | H22: =VLOOKUP($A$1,未来カルテデータ!$A$3:$BHO$1048576,P22) -> 3910268 | I22: 90歳以上 | J22: 21 | L22: 40 | N22: 59 | P22: 78
B24: 79 | C24: 80 | D24: 81 | E24: 82 | F24: 83 | G24: 84 | H24: 85 | I24: 86 | J24: 87 | K24: 88 | L24: 89 | M24: 90 | N24: 91 | O24: 92 | P24: 93 | Q24: 94 | R24: 95 | S24: 96 | T24: 97 | U24: 98 | V24: 99
B25: 100 | C25: 101 | D25: 102 | E25: 103 | F25: 104 | G25: 105 | H25: 106 | I25: 107 | J25: 108 | K25: 109 | L25: 110 | M25: 111 | N25: 112 | O25: 113 | P25: 114 | Q25: 115 | R25: 116 | S25: 117 | T25: 118 | U25: 119 | V25: 120
B26: 121 | C26: 122 | D26: 123 | E26: 124 | F26: 125 | G26: 126 | H26: 127 | I26: 128 | J26: 129 | K26: 130 | L26: 131 | M26: 132 | N26: 133 | O26: 134 | P26: 135 | Q26: 136 | R26: 137 | S26: 138 | T26: 139 | U26: 140 | V26: 141
B27: 142 | C27: 143 | D27: 144 | E27: 145 | F27: 146 | G27: 147 | H27: 148 | I27: 149 | J27: 150 | K27: 151 | L27: 152 | M27: 153 | N27: 154 | O27: 155 | P27: 156 | Q27: 157 | R27: 158 | S27: 159 | T27: 160 | U27: 161 | V27: 162
B28: 163 | C28: 164 | D28: 165 | E28: 166 | F28: 167 | G28: 168 | H28: 169 | I28: 170 | J28: 171 | K28: 172 | L28: 173 | M28: 174 | N28: 175 | O28: 176 | P28: 177 | Q28: 178 | R28: 179 | S28: 180 | T28: 181 | U28: 182 | V28: 183
B29: 184 | C29: 185 | D29: 186 | E29: 187 | F29: 188 | G29: 189 | H29: 190 | I29: 191 | J29: 192 | K29: 193 | L29: 194 | M29: 195 | N29: 196 | O29: 197 | P29: 198 | Q29: 199 | R29: 200 | S29: 201 | T29: 202 | U29: 203 | V29: 204
B30: 205 | C30: 206 | D30: 207 | E30: 208 | F30: 209 | G30: 210 | H30: 211 | I30: 212 | J30: 213 | K30: 214 | L30: 215 | M30: 216 | N30: 217 | O30: 218 | P30: 219 | Q30: 220 | R30: 221 | S30: 222 | T30: 223 | U30: 224 | V30: 225
B31: 226 | C31: 227 | D31: 228 | E31: 229 | F31: 230 | G31: 231 | H31: 232 | I31: 233 | J31: 234 | K31: 235 | L31: 236 | M31: 237 | N31: 238 | O31: 239 | P31: 240 | Q31: 241 | R31: 242 | S31: 243 | T31: 244 | U31: 245 | V31: 246
B32: 247 | C32: 248 | D32: 249 | E32: 250 | F32: 251 | G32: 252 | H32: 253 | I32: 254 | J32: 255 | K32: 256 | L32: 257 | M32: 258 | N32: 259 | O32: 260 | P32: 261 | Q32: 262 | R32: 263 | S32: 264 | T32: 265 | U32: 266 | V32: 267
B33: 268 | C33: 269 | D33: 270 | E33: 271 | F33: 272 | G33: 273 | H33: 274 | I33: 275 | J33: 276 | K33: 277 | L33: 278 | M33: 279 | N33: 280 | O33: 281 | P33: 282 | Q33: 283 | R33: 284 | S33: 285 | T33: 286 | U33: 287 | V33: 288
B34: 289 | C34: 290 | D34: 291 | E34: 292 | F34: 293 | G34: 294 | H34: 295 | I34: 296 | J34: 297 | K34: 298 | L34: 299 | M34: 300 | N34: 301 | O34: 302 | P34: 303 | Q34: 304 | R34: 305 | S34: 306 | T34: 307 | U34: 308 | V34: 309
B35: 310 | C35: 311 | D35: 312 | E35: 313 | F35: 314 | G35: 315 | H35: 316 | I35: 317 | J35: 318 | K35: 319 | L35: 320 | M35: 321 | N35: 322 | O35: 323 | P35: 324 | Q35: 325 | R35: 326 | S35: 327 | T35: 328 | U35: 329 | V35: 330
B36: 331 | C36: 332 | D36: 333 | E36: 334 | F36: 335 | G36: 336 | H36: 337 | I36: 338 | J36: 339 | K36: 340 | L36: 341 | M36: 342 | N36: 343 | O36: 344 | P36: 345 | Q36: 346 | R36: 347 | S36: 348 | T36: 349 | U36: 350 | V36: 351
B37: 352 | C37: 353 | D37: 354 | E37: 355 | F37: 356 | G37: 357 | H37: 358 | I37: 359 | J37: 360 | K37: 361 | L37: 362 | M37: 363 | N37: 364 | O37: 365 | P37: 366 | Q37: 367 | R37: 368 | S37: 369 | T37: 370 | U37: 371 | V37: 372
B38: 373 | C38: 374 | D38: 375 | E38: 376 | F38: 377 | G38: 378 | H38: 379 | I38: 380 | J38: 381 | K38: 382 | L38: 383 | M38: 384 | N38: 385 | O38: 386 | P38: 387 | Q38: 388 | R38: 389 | S38: 390 | T38: 391 | U38: 392 | V38: 393
A40: 2015 | B40: A1 農業 | C40: A2 林業 | D40: Ｂ 漁業 | E40: Ｃ 鉱業，採石業，砂利採取業 | F40: Ｄ 建設業 | G40: Ｅ 製造業 | H40: Ｆ 電気・ガス・熱供給・水道業 | I40: Ｇ 情報通信業 | J40: Ｈ 運輸業，郵便業 | K40: Ｉ 卸売業，小売業 | L40: Ｊ 金融業，保険業 | M40: Ｋ 不動産業，物品賃貸業 | N40: Ｌ 学術研究，専門・技術サービス業 | O40: Ｍ 宿泊業，飲食サービス業 | P40: Ｎ 生活関連サービス業，娯楽業 | Q40: Ｏ 教育，学習支援業 | R40: Ｐ 医療，福祉 | S40: Ｑ 複合サービス事業 | T40: Ｒ サービス業（他に分類されないもの） | U40: Ｓ 公務（他に分類されるものを除く） | V40: Ｔ 分類不能の産業
A41: 15～19歳 | B41: =VLOOKUP($A$1,未来カルテデータ!$A$3:$BHO$1048576,B24) -> 5765 | C41: =VLOOKUP($A$1,未来カルテデータ!$A$3:$BHO$1048576,C24) -> 417 | D41: =VLOOKUP($A$1,未来カルテデータ!$A$3:$BHO$1048576,D24) -> 1201 | E41: =VLOOKUP($A$1,未来カルテデータ!$A$3:$BHO$1048576,E24) -> 114 | F41: =VLOOKUP($A$1,未来カルテデータ!$A$3:$BHO$1048576,F24) -> 43410 | G41: =VLOOKUP($A$1,未来カルテデータ!$A$3:$BHO$1048576,G24) -> 108583 | H41: =VLOOKUP($A$1,未来カルテデータ!$A$3:$BHO$1048576,H24) -> 2314 | I41: =VLOOKUP($A$1,未来カルテデータ!$A$3:$BHO$1048576,I24) -> 2738 | J41: =VLOOKUP($A$1,未来カルテデータ!$A$3:$BHO$1048576,J24) -> 19875 | K41: =VLOOKUP($A$1,未来カルテデータ!$A$3:$BHO$1048576,K24) -> 187614 | L41: =VLOOKUP($A$1,未来カルテデータ!$A$3:$BHO$1048576,L24) -> 2341 | M41: =VLOOKUP($A$1,未来カルテデータ!$A$3:$BHO$1048576,M24) -> 4568 | N41: =VLOOKUP($A$1,未来カルテデータ!$A$3:$BHO$1048576,N24) -> 4825 | O41: =VLOOKUP($A$1,未来カルテデータ!$A$3:$BHO$1048576,O24) -> 206759 | P41: =VLOOKUP($A$1,未来カルテデータ!$A$3:$BHO$1048576,P24) -> 31442 | Q41: =VLOOKUP($A$1,未来カルテデータ!$A$3:$BHO$1048576,Q24) -> 27863 | R41: =VLOOKUP($A$1,未来カルテデータ!$A$3:$BHO$1048576,R24) -> 29203 | S41: =VLOOKUP($A$1,未来カルテデータ!$A$3:$BHO$1048576,S24) -> 3660 | T41: =VLOOKUP($A$1,未来カルテデータ!$A$3:$BHO$1048576,T24) -> 22715 | U41: =VLOOKUP($A$1,未来カルテデータ!$A$3:$BHO$1048576,U24) -> 19154 | V41: =VLOOKUP($A$1,未来カルテデータ!$A$3:$BHO$1048576,V24) -> 60362
A42: 20～24歳 | B42: =VLOOKUP($A$1,未来カルテデータ!$A$3:$BHO$1048576,B25) -> 30304 | C42: =VLOOKUP($A$1,未来カルテデータ!$A$3:$BHO$1048576,C25) -> 1928 | D42: =VLOOKUP($A$1,未来カルテデータ!$A$3:$BHO$1048576,D25) -> 4669 | E42: =VLOOKUP($A$1,未来カルテデータ!$A$3:$BHO$1048576,E25) -> 619 | F42: =VLOOKUP($A$1,未来カルテデータ!$A$3:$BHO$1048576,F25) -> 166823 | G42: =VLOOKUP($A$1,未来カルテデータ!$A$3:$BHO$1048576,G25) -> 508747 | H42: =VLOOKUP($A$1,未来カルテデータ!$A$3:$BHO$1048576,H25) -> 15075 | I42: =VLOOKUP($A$1,未来カルテデータ!$A$3:$BHO$1048576,I25) -> 92292 | J42: =VLOOKUP($A$1,未来カルテデータ!$A$3:$BHO$1048576,J25) -> 104565 | K42: =VLOOKUP($A$1,未来カルテデータ!$A$3:$BHO$1048576,K25) -> 617837 | L42: =VLOOKUP($A$1,未来カルテデータ!$A$3:$BHO$1048576,L25) -> 77911 | M42: =VLOOKUP($A$1,未来カルテデータ!$A$3:$BHO$1048576,M25) -> 43089 | N42: =VLOOKUP($A$1,未来カルテデータ!$A$3:$BHO$1048576,N25) -> 65684 | O42: =VLOOKUP($A$1,未来カルテデータ!$A$3:$BHO$1048576,O25) -> 370053 | P42: =VLOOKUP($A$1,未来カルテデータ!$A$3:$BHO$1048576,P25) -> 177312 | Q42: =VLOOKUP($A$1,未来カルテデータ!$A$3:$BHO$1048576,Q25) -> 176406 | R42: =VLOOKUP($A$1,未来カルテデータ!$A$3:$BHO$1048576,R25) -> 450936 | S42: =VLOOKUP($A$1,未来カルテデータ!$A$3:$BHO$1048576,S25) -> 25278 | T42: =VLOOKUP($A$1,未来カルテデータ!$A$3:$BHO$1048576,T25) -> 128906 | U42: =VLOOKUP($A$1,未来カルテデータ!$A$3:$BHO$1048576,U25) -> 123039 | V42: =VLOOKUP($A$1,未来カルテデータ!$A$3:$BHO$1048576,V25) -> 260539
A43: 25～29歳 | B43: =VLOOKUP($A$1,未来カルテデータ!$A$3:$BHO$1048576,B26) -> 47917 | C43: =VLOOKUP($A$1,未来カルテデータ!$A$3:$BHO$1048576,C26) -> 3387 | D43: =VLOOKUP($A$1,未来カルテデータ!$A$3:$BHO$1048576,D26) -> 6035 | E43: =VLOOKUP($A$1,未来カルテデータ!$A$3:$BHO$1048576,E26) -> 1198 | F43: =VLOOKUP($A$1,未来カルテデータ!$A$3:$BHO$1048576,F26) -> 233085 | G43: =VLOOKUP($A$1,未来カルテデータ!$A$3:$BHO$1048576,G26) -> 799656 | H43: =VLOOKUP($A$1,未来カルテデータ!$A$3:$BHO$1048576,H26) -> 21969 | I43: =VLOOKUP($A$1,未来カルテデータ!$A$3:$BHO$1048576,I26) -> 191356 | J43: =VLOOKUP($A$1,未来カルテデータ!$A$3:$BHO$1048576,J26) -> 174230 | K43: =VLOOKUP($A$1,未来カルテデータ!$A$3:$BHO$1048576,K26) -> 717464 | L43: =VLOOKUP($A$1,未来カルテデータ!$A$3:$BHO$1048576,L26) -> 136854 | M43: =VLOOKUP($A$1,未来カルテデータ!$A$3:$BHO$1048576,M26) -> 65725 | N43: =VLOOKUP($A$1,未来カルテデータ!$A$3:$BHO$1048576,N26) -> 144867 | O43: =VLOOKUP($A$1,未来カルテデータ!$A$3:$BHO$1048576,O26) -> 210634 | P43: =VLOOKUP($A$1,未来カルテデータ!$A$3:$BHO$1048576,P26) -> 185427 | Q43: =VLOOKUP($A$1,未来カルテデータ!$A$3:$BHO$1048576,Q26) -> 236998 | R43: =VLOOKUP($A$1,未来カルテデータ!$A$3:$BHO$1048576,R26) -> 688944 | S43: =VLOOKUP($A$1,未来カルテデータ!$A$3:$BHO$1048576,S26) -> 44040 | T43: =VLOOKUP($A$1,未来カルテデータ!$A$3:$BHO$1048576,T26) -> 201107 | U43: =VLOOKUP($A$1,未来カルテデータ!$A$3:$BHO$1048576,U26) -> 212656 | V43: =VLOOKUP($A$1,未来カルテデータ!$A$3:$BHO$1048576,V26) -> 334555
A44: 30～34歳 | B44: =VLOOKUP($A$1,未来カルテデータ!$A$3:$BHO$1048576,B27) -> 66984 | C44: =VLOOKUP($A$1,未来カルテデータ!$A$3:$BHO$1048576,C27) -> 4883 | D44: =VLOOKUP($A$1,未来カルテデータ!$A$3:$BHO$1048576,D27) -> 8147 | E44: =VLOOKUP($A$1,未来カルテデータ!$A$3:$BHO$1048576,E27) -> 1426 | F44: =VLOOKUP($A$1,未来カルテデータ!$A$3:$BHO$1048576,F27) -> 327286 | G44: =VLOOKUP($A$1,未来カルテデータ!$A$3:$BHO$1048576,G27) -> 916269 | H44: =VLOOKUP($A$1,未来カルテデータ!$A$3:$BHO$1048576,H27) -> 19834 | I44: =VLOOKUP($A$1,未来カルテデータ!$A$3:$BHO$1048576,I27) -> 229368 | J44: =VLOOKUP($A$1,未来カルテデータ!$A$3:$BHO$1048576,J27) -> 230712 | K44: =VLOOKUP($A$1,未来カルテデータ!$A$3:$BHO$1048576,K27) -> 793188 | L44: =VLOOKUP($A$1,未来カルテデータ!$A$3:$BHO$1048576,L27) -> 137409 | M44: =VLOOKUP($A$1,未来カルテデータ!$A$3:$BHO$1048576,M27) -> 82884 | N44: =VLOOKUP($A$1,未来カルテデータ!$A$3:$BHO$1048576,N27) -> 183492 | O44: =VLOOKUP($A$1,未来カルテデータ!$A$3:$BHO$1048576,O27) -> 234087 | P44: =VLOOKUP($A$1,未来カルテデータ!$A$3:$BHO$1048576,P27) -> 197312 | Q44: =VLOOKUP($A$1,未来カルテデータ!$A$3:$BHO$1048576,Q27) -> 231580 | R44: =VLOOKUP($A$1,未来カルテデータ!$A$3:$BHO$1048576,R27) -> 730938 | S44: =VLOOKUP($A$1,未来カルテデータ!$A$3:$BHO$1048576,S27) -> 44590 | T44: =VLOOKUP($A$1,未来カルテデータ!$A$3:$BHO$1048576,T27) -> 254393 | U44: =VLOOKUP($A$1,未来カルテデータ!$A$3:$BHO$1048576,U27) -> 210467 | V44: =VLOOKUP($A$1,未来カルテデータ!$A$3:$BHO$1048576,V27) -> 355917
A45: 35～39歳 | B45: =VLOOKUP($A$1,未来カルテデータ!$A$3:$BHO$1048576,B28) -> 80216 | C45: =VLOOKUP($A$1,未来カルテデータ!$A$3:$BHO$1048576,C28) -> 5933 | D45: =VLOOKUP($A$1,未来カルテデータ!$A$3:$BHO$1048576,D28) -> 9067 | E45: =VLOOKUP($A$1,未来カルテデータ!$A$3:$BHO$1048576,E28) -> 1872 | F45: =VLOOKUP($A$1,未来カルテデータ!$A$3:$BHO$1048576,F28) -> 456246 | G45: =VLOOKUP($A$1,未来カルテデータ!$A$3:$BHO$1048576,G28) -> 1089982 | H45: =VLOOKUP($A$1,未来カルテデータ!$A$3:$BHO$1048576,H28) -> 31660 | I45: =VLOOKUP($A$1,未来カルテデータ!$A$3:$BHO$1048576,I28) -> 268134 | J45: =VLOOKUP($A$1,未来カルテデータ!$A$3:$BHO$1048576,J28) -> 306687 | K45: =VLOOKUP($A$1,未来カルテデータ!$A$3:$BHO$1048576,K28) -> 908722 | L45: =VLOOKUP($A$1,未来カルテデータ!$A$3:$BHO$1048576,L28) -> 136872 | M45: =VLOOKUP($A$1,未来カルテデータ!$A$3:$BHO$1048576,M28) -> 95851 | N45: =VLOOKUP($A$1,未来カルテデータ!$A$3:$BHO$1048576,N28) -> 225526 | O45: =VLOOKUP($A$1,未来カルテデータ!$A$3:$BHO$1048576,O28) -> 287490 | P45: =VLOOKUP($A$1,未来カルテデータ!$A$3:$BHO$1048576,P28) -> 198766 | Q45: =VLOOKUP($A$1,未来カルテデータ!$A$3:$BHO$1048576,Q28) -> 255337 | R45: =VLOOKUP($A$1,未来カルテデータ!$A$3:$BHO$1048576,R28) -> 821213 | S45: =VLOOKUP($A$1,未来カルテデータ!$A$3:$BHO$1048576,S28) -> 54217 | T45: =VLOOKUP($A$1,未来カルテデータ!$A$3:$BHO$1048576,T28) -> 317264 | U45: =VLOOKUP($A$1,未来カルテデータ!$A$3:$BHO$1048576,U28) -> 234629 | V45: =VLOOKUP($A$1,未来カルテデータ!$A$3:$BHO$1048576,V28) -> 354418
A46: 40～44歳 | B46: =VLOOKUP($A$1,未来カルテデータ!$A$3:$BHO$1048576,B29) -> 90264 | C46: =VLOOKUP($A$1,未来カルテデータ!$A$3:$BHO$1048576,C29) -> 6223 | D46: =VLOOKUP($A$1,未来カルテデータ!$A$3:$BHO$1048576,D29) -> 10751 | E46: =VLOOKUP($A$1,未来カルテデータ!$A$3:$BHO$1048576,E29) -> 2702 | F46: =VLOOKUP($A$1,未来カルテデータ!$A$3:$BHO$1048576,F29) -> 600360 | G46: =VLOOKUP($A$1,未来カルテデータ!$A$3:$BHO$1048576,G29) -> 1350183 | H46: =VLOOKUP($A$1,未来カルテデータ!$A$3:$BHO$1048576,H29) -> 46146 | I46: =VLOOKUP($A$1,未来カルテデータ!$A$3:$BHO$1048576,I29) -> 262739 | J46: =VLOOKUP($A$1,未来カルテデータ!$A$3:$BHO$1048576,J29) -> 434221 | K46: =VLOOKUP($A$1,未来カルテデータ!$A$3:$BHO$1048576,K29) -> 1137233 | L46: =VLOOKUP($A$1,未来カルテデータ!$A$3:$BHO$1048576,L29) -> 193649 | M46: =VLOOKUP($A$1,未来カルテデータ!$A$3:$BHO$1048576,M29) -> 116533 | N46: =VLOOKUP($A$1,未来カルテデータ!$A$3:$BHO$1048576,N29) -> 263842 | O46: =VLOOKUP($A$1,未来カルテデータ!$A$3:$BHO$1048576,O29) -> 353327 | P46: =VLOOKUP($A$1,未来カルテデータ!$A$3:$BHO$1048576,P29) -> 209698 | Q46: =VLOOKUP($A$1,未来カルテデータ!$A$3:$BHO$1048576,Q29) -> 312961 | R46: =VLOOKUP($A$1,未来カルテデータ!$A$3:$BHO$1048576,R29) -> 895274 | S46: =VLOOKUP($A$1,未来カルテデータ!$A$3:$BHO$1048576,S29) -> 74622 | T46: =VLOOKUP($A$1,未来カルテデータ!$A$3:$BHO$1048576,T29) -> 397700 | U46: =VLOOKUP($A$1,未来カルテデータ!$A$3:$BHO$1048576,U29) -> 291097 | V46: =VLOOKUP($A$1,未来カルテデータ!$A$3:$BHO$1048576,V29) -> 376304
A47: 45～49歳 | B47: =VLOOKUP($A$1,未来カルテデータ!$A$3:$BHO$1048576,B30) -> 89026 | C47: =VLOOKUP($A$1,未来カルテデータ!$A$3:$BHO$1048576,C30) -> 5541 | D47: =VLOOKUP($A$1,未来カルテデータ!$A$3:$BHO$1048576,D30) -> 11863 | E47: =VLOOKUP($A$1,未来カルテデータ!$A$3:$BHO$1048576,E30) -> 2656 | F47: =VLOOKUP($A$1,未来カルテデータ!$A$3:$BHO$1048576,F30) -> 504380 | G47: =VLOOKUP($A$1,未来カルテデータ!$A$3:$BHO$1048576,G30) -> 1235565 | H47: =VLOOKUP($A$1,未来カルテデータ!$A$3:$BHO$1048576,H30) -> 43071 | I47: =VLOOKUP($A$1,未来カルテデータ!$A$3:$BHO$1048576,I30) -> 225740 | J47: =VLOOKUP($A$1,未来カルテデータ!$A$3:$BHO$1048576,J30) -> 415916 | K47: =VLOOKUP($A$1,未来カルテデータ!$A$3:$BHO$1048576,K30) -> 1016202 | L47: =VLOOKUP($A$1,未来カルテデータ!$A$3:$BHO$1048576,L30) -> 216428 | M47: =VLOOKUP($A$1,未来カルテデータ!$A$3:$BHO$1048576,M30) -> 107183 | N47: =VLOOKUP($A$1,未来カルテデータ!$A$3:$BHO$1048576,N30) -> 226250 | O47: =VLOOKUP($A$1,未来カルテデータ!$A$3:$BHO$1048576,O30) -> 297319 | P47: =VLOOKUP($A$1,未来カルテデータ!$A$3:$BHO$1048576,P30) -> 192979 | Q47: =VLOOKUP($A$1,未来カルテデータ!$A$3:$BHO$1048576,Q30) -> 316021 | R47: =VLOOKUP($A$1,未来カルテデータ!$A$3:$BHO$1048576,R30) -> 813675 | S47: =VLOOKUP($A$1,未来カルテデータ!$A$3:$BHO$1048576,S30) -> 61140 | T47: =VLOOKUP($A$1,未来カルテデータ!$A$3:$BHO$1048576,T30) -> 359953 | U47: =VLOOKUP($A$1,未来カルテデータ!$A$3:$BHO$1048576,U30) -> 260883 | V47: =VLOOKUP($A$1,未来カルテデータ!$A$3:$BHO$1048576,V30) -> 311458
A48: 50～54歳 | B48: =VLOOKUP($A$1,未来カルテデータ!$A$3:$BHO$1048576,B31) -> 111204 | C48: =VLOOKUP($A$1,未来カルテデータ!$A$3:$BHO$1048576,C31) -> 6549 | D48: =VLOOKUP($A$1,未来カルテデータ!$A$3:$BHO$1048576,D31) -> 14079 | E48: =VLOOKUP($A$1,未来カルテデータ!$A$3:$BHO$1048576,E31) -> 2868 | F48: =VLOOKUP($A$1,未来カルテデータ!$A$3:$BHO$1048576,F31) -> 433347 | G48: =VLOOKUP($A$1,未来カルテデータ!$A$3:$BHO$1048576,G31) -> 1083611 | H48: =VLOOKUP($A$1,未来カルテデータ!$A$3:$BHO$1048576,H31) -> 40235 | I48: =VLOOKUP($A$1,未来カルテデータ!$A$3:$BHO$1048576,I31) -> 185149 | J48: =VLOOKUP($A$1,未来カルテデータ!$A$3:$BHO$1048576,J31) -> 376461 | K48: =VLOOKUP($A$1,未来カルテデータ!$A$3:$BHO$1048576,K31) -> 936764 | L48: =VLOOKUP($A$1,未来カルテデータ!$A$3:$BHO$1048576,L31) -> 206148 | M48: =VLOOKUP($A$1,未来カルテデータ!$A$3:$BHO$1048576,M31) -> 104992 | N48: =VLOOKUP($A$1,未来カルテデータ!$A$3:$BHO$1048576,N31) -> 204196 | O48: =VLOOKUP($A$1,未来カルテデータ!$A$3:$BHO$1048576,O31) -> 260553 | P48: =VLOOKUP($A$1,未来カルテデータ!$A$3:$BHO$1048576,P31) -> 176686 | Q48: =VLOOKUP($A$1,未来カルテデータ!$A$3:$BHO$1048576,Q31) -> 359056 | R48: =VLOOKUP($A$1,未来カルテデータ!$A$3:$BHO$1048576,R31) -> 785126 | S48: =VLOOKUP($A$1,未来カルテデータ!$A$3:$BHO$1048576,S31) -> 65348 | T48: =VLOOKUP($A$1,未来カルテデータ!$A$3:$BHO$1048576,T31) -> 342809 | U48: =VLOOKUP($A$1,未来カルテデータ!$A$3:$BHO$1048576,U31) -> 253046 | V48: =VLOOKUP($A$1,未来カルテデータ!$A$3:$BHO$1048576,V31) -> 236272
A49: 55～59歳 | B49: =VLOOKUP($A$1,未来カルテデータ!$A$3:$BHO$1048576,B32) -> 162599 | C49: =VLOOKUP($A$1,未来カルテデータ!$A$3:$BHO$1048576,C32) -> 7397 | D49: =VLOOKUP($A$1,未来カルテデータ!$A$3:$BHO$1048576,D32) -> 16915 | E49: =VLOOKUP($A$1,未来カルテデータ!$A$3:$BHO$1048576,E32) -> 2979 | F49: =VLOOKUP($A$1,未来カルテデータ!$A$3:$BHO$1048576,F32) -> 451156 | G49: =VLOOKUP($A$1,未来カルテデータ!$A$3:$BHO$1048576,G32) -> 908927 | H49: =VLOOKUP($A$1,未来カルテデータ!$A$3:$BHO$1048576,H32) -> 34572 | I49: =VLOOKUP($A$1,未来カルテデータ!$A$3:$BHO$1048576,I32) -> 111326 | J49: =VLOOKUP($A$1,未来カルテデータ!$A$3:$BHO$1048576,J32) -> 344446 | K49: =VLOOKUP($A$1,未来カルテデータ!$A$3:$BHO$1048576,K32) -> 860464 | L49: =VLOOKUP($A$1,未来カルテデータ!$A$3:$BHO$1048576,L32) -> 156137 | M49: =VLOOKUP($A$1,未来カルテデータ!$A$3:$BHO$1048576,M32) -> 108489 | N49: =VLOOKUP($A$1,未来カルテデータ!$A$3:$BHO$1048576,N32) -> 183885 | O49: =VLOOKUP($A$1,未来カルテデータ!$A$3:$BHO$1048576,O32) -> 259038 | P49: =VLOOKUP($A$1,未来カルテデータ!$A$3:$BHO$1048576,P32) -> 161006 | Q49: =VLOOKUP($A$1,未来カルテデータ!$A$3:$BHO$1048576,Q32) -> 346624 | R49: =VLOOKUP($A$1,未来カルテデータ!$A$3:$BHO$1048576,R32) -> 704765 | S49: =VLOOKUP($A$1,未来カルテデータ!$A$3:$BHO$1048576,S32) -> 59472 | T49: =VLOOKUP($A$1,未来カルテデータ!$A$3:$BHO$1048576,T32) -> 352266 | U49: =VLOOKUP($A$1,未来カルテデータ!$A$3:$BHO$1048576,U32) -> 222850 | V49: =VLOOKUP($A$1,未来カルテデータ!$A$3:$BHO$1048576,V32) -> 184341
A50: 60～64歳 | B50: =VLOOKUP($A$1,未来カルテデータ!$A$3:$BHO$1048576,B33) -> 279823 | C50: =VLOOKUP($A$1,未来カルテデータ!$A$3:$BHO$1048576,C33) -> 8237 | D50: =VLOOKUP($A$1,未来カルテデータ!$A$3:$BHO$1048576,D33) -> 20609 | E50: =VLOOKUP($A$1,未来カルテデータ!$A$3:$BHO$1048576,E33) -> 2813 | F50: =VLOOKUP($A$1,未来カルテデータ!$A$3:$BHO$1048576,F33) -> 505948 | G50: =VLOOKUP($A$1,未来カルテデータ!$A$3:$BHO$1048576,G33) -> 741880 | H50: =VLOOKUP($A$1,未来カルテデータ!$A$3:$BHO$1048576,H33) -> 20013 | I50: =VLOOKUP($A$1,未来カルテデータ!$A$3:$BHO$1048576,I33) -> 68925 | J50: =VLOOKUP($A$1,未来カルテデータ!$A$3:$BHO$1048576,J33) -> 308829 | K50: =VLOOKUP($A$1,未来カルテデータ!$A$3:$BHO$1048576,K33) -> 761663 | L50: =VLOOKUP($A$1,未来カルテデータ!$A$3:$BHO$1048576,L33) -> 97215 | M50: =VLOOKUP($A$1,未来カルテデータ!$A$3:$BHO$1048576,M33) -> 139988 | N50: =VLOOKUP($A$1,未来カルテデータ!$A$3:$BHO$1048576,N33) -> 173626 | O50: =VLOOKUP($A$1,未来カルテデータ!$A$3:$BHO$1048576,O33) -> 296701 | P50: =VLOOKUP($A$1,未来カルテデータ!$A$3:$BHO$1048576,P33) -> 178330 | Q50: =VLOOKUP($A$1,未来カルテデータ!$A$3:$BHO$1048576,Q33) -> 211532 | R50: =VLOOKUP($A$1,未来カルテデータ!$A$3:$BHO$1048576,R33) -> 543571 | S50: =VLOOKUP($A$1,未来カルテデータ!$A$3:$BHO$1048576,S33) -> 36497 | T50: =VLOOKUP($A$1,未来カルテデータ!$A$3:$BHO$1048576,T33) -> 441040 | U50: =VLOOKUP($A$1,未来カルテデータ!$A$3:$BHO$1048576,U33) -> 127946 | V50: =VLOOKUP($A$1,未来カルテデータ!$A$3:$BHO$1048576,V33) -> 178733
A51: 65～69歳 | B51: =VLOOKUP($A$1,未来カルテデータ!$A$3:$BHO$1048576,B34) -> 356534 | C51: =VLOOKUP($A$1,未来カルテデータ!$A$3:$BHO$1048576,C34) -> 6766 | D51: =VLOOKUP($A$1,未来カルテデータ!$A$3:$BHO$1048576,D34) -> 20924 | E51: =VLOOKUP($A$1,未来カルテデータ!$A$3:$BHO$1048576,E34) -> 1902 | F51: =VLOOKUP($A$1,未来カルテデータ!$A$3:$BHO$1048576,F34) -> 389469 | G51: =VLOOKUP($A$1,未来カルテデータ!$A$3:$BHO$1048576,G34) -> 457795 | H51: =VLOOKUP($A$1,未来カルテデータ!$A$3:$BHO$1048576,H34) -> 6241 | I51: =VLOOKUP($A$1,未来カルテデータ!$A$3:$BHO$1048576,I34) -> 28009 | J51: =VLOOKUP($A$1,未来カルテデータ!$A$3:$BHO$1048576,J34) -> 225745 | K51: =VLOOKUP($A$1,未来カルテデータ!$A$3:$BHO$1048576,K34) -> 558547 | L51: =VLOOKUP($A$1,未来カルテデータ!$A$3:$BHO$1048576,L34) -> 43185 | M51: =VLOOKUP($A$1,未来カルテデータ!$A$3:$BHO$1048576,M34) -> 151246 | N51: =VLOOKUP($A$1,未来カルテデータ!$A$3:$BHO$1048576,N34) -> 139764 | O51: =VLOOKUP($A$1,未来カルテデータ!$A$3:$BHO$1048576,O34) -> 280359 | P51: =VLOOKUP($A$1,未来カルテデータ!$A$3:$BHO$1048576,P34) -> 181636 | Q51: =VLOOKUP($A$1,未来カルテデータ!$A$3:$BHO$1048576,Q34) -> 113891 | R51: =VLOOKUP($A$1,未来カルテデータ!$A$3:$BHO$1048576,R34) -> 361029 | S51: =VLOOKUP($A$1,未来カルテデータ!$A$3:$BHO$1048576,S34) -> 10274 | T51: =VLOOKUP($A$1,未来カルテデータ!$A$3:$BHO$1048576,T34) -> 419680 | U51: =VLOOKUP($A$1,未来カルテデータ!$A$3:$BHO$1048576,U34) -> 47617 | V51: =VLOOKUP($A$1,未来カルテデータ!$A$3:$BHO$1048576,V34) -> 195465
A52: 70～74歳 | B52: =VLOOKUP($A$1,未来カルテデータ!$A$3:$BHO$1048576,B35) -> 263852 | C52: =VLOOKUP($A$1,未来カルテデータ!$A$3:$BHO$1048576,C35) -> 3351 | D52: =VLOOKUP($A$1,未来カルテデータ!$A$3:$BHO$1048576,D35) -> 13419 | E52: =VLOOKUP($A$1,未来カルテデータ!$A$3:$BHO$1048576,E35) -> 713 | F52: =VLOOKUP($A$1,未来カルテデータ!$A$3:$BHO$1048576,F35) -> 155320 | G52: =VLOOKUP($A$1,未来カルテデータ!$A$3:$BHO$1048576,G35) -> 217417 | H52: =VLOOKUP($A$1,未来カルテデータ!$A$3:$BHO$1048576,H35) -> 1496 | I52: =VLOOKUP($A$1,未来カルテデータ!$A$3:$BHO$1048576,I35) -> 9135 | J52: =VLOOKUP($A$1,未来カルテデータ!$A$3:$BHO$1048576,J35) -> 78039 | K52: =VLOOKUP($A$1,未来カルテデータ!$A$3:$BHO$1048576,K35) -> 275215 | L52: =VLOOKUP($A$1,未来カルテデータ!$A$3:$BHO$1048576,L35) -> 16275 | M52: =VLOOKUP($A$1,未来カルテデータ!$A$3:$BHO$1048576,M35) -> 81956 | N52: =VLOOKUP($A$1,未来カルテデータ!$A$3:$BHO$1048576,N35) -> 59548 | O52: =VLOOKUP($A$1,未来カルテデータ!$A$3:$BHO$1048576,O35) -> 126263 | P52: =VLOOKUP($A$1,未来カルテデータ!$A$3:$BHO$1048576,P35) -> 106782 | Q52: =VLOOKUP($A$1,未来カルテデータ!$A$3:$BHO$1048576,Q35) -> 44529 | R52: =VLOOKUP($A$1,未来カルテデータ!$A$3:$BHO$1048576,R35) -> 132199 | S52: =VLOOKUP($A$1,未来カルテデータ!$A$3:$BHO$1048576,S35) -> 2730 | T52: =VLOOKUP($A$1,未来カルテデータ!$A$3:$BHO$1048576,T35) -> 205517 | U52: =VLOOKUP($A$1,未来カルテデータ!$A$3:$BHO$1048576,U35) -> 15786 | V52: =VLOOKUP($A$1,未来カルテデータ!$A$3:$BHO$1048576,V35) -> 134001
A53: 75～79歳 | B53: =VLOOKUP($A$1,未来カルテデータ!$A$3:$BHO$1048576,B36) -> 222947 | C53: =VLOOKUP($A$1,未来カルテデータ!$A$3:$BHO$1048576,C36) -> 1942 | D53: =VLOOKUP($A$1,未来カルテデータ!$A$3:$BHO$1048576,D36) -> 9818 | E53: =VLOOKUP($A$1,未来カルテデータ!$A$3:$BHO$1048576,E36) -> 277 | F53: =VLOOKUP($A$1,未来カルテデータ!$A$3:$BHO$1048576,F36) -> 53052 | G53: =VLOOKUP($A$1,未来カルテデータ!$A$3:$BHO$1048576,G36) -> 93514 | H53: =VLOOKUP($A$1,未来カルテデータ!$A$3:$BHO$1048576,H36) -> 405 | I53: =VLOOKUP($A$1,未来カルテデータ!$A$3:$BHO$1048576,I36) -> 3307 | J53: =VLOOKUP($A$1,未来カルテデータ!$A$3:$BHO$1048576,J36) -> 19286 | K53: =VLOOKUP($A$1,未来カルテデータ!$A$3:$BHO$1048576,K36) -> 139566 | L53: =VLOOKUP($A$1,未来カルテデータ!$A$3:$BHO$1048576,L36) -> 5854 | M53: =VLOOKUP($A$1,未来カルテデータ!$A$3:$BHO$1048576,M36) -> 45853 | N53: =VLOOKUP($A$1,未来カルテデータ!$A$3:$BHO$1048576,N36) -> 25325 | O53: =VLOOKUP($A$1,未来カルテデータ!$A$3:$BHO$1048576,O36) -> 46568 | P53: =VLOOKUP($A$1,未来カルテデータ!$A$3:$BHO$1048576,P36) -> 53357 | Q53: =VLOOKUP($A$1,未来カルテデータ!$A$3:$BHO$1048576,Q36) -> 17281 | R53: =VLOOKUP($A$1,未来カルテデータ!$A$3:$BHO$1048576,R36) -> 43162 | S53: =VLOOKUP($A$1,未来カルテデータ!$A$3:$BHO$1048576,S36) -> 813 | T53: =VLOOKUP($A$1,未来カルテデータ!$A$3:$BHO$1048576,T36) -> 73240 | U53: =VLOOKUP($A$1,未来カルテデータ!$A$3:$BHO$1048576,U36) -> 5245 | V53: =VLOOKUP($A$1,未来カルテデータ!$A$3:$BHO$1048576,V36) -> 98303
A54: 80～84歳 | B54: =VLOOKUP($A$1,未来カルテデータ!$A$3:$BHO$1048576,B37) -> 137444 | C54: =VLOOKUP($A$1,未来カルテデータ!$A$3:$BHO$1048576,C37) -> 809 | D54: =VLOOKUP($A$1,未来カルテデータ!$A$3:$BHO$1048576,D37) -> 5038 | E54: =VLOOKUP($A$1,未来カルテデータ!$A$3:$BHO$1048576,E37) -> 103 | F54: =VLOOKUP($A$1,未来カルテデータ!$A$3:$BHO$1048576,F37) -> 16627 | G54: =VLOOKUP($A$1,未来カルテデータ!$A$3:$BHO$1048576,G37) -> 33269 | H54: =VLOOKUP($A$1,未来カルテデータ!$A$3:$BHO$1048576,H37) -> 122 | I54: =VLOOKUP($A$1,未来カルテデータ!$A$3:$BHO$1048576,I37) -> 1404 | J54: =VLOOKUP($A$1,未来カルテデータ!$A$3:$BHO$1048576,J37) -> 4401 | K54: =VLOOKUP($A$1,未来カルテデータ!$A$3:$BHO$1048576,K37) -> 63567 | L54: =VLOOKUP($A$1,未来カルテデータ!$A$3:$BHO$1048576,L37) -> 1843 | M54: =VLOOKUP($A$1,未来カルテデータ!$A$3:$BHO$1048576,M37) -> 29213 | N54: =VLOOKUP($A$1,未来カルテデータ!$A$3:$BHO$1048576,N37) -> 12144 | O54: =VLOOKUP($A$1,未来カルテデータ!$A$3:$BHO$1048576,O37) -> 15042 | P54: =VLOOKUP($A$1,未来カルテデータ!$A$3:$BHO$1048576,P37) -> 17220 | Q54: =VLOOKUP($A$1,未来カルテデータ!$A$3:$BHO$1048576,Q37) -> 7752 | R54: =VLOOKUP($A$1,未来カルテデータ!$A$3:$BHO$1048576,R37) -> 15798 | S54: =VLOOKUP($A$1,未来カルテデータ!$A$3:$BHO$1048576,S37) -> 232 | T54: =VLOOKUP($A$1,未来カルテデータ!$A$3:$BHO$1048576,T37) -> 20326 | U54: =VLOOKUP($A$1,未来カルテデータ!$A$3:$BHO$1048576,U37) -> 1317 | V54: =VLOOKUP($A$1,未来カルテデータ!$A$3:$BHO$1048576,V37) -> 54616
A55: 85歳以上 | B55: =VLOOKUP($A$1,未来カルテデータ!$A$3:$BHO$1048576,B38) -> 59410 | C55: =VLOOKUP($A$1,未来カルテデータ!$A$3:$BHO$1048576,C38) -> 300 | D55: =VLOOKUP($A$1,未来カルテデータ!$A$3:$BHO$1048576,D38) -> 1212 | E55: =VLOOKUP($A$1,未来カルテデータ!$A$3:$BHO$1048576,E38) -> 39 | F55: =VLOOKUP($A$1,未来カルテデータ!$A$3:$BHO$1048576,F38) -> 4829 | G55: =VLOOKUP($A$1,未来カルテデータ!$A$3:$BHO$1048576,G38) -> 11817 | H55: =VLOOKUP($A$1,未来カルテデータ!$A$3:$BHO$1048576,H38) -> 40 | I55: =VLOOKUP($A$1,未来カルテデータ!$A$3:$BHO$1048576,I38) -> 583 | J55: =VLOOKUP($A$1,未来カルテデータ!$A$3:$BHO$1048576,J38) -> 1328 | K55: =VLOOKUP($A$1,未来カルテデータ!$A$3:$BHO$1048576,K38) -> 27368 | L55: =VLOOKUP($A$1,未来カルテデータ!$A$3:$BHO$1048576,L38) -> 589 | M55: =VLOOKUP($A$1,未来カルテデータ!$A$3:$BHO$1048576,M38) -> 19990 | N55: =VLOOKUP($A$1,未来カルテデータ!$A$3:$BHO$1048576,N38) -> 6151 | O55: =VLOOKUP($A$1,未来カルテデータ!$A$3:$BHO$1048576,O38) -> 4997 | P55: =VLOOKUP($A$1,未来カルテデータ!$A$3:$BHO$1048576,P38) -> 4275 | Q55: =VLOOKUP($A$1,未来カルテデータ!$A$3:$BHO$1048576,Q38) -> 3729 | R55: =VLOOKUP($A$1,未来カルテデータ!$A$3:$BHO$1048576,R38) -> 8117 | S55: =VLOOKUP($A$1,未来カルテデータ!$A$3:$BHO$1048576,S38) -> 101 | T55: =VLOOKUP($A$1,未来カルテデータ!$A$3:$BHO$1048576,T38) -> 6773 | U55: =VLOOKUP($A$1,未来カルテデータ!$A$3:$BHO$1048576,U38) -> 256 | V55: =VLOOKUP($A$1,未来カルテデータ!$A$3:$BHO$1048576,V38) -> 26652
B56: =SUM(B41:B55) -> 2004289 | C56: =SUM(C41:C55) -> 63663 | D56: 153747 | E56: 22281 | F56: 4341338 | G56: 9557215 | H56: 283193 | I56: 1680205 | J56: 3044741 | K56: 9001414 | L56: 1428710 | M56: 1197560 | N56: 1919125 | O56: 3249190 | P56: 2072228 | Q56: 2661560 | R56: 7023950 | S56: 483014 | T56: 3543689 | U56: 2025988 | V56: 3161936
B58: 315
B59: =$B$58+B24 -> 394 | C59: 395 | D59: 396 | E59: 397 | F59: 398 | G59: 399 | H59: 400 | I59: 401 | J59: 402 | K59: 403 | L59: 404 | M59: 405 | N59: 406 | O59: 407 | P59: 408 | Q59: 409 | R59: 410 | S59: 411 | T59: 412 | U59: 413 | V59: 414
B60: 415 | C60: 416 | D60: 417 | E60: 418 | F60: 419 | G60: 420 | H60: 421 | I60: 422 | J60: 423 | K60: 424 | L60: 425 | M60: 426 | N60: 427 | O60: 428 | P60: 429 | Q60: 430 | R60: 431 | S60: 432 | T60: 433 | U60: 434 | V60: 435
B61: 436 | C61: 437 | D61: 438 | E61: 439 | F61: 440 | G61: 441 | H61: 442 | I61: 443 | J61: 444 | K61: 445 | L61: 446 | M61: 447 | N61: 448 | O61: 449 | P61: 450 | Q61: 451 | R61: 452 | S61: 453 | T61: 454 | U61: 455 | V61: 456
B62: 457 | C62: 458 | D62: 459 | E62: 460 | F62: 461 | G62: 462 | H62: 463 | I62: 464 | J62: 465 | K62: 466 | L62: 467 | M62: 468 | N62: 469 | O62: 470 | P62: 471 | Q62: 472 | R62: 473 | S62: 474 | T62: 475 | U62: 476 | V62: 477
B63: 478 | C63: 479 | D63: 480 | E63: 481 | F63: 482 | G63: 483 | H63: 484 | I63: 485 | J63: 486 | K63: 487 | L63: 488 | M63: 489 | N63: 490 | O63: 491 | P63: 492 | Q63: 493 | R63: 494 | S63: 495 | T63: 496 | U63: 497 | V63: 498
B64: 499 | C64: 500 | D64: 501 | E64: 502 | F64: 503 | G64: 504 | H64: 505 | I64: 506 | J64: 507 | K64: 508 | L64: 509 | M64: 510 | N64: 511 | O64: 512 | P64: 513 | Q64: 514 | R64: 515 | S64: 516 | T64: 517 | U64: 518 | V64: 519
B65: 520 | C65: 521 | D65: 522 | E65: 523 | F65: 524 | G65: 525 | H65: 526 | I65: 527 | J65: 528 | K65: 529 | L65: 530 | M65: 531 | N65: 532 | O65: 533 | P65: 534 | Q65: 535 | R65: 536 | S65: 537 | T65: 538 | U65: 539 | V65: 540
B66: 541 | C66: 542 | D66: 543 | E66: 544 | F66: 545 | G66: 546 | H66: 547 | I66: 548 | J66: 549 | K66: 550 | L66: 551 | M66: 552 | N66: 553 | O66: 554 | P66: 555 | Q66: 556 | R66: 557 | S66: 558 | T66: 559 | U66: 560 | V66: 561
B67: 562 | C67: 563 | D67: 564 | E67: 565 | F67: 566 | G67: 567 | H67: 568 | I67: 569 | J67: 570 | K67: 571 | L67: 572 | M67: 573 | N67: 574 | O67: 575 | P67: 576 | Q67: 577 | R67: 578 | S67: 579 | T67: 580 | U67: 581 | V67: 582
B68: 583 | C68: 584 | D68: 585 | E68: 586 | F68: 587 | G68: 588 | H68: 589 | I68: 590 | J68: 591 | K68: 592 | L68: 593 | M68: 594 | N68: 595 | O68: 596 | P68: 597 | Q68: 598 | R68: 599 | S68: 600 | T68: 601 | U68: 602 | V68: 603
B69: 604 | C69: 605 | D69: 606 | E69: 607 | F69: 608 | G69: 609 | H69: 610 | I69: 611 | J69: 612 | K69: 613 | L69: 614 | M69: 615 | N69: 616 | O69: 617 | P69: 618 | Q69: 619 | R69: 620 | S69: 621 | T69: 622 | U69: 623 | V69: 624
B70: 625 | C70: 626 | D70: 627 | E70: 628 | F70: 629 | G70: 630 | H70: 631 | I70: 632 | J70: 633 | K70: 634 | L70: 635 | M70: 636 | N70: 637 | O70: 638 | P70: 639 | Q70: 640 | R70: 641 | S70: 642 | T70: 643 | U70: 644 | V70: 645
B71: 646 | C71: 647 | D71: 648 | E71: =$B$58+E36 -> 649 | F71: 650 | G71: 651 | H71: 652 | I71: 653 | J71: 654 | K71: 655 | L71: 656 | M71: 657 | N71: 658 | O71: 659 | P71: 660 | Q71: 661 | R71: 662 | S71: 663 | T71: 664 | U71: 665 | V71: 666
B72: =$B$58+B37 -> 667 | C72: 668 | D72: 669 | E72: 670 | F72: 671 | G72: 672 | H72: 673 | I72: 674 | J72: 675 | K72: 676 | L72: 677 | M72: 678 | N72: 679 | O72: 680 | P72: 681 | Q72: 682 | R72: 683 | S72: 684 | T72: 685 | U72: 686 | V72: 687
B73: 688 | C73: 689 | D73: 690 | E73: 691 | F73: 692 | G73: 693 | H73: 694 | I73: 695 | J73: 696 | K73: 697 | L73: 698 | M73: 699 | N73: 700 | O73: 701 | P73: 702 | Q73: 703 | R73: 704 | S73: 705 | T73: 706 | U73: 707 | V73: 708
A75: 2020 | B75: A1 農業 | C75: A2 林業 | D75: Ｂ 漁業 | E75: Ｃ 鉱業，採石業，砂利採取業 | F75: Ｄ 建設業 | G75: Ｅ 製造業 | H75: Ｆ 電気・ガス・熱供給・水道業 | I75: Ｇ 情報通信業 | J75: Ｈ 運輸業，郵便業 | K75: Ｉ 卸売業，小売業 | L75: Ｊ 金融業，保険業 | M75: Ｋ 不動産業，物品賃貸業 | N75: Ｌ 学術研究，専門・技術サービス業 | O75: Ｍ 宿泊業，飲食サービス業 | P75: Ｎ 生活関連サービス業，娯楽業 | Q75: Ｏ 教育，学習支援業 | R75: Ｐ 医療，福祉 | S75: Ｑ 複合サービス事業 | T75: Ｒ サービス業（他に分類されないもの） | U75: Ｓ 公務（他に分類されるものを除く） | V75: Ｔ 分類不能の産業
A76: 15～19歳 | B76: =VLOOKUP($A$1,未来カルテデータ!$A$3:$BHO$1048576,B59) -> 5290.796167 | C76: =VLOOKUP($A$1,未来カルテデータ!$A$3:$BHO$1048576,C59) -> 380.9083754 | D76: =VLOOKUP($A$1,未来カルテデータ!$A$3:$BHO$1048576,D59) -> 1099.559009 | E76: =VLOOKUP($A$1,未来カルテデータ!$A$3:$BHO$1048576,E59) -> 103.8030617 | F76: =VLOOKUP($A$1,未来カルテデータ!$A$3:$BHO$1048576,F59) -> 40006.08349 | G76: =VLOOKUP($A$1,未来カルテデータ!$A$3:$BHO$1048576,G59) -> 100508.3818 | H76: =VLOOKUP($A$1,未来カルテデータ!$A$3:$BHO$1048576,H59) -> 2132.233879 | I76: =VLOOKUP($A$1,未来カルテデータ!$A$3:$BHO$1048576,I59) -> 2522.150168 | J76: =VLOOKUP($A$1,未来カルテデータ!$A$3:$BHO$1048576,J59) -> 18324.00582 | K76: =VLOOKUP($A$1,未来カルテデータ!$A$3:$BHO$1048576,K59) -> 172793.048 | L76: =VLOOKUP($A$1,未来カルテデータ!$A$3:$BHO$1048576,L59) -> 2151.08454 | M76: =VLOOKUP($A$1,未来カルテデータ!$A$3:$BHO$1048576,M59) -> 4208.007458 | N76: =VLOOKUP($A$1,未来カルテデータ!$A$3:$BHO$1048576,N59) -> 4449.126956 | O76: =VLOOKUP($A$1,未来カルテデータ!$A$3:$BHO$1048576,O59) -> 190437.9092 | P76: =VLOOKUP($A$1,未来カルテデータ!$A$3:$BHO$1048576,P59) -> 28973.55844 | Q76: =VLOOKUP($A$1,未来カルテデータ!$A$3:$BHO$1048576,Q59) -> 25656.61973 | R76: =VLOOKUP($A$1,未来カルテデータ!$A$3:$BHO$1048576,R59) -> 26879.01312 | S76: =VLOOKUP($A$1,未来カルテデータ!$A$3:$BHO$1048576,S59) -> 3365.215812 | T76: =VLOOKUP($A$1,未来カルテデータ!$A$3:$BHO$1048576,T59) -> 20909.3444 | U76: =VLOOKUP($A$1,未来カルテデータ!$A$3:$BHO$1048576,U59) -> 17563.83023 | V76: =VLOOKUP($A$1,未来カルテデータ!$A$3:$BHO$1048576,V59) -> 55569.9462
A77: 20～24歳 | B77: =VLOOKUP($A$1,未来カルテデータ!$A$3:$BHO$1048576,B60) -> 31302.24004 | C77: =VLOOKUP($A$1,未来カルテデータ!$A$3:$BHO$1048576,C60) -> 2021.835034 | D77: =VLOOKUP($A$1,未来カルテデータ!$A$3:$BHO$1048576,D60) -> 4820.769046 | E77: =VLOOKUP($A$1,未来カルテデータ!$A$3:$BHO$1048576,E60) -> 621.8807893 | F77: =VLOOKUP($A$1,未来カルテデータ!$A$3:$BHO$1048576,F60) -> 168151.2103 | G77: =VLOOKUP($A$1,未来カルテデータ!$A$3:$BHO$1048576,G60) -> 520921.7339 | H77: =VLOOKUP($A$1,未来カルテデータ!$A$3:$BHO$1048576,H60) -> 15334.13445 | I77: =VLOOKUP($A$1,未来カルテデータ!$A$3:$BHO$1048576,I60) -> 87055.456 | J77: =VLOOKUP($A$1,未来カルテデータ!$A$3:$BHO$1048576,J60) -> 104179.8723 | K77: =VLOOKUP($A$1,未来カルテデータ!$A$3:$BHO$1048576,K60) -> 615617.4511 | L77: =VLOOKUP($A$1,未来カルテデータ!$A$3:$BHO$1048576,L60) -> 77134.04189 | M77: =VLOOKUP($A$1,未来カルテデータ!$A$3:$BHO$1048576,M60) -> 42295.18219 | N77: =VLOOKUP($A$1,未来カルテデータ!$A$3:$BHO$1048576,N60) -> 64634.25236 | O77: =VLOOKUP($A$1,未来カルテデータ!$A$3:$BHO$1048576,O60) -> 366146.243 | P77: =VLOOKUP($A$1,未来カルテデータ!$A$3:$BHO$1048576,P60) -> 176490.8201 | Q77: =VLOOKUP($A$1,未来カルテデータ!$A$3:$BHO$1048576,Q60) -> 175698.8797 | R77: =VLOOKUP($A$1,未来カルテデータ!$A$3:$BHO$1048576,R60) -> 456479.5815 | S77: =VLOOKUP($A$1,未来カルテデータ!$A$3:$BHO$1048576,S60) -> 25948.78874 | T77: =VLOOKUP($A$1,未来カルテデータ!$A$3:$BHO$1048576,T60) -> 127676.4206 | U77: =VLOOKUP($A$1,未来カルテデータ!$A$3:$BHO$1048576,U60) -> 123963.5812 | V77: =VLOOKUP($A$1,未来カルテデータ!$A$3:$BHO$1048576,V60) -> 254158.8614
A78: 25～29歳 | B78: =VLOOKUP($A$1,未来カルテデータ!$A$3:$BHO$1048576,B61) -> 49353.77932 | C78: =VLOOKUP($A$1,未来カルテデータ!$A$3:$BHO$1048576,C61) -> 3184.627348 | D78: =VLOOKUP($A$1,未来カルテデータ!$A$3:$BHO$1048576,D61) -> 7318.377592 | E78: =VLOOKUP($A$1,未来カルテデータ!$A$3:$BHO$1048576,E61) -> 817.7235415 | F78: =VLOOKUP($A$1,未来カルテデータ!$A$3:$BHO$1048576,F61) -> 223723.3553 | G78: =VLOOKUP($A$1,未来カルテデータ!$A$3:$BHO$1048576,G61) -> 704473.2768 | H78: =VLOOKUP($A$1,未来カルテデータ!$A$3:$BHO$1048576,H61) -> 27542.05292 | I78: =VLOOKUP($A$1,未来カルテデータ!$A$3:$BHO$1048576,I61) -> 189801.5785 | J78: =VLOOKUP($A$1,未来カルテデータ!$A$3:$BHO$1048576,J61) -> 189736.4844 | K78: =VLOOKUP($A$1,未来カルテデータ!$A$3:$BHO$1048576,K61) -> 555879.6846 | L78: =VLOOKUP($A$1,未来カルテデータ!$A$3:$BHO$1048576,L61) -> 106097.9738 | M78: =VLOOKUP($A$1,未来カルテデータ!$A$3:$BHO$1048576,M61) -> 58587.93098 | N78: =VLOOKUP($A$1,未来カルテデータ!$A$3:$BHO$1048576,N61) -> 89163.08355 | O78: =VLOOKUP($A$1,未来カルテデータ!$A$3:$BHO$1048576,O61) -> 328515.0796 | P78: =VLOOKUP($A$1,未来カルテデータ!$A$3:$BHO$1048576,P61) -> 242525.4617 | Q78: =VLOOKUP($A$1,未来カルテデータ!$A$3:$BHO$1048576,Q61) -> 241746.7596 | R78: =VLOOKUP($A$1,未来カルテデータ!$A$3:$BHO$1048576,R61) -> 622600.4021 | S78: =VLOOKUP($A$1,未来カルテデータ!$A$3:$BHO$1048576,S61) -> 35101.59353 | T78: =VLOOKUP($A$1,未来カルテデータ!$A$3:$BHO$1048576,T61) -> 176117.1093 | U78: =VLOOKUP($A$1,未来カルテデータ!$A$3:$BHO$1048576,U61) -> 233633.8336 | V78: =VLOOKUP($A$1,未来カルテデータ!$A$3:$BHO$1048576,V61) -> 353896.8912
A79: 30～34歳 | B79: =VLOOKUP($A$1,未来カルテデータ!$A$3:$BHO$1048576,B62) -> 60332.24791 | C79: =VLOOKUP($A$1,未来カルテデータ!$A$3:$BHO$1048576,C62) -> 4327.072466 | D79: =VLOOKUP($A$1,未来カルテデータ!$A$3:$BHO$1048576,D62) -> 7517.323615 | E79: =VLOOKUP($A$1,未来カルテデータ!$A$3:$BHO$1048576,E62) -> 1178.817145 | F79: =VLOOKUP($A$1,未来カルテデータ!$A$3:$BHO$1048576,F62) -> 232821.9193 | G79: =VLOOKUP($A$1,未来カルテデータ!$A$3:$BHO$1048576,G62) -> 807092.8101 | H79: =VLOOKUP($A$1,未来カルテデータ!$A$3:$BHO$1048576,H62) -> 22633.68056 | I79: =VLOOKUP($A$1,未来カルテデータ!$A$3:$BHO$1048576,I62) -> 244961.7408 | J79: =VLOOKUP($A$1,未来カルテデータ!$A$3:$BHO$1048576,J62) -> 200940.5575 | K79: =VLOOKUP($A$1,未来カルテデータ!$A$3:$BHO$1048576,K62) -> 651471.2294 | L79: =VLOOKUP($A$1,未来カルテデータ!$A$3:$BHO$1048576,L62) -> 133755.9226 | M79: =VLOOKUP($A$1,未来カルテデータ!$A$3:$BHO$1048576,M62) -> 64361.00528 | N79: =VLOOKUP($A$1,未来カルテデータ!$A$3:$BHO$1048576,N62) -> 141278.8534 | O79: =VLOOKUP($A$1,未来カルテデータ!$A$3:$BHO$1048576,O62) -> 190886.4301 | P79: =VLOOKUP($A$1,未来カルテデータ!$A$3:$BHO$1048576,P62) -> 182123.8164 | Q79: =VLOOKUP($A$1,未来カルテデータ!$A$3:$BHO$1048576,Q62) -> 233533.3383 | R79: =VLOOKUP($A$1,未来カルテデータ!$A$3:$BHO$1048576,R62) -> 679190.2779 | S79: =VLOOKUP($A$1,未来カルテデータ!$A$3:$BHO$1048576,S62) -> 43421.45036 | T79: =VLOOKUP($A$1,未来カルテデータ!$A$3:$BHO$1048576,T62) -> 197413.9165 | U79: =VLOOKUP($A$1,未来カルテデータ!$A$3:$BHO$1048576,U62) -> 226039.5665 | V79: =VLOOKUP($A$1,未来カルテデータ!$A$3:$BHO$1048576,V62) -> 327987.2696
A80: 35～39歳 | B80: =VLOOKUP($A$1,未来カルテデータ!$A$3:$BHO$1048576,B63) -> 76740.9932 | C80: =VLOOKUP($A$1,未来カルテデータ!$A$3:$BHO$1048576,C63) -> 5689.838892 | D80: =VLOOKUP($A$1,未来カルテデータ!$A$3:$BHO$1048576,D63) -> 9176.372987 | E80: =VLOOKUP($A$1,未来カルテデータ!$A$3:$BHO$1048576,E63) -> 1340.619013 | F80: =VLOOKUP($A$1,未来カルテデータ!$A$3:$BHO$1048576,F63) -> 308552.6263 | G80: =VLOOKUP($A$1,未来カルテデータ!$A$3:$BHO$1048576,G63) -> 895392.4546 | H80: =VLOOKUP($A$1,未来カルテデータ!$A$3:$BHO$1048576,H63) -> 19475.76687 | I80: =VLOOKUP($A$1,未来カルテデータ!$A$3:$BHO$1048576,I63) -> 292811.2047 | J80: =VLOOKUP($A$1,未来カルテデータ!$A$3:$BHO$1048576,J63) -> 261324.7731 | K80: =VLOOKUP($A$1,未来カルテデータ!$A$3:$BHO$1048576,K63) -> 771751.0334 | L80: =VLOOKUP($A$1,未来カルテデータ!$A$3:$BHO$1048576,L63) -> 138822.4919 | M80: =VLOOKUP($A$1,未来カルテデータ!$A$3:$BHO$1048576,M63) -> 83908.89794 | N80: =VLOOKUP($A$1,未来カルテデータ!$A$3:$BHO$1048576,N63) -> 185537.9582 | O80: =VLOOKUP($A$1,未来カルテデータ!$A$3:$BHO$1048576,O63) -> 227577.1759 | P80: =VLOOKUP($A$1,未来カルテデータ!$A$3:$BHO$1048576,P63) -> 201051.9329 | Q80: =VLOOKUP($A$1,未来カルテデータ!$A$3:$BHO$1048576,Q63) -> 236340.8969 | R80: =VLOOKUP($A$1,未来カルテデータ!$A$3:$BHO$1048576,R63) -> 746221.2951 | S80: =VLOOKUP($A$1,未来カルテデータ!$A$3:$BHO$1048576,S63) -> 45514.61639 | T80: =VLOOKUP($A$1,未来カルテデータ!$A$3:$BHO$1048576,T63) -> 258419.8485 | U80: =VLOOKUP($A$1,未来カルテデータ!$A$3:$BHO$1048576,U63) -> 211204.7129 | V80: =VLOOKUP($A$1,未来カルテデータ!$A$3:$BHO$1048576,V63) -> 360803.4353
A81: 40～44歳 | B81: =VLOOKUP($A$1,未来カルテデータ!$A$3:$BHO$1048576,B64) -> 85488.81058 | C81: =VLOOKUP($A$1,未来カルテデータ!$A$3:$BHO$1048576,C64) -> 6379.036616 | D81: =VLOOKUP($A$1,未来カルテデータ!$A$3:$BHO$1048576,D64) -> 9469.15766 | E81: =VLOOKUP($A$1,未来カルテデータ!$A$3:$BHO$1048576,E64) -> 1710.238836 | F81: =VLOOKUP($A$1,未来カルテデータ!$A$3:$BHO$1048576,F64) -> 418462.3877 | G81: =VLOOKUP($A$1,未来カルテデータ!$A$3:$BHO$1048576,G64) -> 1047309.116 | H81: =VLOOKUP($A$1,未来カルテデータ!$A$3:$BHO$1048576,H64) -> 30714.29692 | I81: =VLOOKUP($A$1,未来カルテデータ!$A$3:$BHO$1048576,I64) -> 335426.4363 | J81: =VLOOKUP($A$1,未来カルテデータ!$A$3:$BHO$1048576,J64) -> 340547.2703 | K81: =VLOOKUP($A$1,未来カルテデータ!$A$3:$BHO$1048576,K64) -> 893571.6171 | L81: =VLOOKUP($A$1,未来カルテデータ!$A$3:$BHO$1048576,L64) -> 142507.348 | M81: =VLOOKUP($A$1,未来カルテデータ!$A$3:$BHO$1048576,M64) -> 100440.716 | N81: =VLOOKUP($A$1,未来カルテデータ!$A$3:$BHO$1048576,N64) -> 235813.6344 | O81: =VLOOKUP($A$1,未来カルテデータ!$A$3:$BHO$1048576,O64) -> 282970.3346 | P81: =VLOOKUP($A$1,未来カルテデータ!$A$3:$BHO$1048576,P64) -> 209241.7522 | Q81: =VLOOKUP($A$1,未来カルテデータ!$A$3:$BHO$1048576,Q64) -> 268654.714 | R81: =VLOOKUP($A$1,未来カルテデータ!$A$3:$BHO$1048576,R64) -> 864783.3026 | S81: =VLOOKUP($A$1,未来カルテデータ!$A$3:$BHO$1048576,S64) -> 56869.38693 | T81: =VLOOKUP($A$1,未来カルテデータ!$A$3:$BHO$1048576,T64) -> 333071.8571 | U81: =VLOOKUP($A$1,未来カルテデータ!$A$3:$BHO$1048576,U64) -> 234836.9044 | V81: =VLOOKUP($A$1,未来カルテデータ!$A$3:$BHO$1048576,V64) -> 372110.2421
A82: 45～49歳 | B82: =VLOOKUP($A$1,未来カルテデータ!$A$3:$BHO$1048576,B65) -> 92382.53154 | C82: =VLOOKUP($A$1,未来カルテデータ!$A$3:$BHO$1048576,C65) -> 6430.666756 | D82: =VLOOKUP($A$1,未来カルテデータ!$A$3:$BHO$1048576,D65) -> 10843.00845 | E82: =VLOOKUP($A$1,未来カルテデータ!$A$3:$BHO$1048576,E65) -> 2476.528926 | F82: =VLOOKUP($A$1,未来カルテデータ!$A$3:$BHO$1048576,F65) -> 552186.8085 | G82: =VLOOKUP($A$1,未来カルテデータ!$A$3:$BHO$1048576,G65) -> 1272776.714 | H82: =VLOOKUP($A$1,未来カルテデータ!$A$3:$BHO$1048576,H65) -> 44703.56293 | I82: =VLOOKUP($A$1,未来カルテデータ!$A$3:$BHO$1048576,I65) -> 304287.2883 | J82: =VLOOKUP($A$1,未来カルテデータ!$A$3:$BHO$1048576,J65) -> 462670.0261 | K82: =VLOOKUP($A$1,未来カルテデータ!$A$3:$BHO$1048576,K65) -> 1092127.777 | L82: =VLOOKUP($A$1,未来カルテデータ!$A$3:$BHO$1048576,L65) -> 200786.1641 | M82: =VLOOKUP($A$1,未来カルテデータ!$A$3:$BHO$1048576,M65) -> 121420.0839 | N82: =VLOOKUP($A$1,未来カルテデータ!$A$3:$BHO$1048576,N65) -> 274412.4503 | O82: =VLOOKUP($A$1,未来カルテデータ!$A$3:$BHO$1048576,O65) -> 339549.4264 | P82: =VLOOKUP($A$1,未来カルテデータ!$A$3:$BHO$1048576,P65) -> 217945.5322 | Q82: =VLOOKUP($A$1,未来カルテデータ!$A$3:$BHO$1048576,Q65) -> 324549.3478 | R82: =VLOOKUP($A$1,未来カルテデータ!$A$3:$BHO$1048576,R65) -> 929489.2566 | S82: =VLOOKUP($A$1,未来カルテデータ!$A$3:$BHO$1048576,S65) -> 77094.95672 | T82: =VLOOKUP($A$1,未来カルテデータ!$A$3:$BHO$1048576,T65) -> 413487.8985 | U82: =VLOOKUP($A$1,未来カルテデータ!$A$3:$BHO$1048576,U65) -> 291196.9043 | V82: =VLOOKUP($A$1,未来カルテデータ!$A$3:$BHO$1048576,V65) -> 393110.6949
A83: 50～54歳 | B83: =VLOOKUP($A$1,未来カルテデータ!$A$3:$BHO$1048576,B66) -> 92582.97852 | C83: =VLOOKUP($A$1,未来カルテデータ!$A$3:$BHO$1048576,C66) -> 5825.939438 | D83: =VLOOKUP($A$1,未来カルテデータ!$A$3:$BHO$1048576,D66) -> 12151.87882 | E83: =VLOOKUP($A$1,未来カルテデータ!$A$3:$BHO$1048576,E66) -> 2446.908157 | F83: =VLOOKUP($A$1,未来カルテデータ!$A$3:$BHO$1048576,F66) -> 466593.3612 | G83: =VLOOKUP($A$1,未来カルテデータ!$A$3:$BHO$1048576,G66) -> 1138156.837 | H83: =VLOOKUP($A$1,未来カルテデータ!$A$3:$BHO$1048576,H66) -> 41106.51187 | I83: =VLOOKUP($A$1,未来カルテデータ!$A$3:$BHO$1048576,I66) -> 246791.5151 | J83: =VLOOKUP($A$1,未来カルテデータ!$A$3:$BHO$1048576,J66) -> 430077.3434 | K83: =VLOOKUP($A$1,未来カルテデータ!$A$3:$BHO$1048576,K66) -> 959479.2789 | L83: =VLOOKUP($A$1,未来カルテデータ!$A$3:$BHO$1048576,L66) -> 222799.4163 | M83: =VLOOKUP($A$1,未来カルテデータ!$A$3:$BHO$1048576,M66) -> 110710.9892 | N83: =VLOOKUP($A$1,未来カルテデータ!$A$3:$BHO$1048576,N66) -> 233223.3144 | O83: =VLOOKUP($A$1,未来カルテデータ!$A$3:$BHO$1048576,O66) -> 280868.519 | P83: =VLOOKUP($A$1,未来カルテデータ!$A$3:$BHO$1048576,P66) -> 197858.4294 | Q83: =VLOOKUP($A$1,未来カルテデータ!$A$3:$BHO$1048576,Q66) -> 323429.9323 | R83: =VLOOKUP($A$1,未来カルテデータ!$A$3:$BHO$1048576,R66) -> 833300.3536 | S83: =VLOOKUP($A$1,未来カルテデータ!$A$3:$BHO$1048576,S66) -> 62150.346 | T83: =VLOOKUP($A$1,未来カルテデータ!$A$3:$BHO$1048576,T66) -> 369974.7352 | U83: =VLOOKUP($A$1,未来カルテデータ!$A$3:$BHO$1048576,U66) -> 253531.6671 | V83: =VLOOKUP($A$1,未来カルテデータ!$A$3:$BHO$1048576,V66) -> 322478.4379
A84: 55～59歳 | B84: =VLOOKUP($A$1,未来カルテデータ!$A$3:$BHO$1048576,B67) -> 116686.978 | C84: =VLOOKUP($A$1,未来カルテデータ!$A$3:$BHO$1048576,C67) -> 6970.19188 | D84: =VLOOKUP($A$1,未来カルテデータ!$A$3:$BHO$1048576,D67) -> 14489.83304 | E84: =VLOOKUP($A$1,未来カルテデータ!$A$3:$BHO$1048576,E67) -> 2513.75385 | F84: =VLOOKUP($A$1,未来カルテデータ!$A$3:$BHO$1048576,F67) -> 382839.936 | G84: =VLOOKUP($A$1,未来カルテデータ!$A$3:$BHO$1048576,G67) -> 929940.8333 | H84: =VLOOKUP($A$1,未来カルテデータ!$A$3:$BHO$1048576,H67) -> 32744.79709 | I84: =VLOOKUP($A$1,未来カルテデータ!$A$3:$BHO$1048576,I67) -> 186736.9514 | J84: =VLOOKUP($A$1,未来カルテデータ!$A$3:$BHO$1048576,J67) -> 362579.9295 | K84: =VLOOKUP($A$1,未来カルテデータ!$A$3:$BHO$1048576,K67) -> 830387.2503 | L84: =VLOOKUP($A$1,未来カルテデータ!$A$3:$BHO$1048576,L67) -> 204283.9009 | M84: =VLOOKUP($A$1,未来カルテデータ!$A$3:$BHO$1048576,M67) -> 104589.629 | N84: =VLOOKUP($A$1,未来カルテデータ!$A$3:$BHO$1048576,N67) -> 202628.7476 | O84: =VLOOKUP($A$1,未来カルテデータ!$A$3:$BHO$1048576,O67) -> 231051.405 | P84: =VLOOKUP($A$1,未来カルテデータ!$A$3:$BHO$1048576,P67) -> 173973.7121 | Q84: =VLOOKUP($A$1,未来カルテデータ!$A$3:$BHO$1048576,Q67) -> 353185.9566 | R84: =VLOOKUP($A$1,未来カルテデータ!$A$3:$BHO$1048576,R67) -> 770934.0457 | S84: =VLOOKUP($A$1,未来カルテデータ!$A$3:$BHO$1048576,S67) -> 63581.0392 | T84: =VLOOKUP($A$1,未来カルテデータ!$A$3:$BHO$1048576,T67) -> 338652.5016 | U84: =VLOOKUP($A$1,未来カルテデータ!$A$3:$BHO$1048576,U67) -> 211389.3254 | V84: =VLOOKUP($A$1,未来カルテデータ!$A$3:$BHO$1048576,V67) -> 235998.691
A85: 60～64歳 | B85: =VLOOKUP($A$1,未来カルテデータ!$A$3:$BHO$1048576,B68) -> 182965.7241 | C85: =VLOOKUP($A$1,未来カルテデータ!$A$3:$BHO$1048576,C68) -> 8478.961798 | D85: =VLOOKUP($A$1,未来カルテデータ!$A$3:$BHO$1048576,D68) -> 18370.77829 | E85: =VLOOKUP($A$1,未来カルテデータ!$A$3:$BHO$1048576,E68) -> 2155.605989 | F85: =VLOOKUP($A$1,未来カルテデータ!$A$3:$BHO$1048576,F68) -> 327830.8843 | G85: =VLOOKUP($A$1,未来カルテデータ!$A$3:$BHO$1048576,G68) -> 531182.2182 | H85: =VLOOKUP($A$1,未来カルテデータ!$A$3:$BHO$1048576,H68) -> 16318.17647 | I85: =VLOOKUP($A$1,未来カルテデータ!$A$3:$BHO$1048576,I68) -> 83273.17186 | J85: =VLOOKUP($A$1,未来カルテデータ!$A$3:$BHO$1048576,J68) -> 247481.2876 | K85: =VLOOKUP($A$1,未来カルテデータ!$A$3:$BHO$1048576,K68) -> 637479.5336 | L85: =VLOOKUP($A$1,未来カルテデータ!$A$3:$BHO$1048576,L68) -> 135365.1543 | M85: =VLOOKUP($A$1,未来カルテデータ!$A$3:$BHO$1048576,M68) -> 95204.33538 | N85: =VLOOKUP($A$1,未来カルテデータ!$A$3:$BHO$1048576,N68) -> 159931.3732 | O85: =VLOOKUP($A$1,未来カルテデータ!$A$3:$BHO$1048576,O68) -> 192072.4408 | P85: =VLOOKUP($A$1,未来カルテデータ!$A$3:$BHO$1048576,P68) -> 137579.6179 | Q85: =VLOOKUP($A$1,未来カルテデータ!$A$3:$BHO$1048576,Q68) -> 297539.7953 | R85: =VLOOKUP($A$1,未来カルテデータ!$A$3:$BHO$1048576,R68) -> 598891.9835 | S85: =VLOOKUP($A$1,未来カルテデータ!$A$3:$BHO$1048576,S68) -> 49653.99777 | T85: =VLOOKUP($A$1,未来カルテデータ!$A$3:$BHO$1048576,T68) -> 303084.0372 | U85: =VLOOKUP($A$1,未来カルテデータ!$A$3:$BHO$1048576,U68) -> 107358.2882 | V85: =VLOOKUP($A$1,未来カルテデータ!$A$3:$BHO$1048576,V68) -> 161786.6889
A86: 65～69歳 | B86: =VLOOKUP($A$1,未来カルテデータ!$A$3:$BHO$1048576,B69) -> 240642.7681 | C86: =VLOOKUP($A$1,未来カルテデータ!$A$3:$BHO$1048576,C69) -> 7024.621587 | D86: =VLOOKUP($A$1,未来カルテデータ!$A$3:$BHO$1048576,D69) -> 17196.29266 | E86: =VLOOKUP($A$1,未来カルテデータ!$A$3:$BHO$1048576,E69) -> 1413.989114 | F86: =VLOOKUP($A$1,未来カルテデータ!$A$3:$BHO$1048576,F69) -> 260794.0844 | G86: =VLOOKUP($A$1,未来カルテデータ!$A$3:$BHO$1048576,G69) -> 348438.235 | H86: =VLOOKUP($A$1,未来カルテデータ!$A$3:$BHO$1048576,H69) -> 5755.324037 | I86: =VLOOKUP($A$1,未来カルテデータ!$A$3:$BHO$1048576,I69) -> 37353.18756 | J86: =VLOOKUP($A$1,未来カルテデータ!$A$3:$BHO$1048576,J69) -> 159481.4739 | K86: =VLOOKUP($A$1,未来カルテデータ!$A$3:$BHO$1048576,K69) -> 459323.655 | L86: =VLOOKUP($A$1,未来カルテデータ!$A$3:$BHO$1048576,L69) -> 66805.53243 | M86: =VLOOKUP($A$1,未来カルテデータ!$A$3:$BHO$1048576,M69) -> 97691.88542 | N86: =VLOOKUP($A$1,未来カルテデータ!$A$3:$BHO$1048576,N69) -> 119535.4423 | O86: =VLOOKUP($A$1,未来カルテデータ!$A$3:$BHO$1048576,O69) -> 178966.2291 | P86: =VLOOKUP($A$1,未来カルテデータ!$A$3:$BHO$1048576,P69) -> 120608.3451 | Q86: =VLOOKUP($A$1,未来カルテデータ!$A$3:$BHO$1048576,Q69) -> 145561.9317 | R86: =VLOOKUP($A$1,未来カルテデータ!$A$3:$BHO$1048576,R69) -> 367733.5318 | S86: =VLOOKUP($A$1,未来カルテデータ!$A$3:$BHO$1048576,S69) -> 24215.26643 | T86: =VLOOKUP($A$1,未来カルテデータ!$A$3:$BHO$1048576,T69) -> 301386.6249 | U86: =VLOOKUP($A$1,未来カルテデータ!$A$3:$BHO$1048576,U69) -> 57734.17309 | V86: =VLOOKUP($A$1,未来カルテデータ!$A$3:$BHO$1048576,V69) -> 124537.2719
A87: 70～74歳 | B87: =VLOOKUP($A$1,未来カルテデータ!$A$3:$BHO$1048576,B70) -> 230489.0456 | C87: =VLOOKUP($A$1,未来カルテデータ!$A$3:$BHO$1048576,C70) -> 4278.281415 | D87: =VLOOKUP($A$1,未来カルテデータ!$A$3:$BHO$1048576,D70) -> 13192.98928 | E87: =VLOOKUP($A$1,未来カルテデータ!$A$3:$BHO$1048576,E70) -> 727.5117412 | F87: =VLOOKUP($A$1,未来カルテデータ!$A$3:$BHO$1048576,F70) -> 157339.3845 | G87: =VLOOKUP($A$1,未来カルテデータ!$A$3:$BHO$1048576,G70) -> 204133.0529 | H87: =VLOOKUP($A$1,未来カルテデータ!$A$3:$BHO$1048576,H70) -> 1915.348682 | I87: =VLOOKUP($A$1,未来カルテデータ!$A$3:$BHO$1048576,I70) -> 12732.05696 | J87: =VLOOKUP($A$1,未来カルテデータ!$A$3:$BHO$1048576,J70) -> 92468.70966 | K87: =VLOOKUP($A$1,未来カルテデータ!$A$3:$BHO$1048576,K70) -> 296046.391 | L87: =VLOOKUP($A$1,未来カルテデータ!$A$3:$BHO$1048576,L70) -> 24195.67302 | M87: =VLOOKUP($A$1,未来カルテデータ!$A$3:$BHO$1048576,M70) -> 87451.02127 | N87: =VLOOKUP($A$1,未来カルテデータ!$A$3:$BHO$1048576,N70) -> 79706.68568 | O87: =VLOOKUP($A$1,未来カルテデータ!$A$3:$BHO$1048576,O70) -> 148598.7583 | P87: =VLOOKUP($A$1,未来カルテデータ!$A$3:$BHO$1048576,P70) -> 100128.9157 | Q87: =VLOOKUP($A$1,未来カルテデータ!$A$3:$BHO$1048576,Q70) -> 64107.25753 | R87: =VLOOKUP($A$1,未来カルテデータ!$A$3:$BHO$1048576,R70) -> 200044.3047 | S87: =VLOOKUP($A$1,未来カルテデータ!$A$3:$BHO$1048576,S70) -> 5365.50596 | T87: =VLOOKUP($A$1,未来カルテデータ!$A$3:$BHO$1048576,T70) -> 235559.8746 | U87: =VLOOKUP($A$1,未来カルテデータ!$A$3:$BHO$1048576,U70) -> 17819.79612 | V87: =VLOOKUP($A$1,未来カルテデータ!$A$3:$BHO$1048576,V70) -> 112077.7755
A88: 75～79歳 | B88: =VLOOKUP($A$1,未来カルテデータ!$A$3:$BHO$1048576,B71) -> 137821.8642 | C88: =VLOOKUP($A$1,未来カルテデータ!$A$3:$BHO$1048576,C71) -> 1718.052308 | D88: =VLOOKUP($A$1,未来カルテデータ!$A$3:$BHO$1048576,D71) -> 6885.664838 | E88: =VLOOKUP($A$1,未来カルテデータ!$A$3:$BHO$1048576,E71) -> 237.8657429 | F88: =VLOOKUP($A$1,未来カルテデータ!$A$3:$BHO$1048576,F71) -> 54549.52224 | G88: =VLOOKUP($A$1,未来カルテデータ!$A$3:$BHO$1048576,G71) -> 89051.77711 | H88: =VLOOKUP($A$1,未来カルテデータ!$A$3:$BHO$1048576,H71) -> 491.5723859 | I88: =VLOOKUP($A$1,未来カルテデータ!$A$3:$BHO$1048576,I71) -> 3491.869364 | J88: =VLOOKUP($A$1,未来カルテデータ!$A$3:$BHO$1048576,J71) -> 27218.16646 | K88: =VLOOKUP($A$1,未来カルテデータ!$A$3:$BHO$1048576,K71) -> 130457.6235 | L88: =VLOOKUP($A$1,未来カルテデータ!$A$3:$BHO$1048576,L71) -> 8680.389021 | M88: =VLOOKUP($A$1,未来カルテデータ!$A$3:$BHO$1048576,M71) -> 45006.9787 | N88: =VLOOKUP($A$1,未来カルテデータ!$A$3:$BHO$1048576,N71) -> 32389.35212 | O88: =VLOOKUP($A$1,未来カルテデータ!$A$3:$BHO$1048576,O71) -> 59908.78537 | P88: =VLOOKUP($A$1,未来カルテデータ!$A$3:$BHO$1048576,P71) -> 56118.11844 | Q88: =VLOOKUP($A$1,未来カルテデータ!$A$3:$BHO$1048576,Q71) -> 23734.45494 | R88: =VLOOKUP($A$1,未来カルテデータ!$A$3:$BHO$1048576,R71) -> 70078.79751 | S88: =VLOOKUP($A$1,未来カルテデータ!$A$3:$BHO$1048576,S71) -> 1346.59893 | T88: =VLOOKUP($A$1,未来カルテデータ!$A$3:$BHO$1048576,T71) -> 110293.5028 | U88: =VLOOKUP($A$1,未来カルテデータ!$A$3:$BHO$1048576,U71) -> 4202.668101 | V88: =VLOOKUP($A$1,未来カルテデータ!$A$3:$BHO$1048576,V71) -> 73283.10639
A89: 80～84歳 | B89: =VLOOKUP($A$1,未来カルテデータ!$A$3:$BHO$1048576,B72) -> 80284.32914 | C89: =VLOOKUP($A$1,未来カルテデータ!$A$3:$BHO$1048576,C72) -> 690.8234404 | D89: =VLOOKUP($A$1,未来カルテデータ!$A$3:$BHO$1048576,D72) -> 3550.04751 | E89: =VLOOKUP($A$1,未来カルテデータ!$A$3:$BHO$1048576,E72) -> 79.86313793 | F89: =VLOOKUP($A$1,未来カルテデータ!$A$3:$BHO$1048576,F72) -> 16250.91558 | G89: =VLOOKUP($A$1,未来カルテデータ!$A$3:$BHO$1048576,G72) -> 32317.40327 | H89: =VLOOKUP($A$1,未来カルテデータ!$A$3:$BHO$1048576,H72) -> 146.7511463 | I89: =VLOOKUP($A$1,未来カルテデータ!$A$3:$BHO$1048576,I72) -> 1237.021802 | J89: =VLOOKUP($A$1,未来カルテデータ!$A$3:$BHO$1048576,J72) -> 6642.996801 | K89: =VLOOKUP($A$1,未来カルテデータ!$A$3:$BHO$1048576,K72) -> 53786.27036 | L89: =VLOOKUP($A$1,未来カルテデータ!$A$3:$BHO$1048576,L72) -> 2811.660914 | M89: =VLOOKUP($A$1,未来カルテデータ!$A$3:$BHO$1048576,M72) -> 22777.54733 | N89: =VLOOKUP($A$1,未来カルテデータ!$A$3:$BHO$1048576,N72) -> 12437.47663 | O89: =VLOOKUP($A$1,未来カルテデータ!$A$3:$BHO$1048576,O72) -> 17983.09444 | P89: =VLOOKUP($A$1,未来カルテデータ!$A$3:$BHO$1048576,P72) -> 24896.94654 | Q89: =VLOOKUP($A$1,未来カルテデータ!$A$3:$BHO$1048576,Q72) -> 8263.107871 | R89: =VLOOKUP($A$1,未来カルテデータ!$A$3:$BHO$1048576,R72) -> 20489.71866 | S89: =VLOOKUP($A$1,未来カルテデータ!$A$3:$BHO$1048576,S72) -> 349.3507639 | T89: =VLOOKUP($A$1,未来カルテデータ!$A$3:$BHO$1048576,T72) -> 35184.56705 | U89: =VLOOKUP($A$1,未来カルテデータ!$A$3:$BHO$1048576,U72) -> 847.3099157 | V89: =VLOOKUP($A$1,未来カルテデータ!$A$3:$BHO$1048576,V72) -> 48458.7993
A90: 85歳以上 | B90: =VLOOKUP($A$1,未来カルテデータ!$A$3:$BHO$1048576,B73) -> 46301.37573 | C90: =VLOOKUP($A$1,未来カルテデータ!$A$3:$BHO$1048576,C73) -> 273.6566131 | D90: =VLOOKUP($A$1,未来カルテデータ!$A$3:$BHO$1048576,D73) -> 1736.490791 | E90: =VLOOKUP($A$1,未来カルテデータ!$A$3:$BHO$1048576,E73) -> 35.00897774 | F90: =VLOOKUP($A$1,未来カルテデータ!$A$3:$BHO$1048576,F73) -> 5798.978554 | G90: =VLOOKUP($A$1,未来カルテデータ!$A$3:$BHO$1048576,G73) -> 13062.26811 | H90: =VLOOKUP($A$1,未来カルテデータ!$A$3:$BHO$1048576,H73) -> 36.68746629 | I90: =VLOOKUP($A$1,未来カルテデータ!$A$3:$BHO$1048576,I73) -> 711.4175763 | J90: =VLOOKUP($A$1,未来カルテデータ!$A$3:$BHO$1048576,J73) -> 1946.081388 | K90: =VLOOKUP($A$1,未来カルテデータ!$A$3:$BHO$1048576,K73) -> 26820.99849 | L90: =VLOOKUP($A$1,未来カルテデータ!$A$3:$BHO$1048576,L73) -> 1105.171826 | M90: =VLOOKUP($A$1,未来カルテデータ!$A$3:$BHO$1048576,M73) -> 18138.11681 | N90: =VLOOKUP($A$1,未来カルテデータ!$A$3:$BHO$1048576,N73) -> 7423.241259 | O90: =VLOOKUP($A$1,未来カルテデータ!$A$3:$BHO$1048576,O73) -> 6386.18088 | P90: =VLOOKUP($A$1,未来カルテデータ!$A$3:$BHO$1048576,P73) -> 9932.647697 | Q90: =VLOOKUP($A$1,未来カルテデータ!$A$3:$BHO$1048576,Q73) -> 4617.961233 | R90: =VLOOKUP($A$1,未来カルテデータ!$A$3:$BHO$1048576,R73) -> 9247.354446 | S90: =VLOOKUP($A$1,未来カルテデータ!$A$3:$BHO$1048576,S73) -> 125.677062 | T90: =VLOOKUP($A$1,未来カルテデータ!$A$3:$BHO$1048576,T73) -> 11960.11112 | U90: =VLOOKUP($A$1,未来カルテデータ!$A$3:$BHO$1048576,U73) -> 198.1990311 | V90: =VLOOKUP($A$1,未来カルテデータ!$A$3:$BHO$1048576,V73) -> 33344.89851
B91: =SUM(B76:B90) -> 1528666.462 | C91: =SUM(C76:C90) -> 63674.51397 | D91: 137818.5436 | E91: 17860.11802 | F91: 3615901.458 | G91: 8634757.111 | H91: 261050.8977 | I91: 2029193.046 | J91: 2905618.978 | K91: 8146992.841 | L91: 1467301.926 | M91: 1056792.327 | N91: 1842564.992 | O91: 3041918.012 | P91: 2079449.607 | Q91: 2726620.954 | R91: 7196363.219 | S91: 494103.7906 | T91: 3233192.349 | U91: 1991520.76 | V91: 3229603.01
B93: =B59+$B$58 -> 709 | C93: 710 | D93: 711 | E93: 712 | F93: 713 | G93: 714 | H93: 715 | I93: 716 | J93: 717 | K93: 718 | L93: 719 | M93: 720 | N93: 721 | O93: 722 | P93: 723 | Q93: 724 | R93: 725 | S93: 726 | T93: 727 | U93: 728 | V93: 729
B94: 730 | C94: 731 | D94: 732 | E94: 733 | F94: 734 | G94: 735 | H94: 736 | I94: 737 | J94: 738 | K94: 739 | L94: 740 | M94: 741 | N94: 742 | O94: 743 | P94: 744 | Q94: 745 | R94: 746 | S94: 747 | T94: 748 | U94: 749 | V94: 750
B95: 751 | C95: 752 | D95: 753 | E95: 754 | F95: 755 | G95: 756 | H95: 757 | I95: 758 | J95: 759 | K95: 760 | L95: 761 | M95: 762 | N95: 763 | O95: 764 | P95: 765 | Q95: 766 | R95: 767 | S95: 768 | T95: 769 | U95: 770 | V95: 771
B96: 772 | C96: 773 | D96: 774 | E96: 775 | F96: 776 | G96: 777 | H96: 778 | I96: 779 | J96: 780 | K96: 781 | L96: 782 | M96: 783 | N96: 784 | O96: 785 | P96: 786 | Q96: 787 | R96: 788 | S96: 789 | T96: 790 | U96: 791 | V96: 792
B97: 793 | C97: 794 | D97: 795 | E97: 796 | F97: 797 | G97: 798 | H97: 799 | I97: 800 | J97: 801 | K97: 802 | L97: 803 | M97: 804 | N97: 805 | O97: 806 | P97: 807 | Q97: 808 | R97: 809 | S97: 810 | T97: 811 | U97: 812 | V97: 813
B98: 814 | C98: 815 | D98: 816 | E98: 817 | F98: 818 | G98: 819 | H98: 820 | I98: 821 | J98: 822 | K98: 823 | L98: 824 | M98: 825 | N98: 826 | O98: 827 | P98: 828 | Q98: 829 | R98: 830 | S98: 831 | T98: 832 | U98: 833 | V98: 834
B99: 835 | C99: 836 | D99: 837 | E99: 838 | F99: 839 | G99: 840 | H99: 841 | I99: 842 | J99: 843 | K99: 844 | L99: 845 | M99: 846 | N99: 847 | O99: 848 | P99: 849 | Q99: 850 | R99: 851 | S99: 852 | T99: 853 | U99: 854 | V99: 855
B100: 856 | C100: 857 | D100: 858 | E100: 859 | F100: 860 | G100: 861 | H100: 862 | I100: 863 | J100: 864 | K100: 865 | L100: 866 | M100: 867 | N100: 868 | O100: 869 | P100: 870 | Q100: 871 | R100: 872 | S100: 873 | T100: 874 | U100: 875 | V100: 876
B101: 877 | C101: 878 | D101: 879 | E101: 880 | F101: 881 | G101: 882 | H101: 883 | I101: 884 | J101: 885 | K101: 886 | L101: 887 | M101: 888 | N101: 889 | O101: 890 | P101: 891 | Q101: 892 | R101: 893 | S101: 894 | T101: 895 | U101: 896 | V101: 897
B102: 898 | C102: 899 | D102: 900 | E102: 901 | F102: 902 | G102: 903 | H102: 904 | I102: 905 | J102: 906 | K102: 907 | L102: 908 | M102: 909 | N102: 910 | O102: 911 | P102: 912 | Q102: 913 | R102: 914 | S102: 915 | T102: 916 | U102: 917 | V102: 918
B103: 919 | C103: 920 | D103: 921 | E103: 922 | F103: 923 | G103: 924 | H103: 925 | I103: 926 | J103: 927 | K103: 928 | L103: 929 | M103: 930 | N103: 931 | O103: 932 | P103: 933 | Q103: 934 | R103: 935 | S103: 936 | T103: 937 | U103: 938 | V103: 939
B104: 940 | C104: 941 | D104: 942 | E104: 943 | F104: 944 | G104: 945 | H104: 946 | I104: 947 | J104: 948 | K104: 949 | L104: 950 | M104: 951 | N104: 952 | O104: 953 | P104: 954 | Q104: 955 | R104: 956 | S104: 957 | T104: 958 | U104: 959 | V104: 960
B105: 961 | C105: 962 | D105: 963 | E105: =E71+$B$58 -> 964 | F105: 965 | G105: 966 | H105: 967 | I105: 968 | J105: 969 | K105: 970 | L105: 971 | M105: 972 | N105: 973 | O105: 974 | P105: 975 | Q105: 976 | R105: 977 | S105: 978 | T105: 979 | U105: 980 | V105: 981
B106: =B72+$B$58 -> 982 | C106: 983 | D106: 984 | E106: 985 | F106: 986 | G106: 987 | H106: 988 | I106: 989 | J106: 990 | K106: 991 | L106: 992 | M106: 993 | N106: 994 | O106: 995 | P106: 996 | Q106: 997 | R106: 998 | S106: 999 | T106: 1000 | U106: 1001 | V106: 1002
B107: 1003 | C107: 1004 | D107: 1005 | E107: 1006 | F107: 1007 | G107: 1008 | H107: 1009 | I107: 1010 | J107: 1011 | K107: 1012 | L107: 1013 | M107: 1014 | N107: 1015 | O107: 1016 | P107: 1017 | Q107: 1018 | R107: 1019 | S107: 1020 | T107: 1021 | U107: 1022 | V107: 1023
A109: 2030 | B109: A1 農業 | C109: A2 林業 | D109: Ｂ 漁業 | E109: Ｃ 鉱業，採石業，砂利採取業 | F109: Ｄ 建設業 | G109: Ｅ 製造業 | H109: Ｆ 電気・ガス・熱供給・水道業 | I109: Ｇ 情報通信業 | J109: Ｈ 運輸業，郵便業 | K109: Ｉ 卸売業，小売業 | L109: Ｊ 金融業，保険業 | M109: Ｋ 不動産業，物品賃貸業 | N109: Ｌ 学術研究，専門・技術サービス業 | O109: Ｍ 宿泊業，飲食サービス業 | P109: Ｎ 生活関連サービス業，娯楽業 | Q109: Ｏ 教育，学習支援業 | R109: Ｐ 医療，福祉 | S109: Ｑ 複合サービス事業 | T109: Ｒ サービス業（他に分類されないもの） | U109: Ｓ 公務（他に分類されるものを除く） | V109: Ｔ 分類不能の産業
A110: 15～19歳 | B110: =VLOOKUP($A$1,未来カルテデータ!$A$3:$BHO$1048576,B93) -> 4544.825826 | C110: =VLOOKUP($A$1,未来カルテデータ!$A$3:$BHO$1048576,C93) -> 321.2217394 | D110: =VLOOKUP($A$1,未来カルテデータ!$A$3:$BHO$1048576,D93) -> 940.8123254 | E110: =VLOOKUP($A$1,未来カルテデータ!$A$3:$BHO$1048576,E93) -> 89.35350983 | F110: =VLOOKUP($A$1,未来カルテデータ!$A$3:$BHO$1048576,F93) -> 35115.78372 | G110: =VLOOKUP($A$1,未来カルテデータ!$A$3:$BHO$1048576,G93) -> 88100.81175 | H110: =VLOOKUP($A$1,未来カルテデータ!$A$3:$BHO$1048576,H93) -> 1868.026233 | I110: =VLOOKUP($A$1,未来カルテデータ!$A$3:$BHO$1048576,I93) -> 2287.090819 | J110: =VLOOKUP($A$1,未来カルテデータ!$A$3:$BHO$1048576,J93) -> 16353.62777 | K110: =VLOOKUP($A$1,未来カルテデータ!$A$3:$BHO$1048576,K93) -> 154519.6229 | L110: =VLOOKUP($A$1,未来カルテデータ!$A$3:$BHO$1048576,L93) -> 1872.218582 | M110: =VLOOKUP($A$1,未来カルテデータ!$A$3:$BHO$1048576,M93) -> 3745.114893 | N110: =VLOOKUP($A$1,未来カルテデータ!$A$3:$BHO$1048576,N93) -> 3923.955638 | O110: =VLOOKUP($A$1,未来カルテデータ!$A$3:$BHO$1048576,O93) -> 171133.2413 | P110: =VLOOKUP($A$1,未来カルテデータ!$A$3:$BHO$1048576,P93) -> 25887.4851 | Q110: =VLOOKUP($A$1,未来カルテデータ!$A$3:$BHO$1048576,Q93) -> 23294.96135 | R110: =VLOOKUP($A$1,未来カルテデータ!$A$3:$BHO$1048576,R93) -> 23588.73332 | S110: =VLOOKUP($A$1,未来カルテデータ!$A$3:$BHO$1048576,S93) -> 2903.747633 | T110: =VLOOKUP($A$1,未来カルテデータ!$A$3:$BHO$1048576,T93) -> 18627.0916 | U110: =VLOOKUP($A$1,未来カルテデータ!$A$3:$BHO$1048576,U93) -> 15326.49459 | V110: =VLOOKUP($A$1,未来カルテデータ!$A$3:$BHO$1048576,V93) -> 50266.98023
A111: 20～24歳 | B111: =VLOOKUP($A$1,未来カルテデータ!$A$3:$BHO$1048576,B94) -> 27166.2954 | C111: =VLOOKUP($A$1,未来カルテデータ!$A$3:$BHO$1048576,C94) -> 1740.222914 | D111: =VLOOKUP($A$1,未来カルテデータ!$A$3:$BHO$1048576,D94) -> 4169.836295 | E111: =VLOOKUP($A$1,未来カルテデータ!$A$3:$BHO$1048576,E94) -> 544.0266492 | F111: =VLOOKUP($A$1,未来カルテデータ!$A$3:$BHO$1048576,F94) -> 148658.8389 | G111: =VLOOKUP($A$1,未来カルテデータ!$A$3:$BHO$1048576,G94) -> 459980.5256 | H111: =VLOOKUP($A$1,未来カルテデータ!$A$3:$BHO$1048576,H94) -> 13478.74579 | I111: =VLOOKUP($A$1,未来カルテデータ!$A$3:$BHO$1048576,I94) -> 79829.36228 | J111: =VLOOKUP($A$1,未来カルテデータ!$A$3:$BHO$1048576,J94) -> 92812.6681 | K111: =VLOOKUP($A$1,未来カルテデータ!$A$3:$BHO$1048576,K94) -> 547425.5042 | L111: =VLOOKUP($A$1,未来カルテデータ!$A$3:$BHO$1048576,L94) -> 68800.67605 | M111: =VLOOKUP($A$1,未来カルテデータ!$A$3:$BHO$1048576,M94) -> 37979.70934 | N111: =VLOOKUP($A$1,未来カルテデータ!$A$3:$BHO$1048576,N94) -> 57994.23212 | O111: =VLOOKUP($A$1,未来カルテデータ!$A$3:$BHO$1048576,O94) -> 327034.202 | P111: =VLOOKUP($A$1,未来カルテデータ!$A$3:$BHO$1048576,P94) -> 157200.812 | Q111: =VLOOKUP($A$1,未来カルテデータ!$A$3:$BHO$1048576,Q94) -> 156381.6815 | R111: =VLOOKUP($A$1,未来カルテデータ!$A$3:$BHO$1048576,R94) -> 402671.2171 | S111: =VLOOKUP($A$1,未来カルテデータ!$A$3:$BHO$1048576,S94) -> 22707.34421 | T111: =VLOOKUP($A$1,未来カルテデータ!$A$3:$BHO$1048576,T94) -> 113906.7409 | U111: =VLOOKUP($A$1,未来カルテデータ!$A$3:$BHO$1048576,U94) -> 109091.6092 | V111: =VLOOKUP($A$1,未来カルテデータ!$A$3:$BHO$1048576,V94) -> 228264.5336
A112: 25～29歳 | B112: =VLOOKUP($A$1,未来カルテデータ!$A$3:$BHO$1048576,B95) -> 45826.65053 | C112: =VLOOKUP($A$1,未来カルテデータ!$A$3:$BHO$1048576,C95) -> 2952.489483 | D112: =VLOOKUP($A$1,未来カルテデータ!$A$3:$BHO$1048576,D95) -> 6740.346922 | E112: =VLOOKUP($A$1,未来カルテデータ!$A$3:$BHO$1048576,E95) -> 746.9308828 | F112: =VLOOKUP($A$1,未来カルテデータ!$A$3:$BHO$1048576,F95) -> 207613.9269 | G112: =VLOOKUP($A$1,未来カルテデータ!$A$3:$BHO$1048576,G95) -> 661840.8581 | H112: =VLOOKUP($A$1,未来カルテデータ!$A$3:$BHO$1048576,H95) -> 25611.8726 | I112: =VLOOKUP($A$1,未来カルテデータ!$A$3:$BHO$1048576,I95) -> 171757.7007 | J112: =VLOOKUP($A$1,未来カルテデータ!$A$3:$BHO$1048576,J95) -> 175443.8726 | K112: =VLOOKUP($A$1,未来カルテデータ!$A$3:$BHO$1048576,K95) -> 514882.8179 | L112: =VLOOKUP($A$1,未来カルテデータ!$A$3:$BHO$1048576,L95) -> 97993.5415 | M112: =VLOOKUP($A$1,未来カルテデータ!$A$3:$BHO$1048576,M95) -> 54005.36141 | N112: =VLOOKUP($A$1,未来カルテデータ!$A$3:$BHO$1048576,N95) -> 82362.52825 | O112: =VLOOKUP($A$1,未来カルテデータ!$A$3:$BHO$1048576,O95) -> 303755.8296 | P112: =VLOOKUP($A$1,未来カルテデータ!$A$3:$BHO$1048576,P95) -> 224692.4371 | Q112: =VLOOKUP($A$1,未来カルテデータ!$A$3:$BHO$1048576,Q95) -> 223955.5617 | R112: =VLOOKUP($A$1,未来カルテデータ!$A$3:$BHO$1048576,R95) -> 578197.5019 | S112: =VLOOKUP($A$1,未来カルテデータ!$A$3:$BHO$1048576,S95) -> 32673.9115 | T112: =VLOOKUP($A$1,未来カルテデータ!$A$3:$BHO$1048576,T95) -> 162599.0931 | U112: =VLOOKUP($A$1,未来カルテデータ!$A$3:$BHO$1048576,U95) -> 216119.6133 | V112: =VLOOKUP($A$1,未来カルテデータ!$A$3:$BHO$1048576,V95) -> 325363.0801
A113: 30～34歳 | B113: =VLOOKUP($A$1,未来カルテデータ!$A$3:$BHO$1048576,B96) -> 61657.48352 | C113: =VLOOKUP($A$1,未来カルテデータ!$A$3:$BHO$1048576,C96) -> 4054.05638 | D113: =VLOOKUP($A$1,未来カルテデータ!$A$3:$BHO$1048576,D96) -> 9039.078635 | E113: =VLOOKUP($A$1,未来カルテデータ!$A$3:$BHO$1048576,E96) -> 782.5734912 | F113: =VLOOKUP($A$1,未来カルテデータ!$A$3:$BHO$1048576,F96) -> 217290.6589 | G113: =VLOOKUP($A$1,未来カルテデータ!$A$3:$BHO$1048576,G96) -> 699565.9498 | H113: =VLOOKUP($A$1,未来カルテデータ!$A$3:$BHO$1048576,H96) -> 27614.35351 | I113: =VLOOKUP($A$1,未来カルテデータ!$A$3:$BHO$1048576,I96) -> 230334.9713 | J113: =VLOOKUP($A$1,未来カルテデータ!$A$3:$BHO$1048576,J96) -> 213597.6008 | K113: =VLOOKUP($A$1,未来カルテデータ!$A$3:$BHO$1048576,K96) -> 492264.6981 | L113: =VLOOKUP($A$1,未来カルテデータ!$A$3:$BHO$1048576,L96) -> 100656.4921 | M113: =VLOOKUP($A$1,未来カルテデータ!$A$3:$BHO$1048576,M96) -> 55380.35958 | N113: =VLOOKUP($A$1,未来カルテデータ!$A$3:$BHO$1048576,N96) -> 84214.28091 | O113: =VLOOKUP($A$1,未来カルテデータ!$A$3:$BHO$1048576,O96) -> 288749.5312 | P113: =VLOOKUP($A$1,未来カルテデータ!$A$3:$BHO$1048576,P96) -> 231130.2404 | Q113: =VLOOKUP($A$1,未来カルテデータ!$A$3:$BHO$1048576,Q96) -> 230674.0008 | R113: =VLOOKUP($A$1,未来カルテデータ!$A$3:$BHO$1048576,R96) -> 599680.3811 | S113: =VLOOKUP($A$1,未来カルテデータ!$A$3:$BHO$1048576,S96) -> 34011.38351 | T113: =VLOOKUP($A$1,未来カルテデータ!$A$3:$BHO$1048576,T96) -> 167526.4617 | U113: =VLOOKUP($A$1,未来カルテデータ!$A$3:$BHO$1048576,U96) -> 241480.1279 | V113: =VLOOKUP($A$1,未来カルテデータ!$A$3:$BHO$1048576,V96) -> 334116.4331
A114: 35～39歳 | B114: =VLOOKUP($A$1,未来カルテデータ!$A$3:$BHO$1048576,B97) -> 72817.29488 | C114: =VLOOKUP($A$1,未来カルテデータ!$A$3:$BHO$1048576,C97) -> 4868.570033 | D114: =VLOOKUP($A$1,未来カルテデータ!$A$3:$BHO$1048576,D97) -> 10645.48414 | E114: =VLOOKUP($A$1,未来カルテデータ!$A$3:$BHO$1048576,E97) -> 755.2281423 | F114: =VLOOKUP($A$1,未来カルテデータ!$A$3:$BHO$1048576,F97) -> 208458.6942 | G114: =VLOOKUP($A$1,未来カルテデータ!$A$3:$BHO$1048576,G97) -> 686384.5007 | H114: =VLOOKUP($A$1,未来カルテデータ!$A$3:$BHO$1048576,H97) -> 27418.68277 | I114: =VLOOKUP($A$1,未来カルテデータ!$A$3:$BHO$1048576,I97) -> 302777.4318 | J114: =VLOOKUP($A$1,未来カルテデータ!$A$3:$BHO$1048576,J97) -> 251646.1988 | K114: =VLOOKUP($A$1,未来カルテデータ!$A$3:$BHO$1048576,K97) -> 485910.0472 | L114: =VLOOKUP($A$1,未来カルテデータ!$A$3:$BHO$1048576,L97) -> 103394.8576 | M114: =VLOOKUP($A$1,未来カルテデータ!$A$3:$BHO$1048576,M97) -> 56915.61263 | N114: =VLOOKUP($A$1,未来カルテデータ!$A$3:$BHO$1048576,N97) -> 86342.95404 | O114: =VLOOKUP($A$1,未来カルテデータ!$A$3:$BHO$1048576,O97) -> 284335.0585 | P114: =VLOOKUP($A$1,未来カルテデータ!$A$3:$BHO$1048576,P97) -> 238182.0644 | Q114: =VLOOKUP($A$1,未来カルテデータ!$A$3:$BHO$1048576,Q97) -> 238059.6294 | R114: =VLOOKUP($A$1,未来カルテデータ!$A$3:$BHO$1048576,R97) -> 622042.7305 | S114: =VLOOKUP($A$1,未来カルテデータ!$A$3:$BHO$1048576,S97) -> 35424.19102 | T114: =VLOOKUP($A$1,未来カルテデータ!$A$3:$BHO$1048576,T97) -> 172853.7511 | U114: =VLOOKUP($A$1,未来カルテデータ!$A$3:$BHO$1048576,U97) -> 245709.7531 | V114: =VLOOKUP($A$1,未来カルテデータ!$A$3:$BHO$1048576,V97) -> 343819.5584
A115: 40～44歳 | B115: =VLOOKUP($A$1,未来カルテデータ!$A$3:$BHO$1048576,B98) -> 76322.69583 | C115: =VLOOKUP($A$1,未来カルテデータ!$A$3:$BHO$1048576,C98) -> 5621.089328 | D115: =VLOOKUP($A$1,未来カルテデータ!$A$3:$BHO$1048576,D98) -> 9292.380069 | E115: =VLOOKUP($A$1,未来カルテデータ!$A$3:$BHO$1048576,E98) -> 1014.817552 | F115: =VLOOKUP($A$1,未来カルテデータ!$A$3:$BHO$1048576,F98) -> 202219.8132 | G115: =VLOOKUP($A$1,未来カルテデータ!$A$3:$BHO$1048576,G98) -> 757778.6519 | H115: =VLOOKUP($A$1,未来カルテデータ!$A$3:$BHO$1048576,H98) -> 21511.57503 | I115: =VLOOKUP($A$1,未来カルテデータ!$A$3:$BHO$1048576,I98) -> 380585.7124 | J115: =VLOOKUP($A$1,未来カルテデータ!$A$3:$BHO$1048576,J98) -> 259919.717 | K115: =VLOOKUP($A$1,未来カルテデータ!$A$3:$BHO$1048576,K98) -> 622056.6666 | L115: =VLOOKUP($A$1,未来カルテデータ!$A$3:$BHO$1048576,L98) -> 139508.6658 | M115: =VLOOKUP($A$1,未来カルテデータ!$A$3:$BHO$1048576,M98) -> 67060.76369 | N115: =VLOOKUP($A$1,未来カルテデータ!$A$3:$BHO$1048576,N98) -> 146328.2797 | O115: =VLOOKUP($A$1,未来カルテデータ!$A$3:$BHO$1048576,O98) -> 181630.2567 | P115: =VLOOKUP($A$1,未来カルテデータ!$A$3:$BHO$1048576,P98) -> 194579.3977 | Q115: =VLOOKUP($A$1,未来カルテデータ!$A$3:$BHO$1048576,Q98) -> 250969.7635 | R115: =VLOOKUP($A$1,未来カルテデータ!$A$3:$BHO$1048576,R98) -> 733802.7569 | S115: =VLOOKUP($A$1,未来カルテデータ!$A$3:$BHO$1048576,S98) -> 47265.96805 | T115: =VLOOKUP($A$1,未来カルテデータ!$A$3:$BHO$1048576,T98) -> 208223.5062 | U115: =VLOOKUP($A$1,未来カルテデータ!$A$3:$BHO$1048576,U98) -> 227129.1251 | V115: =VLOOKUP($A$1,未来カルテデータ!$A$3:$BHO$1048576,V98) -> 341858.8744
A116: 45～49歳 | B116: =VLOOKUP($A$1,未来カルテデータ!$A$3:$BHO$1048576,B99) -> 86481.02134 | C116: =VLOOKUP($A$1,未来カルテデータ!$A$3:$BHO$1048576,C99) -> 6560.969965 | D116: =VLOOKUP($A$1,未来カルテデータ!$A$3:$BHO$1048576,D99) -> 10117.11514 | E116: =VLOOKUP($A$1,未来カルテデータ!$A$3:$BHO$1048576,E99) -> 1136.316758 | F116: =VLOOKUP($A$1,未来カルテデータ!$A$3:$BHO$1048576,F99) -> 261902.8689 | G116: =VLOOKUP($A$1,未来カルテデータ!$A$3:$BHO$1048576,G99) -> 811004.717 | H116: =VLOOKUP($A$1,未来カルテデータ!$A$3:$BHO$1048576,H99) -> 18296.1292 | I116: =VLOOKUP($A$1,未来カルテデータ!$A$3:$BHO$1048576,I99) -> 415380.0994 | J116: =VLOOKUP($A$1,未来カルテデータ!$A$3:$BHO$1048576,J99) -> 314887.2279 | K116: =VLOOKUP($A$1,未来カルテデータ!$A$3:$BHO$1048576,K99) -> 726835.2059 | L116: =VLOOKUP($A$1,未来カルテデータ!$A$3:$BHO$1048576,L99) -> 147341.9762 | M116: =VLOOKUP($A$1,未来カルテデータ!$A$3:$BHO$1048576,M99) -> 89956.56337 | N116: =VLOOKUP($A$1,未来カルテデータ!$A$3:$BHO$1048576,N99) -> 197664.9688 | O116: =VLOOKUP($A$1,未来カルテデータ!$A$3:$BHO$1048576,O99) -> 214399.2386 | P116: =VLOOKUP($A$1,未来カルテデータ!$A$3:$BHO$1048576,P99) -> 219633.718 | Q116: =VLOOKUP($A$1,未来カルテデータ!$A$3:$BHO$1048576,Q99) -> 258437.2131 | R116: =VLOOKUP($A$1,未来カルテデータ!$A$3:$BHO$1048576,R99) -> 819415.7854 | S116: =VLOOKUP($A$1,未来カルテデータ!$A$3:$BHO$1048576,S99) -> 50077.87327 | T116: =VLOOKUP($A$1,未来カルテデータ!$A$3:$BHO$1048576,T99) -> 279508.5773 | U116: =VLOOKUP($A$1,未来カルテデータ!$A$3:$BHO$1048576,U99) -> 211895.6062 | V116: =VLOOKUP($A$1,未来カルテデータ!$A$3:$BHO$1048576,V99) -> 386875.5914
A117: 50～54歳 | B117: =VLOOKUP($A$1,未来カルテデータ!$A$3:$BHO$1048576,B100) -> 94247.58346 | C117: =VLOOKUP($A$1,未来カルテデータ!$A$3:$BHO$1048576,C100) -> 7184.497 | D117: =VLOOKUP($A$1,未来カルテデータ!$A$3:$BHO$1048576,D100) -> 10243.8084 | E117: =VLOOKUP($A$1,未来カルテデータ!$A$3:$BHO$1048576,E100) -> 1467.31287 | F117: =VLOOKUP($A$1,未来カルテデータ!$A$3:$BHO$1048576,F100) -> 357875.9519 | G117: =VLOOKUP($A$1,未来カルテデータ!$A$3:$BHO$1048576,G100) -> 909417.8995 | H117: =VLOOKUP($A$1,未来カルテデータ!$A$3:$BHO$1048576,H100) -> 28524.9539 | I117: =VLOOKUP($A$1,未来カルテデータ!$A$3:$BHO$1048576,I100) -> 418777.0711 | J117: =VLOOKUP($A$1,未来カルテデータ!$A$3:$BHO$1048576,J100) -> 378059.4372 | K117: =VLOOKUP($A$1,未来カルテデータ!$A$3:$BHO$1048576,K100) -> 809752.6894 | L117: =VLOOKUP($A$1,未来カルテデータ!$A$3:$BHO$1048576,L100) -> 149566.0464 | M117: =VLOOKUP($A$1,未来カルテデータ!$A$3:$BHO$1048576,M100) -> 106378.7223 | N117: =VLOOKUP($A$1,未来カルテデータ!$A$3:$BHO$1048576,N100) -> 248868.3518 | O117: =VLOOKUP($A$1,未来カルテデータ!$A$3:$BHO$1048576,O100) -> 256817.5975 | P117: =VLOOKUP($A$1,未来カルテデータ!$A$3:$BHO$1048576,P100) -> 223055.669 | Q117: =VLOOKUP($A$1,未来カルテデータ!$A$3:$BHO$1048576,Q100) -> 286310.4239 | R117: =VLOOKUP($A$1,未来カルテデータ!$A$3:$BHO$1048576,R100) -> 923750.3079 | S117: =VLOOKUP($A$1,未来カルテデータ!$A$3:$BHO$1048576,S100) -> 60523.92626 | T117: =VLOOKUP($A$1,未来カルテデータ!$A$3:$BHO$1048576,T100) -> 353871.5738 | U117: =VLOOKUP($A$1,未来カルテデータ!$A$3:$BHO$1048576,U100) -> 229547.5921 | V117: =VLOOKUP($A$1,未来カルテデータ!$A$3:$BHO$1048576,V100) -> 394713.4929
A118: 55～59歳 | B118: =VLOOKUP($A$1,未来カルテデータ!$A$3:$BHO$1048576,B101) -> 106868.5848 | C118: =VLOOKUP($A$1,未来カルテデータ!$A$3:$BHO$1048576,C101) -> 7688.381189 | D118: =VLOOKUP($A$1,未来カルテデータ!$A$3:$BHO$1048576,D101) -> 12194.44404 | E118: =VLOOKUP($A$1,未来カルテデータ!$A$3:$BHO$1048576,E101) -> 2067.463142 | F118: =VLOOKUP($A$1,未来カルテデータ!$A$3:$BHO$1048576,F101) -> 459317.1155 | G118: =VLOOKUP($A$1,未来カルテデータ!$A$3:$BHO$1048576,G101) -> 1021030.675 | H118: =VLOOKUP($A$1,未来カルテデータ!$A$3:$BHO$1048576,H101) -> 35340.82393 | I118: =VLOOKUP($A$1,未来カルテデータ!$A$3:$BHO$1048576,I101) -> 335878.9671 | J118: =VLOOKUP($A$1,未来カルテデータ!$A$3:$BHO$1048576,J101) -> 470378.6302 | K118: =VLOOKUP($A$1,未来カルテデータ!$A$3:$BHO$1048576,K101) -> 927029.998 | L118: =VLOOKUP($A$1,未来カルテデータ!$A$3:$BHO$1048576,L101) -> 205105.7703 | M118: =VLOOKUP($A$1,未来カルテデータ!$A$3:$BHO$1048576,M101) -> 125021.8684 | N118: =VLOOKUP($A$1,未来カルテデータ!$A$3:$BHO$1048576,N101) -> 281489.3169 | O118: =VLOOKUP($A$1,未来カルテデータ!$A$3:$BHO$1048576,O101) -> 288861.8102 | P118: =VLOOKUP($A$1,未来カルテデータ!$A$3:$BHO$1048576,P101) -> 223836.9388 | Q118: =VLOOKUP($A$1,未来カルテデータ!$A$3:$BHO$1048576,Q101) -> 332199.3175 | R118: =VLOOKUP($A$1,未来カルテデータ!$A$3:$BHO$1048576,R101) -> 953431.7274 | S118: =VLOOKUP($A$1,未来カルテデータ!$A$3:$BHO$1048576,S101) -> 78565.68343 | T118: =VLOOKUP($A$1,未来カルテデータ!$A$3:$BHO$1048576,T101) -> 424758.5414 | U118: =VLOOKUP($A$1,未来カルテデータ!$A$3:$BHO$1048576,U101) -> 240914.8412 | V118: =VLOOKUP($A$1,未来カルテデータ!$A$3:$BHO$1048576,V101) -> 406238.4006
A119: 60～64歳 | B119: =VLOOKUP($A$1,未来カルテデータ!$A$3:$BHO$1048576,B102) -> 121184.9875 | C119: =VLOOKUP($A$1,未来カルテデータ!$A$3:$BHO$1048576,C102) -> 8020.055581 | D119: =VLOOKUP($A$1,未来カルテデータ!$A$3:$BHO$1048576,D102) -> 15144.99164 | E119: =VLOOKUP($A$1,未来カルテデータ!$A$3:$BHO$1048576,E102) -> 1667.728247 | F119: =VLOOKUP($A$1,未来カルテデータ!$A$3:$BHO$1048576,F102) -> 315605.2671 | G119: =VLOOKUP($A$1,未来カルテデータ!$A$3:$BHO$1048576,G102) -> 596392.3282 | H119: =VLOOKUP($A$1,未来カルテデータ!$A$3:$BHO$1048576,H102) -> 16549.04266 | I119: =VLOOKUP($A$1,未来カルテデータ!$A$3:$BHO$1048576,I102) -> 189601.6408 | J119: =VLOOKUP($A$1,未来カルテデータ!$A$3:$BHO$1048576,J102) -> 312782.3965 | K119: =VLOOKUP($A$1,未来カルテデータ!$A$3:$BHO$1048576,K102) -> 656422.4634 | L119: =VLOOKUP($A$1,未来カルテデータ!$A$3:$BHO$1048576,L102) -> 198234.9046 | M119: =VLOOKUP($A$1,未来カルテデータ!$A$3:$BHO$1048576,M102) -> 99407.8554 | N119: =VLOOKUP($A$1,未来カルテデータ!$A$3:$BHO$1048576,N102) -> 208769.4604 | O119: =VLOOKUP($A$1,未来カルテデータ!$A$3:$BHO$1048576,O102) -> 193126.9994 | P119: =VLOOKUP($A$1,未来カルテデータ!$A$3:$BHO$1048576,P102) -> 175356.5718 | Q119: =VLOOKUP($A$1,未来カルテデータ!$A$3:$BHO$1048576,Q102) -> 284792.6986 | R119: =VLOOKUP($A$1,未来カルテデータ!$A$3:$BHO$1048576,R102) -> 734847.7114 | S119: =VLOOKUP($A$1,未来カルテデータ!$A$3:$BHO$1048576,S102) -> 53939.1298 | T119: =VLOOKUP($A$1,未来カルテデータ!$A$3:$BHO$1048576,T102) -> 329004.8023 | U119: =VLOOKUP($A$1,未来カルテデータ!$A$3:$BHO$1048576,U102) -> 107177.8714 | V119: =VLOOKUP($A$1,未来カルテデータ!$A$3:$BHO$1048576,V102) -> 290987.7583
A120: 65～69歳 | B120: =VLOOKUP($A$1,未来カルテデータ!$A$3:$BHO$1048576,B103) -> 130590.7051 | C120: =VLOOKUP($A$1,未来カルテデータ!$A$3:$BHO$1048576,C103) -> 8209.098805 | D120: =VLOOKUP($A$1,未来カルテデータ!$A$3:$BHO$1048576,D103) -> 15549.8024 | E120: =VLOOKUP($A$1,未来カルテデータ!$A$3:$BHO$1048576,E103) -> 1029.449584 | F120: =VLOOKUP($A$1,未来カルテデータ!$A$3:$BHO$1048576,F103) -> 158166.4899 | G120: =VLOOKUP($A$1,未来カルテデータ!$A$3:$BHO$1048576,G103) -> 275828.6 | H120: =VLOOKUP($A$1,未来カルテデータ!$A$3:$BHO$1048576,H103) -> 4866.644487 | I120: =VLOOKUP($A$1,未来カルテデータ!$A$3:$BHO$1048576,I103) -> 79160.57825 | J120: =VLOOKUP($A$1,未来カルテデータ!$A$3:$BHO$1048576,J103) -> 145129.908 | K120: =VLOOKUP($A$1,未来カルテデータ!$A$3:$BHO$1048576,K103) -> 400275.1028 | L120: =VLOOKUP($A$1,未来カルテデータ!$A$3:$BHO$1048576,L103) -> 129951.8653 | M120: =VLOOKUP($A$1,未来カルテデータ!$A$3:$BHO$1048576,M103) -> 67203.86885 | N120: =VLOOKUP($A$1,未来カルテデータ!$A$3:$BHO$1048576,N103) -> 129650.0273 | O120: =VLOOKUP($A$1,未来カルテデータ!$A$3:$BHO$1048576,O103) -> 112090.6807 | P120: =VLOOKUP($A$1,未来カルテデータ!$A$3:$BHO$1048576,P103) -> 109818.3713 | Q120: =VLOOKUP($A$1,未来カルテデータ!$A$3:$BHO$1048576,Q103) -> 222557.026 | R120: =VLOOKUP($A$1,未来カルテデータ!$A$3:$BHO$1048576,R103) -> 483570.7912 | S120: =VLOOKUP($A$1,未来カルテデータ!$A$3:$BHO$1048576,S103) -> 39224.01706 | T120: =VLOOKUP($A$1,未来カルテデータ!$A$3:$BHO$1048576,T103) -> 214691.0339 | U120: =VLOOKUP($A$1,未来カルテデータ!$A$3:$BHO$1048576,U103) -> 49925.77467 | V120: =VLOOKUP($A$1,未来カルテデータ!$A$3:$BHO$1048576,V103) -> 152477.6874
A121: 70～74歳 | B121: =VLOOKUP($A$1,未来カルテデータ!$A$3:$BHO$1048576,B104) -> 125460.5705 | C121: =VLOOKUP($A$1,未来カルテデータ!$A$3:$BHO$1048576,C104) -> 5959.726652 | D121: =VLOOKUP($A$1,未来カルテデータ!$A$3:$BHO$1048576,D104) -> 12059.48826 | E121: =VLOOKUP($A$1,未来カルテデータ!$A$3:$BHO$1048576,E104) -> 504.6736098 | F121: =VLOOKUP($A$1,未来カルテデータ!$A$3:$BHO$1048576,F104) -> 78354.76603 | G121: =VLOOKUP($A$1,未来カルテデータ!$A$3:$BHO$1048576,G104) -> 124636.9852 | H121: =VLOOKUP($A$1,未来カルテデータ!$A$3:$BHO$1048576,H104) -> 1669.501064 | I121: =VLOOKUP($A$1,未来カルテデータ!$A$3:$BHO$1048576,I104) -> 21874.65928 | J121: =VLOOKUP($A$1,未来カルテデータ!$A$3:$BHO$1048576,J104) -> 58019.11777 | K121: =VLOOKUP($A$1,未来カルテデータ!$A$3:$BHO$1048576,K104) -> 230880.9344 | L121: =VLOOKUP($A$1,未来カルテデータ!$A$3:$BHO$1048576,L104) -> 58108.3851 | M121: =VLOOKUP($A$1,未来カルテデータ!$A$3:$BHO$1048576,M104) -> 41211.73251 | N121: =VLOOKUP($A$1,未来カルテデータ!$A$3:$BHO$1048576,N104) -> 68840.27594 | O121: =VLOOKUP($A$1,未来カルテデータ!$A$3:$BHO$1048576,O104) -> 69966.37666 | P121: =VLOOKUP($A$1,未来カルテデータ!$A$3:$BHO$1048576,P104) -> 58341.90629 | Q121: =VLOOKUP($A$1,未来カルテデータ!$A$3:$BHO$1048576,Q104) -> 126890.416 | R121: =VLOOKUP($A$1,未来カルテデータ!$A$3:$BHO$1048576,R104) -> 252424.7285 | S121: =VLOOKUP($A$1,未来カルテデータ!$A$3:$BHO$1048576,S104) -> 20634.63581 | T121: =VLOOKUP($A$1,未来カルテデータ!$A$3:$BHO$1048576,T104) -> 129008.341 | U121: =VLOOKUP($A$1,未来カルテデータ!$A$3:$BHO$1048576,U104) -> 20726.57296 | V121: =VLOOKUP($A$1,未来カルテデータ!$A$3:$BHO$1048576,V104) -> 70467.29036
A122: 75～79歳 | B122: =VLOOKUP($A$1,未来カルテデータ!$A$3:$BHO$1048576,B105) -> 111121.0679 | C122: =VLOOKUP($A$1,未来カルテデータ!$A$3:$BHO$1048576,C105) -> 3244.800572 | D122: =VLOOKUP($A$1,未来カルテデータ!$A$3:$BHO$1048576,D105) -> 7566.334804 | E122: =VLOOKUP($A$1,未来カルテデータ!$A$3:$BHO$1048576,E105) -> 237.7708235 | F122: =VLOOKUP($A$1,未来カルテデータ!$A$3:$BHO$1048576,F105) -> 45193.04297 | G122: =VLOOKUP($A$1,未来カルテデータ!$A$3:$BHO$1048576,G105) -> 76037.85822 | H122: =VLOOKUP($A$1,未来カルテデータ!$A$3:$BHO$1048576,H105) -> 714.8021534 | I122: =VLOOKUP($A$1,未来カルテデータ!$A$3:$BHO$1048576,I105) -> 7005.993634 | J122: =VLOOKUP($A$1,未来カルテデータ!$A$3:$BHO$1048576,J105) -> 26834.16474 | K122: =VLOOKUP($A$1,未来カルテデータ!$A$3:$BHO$1048576,K105) -> 141596.1785 | L122: =VLOOKUP($A$1,未来カルテデータ!$A$3:$BHO$1048576,L105) -> 23869.06575 | M122: =VLOOKUP($A$1,未来カルテデータ!$A$3:$BHO$1048576,M105) -> 34953.85605 | N122: =VLOOKUP($A$1,未来カルテデータ!$A$3:$BHO$1048576,N105) -> 42687.91965 | O122: =VLOOKUP($A$1,未来カルテデータ!$A$3:$BHO$1048576,O105) -> 55646.10429 | P122: =VLOOKUP($A$1,未来カルテデータ!$A$3:$BHO$1048576,P105) -> 42584.10024 | Q122: =VLOOKUP($A$1,未来カルテデータ!$A$3:$BHO$1048576,Q105) -> 51840.30975 | R122: =VLOOKUP($A$1,未来カルテデータ!$A$3:$BHO$1048576,R105) -> 129576.1284 | S122: =VLOOKUP($A$1,未来カルテデータ!$A$3:$BHO$1048576,S105) -> 8477.283807 | T122: =VLOOKUP($A$1,未来カルテデータ!$A$3:$BHO$1048576,T105) -> 106695.0696 | U122: =VLOOKUP($A$1,未来カルテデータ!$A$3:$BHO$1048576,U105) -> 7112.420848 | V122: =VLOOKUP($A$1,未来カルテデータ!$A$3:$BHO$1048576,V105) -> 44831.9653
A123: 80～84歳 | B123: =VLOOKUP($A$1,未来カルテデータ!$A$3:$BHO$1048576,B106) -> 69106.61184 | C123: =VLOOKUP($A$1,未来カルテデータ!$A$3:$BHO$1048576,C106) -> 1278.773325 | D123: =VLOOKUP($A$1,未来カルテデータ!$A$3:$BHO$1048576,D106) -> 3809.670368 | E123: =VLOOKUP($A$1,未来カルテデータ!$A$3:$BHO$1048576,E106) -> 104.3070444 | F123: =VLOOKUP($A$1,未来カルテデータ!$A$3:$BHO$1048576,F106) -> 22784.24526 | G123: =VLOOKUP($A$1,未来カルテデータ!$A$3:$BHO$1048576,G106) -> 37681.18906 | H123: =VLOOKUP($A$1,未来カルテデータ!$A$3:$BHO$1048576,H106) -> 302.8753676 | I123: =VLOOKUP($A$1,未来カルテデータ!$A$3:$BHO$1048576,I106) -> 2105.441982 | J123: =VLOOKUP($A$1,未来カルテデータ!$A$3:$BHO$1048576,J106) -> 14239.00457 | K123: =VLOOKUP($A$1,未来カルテデータ!$A$3:$BHO$1048576,K106) -> 73493.22446 | L123: =VLOOKUP($A$1,未来カルテデータ!$A$3:$BHO$1048576,L106) -> 8003.471536 | M123: =VLOOKUP($A$1,未来カルテデータ!$A$3:$BHO$1048576,M106) -> 28985.08138 | N123: =VLOOKUP($A$1,未来カルテデータ!$A$3:$BHO$1048576,N106) -> 26411.35669 | O123: =VLOOKUP($A$1,未来カルテデータ!$A$3:$BHO$1048576,O106) -> 37145.26179 | P123: =VLOOKUP($A$1,未来カルテデータ!$A$3:$BHO$1048576,P106) -> 33162.7736 | Q123: =VLOOKUP($A$1,未来カルテデータ!$A$3:$BHO$1048576,Q106) -> 21268.62266 | R123: =VLOOKUP($A$1,未来カルテデータ!$A$3:$BHO$1048576,R106) -> 66232.2187 | S123: =VLOOKUP($A$1,未来カルテデータ!$A$3:$BHO$1048576,S106) -> 1762.50769 | T123: =VLOOKUP($A$1,未来カルテデータ!$A$3:$BHO$1048576,T106) -> 77910.13108 | U123: =VLOOKUP($A$1,未来カルテデータ!$A$3:$BHO$1048576,U106) -> 1069.258292 | V123: =VLOOKUP($A$1,未来カルテデータ!$A$3:$BHO$1048576,V106) -> 37609.56923
A124: 85歳以上 | B124: =VLOOKUP($A$1,未来カルテデータ!$A$3:$BHO$1048576,B107) -> 31946.27343 | C124: =VLOOKUP($A$1,未来カルテデータ!$A$3:$BHO$1048576,C107) -> 404.9884827 | D124: =VLOOKUP($A$1,未来カルテデータ!$A$3:$BHO$1048576,D107) -> 1591.830537 | E124: =VLOOKUP($A$1,未来カルテデータ!$A$3:$BHO$1048576,E107) -> 39.71073104 | F124: =VLOOKUP($A$1,未来カルテデータ!$A$3:$BHO$1048576,F107) -> 9033.768377 | G124: =VLOOKUP($A$1,未来カルテデータ!$A$3:$BHO$1048576,G107) -> 17916.79133 | H124: =VLOOKUP($A$1,未来カルテデータ!$A$3:$BHO$1048576,H107) -> 87.78247368 | I124: =VLOOKUP($A$1,未来カルテデータ!$A$3:$BHO$1048576,I107) -> 865.033428 | J124: =VLOOKUP($A$1,未来カルテデータ!$A$3:$BHO$1048576,J107) -> 6056.310674 | K124: =VLOOKUP($A$1,未来カルテデータ!$A$3:$BHO$1048576,K107) -> 33433.82587 | L124: =VLOOKUP($A$1,未来カルテデータ!$A$3:$BHO$1048576,L107) -> 3664.619487 | M124: =VLOOKUP($A$1,未来カルテデータ!$A$3:$BHO$1048576,M107) -> 19138.38224 | N124: =VLOOKUP($A$1,未来カルテデータ!$A$3:$BHO$1048576,N107) -> 13722.62018 | O124: =VLOOKUP($A$1,未来カルテデータ!$A$3:$BHO$1048576,O107) -> 15469.11687 | P124: =VLOOKUP($A$1,未来カルテデータ!$A$3:$BHO$1048576,P107) -> 23624.37674 | Q124: =VLOOKUP($A$1,未来カルテデータ!$A$3:$BHO$1048576,Q107) -> 10035.52155 | R124: =VLOOKUP($A$1,未来カルテデータ!$A$3:$BHO$1048576,R107) -> 29617.37357 | S124: =VLOOKUP($A$1,未来カルテデータ!$A$3:$BHO$1048576,S107) -> 562.942187 | T124: =VLOOKUP($A$1,未来カルテデータ!$A$3:$BHO$1048576,T107) -> 46546.59186 | U124: =VLOOKUP($A$1,未来カルテデータ!$A$3:$BHO$1048576,U107) -> 165.4235781 | V124: =VLOOKUP($A$1,未来カルテデータ!$A$3:$BHO$1048576,V107) -> 31327.2541
B125: =SUM(B110:B124) -> 1165342.652 | C125: =SUM(C110:C124) -> 68108.94145 | D125: 129105.424 | E125: 12187.66304 | F125: 2727591.232 | G125: 7223598.342 | H125: 223855.8112 | I125: 2638221.754 | J125: 2736159.883 | K125: 6816778.98 | L125: 1436072.556 | M125: 887344.852 | N125: 1679270.528 | O125: 2800161.305 | P125: 2181086.863 | Q125: 2717667.147 | R125: 7352850.093 | S125: 488754.5452 | T125: 2805731.307 | U125: 1923392.084 | V125: 3439218.469
B127: 315
B128: =$B$127+B93 -> 1024 | C128: =$B$127+C93 -> 1025 | D128: 1026 | E128: 1027 | F128: 1028 | G128: 1029 | H128: 1030 | I128: 1031 | J128: 1032 | K128: 1033 | L128: 1034 | M128: 1035 | N128: 1036 | O128: 1037 | P128: 1038 | Q128: 1039 | R128: 1040 | S128: 1041 | T128: 1042 | U128: 1043 | V128: 1044
B129: =$B$127+B94 -> 1045 | C129: 1046 | D129: 1047 | E129: 1048 | F129: 1049 | G129: 1050 | H129: 1051 | I129: 1052 | J129: 1053 | K129: 1054 | L129: 1055 | M129: 1056 | N129: 1057 | O129: 1058 | P129: 1059 | Q129: 1060 | R129: 1061 | S129: 1062 | T129: 1063 | U129: 1064 | V129: 1065
B130: 1066 | C130: 1067 | D130: 1068 | E130: 1069 | F130: 1070 | G130: 1071 | H130: 1072 | I130: 1073 | J130: 1074 | K130: 1075 | L130: 1076 | M130: 1077 | N130: 1078 | O130: 1079 | P130: 1080 | Q130: 1081 | R130: 1082 | S130: 1083 | T130: 1084 | U130: 1085 | V130: 1086
B131: 1087 | C131: 1088 | D131: 1089 | E131: 1090 | F131: 1091 | G131: 1092 | H131: 1093 | I131: 1094 | J131: 1095 | K131: 1096 | L131: 1097 | M131: 1098 | N131: 1099 | O131: 1100 | P131: 1101 | Q131: 1102 | R131: 1103 | S131: 1104 | T131: 1105 | U131: 1106 | V131: 1107
B132: 1108 | C132: 1109 | D132: 1110 | E132: 1111 | F132: 1112 | G132: 1113 | H132: 1114 | I132: 1115 | J132: 1116 | K132: 1117 | L132: 1118 | M132: 1119 | N132: 1120 | O132: 1121 | P132: 1122 | Q132: 1123 | R132: 1124 | S132: 1125 | T132: 1126 | U132: 1127 | V132: 1128
B133: 1129 | C133: 1130 | D133: 1131 | E133: 1132 | F133: 1133 | G133: 1134 | H133: 1135 | I133: 1136 | J133: 1137 | K133: 1138 | L133: 1139 | M133: 1140 | N133: 1141 | O133: 1142 | P133: 1143 | Q133: 1144 | R133: 1145 | S133: 1146 | T133: 1147 | U133: 1148 | V133: 1149
B134: 1150 | C134: 1151 | D134: 1152 | E134: 1153 | F134: 1154 | G134: 1155 | H134: 1156 | I134: 1157 | J134: 1158 | K134: 1159 | L134: 1160 | M134: 1161 | N134: 1162 | O134: 1163 | P134: 1164 | Q134: 1165 | R134: 1166 | S134: 1167 | T134: 1168 | U134: 1169 | V134: 1170
B135: 1171 | C135: 1172 | D135: 1173 | E135: 1174 | F135: 1175 | G135: 1176 | H135: 1177 | I135: 1178 | J135: 1179 | K135: 1180 | L135: 1181 | M135: 1182 | N135: 1183 | O135: 1184 | P135: 1185 | Q135: 1186 | R135: 1187 | S135: 1188 | T135: 1189 | U135: 1190 | V135: 1191
B136: 1192 | C136: 1193 | D136: 1194 | E136: 1195 | F136: 1196 | G136: 1197 | H136: 1198 | I136: 1199 | J136: 1200 | K136: 1201 | L136: 1202 | M136: 1203 | N136: 1204 | O136: 1205 | P136: 1206 | Q136: 1207 | R136: 1208 | S136: 1209 | T136: 1210 | U136: 1211 | V136: 1212
B137: 1213 | C137: 1214 | D137: 1215 | E137: 1216 | F137: 1217 | G137: 1218 | H137: 1219 | I137: 1220 | J137: 1221 | K137: 1222 | L137: 1223 | M137: 1224 | N137: 1225 | O137: 1226 | P137: 1227 | Q137: 1228 | R137: 1229 | S137: 1230 | T137: 1231 | U137: 1232 | V137: 1233
B138: 1234 | C138: 1235 | D138: 1236 | E138: 1237 | F138: 1238 | G138: 1239 | H138: 1240 | I138: 1241 | J138: 1242 | K138: 1243 | L138: 1244 | M138: 1245 | N138: 1246 | O138: 1247 | P138: 1248 | Q138: 1249 | R138: 1250 | S138: 1251 | T138: 1252 | U138: 1253 | V138: 1254
B139: 1255 | C139: 1256 | D139: 1257 | E139: 1258 | F139: 1259 | G139: 1260 | H139: 1261 | I139: 1262 | J139: 1263 | K139: 1264 | L139: 1265 | M139: 1266 | N139: 1267 | O139: 1268 | P139: 1269 | Q139: 1270 | R139: 1271 | S139: 1272 | T139: 1273 | U139: 1274 | V139: 1275
B140: 1276 | C140: 1277 | D140: 1278 | E140: 1279 | F140: 1280 | G140: 1281 | H140: 1282 | I140: 1283 | J140: 1284 | K140: 1285 | L140: 1286 | M140: 1287 | N140: 1288 | O140: 1289 | P140: 1290 | Q140: 1291 | R140: 1292 | S140: 1293 | T140: 1294 | U140: 1295 | V140: 1296
B141: 1297 | C141: 1298 | D141: 1299 | E141: =$B$127+E106 -> 1300 | F141: 1301 | G141: 1302 | H141: 1303 | I141: 1304 | J141: 1305 | K141: 1306 | L141: 1307 | M141: 1308 | N141: 1309 | O141: 1310 | P141: 1311 | Q141: 1312 | R141: 1313 | S141: 1314 | T141: 1315 | U141: 1316 | V141: 1317
B142: =$B$127+B107 -> 1318 | C142: 1319 | D142: 1320 | E142: 1321 | F142: 1322 | G142: 1323 | H142: 1324 | I142: 1325 | J142: 1326 | K142: 1327 | L142: 1328 | M142: 1329 | N142: 1330 | O142: 1331 | P142: 1332 | Q142: 1333 | R142: 1334 | S142: 1335 | T142: 1336 | U142: 1337 | V142: 1338
A144: 2040 | B144: A1 農業 | C144: A2 林業 | D144: Ｂ 漁業 | E144: Ｃ 鉱業，採石業，砂利採取業 | F144: Ｄ 建設業 | G144: Ｅ 製造業 | H144: Ｆ 電気・ガス・熱供給・水道業 | I144: Ｇ 情報通信業 | J144: Ｈ 運輸業，郵便業 | K144: Ｉ 卸売業，小売業 | L144: Ｊ 金融業，保険業 | M144: Ｋ 不動産業，物品賃貸業 | N144: Ｌ 学術研究，専門・技術サービス業 | O144: Ｍ 宿泊業，飲食サービス業 | P144: Ｎ 生活関連サービス業，娯楽業 | Q144: Ｏ 教育，学習支援業 | R144: Ｐ 医療，福祉 | S144: Ｑ 複合サービス事業 | T144: Ｒ サービス業（他に分類されないもの） | U144: Ｓ 公務（他に分類されるものを除く） | V144: Ｔ 分類不能の産業
A145: 15～19歳 | B145: =VLOOKUP($A$1,未来カルテデータ!$A$3:$BHO$1048576,B128) -> 3600.335462 | C145: =VLOOKUP($A$1,未来カルテデータ!$A$3:$BHO$1048576,C128) -> 253.2319168 | D145: =VLOOKUP($A$1,未来カルテデータ!$A$3:$BHO$1048576,D128) -> 744.4981803 | E145: =VLOOKUP($A$1,未来カルテデータ!$A$3:$BHO$1048576,E128) -> 70.66934085 | F145: =VLOOKUP($A$1,未来カルテデータ!$A$3:$BHO$1048576,F128) -> 27924.3684 | G145: =VLOOKUP($A$1,未来カルテデータ!$A$3:$BHO$1048576,G128) -> 70187.29444 | H145: =VLOOKUP($A$1,未来カルテデータ!$A$3:$BHO$1048576,H128) -> 1484.034103 | I145: =VLOOKUP($A$1,未来カルテデータ!$A$3:$BHO$1048576,I128) -> 1825.484095 | J145: =VLOOKUP($A$1,未来カルテデータ!$A$3:$BHO$1048576,J128) -> 13013.61392 | K145: =VLOOKUP($A$1,未来カルテデータ!$A$3:$BHO$1048576,K128) -> 122940.6691 | L145: =VLOOKUP($A$1,未来カルテデータ!$A$3:$BHO$1048576,L128) -> 1486.835849 | M145: =VLOOKUP($A$1,未来カルテデータ!$A$3:$BHO$1048576,M128) -> 2982.883812 | N145: =VLOOKUP($A$1,未来カルテデータ!$A$3:$BHO$1048576,N128) -> 3121.045539 | O145: =VLOOKUP($A$1,未来カルテデータ!$A$3:$BHO$1048576,O128) -> 136270.922 | P145: =VLOOKUP($A$1,未来カルテデータ!$A$3:$BHO$1048576,P128) -> 20604.85699 | Q145: =VLOOKUP($A$1,未来カルテデータ!$A$3:$BHO$1048576,Q128) -> 18571.23377 | R145: =VLOOKUP($A$1,未来カルテデータ!$A$3:$BHO$1048576,R128) -> 18756.79184 | S145: =VLOOKUP($A$1,未来カルテデータ!$A$3:$BHO$1048576,S128) -> 2300.414912 | T145: =VLOOKUP($A$1,未来カルテデータ!$A$3:$BHO$1048576,T128) -> 14825.05131 | U145: =VLOOKUP($A$1,未来カルテデータ!$A$3:$BHO$1048576,U128) -> 12137.88198 | V145: =VLOOKUP($A$1,未来カルテデータ!$A$3:$BHO$1048576,V128) -> 40033.53609
A146: 20～24歳 | B146: =VLOOKUP($A$1,未来カルテデータ!$A$3:$BHO$1048576,B129) -> 22039.31762 | C146: =VLOOKUP($A$1,未来カルテデータ!$A$3:$BHO$1048576,C129) -> 1398.21238 | D146: =VLOOKUP($A$1,未来カルテデータ!$A$3:$BHO$1048576,D129) -> 3366.467124 | E146: =VLOOKUP($A$1,未来カルテデータ!$A$3:$BHO$1048576,E129) -> 443.7755444 | F146: =VLOOKUP($A$1,未来カルテデータ!$A$3:$BHO$1048576,F129) -> 122172.2726 | G146: =VLOOKUP($A$1,未来カルテデータ!$A$3:$BHO$1048576,G129) -> 378779.1292 | H146: =VLOOKUP($A$1,未来カルテデータ!$A$3:$BHO$1048576,H129) -> 11044.57854 | I146: =VLOOKUP($A$1,未来カルテデータ!$A$3:$BHO$1048576,I129) -> 66795.52436 | J146: =VLOOKUP($A$1,未来カルテデータ!$A$3:$BHO$1048576,J129) -> 76762.70702 | K146: =VLOOKUP($A$1,未来カルテデータ!$A$3:$BHO$1048576,K129) -> 452112.6076 | L146: =VLOOKUP($A$1,未来カルテデータ!$A$3:$BHO$1048576,L129) -> 56866.49917 | M146: =VLOOKUP($A$1,未来カルテデータ!$A$3:$BHO$1048576,M129) -> 31510.25119 | N146: =VLOOKUP($A$1,未来カルテデータ!$A$3:$BHO$1048576,N129) -> 48077.07561 | O146: =VLOOKUP($A$1,未来カルテデータ!$A$3:$BHO$1048576,O129) -> 270713.1265 | P146: =VLOOKUP($A$1,未来カルテデータ!$A$3:$BHO$1048576,P129) -> 129975.8358 | Q146: =VLOOKUP($A$1,未来カルテデータ!$A$3:$BHO$1048576,Q129) -> 129304.6022 | R146: =VLOOKUP($A$1,未来カルテデータ!$A$3:$BHO$1048576,R129) -> 330839.8147 | S146: =VLOOKUP($A$1,未来カルテデータ!$A$3:$BHO$1048576,S129) -> 18521.51527 | T146: =VLOOKUP($A$1,未来カルテデータ!$A$3:$BHO$1048576,T129) -> 94112.52172 | U146: =VLOOKUP($A$1,未来カルテデータ!$A$3:$BHO$1048576,U129) -> 89328.50064 | V146: =VLOOKUP($A$1,未来カルテデータ!$A$3:$BHO$1048576,V129) -> 189602.4518
A147: 25～29歳 | B147: =VLOOKUP($A$1,未来カルテデータ!$A$3:$BHO$1048576,B130) -> 39400.31314 | C147: =VLOOKUP($A$1,未来カルテデータ!$A$3:$BHO$1048576,C130) -> 2499.466785 | D147: =VLOOKUP($A$1,未来カルテデータ!$A$3:$BHO$1048576,D130) -> 5784.901818 | E147: =VLOOKUP($A$1,未来カルテデータ!$A$3:$BHO$1048576,E130) -> 653.4084452 | F147: =VLOOKUP($A$1,未来カルテデータ!$A$3:$BHO$1048576,F130) -> 183126.4513 | G147: =VLOOKUP($A$1,未来カルテデータ!$A$3:$BHO$1048576,G130) -> 583214.5093 | H147: =VLOOKUP($A$1,未来カルテデータ!$A$3:$BHO$1048576,H130) -> 22516.50743 | I147: =VLOOKUP($A$1,未来カルテデータ!$A$3:$BHO$1048576,I130) -> 160011.1493 | J147: =VLOOKUP($A$1,未来カルテデータ!$A$3:$BHO$1048576,J130) -> 157523.8804 | K147: =VLOOKUP($A$1,未来カルテデータ!$A$3:$BHO$1048576,K130) -> 456724.1209 | L147: =VLOOKUP($A$1,未来カルテデータ!$A$3:$BHO$1048576,L130) -> 87569.58118 | M147: =VLOOKUP($A$1,未来カルテデータ!$A$3:$BHO$1048576,M130) -> 48635.42069 | N147: =VLOOKUP($A$1,未来カルテデータ!$A$3:$BHO$1048576,N130) -> 74004.67672 | O147: =VLOOKUP($A$1,未来カルテデータ!$A$3:$BHO$1048576,O130) -> 270968.6885 | P147: =VLOOKUP($A$1,未来カルテデータ!$A$3:$BHO$1048576,P130) -> 200517.5877 | Q147: =VLOOKUP($A$1,未来カルテデータ!$A$3:$BHO$1048576,Q130) -> 199748.7766 | R147: =VLOOKUP($A$1,未来カルテデータ!$A$3:$BHO$1048576,R130) -> 509210.6909 | S147: =VLOOKUP($A$1,未来カルテデータ!$A$3:$BHO$1048576,S130) -> 28387.10651 | T147: =VLOOKUP($A$1,未来カルテデータ!$A$3:$BHO$1048576,T130) -> 145203.5778 | U147: =VLOOKUP($A$1,未来カルテデータ!$A$3:$BHO$1048576,U130) -> 190242.593 | V147: =VLOOKUP($A$1,未来カルテデータ!$A$3:$BHO$1048576,V130) -> 293909.1092
A148: 30～34歳 | B148: =VLOOKUP($A$1,未来カルテデータ!$A$3:$BHO$1048576,B131) -> 53633.75759 | C148: =VLOOKUP($A$1,未来カルテデータ!$A$3:$BHO$1048576,C131) -> 3492.108547 | D148: =VLOOKUP($A$1,未来カルテデータ!$A$3:$BHO$1048576,D131) -> 7847.764946 | E148: =VLOOKUP($A$1,未来カルテデータ!$A$3:$BHO$1048576,E131) -> 687.6777213 | F148: =VLOOKUP($A$1,未来カルテデータ!$A$3:$BHO$1048576,F131) -> 192893.291 | G148: =VLOOKUP($A$1,未来カルテデータ!$A$3:$BHO$1048576,G131) -> 619736.5137 | H148: =VLOOKUP($A$1,未来カルテデータ!$A$3:$BHO$1048576,H131) -> 24450.29459 | I148: =VLOOKUP($A$1,未来カルテデータ!$A$3:$BHO$1048576,I131) -> 213765.0494 | J148: =VLOOKUP($A$1,未来カルテデータ!$A$3:$BHO$1048576,J131) -> 192136.2546 | K148: =VLOOKUP($A$1,未来カルテデータ!$A$3:$BHO$1048576,K131) -> 436767.8979 | L148: =VLOOKUP($A$1,未来カルテデータ!$A$3:$BHO$1048576,L131) -> 89836.64062 | M148: =VLOOKUP($A$1,未来カルテデータ!$A$3:$BHO$1048576,M131) -> 49755.02416 | N148: =VLOOKUP($A$1,未来カルテデータ!$A$3:$BHO$1048576,N131) -> 75588.19068 | O148: =VLOOKUP($A$1,未来カルテデータ!$A$3:$BHO$1048576,O131) -> 257220.0427 | P148: =VLOOKUP($A$1,未来カルテデータ!$A$3:$BHO$1048576,P131) -> 206087.2616 | Q148: =VLOOKUP($A$1,未来カルテデータ!$A$3:$BHO$1048576,Q131) -> 205554.0198 | R148: =VLOOKUP($A$1,未来カルテデータ!$A$3:$BHO$1048576,R131) -> 529963.3206 | S148: =VLOOKUP($A$1,未来カルテデータ!$A$3:$BHO$1048576,S131) -> 29834.0473 | T148: =VLOOKUP($A$1,未来カルテデータ!$A$3:$BHO$1048576,T131) -> 149614.0199 | U148: =VLOOKUP($A$1,未来カルテデータ!$A$3:$BHO$1048576,U131) -> 213571.3986 | V148: =VLOOKUP($A$1,未来カルテデータ!$A$3:$BHO$1048576,V131) -> 300227.5351
A149: 35～39歳 | B149: =VLOOKUP($A$1,未来カルテデータ!$A$3:$BHO$1048576,B132) -> 67694.38649 | C149: =VLOOKUP($A$1,未来カルテデータ!$A$3:$BHO$1048576,C132) -> 4516.02845 | D149: =VLOOKUP($A$1,未来カルテデータ!$A$3:$BHO$1048576,D132) -> 9825.404865 | E149: =VLOOKUP($A$1,未来カルテデータ!$A$3:$BHO$1048576,E132) -> 690.397583 | F149: =VLOOKUP($A$1,未来カルテデータ!$A$3:$BHO$1048576,F132) -> 193524.7816 | G149: =VLOOKUP($A$1,未来カルテデータ!$A$3:$BHO$1048576,G132) -> 645125.8855 | H149: =VLOOKUP($A$1,未来カルテデータ!$A$3:$BHO$1048576,H132) -> 25482.99976 | I149: =VLOOKUP($A$1,未来カルテデータ!$A$3:$BHO$1048576,I132) -> 272881.5676 | J149: =VLOOKUP($A$1,未来カルテデータ!$A$3:$BHO$1048576,J132) -> 231832.2864 | K149: =VLOOKUP($A$1,未来カルテデータ!$A$3:$BHO$1048576,K132) -> 451112.7941 | L149: =VLOOKUP($A$1,未来カルテデータ!$A$3:$BHO$1048576,L132) -> 95699.03253 | M149: =VLOOKUP($A$1,未来カルテデータ!$A$3:$BHO$1048576,M132) -> 52586.33502 | N149: =VLOOKUP($A$1,未来カルテデータ!$A$3:$BHO$1048576,N132) -> 79943.52054 | O149: =VLOOKUP($A$1,未来カルテデータ!$A$3:$BHO$1048576,O132) -> 263606.6092 | P149: =VLOOKUP($A$1,未来カルテデータ!$A$3:$BHO$1048576,P132) -> 221026.0692 | Q149: =VLOOKUP($A$1,未来カルテデータ!$A$3:$BHO$1048576,Q132) -> 220878.2589 | R149: =VLOOKUP($A$1,未来カルテデータ!$A$3:$BHO$1048576,R132) -> 578173.6025 | S149: =VLOOKUP($A$1,未来カルテデータ!$A$3:$BHO$1048576,S132) -> 32983.26656 | T149: =VLOOKUP($A$1,未来カルテデータ!$A$3:$BHO$1048576,T132) -> 159897.9727 | U149: =VLOOKUP($A$1,未来カルテデータ!$A$3:$BHO$1048576,U132) -> 227562.6072 | V149: =VLOOKUP($A$1,未来カルテデータ!$A$3:$BHO$1048576,V132) -> 316855.8258
A150: 40～44歳 | B150: =VLOOKUP($A$1,未来カルテデータ!$A$3:$BHO$1048576,B133) -> 78304.69757 | C150: =VLOOKUP($A$1,未来カルテデータ!$A$3:$BHO$1048576,C133) -> 5300.133729 | D150: =VLOOKUP($A$1,未来カルテデータ!$A$3:$BHO$1048576,D133) -> 11319.42384 | E150: =VLOOKUP($A$1,未来カルテデータ!$A$3:$BHO$1048576,E133) -> 672.3689258 | F150: =VLOOKUP($A$1,未来カルテデータ!$A$3:$BHO$1048576,F133) -> 187776.9168 | G150: =VLOOKUP($A$1,未来カルテデータ!$A$3:$BHO$1048576,G133) -> 656274.4649 | H150: =VLOOKUP($A$1,未来カルテデータ!$A$3:$BHO$1048576,H133) -> 26150.9879 | I150: =VLOOKUP($A$1,未来カルテデータ!$A$3:$BHO$1048576,I133) -> 347729.4887 | J150: =VLOOKUP($A$1,未来カルテデータ!$A$3:$BHO$1048576,J133) -> 277205.7367 | K150: =VLOOKUP($A$1,未来カルテデータ!$A$3:$BHO$1048576,K133) -> 469538.7589 | L150: =VLOOKUP($A$1,未来カルテデータ!$A$3:$BHO$1048576,L133) -> 105575.4095 | M150: =VLOOKUP($A$1,未来カルテデータ!$A$3:$BHO$1048576,M133) -> 57835.07565 | N150: =VLOOKUP($A$1,未来カルテデータ!$A$3:$BHO$1048576,N133) -> 87690.06567 | O150: =VLOOKUP($A$1,未来カルテデータ!$A$3:$BHO$1048576,O133) -> 273279.6359 | P150: =VLOOKUP($A$1,未来カルテデータ!$A$3:$BHO$1048576,P133) -> 245777.68 | Q150: =VLOOKUP($A$1,未来カルテデータ!$A$3:$BHO$1048576,Q133) -> 246044.9767 | R150: =VLOOKUP($A$1,未来カルテデータ!$A$3:$BHO$1048576,R133) -> 648177.4921 | S150: =VLOOKUP($A$1,未来カルテデータ!$A$3:$BHO$1048576,S133) -> 37086.92118 | T150: =VLOOKUP($A$1,未来カルテデータ!$A$3:$BHO$1048576,T133) -> 176894.5376 | U150: =VLOOKUP($A$1,未来カルテデータ!$A$3:$BHO$1048576,U133) -> 241417.1126 | V150: =VLOOKUP($A$1,未来カルテデータ!$A$3:$BHO$1048576,V133) -> 349476.0685
A151: 45～49歳 | B151: =VLOOKUP($A$1,未来カルテデータ!$A$3:$BHO$1048576,B134) -> 82069.85424 | C151: =VLOOKUP($A$1,未来カルテデータ!$A$3:$BHO$1048576,C134) -> 5612.770798 | D151: =VLOOKUP($A$1,未来カルテデータ!$A$3:$BHO$1048576,D134) -> 11869.80982 | E151: =VLOOKUP($A$1,未来カルテデータ!$A$3:$BHO$1048576,E134) -> 632.7263451 | F151: =VLOOKUP($A$1,未来カルテデータ!$A$3:$BHO$1048576,F134) -> 175624.1696 | G151: =VLOOKUP($A$1,未来カルテデータ!$A$3:$BHO$1048576,G134) -> 619114.4038 | H151: =VLOOKUP($A$1,未来カルテデータ!$A$3:$BHO$1048576,H134) -> 25573.93947 | I151: =VLOOKUP($A$1,未来カルテデータ!$A$3:$BHO$1048576,I134) -> 409027.6672 | J151: =VLOOKUP($A$1,未来カルテデータ!$A$3:$BHO$1048576,J134) -> 305514.2305 | K151: =VLOOKUP($A$1,未来カルテデータ!$A$3:$BHO$1048576,K134) -> 454237.4687 | L151: =VLOOKUP($A$1,未来カルテデータ!$A$3:$BHO$1048576,L134) -> 109994.1671 | M151: =VLOOKUP($A$1,未来カルテデータ!$A$3:$BHO$1048576,M134) -> 60412.13772 | N151: =VLOOKUP($A$1,未来カルテデータ!$A$3:$BHO$1048576,N134) -> 91321.08833 | O151: =VLOOKUP($A$1,未来カルテデータ!$A$3:$BHO$1048576,O134) -> 263963.4186 | P151: =VLOOKUP($A$1,未来カルテデータ!$A$3:$BHO$1048576,P134) -> 257112.9274 | Q151: =VLOOKUP($A$1,未来カルテデータ!$A$3:$BHO$1048576,Q134) -> 257676.5514 | R151: =VLOOKUP($A$1,未来カルテデータ!$A$3:$BHO$1048576,R134) -> 678641.2927 | S151: =VLOOKUP($A$1,未来カルテデータ!$A$3:$BHO$1048576,S134) -> 38791.58287 | T151: =VLOOKUP($A$1,未来カルテデータ!$A$3:$BHO$1048576,T134) -> 185005.9964 | U151: =VLOOKUP($A$1,未来カルテデータ!$A$3:$BHO$1048576,U134) -> 244040.0912 | V151: =VLOOKUP($A$1,未来カルテデータ!$A$3:$BHO$1048576,V134) -> 366175.0711
A152: 50～54歳 | B152: =VLOOKUP($A$1,未来カルテデータ!$A$3:$BHO$1048576,B135) -> 83584.44257 | C152: =VLOOKUP($A$1,未来カルテデータ!$A$3:$BHO$1048576,C135) -> 6291.561203 | D152: =VLOOKUP($A$1,未来カルテデータ!$A$3:$BHO$1048576,D135) -> 10064.72234 | E152: =VLOOKUP($A$1,未来カルテデータ!$A$3:$BHO$1048576,E135) -> 855.4447498 | F152: =VLOOKUP($A$1,未来カルテデータ!$A$3:$BHO$1048576,F135) -> 171513.6715 | G152: =VLOOKUP($A$1,未来カルテデータ!$A$3:$BHO$1048576,G135) -> 651907.1085 | H152: =VLOOKUP($A$1,未来カルテデータ!$A$3:$BHO$1048576,H135) -> 19706.96893 | I152: =VLOOKUP($A$1,未来カルテデータ!$A$3:$BHO$1048576,I135) -> 461884.9655 | J152: =VLOOKUP($A$1,未来カルテデータ!$A$3:$BHO$1048576,J135) -> 289686.3499 | K152: =VLOOKUP($A$1,未来カルテデータ!$A$3:$BHO$1048576,K135) -> 556667.5142 | L152: =VLOOKUP($A$1,未来カルテデータ!$A$3:$BHO$1048576,L135) -> 144793.1417 | M152: =VLOOKUP($A$1,未来カルテデータ!$A$3:$BHO$1048576,M135) -> 69748.70928 | N152: =VLOOKUP($A$1,未来カルテデータ!$A$3:$BHO$1048576,N135) -> 151723.0548 | O152: =VLOOKUP($A$1,未来カルテデータ!$A$3:$BHO$1048576,O135) -> 162333.0026 | P152: =VLOOKUP($A$1,未来カルテデータ!$A$3:$BHO$1048576,P135) -> 204710.018 | Q152: =VLOOKUP($A$1,未来カルテデータ!$A$3:$BHO$1048576,Q135) -> 264964.4908 | R152: =VLOOKUP($A$1,未来カルテデータ!$A$3:$BHO$1048576,R135) -> 774191.2999 | S152: =VLOOKUP($A$1,未来カルテデータ!$A$3:$BHO$1048576,S135) -> 49836.8145 | T152: =VLOOKUP($A$1,未来カルテデータ!$A$3:$BHO$1048576,T135) -> 217520.3644 | U152: =VLOOKUP($A$1,未来カルテデータ!$A$3:$BHO$1048576,U135) -> 218737.7684 | V152: =VLOOKUP($A$1,未来カルテデータ!$A$3:$BHO$1048576,V135) -> 356382.6533
A153: 55～59歳 | B153: =VLOOKUP($A$1,未来カルテデータ!$A$3:$BHO$1048576,B136) -> 98870.7818 | C153: =VLOOKUP($A$1,未来カルテデータ!$A$3:$BHO$1048576,C136) -> 7762.323603 | D153: =VLOOKUP($A$1,未来カルテデータ!$A$3:$BHO$1048576,D136) -> 11351.52194 | E153: =VLOOKUP($A$1,未来カルテデータ!$A$3:$BHO$1048576,E136) -> 936.9439445 | F153: =VLOOKUP($A$1,未来カルテデータ!$A$3:$BHO$1048576,F136) -> 215217.9687 | G153: =VLOOKUP($A$1,未来カルテデータ!$A$3:$BHO$1048576,G136) -> 639614.7093 | H153: =VLOOKUP($A$1,未来カルテデータ!$A$3:$BHO$1048576,H136) -> 14292.97672 | I153: =VLOOKUP($A$1,未来カルテデータ!$A$3:$BHO$1048576,I136) -> 449903.5832 | J153: =VLOOKUP($A$1,未来カルテデータ!$A$3:$BHO$1048576,J136) -> 317585.0752 | K153: =VLOOKUP($A$1,未来カルテデータ!$A$3:$BHO$1048576,K136) -> 606073.449 | L153: =VLOOKUP($A$1,未来カルテデータ!$A$3:$BHO$1048576,L136) -> 147115.1601 | M153: =VLOOKUP($A$1,未来カルテデータ!$A$3:$BHO$1048576,M136) -> 90399.22208 | N153: =VLOOKUP($A$1,未来カルテデータ!$A$3:$BHO$1048576,N136) -> 198145.9052 | O153: =VLOOKUP($A$1,未来カルテデータ!$A$3:$BHO$1048576,O136) -> 179030.1554 | P153: =VLOOKUP($A$1,未来カルテデータ!$A$3:$BHO$1048576,P136) -> 221240.2282 | Q153: =VLOOKUP($A$1,未来カルテデータ!$A$3:$BHO$1048576,Q136) -> 260673.134 | R153: =VLOOKUP($A$1,未来カルテデータ!$A$3:$BHO$1048576,R136) -> 824242.1459 | S153: =VLOOKUP($A$1,未来カルテデータ!$A$3:$BHO$1048576,S136) -> 50114.9953 | T153: =VLOOKUP($A$1,未来カルテデータ!$A$3:$BHO$1048576,T136) -> 280781.1369 | U153: =VLOOKUP($A$1,未来カルテデータ!$A$3:$BHO$1048576,U136) -> 172095.5229 | V153: =VLOOKUP($A$1,未来カルテデータ!$A$3:$BHO$1048576,V136) -> 390091.8233
A154: 60～64歳 | B154: =VLOOKUP($A$1,未来カルテデータ!$A$3:$BHO$1048576,B137) -> 123103.0117 | C154: =VLOOKUP($A$1,未来カルテデータ!$A$3:$BHO$1048576,C137) -> 9848.662278 | D154: =VLOOKUP($A$1,未来カルテデータ!$A$3:$BHO$1048576,D137) -> 12882.41496 | E154: =VLOOKUP($A$1,未来カルテデータ!$A$3:$BHO$1048576,E137) -> 979.3110387 | F154: =VLOOKUP($A$1,未来カルテデータ!$A$3:$BHO$1048576,F137) -> 238162.9649 | G154: =VLOOKUP($A$1,未来カルテデータ!$A$3:$BHO$1048576,G137) -> 466510.8398 | H154: =VLOOKUP($A$1,未来カルテデータ!$A$3:$BHO$1048576,H137) -> 11169.2278 | I154: =VLOOKUP($A$1,未来カルテデータ!$A$3:$BHO$1048576,I137) -> 320666.5716 | J154: =VLOOKUP($A$1,未来カルテデータ!$A$3:$BHO$1048576,J137) -> 271265.2201 | K154: =VLOOKUP($A$1,未来カルテデータ!$A$3:$BHO$1048576,K137) -> 544844.6287 | L154: =VLOOKUP($A$1,未来カルテデータ!$A$3:$BHO$1048576,L137) -> 129890.9663 | M154: =VLOOKUP($A$1,未来カルテデータ!$A$3:$BHO$1048576,M137) -> 93125.02775 | N154: =VLOOKUP($A$1,未来カルテデータ!$A$3:$BHO$1048576,N137) -> 217809.7052 | O154: =VLOOKUP($A$1,未来カルテデータ!$A$3:$BHO$1048576,O137) -> 173341.1285 | P154: =VLOOKUP($A$1,未来カルテデータ!$A$3:$BHO$1048576,P137) -> 193421.1552 | Q154: =VLOOKUP($A$1,未来カルテデータ!$A$3:$BHO$1048576,Q137) -> 247608.9897 | R154: =VLOOKUP($A$1,未来カルテデータ!$A$3:$BHO$1048576,R137) -> 794983.0716 | S154: =VLOOKUP($A$1,未来カルテデータ!$A$3:$BHO$1048576,S137) -> 51428.3274 | T154: =VLOOKUP($A$1,未来カルテデータ!$A$3:$BHO$1048576,T137) -> 307255.1618 | U154: =VLOOKUP($A$1,未来カルテデータ!$A$3:$BHO$1048576,U137) -> 94749.10105 | V154: =VLOOKUP($A$1,未来カルテデータ!$A$3:$BHO$1048576,V137) -> 347972.5955
A155: 65～69歳 | B155: =VLOOKUP($A$1,未来カルテデータ!$A$3:$BHO$1048576,B138) -> 124347.2017 | C155: =VLOOKUP($A$1,未来カルテデータ!$A$3:$BHO$1048576,C138) -> 9521.000939 | D155: =VLOOKUP($A$1,未来カルテデータ!$A$3:$BHO$1048576,D138) -> 13584.39827 | E155: =VLOOKUP($A$1,未来カルテデータ!$A$3:$BHO$1048576,E138) -> 862.1150222 | F155: =VLOOKUP($A$1,未来カルテデータ!$A$3:$BHO$1048576,F138) -> 191445.7644 | G155: =VLOOKUP($A$1,未来カルテデータ!$A$3:$BHO$1048576,G138) -> 303570.0738 | H155: =VLOOKUP($A$1,未来カルテデータ!$A$3:$BHO$1048576,H138) -> 5256.970433 | I155: =VLOOKUP($A$1,未来カルテデータ!$A$3:$BHO$1048576,I138) -> 144998.4932 | J155: =VLOOKUP($A$1,未来カルテデータ!$A$3:$BHO$1048576,J138) -> 190614.2828 | K155: =VLOOKUP($A$1,未来カルテデータ!$A$3:$BHO$1048576,K138) -> 449523.6854 | L155: =VLOOKUP($A$1,未来カルテデータ!$A$3:$BHO$1048576,L138) -> 130595.0091 | M155: =VLOOKUP($A$1,未来カルテデータ!$A$3:$BHO$1048576,M138) -> 80431.93197 | N155: =VLOOKUP($A$1,未来カルテデータ!$A$3:$BHO$1048576,N138) -> 180765.2045 | O155: =VLOOKUP($A$1,未来カルテデータ!$A$3:$BHO$1048576,O138) -> 140619.9701 | P155: =VLOOKUP($A$1,未来カルテデータ!$A$3:$BHO$1048576,P138) -> 142677.1891 | Q155: =VLOOKUP($A$1,未来カルテデータ!$A$3:$BHO$1048576,Q138) -> 209775.3635 | R155: =VLOOKUP($A$1,未来カルテデータ!$A$3:$BHO$1048576,R138) -> 602274.0525 | S155: =VLOOKUP($A$1,未来カルテデータ!$A$3:$BHO$1048576,S138) -> 49013.2185 | T155: =VLOOKUP($A$1,未来カルテデータ!$A$3:$BHO$1048576,T138) -> 270995.6439 | U155: =VLOOKUP($A$1,未来カルテデータ!$A$3:$BHO$1048576,U138) -> 57341.319 | V155: =VLOOKUP($A$1,未来カルテデータ!$A$3:$BHO$1048576,V138) -> 263155.6816
A156: 70～74歳 | B156: =VLOOKUP($A$1,未来カルテデータ!$A$3:$BHO$1048576,B139) -> 87576.19278 | C156: =VLOOKUP($A$1,未来カルテデータ!$A$3:$BHO$1048576,C139) -> 5992.338573 | D156: =VLOOKUP($A$1,未来カルテデータ!$A$3:$BHO$1048576,D139) -> 10469.24832 | E156: =VLOOKUP($A$1,未来カルテデータ!$A$3:$BHO$1048576,E139) -> 406.5751502 | F156: =VLOOKUP($A$1,未来カルテデータ!$A$3:$BHO$1048576,F139) -> 78969.12371 | G156: =VLOOKUP($A$1,未来カルテデータ!$A$3:$BHO$1048576,G139) -> 144028.9018 | H156: =VLOOKUP($A$1,未来カルテデータ!$A$3:$BHO$1048576,H139) -> 1728.109001 | I156: =VLOOKUP($A$1,未来カルテデータ!$A$3:$BHO$1048576,I139) -> 51820.7688 | J156: =VLOOKUP($A$1,未来カルテデータ!$A$3:$BHO$1048576,J139) -> 76302.53191 | K156: =VLOOKUP($A$1,未来カルテデータ!$A$3:$BHO$1048576,K139) -> 243442.676 | L156: =VLOOKUP($A$1,未来カルテデータ!$A$3:$BHO$1048576,L139) -> 87411.47587 | M156: =VLOOKUP($A$1,未来カルテデータ!$A$3:$BHO$1048576,M139) -> 44012.49088 | N156: =VLOOKUP($A$1,未来カルテデータ!$A$3:$BHO$1048576,N139) -> 92422.95263 | O156: =VLOOKUP($A$1,未来カルテデータ!$A$3:$BHO$1048576,O139) -> 72046.4039 | P156: =VLOOKUP($A$1,未来カルテデータ!$A$3:$BHO$1048576,P139) -> 76836.29238 | Q156: =VLOOKUP($A$1,未来カルテデータ!$A$3:$BHO$1048576,Q139) -> 123967.5974 | R156: =VLOOKUP($A$1,未来カルテデータ!$A$3:$BHO$1048576,R139) -> 319512.6553 | S156: =VLOOKUP($A$1,未来カルテデータ!$A$3:$BHO$1048576,S139) -> 23149.76937 | T156: =VLOOKUP($A$1,未来カルテデータ!$A$3:$BHO$1048576,T139) -> 144437.1646 | U156: =VLOOKUP($A$1,未来カルテデータ!$A$3:$BHO$1048576,U139) -> 21224.37887 | V156: =VLOOKUP($A$1,未来カルテデータ!$A$3:$BHO$1048576,V139) -> 129895.1127
A157: 75～79歳 | B157: =VLOOKUP($A$1,未来カルテデータ!$A$3:$BHO$1048576,B140) -> 62139.75342 | C157: =VLOOKUP($A$1,未来カルテデータ!$A$3:$BHO$1048576,C140) -> 3979.293696 | D157: =VLOOKUP($A$1,未来カルテデータ!$A$3:$BHO$1048576,D140) -> 7091.527299 | E157: =VLOOKUP($A$1,未来カルテデータ!$A$3:$BHO$1048576,E140) -> 176.6452428 | F157: =VLOOKUP($A$1,未来カルテデータ!$A$3:$BHO$1048576,F140) -> 27970.47032 | G157: =VLOOKUP($A$1,未来カルテデータ!$A$3:$BHO$1048576,G140) -> 60987.2557 | H157: =VLOOKUP($A$1,未来カルテデータ!$A$3:$BHO$1048576,H140) -> 629.0934572 | I157: =VLOOKUP($A$1,未来カルテデータ!$A$3:$BHO$1048576,I140) -> 15451.20716 | J157: =VLOOKUP($A$1,未来カルテデータ!$A$3:$BHO$1048576,J140) -> 24789.70232 | K157: =VLOOKUP($A$1,未来カルテデータ!$A$3:$BHO$1048576,K140) -> 125278.8839 | L157: =VLOOKUP($A$1,未来カルテデータ!$A$3:$BHO$1048576,L140) -> 46951.05019 | M157: =VLOOKUP($A$1,未来カルテデータ!$A$3:$BHO$1048576,M140) -> 24226.26843 | N157: =VLOOKUP($A$1,未来カルテデータ!$A$3:$BHO$1048576,N140) -> 46898.16915 | O157: =VLOOKUP($A$1,未来カルテデータ!$A$3:$BHO$1048576,O140) -> 35286.53388 | P157: =VLOOKUP($A$1,未来カルテデータ!$A$3:$BHO$1048576,P140) -> 39306.83216 | Q157: =VLOOKUP($A$1,未来カルテデータ!$A$3:$BHO$1048576,Q140) -> 79711.83219 | R157: =VLOOKUP($A$1,未来カルテデータ!$A$3:$BHO$1048576,R140) -> 172087.4219 | S157: =VLOOKUP($A$1,未来カルテデータ!$A$3:$BHO$1048576,S140) -> 13934.16675 | T157: =VLOOKUP($A$1,未来カルテデータ!$A$3:$BHO$1048576,T140) -> 76888.48741 | U157: =VLOOKUP($A$1,未来カルテデータ!$A$3:$BHO$1048576,U140) -> 6231.546437 | V157: =VLOOKUP($A$1,未来カルテデータ!$A$3:$BHO$1048576,V140) -> 55355.81578
A158: 80～84歳 | B158: =VLOOKUP($A$1,未来カルテデータ!$A$3:$BHO$1048576,B141) -> 37360.62871 | C158: =VLOOKUP($A$1,未来カルテデータ!$A$3:$BHO$1048576,C141) -> 1792.98634 | D158: =VLOOKUP($A$1,未来カルテデータ!$A$3:$BHO$1048576,D141) -> 3472.39219 | E158: =VLOOKUP($A$1,未来カルテデータ!$A$3:$BHO$1048576,E141) -> 72.29666174 | F158: =VLOOKUP($A$1,未来カルテデータ!$A$3:$BHO$1048576,F141) -> 11238.27766 | G158: =VLOOKUP($A$1,未来カルテデータ!$A$3:$BHO$1048576,G141) -> 22875.77086 | H158: =VLOOKUP($A$1,未来カルテデータ!$A$3:$BHO$1048576,H141) -> 266.9472677 | I158: =VLOOKUP($A$1,未来カルテデータ!$A$3:$BHO$1048576,I141) -> 3582.321783 | J158: =VLOOKUP($A$1,未来カルテデータ!$A$3:$BHO$1048576,J141) -> 8826.102838 | K158: =VLOOKUP($A$1,未来カルテデータ!$A$3:$BHO$1048576,K141) -> 57531.59704 | L158: =VLOOKUP($A$1,未来カルテデータ!$A$3:$BHO$1048576,L141) -> 18954.94499 | M158: =VLOOKUP($A$1,未来カルテデータ!$A$3:$BHO$1048576,M141) -> 13427.91247 | N158: =VLOOKUP($A$1,未来カルテデータ!$A$3:$BHO$1048576,N141) -> 22496.15931 | O158: =VLOOKUP($A$1,未来カルテデータ!$A$3:$BHO$1048576,O141) -> 17586.13124 | P158: =VLOOKUP($A$1,未来カルテデータ!$A$3:$BHO$1048576,P141) -> 19097.92073 | Q158: =VLOOKUP($A$1,未来カルテデータ!$A$3:$BHO$1048576,Q141) -> 41581.34516 | R158: =VLOOKUP($A$1,未来カルテデータ!$A$3:$BHO$1048576,R141) -> 82453.84388 | S158: =VLOOKUP($A$1,未来カルテデータ!$A$3:$BHO$1048576,S141) -> 6764.296495 | T158: =VLOOKUP($A$1,未来カルテデータ!$A$3:$BHO$1048576,T141) -> 42109.13622 | U158: =VLOOKUP($A$1,未来カルテデータ!$A$3:$BHO$1048576,U141) -> 1222.72971 | V158: =VLOOKUP($A$1,未来カルテデータ!$A$3:$BHO$1048576,V141) -> 23146.74603
A159: 85歳以上 | B159: =VLOOKUP($A$1,未来カルテデータ!$A$3:$BHO$1048576,B142) -> 28633.3136 | C159: =VLOOKUP($A$1,未来カルテデータ!$A$3:$BHO$1048576,C142) -> 838.9529951 | D159: =VLOOKUP($A$1,未来カルテデータ!$A$3:$BHO$1048576,D142) -> 1924.907842 | E159: =VLOOKUP($A$1,未来カルテデータ!$A$3:$BHO$1048576,E142) -> 45.48699477 | F159: =VLOOKUP($A$1,未来カルテデータ!$A$3:$BHO$1048576,F142) -> 8730.604533 | G159: =VLOOKUP($A$1,未来カルテデータ!$A$3:$BHO$1048576,G142) -> 18184.4442 | H159: =VLOOKUP($A$1,未来カルテデータ!$A$3:$BHO$1048576,H142) -> 138.1903297 | I159: =VLOOKUP($A$1,未来カルテデータ!$A$3:$BHO$1048576,I142) -> 2079.868399 | J159: =VLOOKUP($A$1,未来カルテデータ!$A$3:$BHO$1048576,J142) -> 7087.555072 | K159: =VLOOKUP($A$1,未来カルテデータ!$A$3:$BHO$1048576,K142) -> 42554.47565 | L159: =VLOOKUP($A$1,未来カルテデータ!$A$3:$BHO$1048576,L142) -> 11950.98659 | M159: =VLOOKUP($A$1,未来カルテデータ!$A$3:$BHO$1048576,M142) -> 17899.85058 | N159: =VLOOKUP($A$1,未来カルテデータ!$A$3:$BHO$1048576,N142) -> 21429.43968 | O159: =VLOOKUP($A$1,未来カルテデータ!$A$3:$BHO$1048576,O142) -> 16776.63016 | P159: =VLOOKUP($A$1,未来カルテデータ!$A$3:$BHO$1048576,P142) -> 20984.99266 | Q159: =VLOOKUP($A$1,未来カルテデータ!$A$3:$BHO$1048576,Q142) -> 26110.84149 | R159: =VLOOKUP($A$1,未来カルテデータ!$A$3:$BHO$1048576,R142) -> 64050.55522 | S159: =VLOOKUP($A$1,未来カルテデータ!$A$3:$BHO$1048576,S142) -> 4097.4396 | T159: =VLOOKUP($A$1,未来カルテデータ!$A$3:$BHO$1048576,T142) -> 53245.81698 | U159: =VLOOKUP($A$1,未来カルテデータ!$A$3:$BHO$1048576,U142) -> 323.5883835 | V159: =VLOOKUP($A$1,未来カルテデータ!$A$3:$BHO$1048576,V142) -> 22921.39788
B160: =SUM(B145:B159) -> 992357.9884 | C160: =SUM(C145:C159) -> 69099.07223 | D160: 121599.4038 | E160: 8185.84271 | F160: 2026291.097 | G160: 5880111.305 | H160: 189891.8257 | I160: 2922423.71 | J160: 2440145.53 | K160: 5469351.227 | L160: 1264690.901 | M160: 736988.5417 | N160: 1391436.254 | O160: 2533042.399 | P160: 2199376.847 | Q160: 2532172.014 | R160: 6927558.052 | S160: 436243.8825 | T160: 2318786.59 | U160: 1790226.14 | V160: 3445201.424
B163: 1339 | C163: 1340 | D163: 1341 | E163: 1342 | F163: 1343 | G163: 1344
B164: 1345 | C164: 1346 | D164: 1347 | E164: 1348 | F164: 1349 | G164: 1350
B166: 1351 | C166: 1352 | D166: 1353 | E166: 1354 | F166: 1355 | G166: 1356
B167: 1357 | C167: 1358 | D167: 1359 | E167: 1360 | F167: 1361 | G167: 1362
B169: 1363 | C169: 1364 | D169: 1365 | E169: 1366 | F169: 1367 | G169: 1368
B170: 1369 | C170: 1370 | D170: 1371 | E170: 1372 | F170: 1373 | G170: 1374
B173: 2015 | C173: 2020 | D173: 2025 | E173: 2030 | F173: 2035 | G173: 2040
A174: 幼稚園・保育園在籍者数 | B174: =VLOOKUP($A$1,未来カルテデータ!$A$3:$BHO$1048576,B163) -> 3633000 | C174: =VLOOKUP($A$1,未来カルテデータ!$A$3:$BHO$1048576,C163) -> 3245861.144 | D174: =VLOOKUP($A$1,未来カルテデータ!$A$3:$BHO$1048576,D163) -> 2912919.922 | E174: =VLOOKUP($A$1,未来カルテデータ!$A$3:$BHO$1048576,E163) -> 2733567.68 | F174: =VLOOKUP($A$1,未来カルテデータ!$A$3:$BHO$1048576,F163) -> 2610182.896 | G174: =VLOOKUP($A$1,未来カルテデータ!$A$3:$BHO$1048576,G163) -> 2472060.561
A175: 幼稚園教員・児童福祉事業従事者数 | B175: =VLOOKUP($A$1,未来カルテデータ!$A$3:$BHO$1048576,B164) -> 1075681 | C175: =VLOOKUP($A$1,未来カルテデータ!$A$3:$BHO$1048576,C164) -> 1102453.292 | D175: =VLOOKUP($A$1,未来カルテデータ!$A$3:$BHO$1048576,D164) -> 1122183.588 | E175: =VLOOKUP($A$1,未来カルテデータ!$A$3:$BHO$1048576,E164) -> 1119519.12 | F175: =VLOOKUP($A$1,未来カルテデータ!$A$3:$BHO$1048576,F164) -> 1095552.525 | G175: =VLOOKUP($A$1,未来カルテデータ!$A$3:$BHO$1048576,G164) -> 1050793.693
A176: 幼稚園・児童福祉従事者一人当たり幼稚園・保育園在籍者数 | B176: =B174/B175 -> 3.377395343 | C176: 2.944216473 | D176: 2.59576058 | E176: 2.441733804 | F176: 2.382526475 | G176: 2.352565093
A177: 小学校児童数 | B177: =VLOOKUP($A$1,未来カルテデータ!$A$3:$BHO$1048576,B166) -> 6543104 | C177: =VLOOKUP($A$1,未来カルテデータ!$A$3:$BHO$1048576,C166) -> 6122077.436 | D177: =VLOOKUP($A$1,未来カルテデータ!$A$3:$BHO$1048576,D166) -> 5568025.525 | E177: =VLOOKUP($A$1,未来カルテデータ!$A$3:$BHO$1048576,E166) -> 4960071.967 | F177: =VLOOKUP($A$1,未来カルテデータ!$A$3:$BHO$1048576,F166) -> 4607963.483 | G177: =VLOOKUP($A$1,未来カルテデータ!$A$3:$BHO$1048576,G166) -> 4397466.339
A178: 小学校教員数 | B178: =VLOOKUP($A$1,未来カルテデータ!$A$3:$BHO$1048576,B167) -> 417152 | C178: =VLOOKUP($A$1,未来カルテデータ!$A$3:$BHO$1048576,C167) -> 426433.6097 | D178: =VLOOKUP($A$1,未来カルテデータ!$A$3:$BHO$1048576,D167) -> 430732.7882 | E178: =VLOOKUP($A$1,未来カルテデータ!$A$3:$BHO$1048576,E167) -> 425142.6882 | F178: =VLOOKUP($A$1,未来カルテデータ!$A$3:$BHO$1048576,F167) -> 412912.6079 | G178: =VLOOKUP($A$1,未来カルテデータ!$A$3:$BHO$1048576,G167) -> 396090.4946
A179: 教員一人当たり小学校児童数 | B179: =B177/B178 -> 15.6851795 | C179: 14.35646088 | D179: 12.92686714 | E179: 11.66684058 | F179: 11.15965799 | G179: 11.10217589
A180: 中学校生徒数 | B180: =VLOOKUP($A$1,未来カルテデータ!$A$3:$BHO$1048576,B169) -> 3465215 | C180: =VLOOKUP($A$1,未来カルテデータ!$A$3:$BHO$1048576,C169) -> 3234417.572 | D180: =VLOOKUP($A$1,未来カルテデータ!$A$3:$BHO$1048576,D169) -> 3043814.94 | E180: =VLOOKUP($A$1,未来カルテデータ!$A$3:$BHO$1048576,E169) -> 2735560.924 | F180: =VLOOKUP($A$1,未来カルテデータ!$A$3:$BHO$1048576,F169) -> 2451681.918 | G180: =VLOOKUP($A$1,未来カルテデータ!$A$3:$BHO$1048576,G169) -> 2295852.275
A181: 中学校教員数 | B181: =VLOOKUP($A$1,未来カルテデータ!$A$3:$BHO$1048576,B170) -> 253704 | C181: =VLOOKUP($A$1,未来カルテデータ!$A$3:$BHO$1048576,C170) -> 259161.4653 | D181: =VLOOKUP($A$1,未来カルテデータ!$A$3:$BHO$1048576,D170) -> 261704.3187 | E181: =VLOOKUP($A$1,未来カルテデータ!$A$3:$BHO$1048576,E170) -> 258231.34 | F181: =VLOOKUP($A$1,未来カルテデータ!$A$3:$BHO$1048576,F170) -> 250715.0084 | G181: =VLOOKUP($A$1,未来カルテデータ!$A$3:$BHO$1048576,G170) -> 240408.8062
A182: 教員一人当たり中学校生徒数 | B182: =B180/B181 -> 13.65849573 | C182: 12.48031828 | D182: 11.6307402 | E182: 10.59345052 | F182: 9.77876009 | G182: 9.549784434
B184: 1375 | C184: 1376 | D184: 1377 | E184: 1378 | F184: 1379 | G184: 1380
B185: 1381 | C185: 1382 | D185: 1383 | E185: 1384 | F185: 1385 | G185: 1386
B187: 1387 | C187: 1388 | D187: 1389 | E187: 1390 | F187: 1391 | G187: 1392
B190: 1393
B193: 1394 | C193: 1395 | D193: 1396 | E193: 1397 | F193: 1398 | G193: 1399
B194: 1400 | C194: 1401 | D194: 1402 | E194: 1403 | F194: 1404 | G194: 1405
B195: 1406 | C195: 1407 | D195: 1408 | E195: 1409 | F195: 1410 | G195: 1411
B196: 1412 | C196: 1413 | D196: 1414 | E196: 1415 | F196: 1416 | G196: 1417
B197: 1418
B199: 2015 | C199: 2020 | D199: 2025 | E199: 2030 | F199: 2035 | G199: 2040
A200: 入院患者数 | B200: =VLOOKUP($A$1,未来カルテデータ!$A$3:$BHO$1048576,B184) -> 1417274.295 | C200: =VLOOKUP($A$1,未来カルテデータ!$A$3:$BHO$1048576,C184) -> 1516124.008 | D200: =VLOOKUP($A$1,未来カルテデータ!$A$3:$BHO$1048576,D184) -> 1535221.205 | E200: =VLOOKUP($A$1,未来カルテデータ!$A$3:$BHO$1048576,E184) -> 1537217.908 | F200: =VLOOKUP($A$1,未来カルテデータ!$A$3:$BHO$1048576,F184) -> 1524109.191 | G200: =VLOOKUP($A$1,未来カルテデータ!$A$3:$BHO$1048576,G184) -> 1494012.851
A201: 外来患者数 | B201: =VLOOKUP($A$1,未来カルテデータ!$A$3:$BHO$1048576,B185) -> 7629782.2 | C201: =VLOOKUP($A$1,未来カルテデータ!$A$3:$BHO$1048576,C185) -> 7549128.032 | D201: =VLOOKUP($A$1,未来カルテデータ!$A$3:$BHO$1048576,D185) -> 7440542.735 | E201: =VLOOKUP($A$1,未来カルテデータ!$A$3:$BHO$1048576,E185) -> 7259481.937 | F201: =VLOOKUP($A$1,未来カルテデータ!$A$3:$BHO$1048576,F185) -> 7025376.669 | G201: =VLOOKUP($A$1,未来カルテデータ!$A$3:$BHO$1048576,G185) -> 6777009.333
A202: 患者数 | B202: =B200+B201 -> 9047056.496 | C202: 9065252.04 | D202: 8975763.94 | E202: 8796699.845 | F202: 8549485.861 | G202: 8271022.184
A203: 医師数 | B203: =VLOOKUP($A$1,未来カルテデータ!$A$3:$BHO$1048576,B187) -> 311205 | C203: =VLOOKUP($A$1,未来カルテデータ!$A$3:$BHO$1048576,C187) -> 318930.7946 | D203: =VLOOKUP($A$1,未来カルテデータ!$A$3:$BHO$1048576,D187) -> 324678.8814 | E203: =VLOOKUP($A$1,未来カルテデータ!$A$3:$BHO$1048576,E187) -> 324102.1438 | F203: =VLOOKUP($A$1,未来カルテデータ!$A$3:$BHO$1048576,F187) -> 317094.7672 | G203: =VLOOKUP($A$1,未来カルテデータ!$A$3:$BHO$1048576,G187) -> 303581.6594
A204: 医師一人当たり患者数 | B204: =B202/B203 -> 29.07105122 | C204: 28.42388441 | D204: 27.64505009 | E204: 27.14175149 | F204: 26.96192667 | G204: 27.24480195
B205: 2015 | C205: 2020 | D205: 2025 | E205: 2030 | F205: 2035 | G205: 2040
A206: 病床数 | B206: =VLOOKUP($A$1,未来カルテデータ!$A$3:$BHO$1048576,B190) -> 1797616 | C206: =$B$206 -> 1797616 | D206: =$B$206 -> 1797616 | E206: =$B$206 -> 1797616 | F206: =$B$206 -> 1797616 | G206: =$B$206 -> 1797616
A207: 病床当たり入院患者数 | B207: =B200/$B$206 -> 0.7884188254 | C207: 0.8434081631 | D207: 0.854031787 | E207: 0.8551425374 | F207: 0.8478502591 | G207: 0.8311078957
B208: 2015 | C208: 2020 | D208: 2025 | E208: 2030 | F208: 2035 | G208: 2040
A209: 介護受給者数 | B209: =VLOOKUP($A$1,未来カルテデータ!$A$3:$BHO$1048576,B193) -> 5731211.238 | C209: =VLOOKUP($A$1,未来カルテデータ!$A$3:$BHO$1048576,C193) -> 7323599.333 | D209: =VLOOKUP($A$1,未来カルテデータ!$A$3:$BHO$1048576,D193) -> 8261342.197 | E209: =VLOOKUP($A$1,未来カルテデータ!$A$3:$BHO$1048576,E193) -> 9078642.592 | F209: =VLOOKUP($A$1,未来カルテデータ!$A$3:$BHO$1048576,F193) -> 9680005.48 | G209: =VLOOKUP($A$1,未来カルテデータ!$A$3:$BHO$1048576,G193) -> 9957801.175
A210: 要介護3以上介護受給者数 | B210: =VLOOKUP($A$1,未来カルテデータ!$A$3:$BHO$1048576,B194) -> 1940274.053 | C210: =VLOOKUP($A$1,未来カルテデータ!$A$3:$BHO$1048576,C194) -> 2596546.558 | D210: =VLOOKUP($A$1,未来カルテデータ!$A$3:$BHO$1048576,D194) -> 2965432.088 | E210: =VLOOKUP($A$1,未来カルテデータ!$A$3:$BHO$1048576,E194) -> 3288112.588 | F210: =VLOOKUP($A$1,未来カルテデータ!$A$3:$BHO$1048576,F194) -> 3574659.583 | G210: =VLOOKUP($A$1,未来カルテデータ!$A$3:$BHO$1048576,G194) -> 3783742.095
A211: 認知症患者数 | B211: =VLOOKUP($A$1,未来カルテデータ!$A$3:$BHO$1048576,B195) -> 5023960.281 | C211: =VLOOKUP($A$1,未来カルテデータ!$A$3:$BHO$1048576,C195) -> 6511273.707 | D211: =VLOOKUP($A$1,未来カルテデータ!$A$3:$BHO$1048576,D195) -> 7530643.376 | E211: =VLOOKUP($A$1,未来カルテデータ!$A$3:$BHO$1048576,E195) -> 8559033.753 | F211: =VLOOKUP($A$1,未来カルテデータ!$A$3:$BHO$1048576,F195) -> 9491317.233 | G211: =VLOOKUP($A$1,未来カルテデータ!$A$3:$BHO$1048576,G195) -> 9821991.636
A212: 老人福祉・介護事業従事者数 | B212: =VLOOKUP($A$1,未来カルテデータ!$A$3:$BHO$1048576,B196) -> 2255649 | C212: =VLOOKUP($A$1,未来カルテデータ!$A$3:$BHO$1048576,C196) -> 2311003.019 | D212: =VLOOKUP($A$1,未来カルテデータ!$A$3:$BHO$1048576,D196) -> 2357990.986 | E212: =VLOOKUP($A$1,未来カルテデータ!$A$3:$BHO$1048576,E196) -> 2359108.093 | F212: =VLOOKUP($A$1,未来カルテデータ!$A$3:$BHO$1048576,F196) -> 2313413.921 | G212: =VLOOKUP($A$1,未来カルテデータ!$A$3:$BHO$1048576,G196) -> 2219842.869
A213: =未来カルテデータ!BBN3 -> 介護老人福祉施設入所定員 | B213: =VLOOKUP($A$1,未来カルテデータ!$A$3:$BHO$1048576,B197) -> 451495 | C213: =$B213 -> 451495 | D213: =$B213 -> 451495 | E213: =$B213 -> 451495 | F213: =$B213 -> 451495 | G213: =$B213 -> 451495
A214: 福祉介護事業者当たり介護受給者数 | B214: =B209/B212 -> 2.540825828 | C214: 3.169013313 | D214: 3.503551221 | E214: 3.848336843 | F214: 4.184294644 | G214: 4.485813529
A215: 介護老人福祉施設定員当たり要介護3以上介護受給者数 | B215: =B210/$B$213 -> 4.297443057 | C215: 5.75099737 | D215: 6.568028633 | E215: 7.282722041 | F215: 7.917384651 | G215: 8.38047397
B217: 2015
A218: 公有財産（行政財産）建物床面積 | B218: =VLOOKUP($A$1,未来カルテデータ!$A$3:$BHO$1048576,D218) -> 464586065 | C218: m2 | D218: 1419
A219: うち、本庁舎 | B219: =VLOOKUP($A$1,未来カルテデータ!$A$3:$BHO$1048576,D219) -> 17124426 | C219: m2 | D219: 1420
A220: うち、小学校 | B220: =VLOOKUP($A$1,未来カルテデータ!$A$3:$BHO$1048576,D220) -> 108525603 | C220: m2 | D220: 1421
A221: うち、中学校 | B221: =VLOOKUP($A$1,未来カルテデータ!$A$3:$BHO$1048576,D221) -> 66296400 | C221: m2 | D221: 1422
A222: うち、高等学校 | B222: =VLOOKUP($A$1,未来カルテデータ!$A$3:$BHO$1048576,D222) -> 3027879 | C222: m2 | D222: 1423
... 212 more rows

Sheet 未来カルテデータ (hidden)
A1: 1 | B1: 2 | C1: 3 | D1: 4 | E1: 5 | F1: 6 | G1: 7 | H1: 8 | I1: 9 | J1: 10 | K1: 11 | L1: 12 | M1: 13 | N1: 14 | O1: 15 | P1: 16 | Q1: 17 | R1: 18 | S1: 19 | T1: 20 | U1: 21 | V1: 22 | W1: 23 | X1: 24 | Y1: 25 | Z1: 26 | AA1: 27 | AB1: 28 | AC1: 29 | AD1: 30 | AE1: 31 | AF1: 32 | AG1: 33 | AH1: 34 | AI1: 35 | AJ1: 36 | AK1: 37 | AL1: 38 | AM1: 39 | AN1: 40 | AO1: 41 | AP1: 42 | AQ1: 43 | AR1: 44 | AS1: 45 | AT1: 46 | AU1: 47 | AV1: 48 | AW1: 49 | AX1: 50 | AY1: 51 | AZ1: 52 | BA1: 53 | BB1: 54 | BC1: 55 | BD1: 56 | BE1: 57 | BF1: 58 | BG1: 59 | BH1: 60 | BI1: 61 | BJ1: 62 | BK1: 63 | BL1: 64 | BM1: 65 | BN1: 66 | BO1: 67 | BP1: 68 | BQ1: 69 | BR1: 70 | BS1: 71 | BT1: 72 | BU1: 73 | BV1: 74 | BW1: 75 | BX1: 76 | BY1: 77 | BZ1: 78 | CA1: 79 | CB1: 80 | CC1: 81 | CD1: 82 | CE1: 83 | CF1: 84 | CG1: 85 | CH1: 86 | CI1: 87 | CJ1: 88 | CK1: 89 | CL1: 90 | CM1: 91 | CN1: 92 | CO1: 93 | CP1: 94 | CQ1: 95 | CR1: 96 | CS1: 97 | CT1: 98 | CU1: 99 | CV1: 100 | CW1: 101 | CX1: 102 | CY1: 103 | CZ1: 104 | DA1: 105 | DB1: 106 | DC1: 107 | DD1: 108 | DE1: 109 | DF1: 110 | DG1: 111 | DH1: 112 | DI1: 113 | DJ1: 114 | DK1: 115 | DL1: 116 | DM1: 117 | DN1: 118 | DO1: 119 | DP1: 120 | DQ1: 121 | DR1: 122 | DS1: 123 | DT1: 124 | DU1: 125 | DV1: 126 | DW1: 127 | DX1: 128 | DY1: 129 | DZ1: 130 | EA1: 131 | EB1: 132 | EC1: 133 | ED1: 134 | EE1: 135 | EF1: 136 | EG1: 137 | EH1: 138 | EI1: 139 | EJ1: 140 | EK1: 141 | EL1: 142 | EM1: 143 | EN1: 144 | EO1: 145 | EP1: 146 | EQ1: 147 | ER1: 148 | ES1: 149 | ET1: 150 | EU1: 151 | EV1: 152 | EW1: 153 | EX1: 154 | EY1: 155 | EZ1: 156 | FA1: 157 | FB1: 158 | FC1: 159 | FD1: 160 | FE1: 161 | FF1: 162 | FG1: 163 | FH1: 164 | FI1: 165 | FJ1: 166 | FK1: 167 | FL1: 168 | FM1: 169 | FN1: 170 | FO1: 171 | FP1: 172 | FQ1: 173 | FR1: 174 | FS1: 175 | FT1: 176 | FU1: 177 | FV1: 178 | FW1: 179 | FX1: 180 | FY1: 181 | FZ1: 182 | GA1: 183 | GB1: 184 | GC1: 185 | GD1: 186 | GE1: 187 | GF1: 188 | GG1: 189 | GH1: 190 | GI1: 191 | GJ1: 192 | GK1: 193 | GL1: 194 | GM1: 195 | GN1: 196 | GO1: 197 | GP1: 198 | GQ1: 199 | GR1: 200 | GS1: 201 | GT1: 202 | GU1: 203 | GV1: 204 | GW1: 205 | GX1: 206 | GY1: 207 | GZ1: 208 | HA1: 209 | HB1: 210 | HC1: 211 | HD1: 212 | HE1: 213 | HF1: 214 | HG1: 215 | HH1: 216 | HI1: 217 | HJ1: 218 | HK1: 219 | HL1: 220 | HM1: 221 | HN1: 222 | HO1: 223 | HP1: 224 | HQ1: 225 | HR1: 226 | HS1: 227 | HT1: 228 | HU1: 229 | HV1: 230 | HW1: 231 | HX1: 232 | HY1: 233 | HZ1: 234 | IA1: 235 | IB1: 236 | IC1: 237 | ID1: 238 | IE1: 239 | IF1: 240 | IG1: 241 | IH1: 242 | II1: 243 | IJ1: 244 | IK1: 245 | IL1: 246 | IM1: 247 | IN1: 248 | IO1: 249 | IP1: 250 | IQ1: 251 | IR1: 252 | IS1: 253 | IT1: 254 | IU1: 255 | IV1: 256 | IW1: 257 | IX1: 258 | IY1: 259 | IZ1: 260 | JA1: 261 | JB1: 262 | JC1: 263 | JD1: 264 | JE1: 265 | JF1: 266 | JG1: 267 | JH1: 268 | JI1: 269 | JJ1: 270 | JK1: 271 | JL1: 272 | JM1: 273 | JN1: 274 | JO1: 275 | JP1: 276 | JQ1: 277 | JR1: 278 | JS1: 279 | JT1: 280 | JU1: 281 | JV1: 282 | JW1: 283 | JX1: 284 | JY1: 285 | JZ1: 286 | KA1: 287 | KB1: 288 | KC1: 289 | KD1: 290 | KE1: 291 | KF1: 292 | KG1: 293 | KH1: 294 | KI1: 295 | KJ1: 296 | KK1: 297 | KL1: 298 | KM1: 299 | KN1: 300 | KO1: 301 | KP1: 302 | KQ1: 303 | KR1: 304 | KS1: 305 | KT1: 306 | KU1: 307 | KV1: 308 | KW1: 309 | KX1: 310 | KY1: 311 | KZ1: 312 | LA1: 313 | LB1: 314 | LC1: 315 | LD1: 316 | LE1: 317 | LF1: 318 | LG1: 319 | LH1: 320 | LI1: 321 | LJ1: 322 | LK1: 323 | LL1: 324 | LM1: 325 | LN1: 326 | LO1: 327 | LP1: 328 | LQ1: 329 | LR1: 330 | LS1: 331 | LT1: 332 | LU1: 333 | LV1: 334 | LW1: 335 | LX1: 336 | LY1: 337 | LZ1: 338 | MA1: 339 | MB1: 340 | MC1: 341 | MD1: 342 | ME1: 343 | MF1: 344 | MG1: 345 | MH1: 346 | MI1: 347 | MJ1: 348 | MK1: 349 | ML1: 350 | MM1: 351 | MN1: 352 | MO1: 353 | MP1: 354 | MQ1: 355 | MR1: 356 | MS1: 357 | MT1: 358 | MU1: 359 | MV1: 360 | MW1: 361 | MX1: 362 | MY1: 363 | MZ1: 364 | NA1: 365 | NB1: 366 | NC1: 367 | ND1: 368 | NE1: 369 | NF1: 370 | NG1: 371 | NH1: 372 | NI1: 373 | NJ1: 374 | NK1: 375 | NL1: 376 | NM1: 377 | NN1: 378 | NO1: 379 | NP1: 380 | NQ1: 381 | NR1: 382 | NS1: 383 | NT1: 384 | NU1: 385 | NV1: 386 | NW1: 387 | NX1: 388 | NY1: 389 | NZ1: 390 | OA1: 391 | OB1: 392 | OC1: 393 | OD1: 394 | OE1: 395 | OF1: 396 | OG1: 397 | OH1: 398 | OI1: 399 | OJ1: 400 | OK1: 401 | OL1: 402 | OM1: 403 | ON1: 404 | OO1: 405 | OP1: 406 | OQ1: 407 | OR1: 408 | OS1: 409 | OT1: 410 | OU1: 411 | OV1: 412 | OW1: 413 | OX1: 414 | OY1: 415 | OZ1: 416 | PA1: 417 | PB1: 418 | PC1: 419 | PD1: 420 | PE1: 421 | PF1: 422 | PG1: 423 | PH1: 424 | PI1: 425 | PJ1: 426 | PK1: 427 | PL1: 428 | PM1: 429 | PN1: 430 | PO1: 431 | PP1: 432 | PQ1: 433 | PR1: 434 | PS1: 435 | PT1: 436 | PU1: 437 | PV1: 438 | PW1: 439 | PX1: 440 | PY1: 441 | PZ1: 442 | QA1: 443 | QB1: 444 | QC1: 445 | QD1: 446 | QE1: 447 | QF1: 448 | QG1: 449 | QH1: 450 | QI1: 451 | QJ1: 452 | QK1: 453 | QL1: 454 | QM1: 455 | QN1: 456 | QO1: 457 | QP1: 458 | QQ1: 459 | QR1: 460 | QS1: 461 | QT1: 462 | QU1: 463 | QV1: 464 | QW1: 465 | QX1: 466 | QY1: 467 | QZ1: 468 | RA1: 469 | RB1: 470 | RC1: 471 | RD1: 472 | RE1: 473 | RF1: 474 | RG1: 475 | RH1: 476 | RI1: 477 | RJ1: 478 | RK1: 479 | RL1: 480 | RM1: 481 | RN1: 482 | RO1: 483 | RP1: 484 | RQ1: 485 | RR1: 486 | RS1: 487 | RT1: 488 | RU1: 489 | RV1: 490 | RW1: 491 | RX1: 492 | RY1: 493 | RZ1: 494 | SA1: 495 | SB1: 496 | SC1: 497 | SD1: 498 | SE1: 499 | SF1: 500 | SG1: 501 | SH1: 502 | SI1: 503 | SJ1: 504 | SK1: 505 | SL1: 506 | SM1: 507 | SN1: 508 | SO1: 509 | SP1: 510 | SQ1: 511 | SR1: 512 | SS1: 513 | ST1: 514 | SU1: 515 | SV1: 516 | SW1: 517 | SX1: 518 | SY1: 519 | SZ1: 520 | TA1: 521 | TB1: 522 | TC1: 523 | TD1: 524 | TE1: 525 | TF1: 526 | TG1: 527 | TH1: 528 | TI1: 529 | TJ1: 530 | TK1: 531 | TL1: 532 | TM1: 533 | TN1: 534 | TO1: 535 | TP1: 536 | TQ1: 537 | TR1: 538 | TS1: 539 | TT1: 540 | TU1: 541 | TV1: 542 | TW1: 543 | TX1: 544 | TY1: 545 | TZ1: 546 | UA1: 547 | UB1: 548 | UC1: 549 | UD1: 550 | UE1: 551 | UF1: 552 | UG1: 553 | UH1: 554 | UI1: 555 | UJ1: 556 | UK1: 557 | UL1: 558 | UM1: 559 | UN1: 560 | UO1: 561 | UP1: 562 | UQ1: 563 | UR1: 564 | US1: 565 | UT1: 566 | UU1: 567 | UV1: 568 | UW1: 569 | UX1: 570 | UY1: 571 | UZ1: 572 | VA1: 573 | VB1: 574 | VC1: 575 | VD1: 576 | VE1: 577 | VF1: 578 | VG1: 579 | VH1: 580 | VI1: 581 | VJ1: 582 | VK1: 583 | VL1: 584 | VM1: 585 | VN1: 586 | VO1: 587 | VP1: 588 | VQ1: 589 | VR1: 590 | VS1: 591 | VT1: 592 | VU1: 593 | VV1: 594 | VW1: 595 | VX1: 596 | VY1: 597 | VZ1: 598 | WA1: 599 | WB1: 600 | WC1: 601 | WD1: 602 | WE1: 603 | WF1: 604 | WG1: 605 | WH1: 606 | WI1: 607 | WJ1: 608 | WK1: 609 | WL1: 610 | WM1: 611 | WN1: 612 | WO1: 613 | WP1: 614 | WQ1: 615 | WR1: 616 | WS1: 617 | WT1: 618 | WU1: 619 | WV1: 620 | WW1: 621 | WX1: 622 | WY1: 623 | WZ1: 624 | XA1: 625 | XB1: 626 | XC1: 627 | XD1: 628 | XE1: 629 | XF1: 630 | XG1: 631 | XH1: 632 | XI1: 633 | XJ1: 634 | XK1: 635 | XL1: 636 | XM1: 637 | XN1: 638 | XO1: 639 | XP1: 640 | XQ1: 641 | XR1: 642 | XS1: 643 | XT1: 644 | XU1: 645 | XV1: 646 | XW1: 647 | XX1: 648 | XY1: 649 | XZ1: 650 | YA1: 651 | YB1: 652 | YC1: 653 | YD1: 654 | YE1: 655 | YF1: 656 | YG1: 657 | YH1: 658 | YI1: 659 | YJ1: 660 | YK1: 661 | YL1: 662 | YM1: 663 | YN1: 664 | YO1: 665 | YP1: 666 | YQ1: 667 | YR1: 668 | YS1: 669 | YT1: 670 | YU1: 671 | YV1: 672 | YW1: 673 | YX1: 674 | YY1: 675 | YZ1: 676 | ZA1: 677 | ZB1: 678 | ZC1: 679 | ZD1: 680 | ZE1: 681 | ZF1: 682 | ZG1: 683 | ZH1: 684 | ZI1: 685 | ZJ1: 686 | ZK1: 687 | ZL1: 688 | ZM1: 689 | ZN1: 690 | ZO1: 691 | ZP1: 692 | ZQ1: 693 | ZR1: 694 | ZS1: 695 | ZT1: 696 | ZU1: 697 | ZV1: 698 | ZW1: 699 | ZX1: 700 | ZY1: 701 | ZZ1: 702 | AAA1: 703 | AAB1: 704 | AAC1: 705 | AAD1: 706 | AAE1: 707 | AAF1: 708 | AAG1: 709 | AAH1: 710 | AAI1: 711 | AAJ1: 712 | AAK1: 713 | AAL1: 714 | AAM1: 715 | AAN1: 716 | AAO1: 717 | AAP1: 718 | AAQ1: 719 | AAR1: 720 | AAS1: 721 | AAT1: 722 | AAU1: 723 | AAV1: 724 | AAW1: 725 | AAX1: 726 | AAY1: 727 | AAZ1: 728 | ABA1: 729 | ABB1: 730 | ABC1: 731 | ABD1: 732 | ABE1: 733 | ABF1: 734 | ABG1: 735 | ABH1: 736 | ABI1: 737 | ABJ1: 738 | ABK1: 739 | ABL1: 740 | ABM1: 741 | ABN1: 742 | ABO1: 743 | ABP1: 744 | ABQ1: 745 | ABR1: 746 | ABS1: 747 | ABT1: 748 | ABU1: 749 | ABV1: 750 | ABW1: 751 | ABX1: 752 | ABY1: 753 | ABZ1: 754 | ACA1: 755 | ACB1: 756 | ACC1: 757 | ACD1: 758 | ACE1: 759 | ACF1: 760 | ACG1: 761 | ACH1: 762 | ACI1: 763 | ACJ1: 764 | ACK1: 765 | ACL1: 766 | ACM1: 767 | ACN1: 768 | ACO1: 769 | ACP1: 770 | ACQ1: 771 | ACR1: 772 | ACS1: 773 | ACT1: 774 | ACU1: 775 | ACV1: 776 | ACW1: 777 | ACX1: 778 | ACY1: 779 | ACZ1: 780 | ADA1: 781 | ADB1: 782 | ADC1: 783 | ADD1: 784 | ADE1: 785 | ADF1: 786 | ADG1: 787 | ADH1: 788 | ADI1: 789 | ADJ1: 790 | ADK1: 791 | ADL1: 792 | ADM1: 793 | ADN1: 794 | ADO1: 795 | ADP1: 796 | ADQ1: 797 | ADR1: 798 | ADS1: 799 | ADT1: 800 | ADU1: 801 | ADV1: 802 | ADW1: 803 | ADX1: 804 | ADY1: 805 | ADZ1: 806 | AEA1: 807 | AEB1: 808 | AEC1: 809 | AED1: 810 | AEE1: 811 | AEF1: 812 | AEG1: 813 | AEH1: 814 | AEI1: 815 | AEJ1: 816 | AEK1: 817 | AEL1: 818 | AEM1: 819 | AEN1: 820 | AEO1: 821 | AEP1: 822 | AEQ1: 823 | AER1: 824 | AES1: 825 | AET1: 826 | AEU1: 827 | AEV1: 828 | AEW1: 829 | AEX1: 830 | AEY1: 831 | AEZ1: 832 | AFA1: 833 | AFB1: 834 | AFC1: 835 | AFD1: 836 | AFE1: 837 | AFF1: 838 | AFG1: 839 | AFH1: 840 | AFI1: 841 | AFJ1: 842 | AFK1: 843 | AFL1: 844 | AFM1: 845 | AFN1: 846 | AFO1: 847 | AFP1: 848 | AFQ1: 849 | AFR1: 850 | AFS1: 851 | AFT1: 852 | AFU1: 853 | AFV1: 854 | AFW1: 855 | AFX1: 856 | AFY1: 857 | AFZ1: 858 | AGA1: 859 | AGB1: 860 | AGC1: 861 | AGD1: 862 | AGE1: 863 | AGF1: 864 | AGG1: 865 | AGH1: 866 | AGI1: 867 | AGJ1: 868 | AGK1: 869 | AGL1: 870 | AGM1: 871 | AGN1: 872 | AGO1: 873 | AGP1: 874 | AGQ1: 875 | AGR1: 876 | AGS1: 877 | AGT1: 878 | AGU1: 879 | AGV1: 880 | AGW1: 881 | AGX1: 882 | AGY1: 883 | AGZ1: 884 | AHA1: 885 | AHB1: 886 | AHC1: 887 | AHD1: 888 | AHE1: 889 | AHF1: 890 | AHG1: 891 | AHH1: 892 | AHI1: 893 | AHJ1: 894 | AHK1: 895 | AHL1: 896 | AHM1: 897 | AHN1: 898 | AHO1: 899 | AHP1: 900 | AHQ1: 901 | AHR1: 902 | AHS1: 903 | AHT1: 904 | AHU1: 905 | AHV1: 906 | AHW1: 907 | AHX1: 908 | AHY1: 909 | AHZ1: 910 | AIA1: 911 | AIB1: 912 | AIC1: 913 | AID1: 914 | AIE1: 915 | AIF1: 916 | AIG1: 917 | AIH1: 918 | AII1: 919 | AIJ1: 920 | AIK1: 921 | AIL1: 922 | AIM1: 923 | AIN1: 924 | AIO1: 925 | AIP1: 926 | AIQ1: 927 | AIR1: 928 | AIS1: 929 | AIT1: 930 | AIU1: 931 | AIV1: 932 | AIW1: 933 | AIX1: 934 | AIY1: 935 | AIZ1: 936 | AJA1: 937 | AJB1: 938 | AJC1: 939 | AJD1: 940 | AJE1: 941 | AJF1: 942 | AJG1: 943 | AJH1: 944 | AJI1: 945 | AJJ1: 946 | AJK1: 947 | AJL1: 948 | AJM1: 949 | AJN1: 950 | AJO1: 951 | AJP1: 952 | AJQ1: 953 | AJR1: 954 | AJS1: 955 | AJT1: 956 | AJU1: 957 | AJV1: 958 | AJW1: 959 | AJX1: 960 | AJY1: 961 | AJZ1: 962 | AKA1: 963 | AKB1: 964 | AKC1: 965 | AKD1: 966 | AKE1: 967 | AKF1: 968 | AKG1: 969 | AKH1: 970 | AKI1: 971 | AKJ1: 972 | AKK1: 973 | AKL1: 974 | AKM1: 975 | AKN1: 976 | AKO1: 977 | AKP1: 978 | AKQ1: 979 | AKR1: 980 | AKS1: 981 | AKT1: 982 | AKU1: 983 | AKV1: 984 | AKW1: 985 | AKX1: 986 | AKY1: 987 | AKZ1: 988 | ALA1: 989 | ALB1: 990 | ALC1: 991 | ALD1: 992 | ALE1: 993 | ALF1: 994 | ALG1: 995 | ALH1: 996 | ALI1: 997 | ALJ1: 998 | ALK1: 999 | ALL1: 1000 | ALM1: 1001 | ALN1: 1002 | ALO1: 1003 | ALP1: 1004 | ALQ1: 1005 | ALR1: 1006 | ALS1: 1007 | ALT1: 1008 | ALU1: 1009 | ALV1: 1010 | ALW1: 1011 | ALX1: 1012 | ALY1: 1013 | ALZ1: 1014 | AMA1: 1015 | AMB1: 1016 | AMC1: 1017 | AMD1: 1018 | AME1: 1019 | AMF1: 1020 | AMG1: 1021 | AMH1: 1022 | AMI1: 1023 | AMJ1: 1024 | AMK1: 1025 | AML1: 1026 | AMM1: 1027 | AMN1: 1028 | AMO1: 1029 | AMP1: 1030 | AMQ1: 1031 | AMR1: 1032 | AMS1: 1033 | AMT1: 1034 | AMU1: 1035 | AMV1: 1036 | AMW1: 1037 | AMX1: 1038 | AMY1: 1039 | AMZ1: 1040 | ANA1: 1041 | ANB1: 1042 | ANC1: 1043 | AND1: 1044 | ANE1: 1045 | ANF1: 1046 | ANG1: 1047 | ANH1: 1048 | ANI1: 1049 | ANJ1: 1050 | ANK1: 1051 | ANL1: 1052 | ANM1: 1053 | ANN1: 1054 | ANO1: 1055 | ANP1: 1056 | ANQ1: 1057 | ANR1: 1058 | ANS1: 1059 | ANT1: 1060 | ANU1: 1061 | ANV1: 1062 | ANW1: 1063 | ANX1: 1064 | ANY1: 1065 | ANZ1: 1066 | AOA1: 1067 | AOB1: 1068 | AOC1: 1069 | AOD1: 1070 | AOE1: 1071 | AOF1: 1072 | AOG1: 1073 | AOH1: 1074 | AOI1: 1075 | AOJ1: 1076 | AOK1: 1077 | AOL1: 1078 | AOM1: 1079 | AON1: 1080 | AOO1: 1081 | AOP1: 1082 | AOQ1: 1083 | AOR1: 1084 | AOS1: 1085 | AOT1: 1086 | AOU1: 1087 | AOV1: 1088 | AOW1: 1089 | AOX1: 1090 | AOY1: 1091 | AOZ1: 1092 | APA1: 1093 | APB1: 1094 | APC1: 1095 | APD1: 1096 | APE1: 1097 | APF1: 1098 | APG1: 1099 | APH1: 1100 | API1: 1101 | APJ1: 1102 | APK1: 1103 | APL1: 1104 | APM1: 1105 | APN1: 1106 | APO1: 1107 | APP1: 1108 | APQ1: 1109 | APR1: 1110 | APS1: 1111 | APT1: 1112 | APU1: 1113 | APV1: 1114 | APW1: 1115 | APX1: 1116 | APY1: 1117 | APZ1: 1118 | AQA1: 1119 | AQB1: 1120 | AQC1: 1121 | AQD1: 1122 | AQE1: 1123 | AQF1: 1124 | AQG1: 1125 | AQH1: 1126 | AQI1: 1127 | AQJ1: 1128 | AQK1: 1129 | AQL1: 1130 | AQM1: 1131 | AQN1: 1132 | AQO1: 1133 | AQP1: 1134 | AQQ1: 1135 | AQR1: 1136 | AQS1: 1137 | AQT1: 1138 | AQU1: 1139 | AQV1: 1140 | AQW1: 1141 | AQX1: 1142 | AQY1: 1143 | AQZ1: 1144 | ARA1: 1145 | ARB1: 1146 | ARC1: 1147 | ARD1: 1148 | ARE1: 1149 | ARF1: 1150 | ARG1: 1151 | ARH1: 1152 | ARI1: 1153 | ARJ1: 1154 | ARK1: 1155 | ARL1: 1156 | ARM1: 1157 | ARN1: 1158 | ARO1: 1159 | ARP1: 1160 | ARQ1: 1161 | ARR1: 1162 | ARS1: 1163 | ART1: 1164 | ARU1: 1165 | ARV1: 1166 | ARW1: 1167 | ARX1: 1168 | ARY1: 1169 | ARZ1: 1170 | ASA1: 1171 | ASB1: 1172 | ASC1: 1173 | ASD1: 1174 | ASE1: 1175 | ASF1: 1176 | ASG1: 1177 | ASH1: 1178 | ASI1: 1179 | ASJ1: 1180 | ASK1: 1181 | ASL1: 1182 | ASM1: 1183 | ASN1: 1184 | ASO1: 1185 | ASP1: 1186 | ASQ1: 1187 | ASR1: 1188 | ASS1: 1189 | AST1: 1190 | ASU1: 1191 | ASV1: 1192 | ASW1: 1193 | ASX1: 1194 | ASY1: 1195 | ASZ1: 1196 | ATA1: 1197 | ATB1: 1198 | ATC1: 1199 | ATD1: 1200 | ATE1: 1201 | ATF1: 1202 | ATG1: 1203 | ATH1: 1204 | ATI1: 1205 | ATJ1: 1206 | ATK1: 1207 | ATL1: 1208 | ATM1: 1209 | ATN1: 1210 | ATO1: 1211 | ATP1: 1212 | ATQ1: 1213 | ATR1: 1214 | ATS1: 1215 | ATT1: 1216 | ATU1: 1217 | ATV1: 1218 | ATW1: 1219 | ATX1: 1220 | ATY1: 1221 | ATZ1: 1222 | AUA1: 1223 | AUB1: 1224 | AUC1: 1225 | AUD1: 1226 | AUE1: 1227 | AUF1: 1228 | AUG1: 1229 | AUH1: 1230 | AUI1: 1231 | AUJ1: 1232 | AUK1: 1233 | AUL1: 1234 | AUM1: 1235 | AUN1: 1236 | AUO1: 1237 | AUP1: 1238 | AUQ1: 1239 | AUR1: 1240 | AUS1: 1241 | AUT1: 1242 | AUU1: 1243 | AUV1: 1244 | AUW1: 1245 | AUX1: 1246 | AUY1: 1247 | AUZ1: 1248 | AVA1: 1249 | AVB1: 1250 | AVC1: 1251 | AVD1: 1252 | AVE1: 1253 | AVF1: 1254 | AVG1: 1255 | AVH1: 1256 | AVI1: 1257 | AVJ1: 1258 | AVK1: 1259 | AVL1: 1260 | AVM1: 1261 | AVN1: 1262 | AVO1: 1263 | AVP1: 1264 | AVQ1: 1265 | AVR1: 1266 | AVS1: 1267 | AVT1: 1268 | AVU1: 1269 | AVV1: 1270 | AVW1: 1271 | AVX1: 1272 | AVY1: 1273 | AVZ1: 1274 | AWA1: 1275 | AWB1: 1276 | AWC1: 1277 | AWD1: 1278 | AWE1: 1279 | AWF1: 1280 | AWG1: 1281 | AWH1: 1282 | AWI1: 1283 | AWJ1: 1284 | AWK1: 1285 | AWL1: 1286 | AWM1: 1287 | AWN1: 1288 | AWO1: 1289 | AWP1: 1290 | AWQ1: 1291 | AWR1: 1292 | AWS1: 1293 | AWT1: 1294 | AWU1: 1295 | AWV1: 1296 | AWW1: 1297 | AWX1: 1298 | AWY1: 1299 | AWZ1: 1300 | AXA1: 1301 | AXB1: 1302 | AXC1: 1303 | AXD1: 1304 | AXE1: 1305 | AXF1: 1306 | AXG1: 1307 | AXH1: 1308 | AXI1: 1309 | AXJ1: 1310 | AXK1: 1311 | AXL1: 1312 | AXM1: 1313 | AXN1: 1314 | AXO1: 1315 | AXP1: 1316 | AXQ1: 1317 | AXR1: 1318 | AXS1: 1319 | AXT1: 1320 | AXU1: 1321 | AXV1: 1322 | AXW1: 1323 | AXX1: 1324 | AXY1: 1325 | AXZ1: 1326 | AYA1: 1327 | AYB1: 1328 | AYC1: 1329 | AYD1: 1330 | AYE1: 1331 | AYF1: 1332 | AYG1: 1333 | AYH1: 1334 | AYI1: 1335 | AYJ1: 1336 | AYK1: 1337 | AYL1: 1338 | AYM1: 1339 | AYN1: 1340 | AYO1: 1341 | AYP1: 1342 | AYQ1: 1343 | AYR1: 1344 | AYS1: 1345 | AYT1: 1346 | AYU1: 1347 | AYV1: 1348 | AYW1: 1349 | AYX1: 1350 | AYY1: 1351 | AYZ1: 1352 | AZA1: 1353 | AZB1: 1354 | AZC1: 1355 | AZD1: 1356 | AZE1: 1357 | AZF1: 1358 | AZG1: 1359 | AZH1: 1360 | AZI1: 1361 | AZJ1: 1362 | AZK1: 1363 | AZL1: 1364 | AZM1: 1365 | AZN1: 1366 | AZO1: 1367 | AZP1: 1368 | AZQ1: 1369 | AZR1: 1370 | AZS1: 1371 | AZT1: 1372 | AZU1: 1373 | AZV1: 1374 | AZW1: 1375 | AZX1: 1376 | AZY1: 1377 | AZZ1: 1378 | BAA1: 1379 | BAB1: 1380 | BAC1: 1381 | BAD1: 1382 | BAE1: 1383 | BAF1: 1384 | BAG1: 1385 | BAH1: 1386 | BAI1: 1387 | BAJ1: 1388 | BAK1: 1389 | BAL1: 1390 | BAM1: 1391 | BAN1: 1392 | BAO1: 1393 | BAP1: 1394 | BAQ1: 1395 | BAR1: 1396 | BAS1: 1397 | BAT1: 1398 | BAU1: 1399 | BAV1: 1400 | BAW1: 1401 | BAX1: 1402 | BAY1: 1403 | BAZ1: 1404 | BBA1: 1405 | BBB1: 1406 | BBC1: 1407 | BBD1: 1408 | BBE1: 1409 | BBF1: 1410 | BBG1: 1411 | BBH1: 1412 | BBI1: 1413 | BBJ1: 1414 | BBK1: 1415 | BBL1: 1416 | BBM1: 1417 | BBN1: 1418 | BBO1: 1419 | BBP1: 1420 | BBQ1: 1421 | BBR1: 1422 | BBS1: 1423 | BBT1: 1424 | BBU1: 1425 | BBV1: 1426 | BBW1: 1427 | BBX1: 1428 | BBY1: 1429 | BBZ1: 1430 | BCA1: 1431 | BCB1: 1432 | BCC1: 1433 | BCD1: 1434 | BCE1: 1435 | BCF1: 1436 | BCG1: 1437 | BCH1: 1438 | BCI1: 1439 | BCJ1: 1440 | BCK1: 1441 | BCL1: 1442 | BCM1: 1443 | BCN1: 1444 | BCO1: 1445 | BCP1: 1446 | BCQ1: 1447 | BCR1: 1448 | BCS1: 1449 | BCT1: 1450 | BCU1: 1451 | BCV1: 1452 | BCW1: 1453 | BCX1: 1454 | BCY1: 1455 | BCZ1: 1456 | BDA1: 1457 | BDB1: 1458 | BDC1: 1459 | BDD1: 1460 | BDE1: 1461 | BDF1: 1462 | BDG1: 1463 | BDH1: 1464 | BDI1: 1465 | BDJ1: 1466 | BDK1: 1467 | BDL1: 1468 | BDM1: 1469 | BDN1: 1470 | BDO1: 1471 | BDP1: 1472 | BDQ1: 1473 | BDR1: 1474 | BDS1: 1475 | BDT1: 1476 | BDU1: 1477 | BDV1: 1478 | BDW1: 1479 | BDX1: 1480 | BDY1: 1481 | BDZ1: 1482 | BEA1: 1483 | BEB1: 1484 | BEC1: 1485 | BED1: 1486 | BEE1: 1487 | BEF1: 1488 | BEG1: 1489 | BEH1: 1490 | BEI1: 1491 | BEJ1: 1492 | BEK1: 1493 | BEL1: 1494 | BEM1: 1495 | BEN1: 1496 | BEO1: 1497 | BEP1: 1498 | BEQ1: 1499 | BER1: 1500 | BES1: 1501 | BET1: 1502 | BEU1: 1503 | BEV1: 1504 | BEW1: 1505 | BEX1: 1506 | BEY1: 1507 | BEZ1: 1508 | BFA1: 1509 | BFB1: 1510 | BFC1: 1511 | BFD1: 1512 | BFE1: 1513 | BFF1: 1514 | BFG1: 1515 | BFH1: 1516 | BFI1: 1517 | BFJ1: 1518 | BFK1: 1519 | BFL1: 1520 | BFM1: 1521 | BFN1: 1522 | BFO1: 1523 | BFP1: 1524 | BFQ1: 1525 | BFR1: 1526 | BFS1: 1527 | BFT1: 1528 | BFU1: 1529 | BFV1: 1530 | BFW1: 1531 | BFX1: 1532 | BFY1: 1533 | BFZ1: 1534 | BGA1: 1535 | BGB1: 1536 | BGC1: 1537 | BGD1: 1538 | BGE1: 1539 | BGF1: 1540 | BGG1: 1541 | BGH1: 1542 | BGI1: 1543 | BGJ1: 1544 | BGK1: 1545 | BGL1: 1546 | BGM1: 1547 | BGN1: 1548 | BGO1: 1549 | BGP1: 1550 | BGQ1: 1551 | BGR1: 1552 | BGS1: 1553 | BGT1: 1554 | BGU1: 1555 | BGV1: 1556 | BGW1: 1557 | BGX1: 1558 | BGY1: 1559 | BGZ1: 1560 | BHA1: 1561 | BHB1: 1562 | BHC1: 1563 | BHD1: 1564 | BHE1: 1565 | BHF1: 1566 | BHG1: 1567 | BHH1: 1568 | BHI1: 1569 | BHJ1: 1570 | BHK1: 1571 | BHL1: 1572 | BHM1: 1573 | BHN1: 1574 | BHO1: 1575 | BHP1: 1576 | BHQ1: 1577 | BHR1: 1578 | BHS1: 1579 | BHT1: 1580 | BHU1: 1581 | BHV1: 1582 | BHW1: 1583 | BHX1: 1584 | BHY1: 1585 | BHZ1: 1586 | BIA1: 1587 | BIB1: 1588 | BIC1: 1589 | BID1: 1590 | BIE1: 1591 | BIF1: 1592 | BIG1: 1593 | BIH1: 1594 | BII1: 1595 | BIJ1: 1596 | BIK1: 1597 | BIL1: 1598 | BIM1: 1599 | BIN1: 1600 | BIO1: 1601 | BIP1: 1602 | BIQ1: 1603 | BIR1: 1604 | BIS1: 1605 | BIT1: 1606 | BIU1: 1607 | BIV1: 1608 | BIW1: 1609 | BIX1: 1610 | BIY1: 1611 | BIZ1: 1612 | BJA1: 1613 | BJB1: 1614 | BJC1: 1615 | BJD1: 1616 | BJE1: 1617 | BJF1: 1618 | BJG1: 1619 | BJH1: 1620 | BJI1: 1621 | BJJ1: 1622 | BJK1: 1623 | BJL1: 1624 | BJM1: 1625 | BJN1: 1626 | BJO1: 1627 | BJP1: 1628 | BJQ1: 1629 | BJR1: 1630 | BJS1: 1631 | BJT1: 1632 | BJU1: 1633 | BJV1: 1634 | BJW1: 1635 | BJX1: 1636 | BJY1: 1637 | BJZ1: 1638 | BKA1: 1639 | BKB1: 1640 | BKC1: 1641 | BKD1: 1642 | BKE1: 1643 | BKF1: 1644 | BKG1: 1645 | BKH1: 1646 | BKI1: 1647 | BKJ1: 1648 | BKK1: 1649 | BKL1: 1650 | BKM1: 1651 | BKN1: 1652 | BKO1: 1653 | BKP1: 1654 | BKQ1: 1655 | BKR1: 1656 | BKS1: 1657 | BKT1: 1658 | BKU1: 1659 | BKV1: 1660 | BKW1: 1661 | BKX1: 1662 | BKY1: 1663 | BKZ1: 1664 | BLA1: 1665 | BLB1: 1666 | BLC1: 1667 | BLD1: 1668 | BLE1: 1669 | BLF1: 1670 | BLG1: 1671 | BLH1: 1672 | BLI1: 1673 | BLJ1: 1674 | BLK1: 1675 | BLL1: 1676 | BLM1: 1677 | BLN1: 1678 | BLO1: 1679 | BLP1: 1680 | BLQ1: 1681 | BLR1: 1682 | BLS1: 1683 | BLT1: 1684 | BLU1: 1685 | BLV1: 1686 | BLW1: 1687 | BLX1: 1688 | BLY1: 1689 | BLZ1: 1690 | BMA1: 1691 | BMB1: 1692 | BMC1: 1693 | BMD1: 1694 | BME1: 1695 | BMF1: 1696 | BMG1: 1697 | BMH1: 1698 | BMI1: 1699 | BMJ1: 1700 | BMK1: 1701 | BML1: 1702 | BMM1: 1703 | BMN1: 1704 | BMO1: 1705 | BMP1: 1706 | BMQ1: 1707 | BMR1: 1708 | BMS1: 1709 | BMT1: 1710 | BMU1: 1711
